Workbook

Sheet Frontier
B1: 1 | C1: =B1+1 -> 2 | D1: 3 | E1: 4 | F1: 5 | G1: 6 | H1: 7 | I1: 8 | J1: 9 | K1: 10 | L1: 11 | M1: 12 | N1: 13 | O1: 14 | P1: 15 | Q1: 16 | R1: 17 | S1: 18 | T1: 19 | U1: 20 | V1: 21 | W1: 22 | X1: 23 | Y1: 24 | Z1: 25 | AA1: 26 | AB1: 27 | AC1: 28 | AD1: 29 | AE1: 30 | AF1: 31 | AG1: 32 | AH1: 33 | AI1: =AH1+1 -> 34 | AJ1: 35 | AK1: 36 | AL1: 37 | AM1: 38 | AN1: 39 | AO1: 40 | AP1: 41 | AQ1: 42 | AR1: 43 | AS1: 44 | AT1: 45 | AU1: 46 | AV1: 47 | AW1: 48 | AX1: 49 | AY1: 50 | AZ1: 51 | BA1: 52 | BB1: 53 | BC1: 54 | BD1: 55 | BE1: 56 | BF1: 57 | BG1: 58 | BH1: 59 | BI1: 60 | BJ1: x
A2: 1 | BJ2: x
A3: =1+A2 -> 2 | BN3: Ebb & Flow
A4: 3
A5: 4 | BN5: Hivemind Enterprises
A6: 5
A7: 6 | BN7: Shiv-råm Consortium
A8: 7
A9: 8 | BN9: Speakeasy Pharmacopoeia
A10: 9
A11: 10 | BN11: FF&S
A12: 11
A13: 12 | BN13: Anti-Android League
A14: 13
A15: 14 | BN15: Daughters of Amnesty
A16: 15
A17: 16 | BN17: PoLo Militia
A18: 17
A19: 18 | BN19: Queenstemple
A20: 19
A21: 20 | BN21: Four Horsemen
A22: 21 | BJ22: E
A23: 22 | BN23: Krav Sisterhood
A24: 23
A25: 24 | BN25: Order of the Prescient
A26: 25
A27: 26 | BN27: P.C.U.O.C.T.N.S.
A28: 27
A29: 28 | BN29: Shang Initiative
A30: 29
A31: 30 | BN31: Star Devil
A32: 31
A33: 32
A34: 33
A35: 34
A36: 35
A37: 36
A38: 37
A39: 38
A40: 39
A41: 40
A42: 41
A43: 42
A44: 43
A45: x | BJ45: x

Sheet Stations
A1: Planet | B1: Moon | C1: Space Station | D1: Planet, Moon, or Space Station | E1: System | F1: Notes
A2: Henz | D2: =CONCATENATE(A2,B2,C2) -> Henz | E2: Araks
C3: Araks Station | D3: Araks Station | E3: Araks | F3: FE 22, p. 31
A4: Yast | D4: Yast | E4: Athor
C5: Athor Station | D5: Athor Station | E5: Athor
A6: Faire | D6: Faire | E6: Capella
B7: Astraa | D7: Astraa | E7: Capella
A8: Homeworld | D8: Homeworld | E8: Capella
B9: Bigoo | D9: Bigoo | E9: Capella
A10: Ifshna | D10: Ifshna | E10: Capella
A11: Rupert’s Hole | D11: Rupert’s Hole | E11: Cassidine
A12: Triad | D12: Triad | E12: Cassidine
C13: Cassidine Station | D13: Cassidine Station | E13: Cassidine
A14: Pi’Ka’Nair | D14: Pi’Ka’Nair | E14: Cryxia
A15: T T’zaan | D15: T T’zaan | E15: Cryxia
A16: Cass | D16: Cass | E16: Devco
A17: Laco | D17: Laco | E17: Dixon’s Star | F17: FE 1, p. 3
C18: Dixon Station | D18: Dixon Station | E18: Dixon’s Star
A19: Inner Reach | D19: Inner Reach | E19: Dramune
B20: Pell | D20: Pell | E20: Dramune
A21: Outer Reach | D21: Outer Reach | E21: Dramune
C22: Dramune Station | D22: Dramune Station | E22: Dramune
A23: Forge | D23: Forge | E23: Fochrik
A24: Hum | D24: Hum | E24: Fochrik | F24: FE 22, p. 12
A25: Larg | D25: Larg | E25: Fochrik
A26: Groth | D26: Groth | E26: Fromeltar
A27: Terledrom | D27: Terledrom | E27: Fromeltar
B28: Leen | D28: Leen | E28: Fromeltar
C29: Fromeltar Station | D29: Fromeltar Station | E29: Fromeltar
A30: Hargut | D30: Hargut | E30: Gruna Garu
C31: Gruna Garu Station | D31: Gruna Garu Station | E31: Gruna Garu
A32: Ken’zah-Kit | D32: Ken’zah-Kit | E32: K’aken-Kar
C33: K’aken-Kar Station | D33: =CONCATENATE(A33,B33,C33) -> K’aken-Kar Station | E33: K’aken-Kar
A34: Kawdl-Kit | D34: Kawdl-Kit | E34: K’tsa-Kar
C35: K’tsa-Kar Station | D35: K’tsa-Kar Station | E35: K’tsa-Kar
A36: Stenmar | D36: Stenmar | E36: Kazak
A37: Zik-Kit | D37: Zik-Kit | E37: Kizk’-Kar
C38: Kizk’-Kar Station | D38: Kizk’-Kar Station | E38: Kizk’-Kar
A39: Point Go | D39: Point Go | E39: Klaeok
A40: Snowball | D40: Snowball | E40: Liberty
C41: Liberty Station | D41: Liberty Station | E41: Liberty
A42: Moonworld | D42: Moonworld | E42: Lynchpin
B43: Dillon | D43: Dillon | E43: Lynchpin
B44: Duahydra | D44: Duahydra | E44: Lynchpin
C45: Lynchpin Station | D45: Lynchpin Station | E45: Lynchpin
A46: Kdikit | D46: Kdikit | E46: Madderly’s Star
A47: Madderly’s Station | D47: Madderly’s Station | E47: Madderly’s Star | F47: MAY BE MISSING
B48: Jupiter | D48: Jupiter | E48: Madderly’s Star
B49: Shang-Ti | D49: Shang-Ti | E49: Madderly’s Star
C50: Madderly Station | D50: Madderly Station | E50: Madderly’s Star
A51: Mechano | D51: Mechano | E51: Mechan
C52: Mechan Station | D52: Mechan Station | E52: Mechan
A53: Corpco | D53: Corpco | E53: New Streel
C54: New Streel Station | D54: New Streel Station | E54: New Streel
A55: Fhlold | D55: Fhlold | E55: Osak
A56: Osaka | D56: Osaka | E56: Osak
B57: Octon | D57: Octon | E57: Osak
B58: Ontair | D58: Ontair | E58: Osak
A59: Piscatien | D59: Piscatien | E59: Osak
A60: Reanee | D60: Reanee | E60: Osak
A61: Wonma | D61: Wonma | E61: Osak
A62: Exodus | D62: Exodus | E62: Pan-Gal
A63: Genesis | D63: Genesis | E63: Pan-Gal
A64: Gran Quivera | D64: =CONCATENATE(A64,B64,C64) -> Gran Quivera | E64: Prenglar | F64: FE 15, p. 4, FE 36, p. 38
A65: Morgaine’s World | D65: Morgaine’s World | E65: Prenglar | F65: FE 4, p. 40
B66: Grey | D66: Grey | E66: Prenglar
C67: Prenglar Station | D67: Prenglar Station | E67: Prenglar
A68: Alcazzar | D68: Alcazzar | E68: Rhianna | F68: FE 5, p. 4
A69: Hakosoar | D69: Hakosoar | E69: Scree Fron | F69: FE 9, p. 4, FE 12, p. 17, FE 32, p. 37
B70: Infi | D70: Infi | E70: Scree Fron | F70: FE 9, p. 4
A71: Histran | D71: Histran | E71: Scree Fron | F71: FE 9, p. 4
C72: Scree Fron Station | D72: Scree Fron Station | E72: Scree Fron | F72: FE 9, p. 4
A73: Ringar | D73: Ringar | E73: Solar Major
C74: Solar Major Station | D74: Solar Major Station | E74: Solar Major
A75: Circe | D75: Circe | E75: Solar Minor | F75: FE 35, p. 40, FE 33, p. 23
A76: Kir’-Kut | D76: Kir’-Kut | E76: Solar Minor | F76: FE 33, p. 23
C77: Solar Minor Station | D77: Solar Minor Station | E77: Solar Minor | F77: FE 33, p. 23
A78: Starmist | D78: Starmist | E78: Sundown
A79: Minotaur | D79: Minotaur | E79: Theseus | F79: FE 9, p. 37
C80: Theseus Station | D80: Theseus Station | E80: Theseus
A81: Lossend | D81: Lossend | E81: Timeon | F81: FE 1, p. 6
C82: Timeon Station | D82: Timeon Station | E82: Timeon
A83: Kraatar | D83: Kraatar | E83: Tristkar
C84: Tristkar Station | D84: Tristkar Station | E84: Tristkar
A85: New Pale | D85: New Pale | E85: Truane’s Star | F85: FE 6, p. 5, FE 13, p. 16
A86: Pale | D86: Pale | E86: Truane’s Star | F86: FE 6, p. 5
C87: Truane’s Star Station | D87: Truane’s Star Station | E87: Truane’s Star | F87: FE 6, p. 5
A88: Mahg Mar | D88: Mahg Mar | E88: Waller Nexus
C89: Waller Nexus Station | D89: Waller Nexus Station | E89: Waller Nexus
A90: Gollywog | D90: Gollywog | E90: White Light
C91: Planaron | D91: =CONCATENATE(A91,B91,C91) -> Planaron | E91: White Light | F91: FE 1, p. 28
A92: Anker | D92: Anker | E92: Zebulon
A93: Volturnus | D93: Volturnus | E93: Zebulon | F93: FE 7, p. 16, FE 19, p. 11, , FE 29, p. 20

Sheet Systems (hidden)
A1: System | B1: Astro X | C1: Astro Y | D1: Peripherality | E1: Boonie Markup | F1: Agriculture | G1: Business | H1: Education | I1: High-tech Industry | J1: Industry | K1: Military | L1: Resource Mining | M1: Moon Colonization
A2: Alpha | B2: 29 | C2: 27 | D2: =SQRT(((VLOOKUP($A2,$A$2:$C$42,2,FALSE)-30)*(VLOOKUP($A2,$A$2:$C$42,2,FALSE)-30))+((VLOOKUP($A2,$A$2:$C$42,3,FALSE)-21)*(VLOOKUP($A2,$A$2:$C$42,3,FALSE)-21))) -> 6.08276253 | E2: =_xlfn.NORM.DIST(D2,AVERAGE($D$2:$D$42),STDEV($D$2:$D$42),TRUE) -> 0.09107183218
A3: Araks | B3: 11 | C3: 29 | D3: 20.61552813 | E3: 0.7735559892 | J3: 1
A4: Athor | B4: 17 | C4: 24 | D4: 13.34166406 | E4: 0.3848143601 | F4: 1
A5: Belnafaer | B5: 17 | C5: 18 | D5: 13.34166406 | E5: 0.3848143601
A6: Capella | B6: 10 | C6: 12 | D6: 21.9317122 | E6: 0.8262428572
A7: Cassidine | B7: 28 | C7: 16 | D7: 5.385164807 | E7: 0.0757494229 | F7: 1 | I7: 1 | J7: 1 | M7: 1
A8: Cryxia | B8: 30 | C8: 3 | D8: 18 | E8: 0.646318246
A9: Delta | B9: 33 | C9: 23 | D9: 3.605551275 | E9: 0.04555693052
A10: Devco | B10: 35 | C10: 12 | D10: 10.29563014 | E10: 0.2327475777 | L10: 1
A11: Dixon’s Star | B11: 24 | C11: 20 | D11: 6.08276253 | E11: 0.09107183218 | J11: 1
A12: Dramune | B12: 31 | C12: 14 | D12: 7.071067812 | E12: 0.1165509055 | F12: 1 | J12: 1 | L12: 1
A13: Epsilon | B13: 41 | C13: 14 | D13: 13.03840481 | E13: 0.3682979976
A14: Fochrik | B14: 9 | C14: 5 | D14: 26.40075756 | E14: 0.9430068828
A15: Fromeltar | B15: 33 | C15: 7 | D15: 14.31782106 | E15: 0.4392676166 | F15: 1 | J15: 1 | M15: 1
A16: Gamma | B16: 36 | C16: 25 | D16: 7.211102551 | E16: 0.1205346885
A17: Gruna Garu | B17: 19 | C17: 34 | D17: 17.02938637 | E17: 0.5933458555
A18: K’aken-Kar | B18: 45 | C18: 14 | D18: 16.55294536 | E18: 0.5666346533 | F18: 1
A19: K’tsa-Kar | B19: 42 | C19: 18 | D19: 12.36931688 | E19: 0.332744145 | H19: 1
A20: Kazak | B20: 21 | C20: 5 | D20: 18.35755975 | E20: 0.6651984992
A21: Kizk’-Kar | B21: 41 | C21: 8 | D21: 17.02938637 | E21: 0.5933458555 | J21: 1 | L21: 1
A22: Klaeok | B22: 38 | C22: 4 | D22: 18.78829423 | E22: 0.6873963969
A23: Liberty | B23: 54 | C23: 42 | D23: 31.89043744 | E23: 0.9910588686 | H23: 1 | M23: 1
A24: Lynchpin | B24: 33 | C24: 41 | D24: 20.22374842 | E24: 0.7562862943 | G24: 1 | K24: 1 | L24: 1 | M24: 1
A25: Madderly’s Star | B25: 35 | C25: 18 | D25: 5.830951895 | E25: 0.0852955302 | F25: 1 | G25: 1 | J25: 1
A26: Mechan | B26: 12 | C26: 16 | D26: 18.68154169 | E26: 0.6819539226 | I26: 1 | J26: 1
A27: New Streel | B27: 39 | C27: 32 | D27: 14.2126704 | E27: 0.4333267739 | F27: 1 | I27: 1
A28: Osak | B28: 12 | C28: 9 | D28: 21.63330765 | E28: 0.8150375815
A29: Pan-Gal | B29: 25 | C29: 32 | D29: 12.08304597 | E29: 0.3179584988 | H29: 1 | I29: 1 | J29: 1 | K29: 1
A30: Prenglar | B30: 28 | C30: 23 | D30: 2.828427125 | E30: 0.03584882354 | F30: 1 | G30: 1 | J30: 1 | K30: 1 | L30: 1
A31: Rhianna | B31: 15 | C31: 38 | D31: 22.6715681 | E31: 0.8521172968 | L31: 1
A32: Scree Fron | B32: 11 | C32: 18 | D32: 19.23538406 | E32: 0.7097384859 | F32: 1 | H32: 1 | J32: 1 | L32: 1
A33: Solar Major | B33: 50 | C33: 17 | D33: 20.39607805 | E33: 0.7639689218 | G33: 1
A34: Solar Minor | B34: 50 | C34: 33 | D34: 23.32380758 | E34: 0.8726743272 | F34: 1 | J34: 1 | K34: 1
A35: Sundown | B35: 5 | C35: 24 | D35: 25.17935662 | E35: 0.9200356416 | H35: 1
A36: Theseus | B36: 44 | C36: 33 | D36: 18.43908891 | E36: 0.6694477193 | G36: 1 | J36: 1
A37: Timeon | B37: 32 | C37: 30 | D37: 9.219544457 | E37: 0.1882947323 | F37: 1 | J37: 1
A38: Tristkar | B38: 45 | C38: 28 | D38: 16.55294536 | E38: 0.5666346533 | F38: 1 | I38: 1 | J38: 1
A39: Truane’s Star | B39: 23 | C39: 15 | D39: 9.219544457 | E39: 0.1882947323 | F39: 1 | J39: 1 | K39: 1 | L39: 1 | M39: 1
A40: Waller Nexus | B40: 49 | C40: 41 | D40: 27.58622845 | E40: 0.9599915717 | H40: 1
A41: White Light | B41: 40 | C41: 24 | D41: 10.44030651 | E41: 0.2391393451 | L41: 1
A42: Zebulon | B42: 19 | C42: 12 | D42: 14.2126704 | E42: 0.4333267739 | G42: 1 | H42: 1 | J42: 1

Sheet Distances (hidden)
A1: System | B1: =TRANSPOSE($A$2:$A$42) -> Alpha | C1: Araks | D1: Athor | E1: Belnafaer | F1: Capella | G1: Cassidine | H1: Cryxia | I1: Delta | J1: Devco | K1: Dixon’s Star | L1: Dramune | M1: Epsilon | N1: Fochrik | O1: Fromeltar | P1: Gamma | Q1: Gruna Garu | R1: K’aken-Kar | S1: K’tsa-Kar | T1: Kazak | U1: Kizk’-Kar | V1: Klaeok | W1: Liberty | X1: Lynchpin | Y1: Madderly’s Star | Z1: Mechan | AA1: New Streel | AB1: Osak | AC1: Pan-Gal | AD1: Prenglar | AE1: Rhianna | AF1: Scree Fron | AG1: Solar Major | AH1: Solar Minor | AI1: Sundown | AJ1: Theseus | AK1: Timeon | AL1: Tristkar | AM1: Truane’s Star | AN1: Waller Nexus | AO1: White Light | AP1: Zebulon
A2: =Systems!A2 -> Alpha | B2: =SQRT(((VLOOKUP($A2,Systems!$A2:$C$42,2,FALSE)-(VLOOKUP(B$1,Systems!$A$1:$C$42,2,FALSE)))*((VLOOKUP($A2,Systems!$A2:$C$42,2,FALSE)-(VLOOKUP(B$1,Systems!$A$1:$C$42,2,FALSE))))+(((VLOOKUP($A2,Systems!$A2:$C$42,3,FALSE)-(VLOOKUP(B$1,Systems!$A$1:$C$42,3,FALSE)))*((VLOOKUP($A2,Systems!$A2:$C$42,3,FALSE)-(VLOOKUP(B$1,Systems!$A$1:$C$42,3,FALSE)))))))) -> 0 | C2: =SQRT(((VLOOKUP($A2,Systems!$A2:$C$42,2,FALSE)-(VLOOKUP(C$1,Systems!$A$1:$C$42,2,FALSE)))*((VLOOKUP($A2,Systems!$A2:$C$42,2,FALSE)-(VLOOKUP(C$1,Systems!$A$1:$C$42,2,FALSE))))+(((VLOOKUP($A2,Systems!$A2:$C$42,3,FALSE)-(VLOOKUP(C$1,Systems!$A$1:$C$42,3,FALSE)))*((VLOOKUP($A2,Systems!$A2:$C$42,3,FALSE)-(VLOOKUP(C$1,Systems!$A$1:$C$42,3,FALSE)))))))) -> 18.11077028 | D2: =SQRT(((VLOOKUP($A2,Systems!$A2:$C$42,2,FALSE)-(VLOOKUP(D$1,Systems!$A$1:$C$42,2,FALSE)))*((VLOOKUP($A2,Systems!$A2:$C$42,2,FALSE)-(VLOOKUP(D$1,Systems!$A$1:$C$42,2,FALSE))))+(((VLOOKUP($A2,Systems!$A2:$C$42,3,FALSE)-(VLOOKUP(D$1,Systems!$A$1:$C$42,3,FALSE)))*((VLOOKUP($A2,Systems!$A2:$C$42,3,FALSE)-(VLOOKUP(D$1,Systems!$A$1:$C$42,3,FALSE)))))))) -> 12.36931688 | E2: =SQRT(((VLOOKUP($A2,Systems!$A2:$C$42,2,FALSE)-(VLOOKUP(E$1,Systems!$A$1:$C$42,2,FALSE)))*((VLOOKUP($A2,Systems!$A2:$C$42,2,FALSE)-(VLOOKUP(E$1,Systems!$A$1:$C$42,2,FALSE))))+(((VLOOKUP($A2,Systems!$A2:$C$42,3,FALSE)-(VLOOKUP(E$1,Systems!$A$1:$C$42,3,FALSE)))*((VLOOKUP($A2,Systems!$A2:$C$42,3,FALSE)-(VLOOKUP(E$1,Systems!$A$1:$C$42,3,FALSE)))))))) -> 15 | F2: =SQRT(((VLOOKUP($A2,Systems!$A2:$C$42,2,FALSE)-(VLOOKUP(F$1,Systems!$A$1:$C$42,2,FALSE)))*((VLOOKUP($A2,Systems!$A2:$C$42,2,FALSE)-(VLOOKUP(F$1,Systems!$A$1:$C$42,2,FALSE))))+(((VLOOKUP($A2,Systems!$A2:$C$42,3,FALSE)-(VLOOKUP(F$1,Systems!$A$1:$C$42,3,FALSE)))*((VLOOKUP($A2,Systems!$A2:$C$42,3,FALSE)-(VLOOKUP(F$1,Systems!$A$1:$C$42,3,FALSE)))))))) -> 24.20743687 | G2: =SQRT(((VLOOKUP($A2,Systems!$A2:$C$42,2,FALSE)-(VLOOKUP(G$1,Systems!$A$1:$C$42,2,FALSE)))*((VLOOKUP($A2,Systems!$A2:$C$42,2,FALSE)-(VLOOKUP(G$1,Systems!$A$1:$C$42,2,FALSE))))+(((VLOOKUP($A2,Systems!$A2:$C$42,3,FALSE)-(VLOOKUP(G$1,Systems!$A$1:$C$42,3,FALSE)))*((VLOOKUP($A2,Systems!$A2:$C$42,3,FALSE)-(VLOOKUP(G$1,Systems!$A$1:$C$42,3,FALSE)))))))) -> 11.04536102 | H2: =SQRT(((VLOOKUP($A2,Systems!$A2:$C$42,2,FALSE)-(VLOOKUP(H$1,Systems!$A$1:$C$42,2,FALSE)))*((VLOOKUP($A2,Systems!$A2:$C$42,2,FALSE)-(VLOOKUP(H$1,Systems!$A$1:$C$42,2,FALSE))))+(((VLOOKUP($A2,Systems!$A2:$C$42,3,FALSE)-(VLOOKUP(H$1,Systems!$A$1:$C$42,3,FALSE)))*((VLOOKUP($A2,Systems!$A2:$C$42,3,FALSE)-(VLOOKUP(H$1,Systems!$A$1:$C$42,3,FALSE)))))))) -> 24.0208243 | I2: =SQRT(((VLOOKUP($A2,Systems!$A2:$C$42,2,FALSE)-(VLOOKUP(I$1,Systems!$A$1:$C$42,2,FALSE)))*((VLOOKUP($A2,Systems!$A2:$C$42,2,FALSE)-(VLOOKUP(I$1,Systems!$A$1:$C$42,2,FALSE))))+(((VLOOKUP($A2,Systems!$A2:$C$42,3,FALSE)-(VLOOKUP(I$1,Systems!$A$1:$C$42,3,FALSE)))*((VLOOKUP($A2,Systems!$A2:$C$42,3,FALSE)-(VLOOKUP(I$1,Systems!$A$1:$C$42,3,FALSE)))))))) -> 5.656854249 | J2: =SQRT(((VLOOKUP($A2,Systems!$A2:$C$42,2,FALSE)-(VLOOKUP(J$1,Systems!$A$1:$C$42,2,FALSE)))*((VLOOKUP($A2,Systems!$A2:$C$42,2,FALSE)-(VLOOKUP(J$1,Systems!$A$1:$C$42,2,FALSE))))+(((VLOOKUP($A2,Systems!$A2:$C$42,3,FALSE)-(VLOOKUP(J$1,Systems!$A$1:$C$42,3,FALSE)))*((VLOOKUP($A2,Systems!$A2:$C$42,3,FALSE)-(VLOOKUP(J$1,Systems!$A$1:$C$42,3,FALSE)))))))) -> 16.15549442 | K2: =SQRT(((VLOOKUP($A2,Systems!$A2:$C$42,2,FALSE)-(VLOOKUP(K$1,Systems!$A$1:$C$42,2,FALSE)))*((VLOOKUP($A2,Systems!$A2:$C$42,2,FALSE)-(VLOOKUP(K$1,Systems!$A$1:$C$42,2,FALSE))))+(((VLOOKUP($A2,Systems!$A2:$C$42,3,FALSE)-(VLOOKUP(K$1,Systems!$A$1:$C$42,3,FALSE)))*((VLOOKUP($A2,Systems!$A2:$C$42,3,FALSE)-(VLOOKUP(K$1,Systems!$A$1:$C$42,3,FALSE)))))))) -> 8.602325267 | L2: =SQRT(((VLOOKUP($A2,Systems!$A2:$C$42,2,FALSE)-(VLOOKUP(L$1,Systems!$A$1:$C$42,2,FALSE)))*((VLOOKUP($A2,Systems!$A2:$C$42,2,FALSE)-(VLOOKUP(L$1,Systems!$A$1:$C$42,2,FALSE))))+(((VLOOKUP($A2,Systems!$A2:$C$42,3,FALSE)-(VLOOKUP(L$1,Systems!$A$1:$C$42,3,FALSE)))*((VLOOKUP($A2,Systems!$A2:$C$42,3,FALSE)-(VLOOKUP(L$1,Systems!$A$1:$C$42,3,FALSE)))))))) -> 13.15294644 | M2: =SQRT(((VLOOKUP($A2,Systems!$A2:$C$42,2,FALSE)-(VLOOKUP(M$1,Systems!$A$1:$C$42,2,FALSE)))*((VLOOKUP($A2,Systems!$A2:$C$42,2,FALSE)-(VLOOKUP(M$1,Systems!$A$1:$C$42,2,FALSE))))+(((VLOOKUP($A2,Systems!$A2:$C$42,3,FALSE)-(VLOOKUP(M$1,Systems!$A$1:$C$42,3,FALSE)))*((VLOOKUP($A2,Systems!$A2:$C$42,3,FALSE)-(VLOOKUP(M$1,Systems!$A$1:$C$42,3,FALSE)))))))) -> 17.69180601 | N2: =SQRT(((VLOOKUP($A2,Systems!$A2:$C$42,2,FALSE)-(VLOOKUP(N$1,Systems!$A$1:$C$42,2,FALSE)))*((VLOOKUP($A2,Systems!$A2:$C$42,2,FALSE)-(VLOOKUP(N$1,Systems!$A$1:$C$42,2,FALSE))))+(((VLOOKUP($A2,Systems!$A2:$C$42,3,FALSE)-(VLOOKUP(N$1,Systems!$A$1:$C$42,3,FALSE)))*((VLOOKUP($A2,Systems!$A2:$C$42,3,FALSE)-(VLOOKUP(N$1,Systems!$A$1:$C$42,3,FALSE)))))))) -> 29.73213749 | O2: =SQRT(((VLOOKUP($A2,Systems!$A2:$C$42,2,FALSE)-(VLOOKUP(O$1,Systems!$A$1:$C$42,2,FALSE)))*((VLOOKUP($A2,Systems!$A2:$C$42,2,FALSE)-(VLOOKUP(O$1,Systems!$A$1:$C$42,2,FALSE))))+(((VLOOKUP($A2,Systems!$A2:$C$42,3,FALSE)-(VLOOKUP(O$1,Systems!$A$1:$C$42,3,FALSE)))*((VLOOKUP($A2,Systems!$A2:$C$42,3,FALSE)-(VLOOKUP(O$1,Systems!$A$1:$C$42,3,FALSE)))))))) -> 20.39607805 | P2: =SQRT(((VLOOKUP($A2,Systems!$A2:$C$42,2,FALSE)-(VLOOKUP(P$1,Systems!$A$1:$C$42,2,FALSE)))*((VLOOKUP($A2,Systems!$A2:$C$42,2,FALSE)-(VLOOKUP(P$1,Systems!$A$1:$C$42,2,FALSE))))+(((VLOOKUP($A2,Systems!$A2:$C$42,3,FALSE)-(VLOOKUP(P$1,Systems!$A$1:$C$42,3,FALSE)))*((VLOOKUP($A2,Systems!$A2:$C$42,3,FALSE)-(VLOOKUP(P$1,Systems!$A$1:$C$42,3,FALSE)))))))) -> 7.280109889 | Q2: =SQRT(((VLOOKUP($A2,Systems!$A2:$C$42,2,FALSE)-(VLOOKUP(Q$1,Systems!$A$1:$C$42,2,FALSE)))*((VLOOKUP($A2,Systems!$A2:$C$42,2,FALSE)-(VLOOKUP(Q$1,Systems!$A$1:$C$42,2,FALSE))))+(((VLOOKUP($A2,Systems!$A2:$C$42,3,FALSE)-(VLOOKUP(Q$1,Systems!$A$1:$C$42,3,FALSE)))*((VLOOKUP($A2,Systems!$A2:$C$42,3,FALSE)-(VLOOKUP(Q$1,Systems!$A$1:$C$42,3,FALSE)))))))) -> 12.20655562 | R2: =SQRT(((VLOOKUP($A2,Systems!$A2:$C$42,2,FALSE)-(VLOOKUP(R$1,Systems!$A$1:$C$42,2,FALSE)))*((VLOOKUP($A2,Systems!$A2:$C$42,2,FALSE)-(VLOOKUP(R$1,Systems!$A$1:$C$42,2,FALSE))))+(((VLOOKUP($A2,Systems!$A2:$C$42,3,FALSE)-(VLOOKUP(R$1,Systems!$A$1:$C$42,3,FALSE)))*((VLOOKUP($A2,Systems!$A2:$C$42,3,FALSE)-(VLOOKUP(R$1,Systems!$A$1:$C$42,3,FALSE)))))))) -> 20.61552813 | S2: =SQRT(((VLOOKUP($A2,Systems!$A2:$C$42,2,FALSE)-(VLOOKUP(S$1,Systems!$A$1:$C$42,2,FALSE)))*((VLOOKUP($A2,Systems!$A2:$C$42,2,FALSE)-(VLOOKUP(S$1,Systems!$A$1:$C$42,2,FALSE))))+(((VLOOKUP($A2,Systems!$A2:$C$42,3,FALSE)-(VLOOKUP(S$1,Systems!$A$1:$C$42,3,FALSE)))*((VLOOKUP($A2,Systems!$A2:$C$42,3,FALSE)-(VLOOKUP(S$1,Systems!$A$1:$C$42,3,FALSE)))))))) -> 15.8113883 | T2: =SQRT(((VLOOKUP($A2,Systems!$A2:$C$42,2,FALSE)-(VLOOKUP(T$1,Systems!$A$1:$C$42,2,FALSE)))*((VLOOKUP($A2,Systems!$A2:$C$42,2,FALSE)-(VLOOKUP(T$1,Systems!$A$1:$C$42,2,FALSE))))+(((VLOOKUP($A2,Systems!$A2:$C$42,3,FALSE)-(VLOOKUP(T$1,Systems!$A$1:$C$42,3,FALSE)))*((VLOOKUP($A2,Systems!$A2:$C$42,3,FALSE)-(VLOOKUP(T$1,Systems!$A$1:$C$42,3,FALSE)))))))) -> 23.40939982 | U2: =SQRT(((VLOOKUP($A2,Systems!$A2:$C$42,2,FALSE)-(VLOOKUP(U$1,Systems!$A$1:$C$42,2,FALSE)))*((VLOOKUP($A2,Systems!$A2:$C$42,2,FALSE)-(VLOOKUP(U$1,Systems!$A$1:$C$42,2,FALSE))))+(((VLOOKUP($A2,Systems!$A2:$C$42,3,FALSE)-(VLOOKUP(U$1,Systems!$A$1:$C$42,3,FALSE)))*((VLOOKUP($A2,Systems!$A2:$C$42,3,FALSE)-(VLOOKUP(U$1,Systems!$A$1:$C$42,3,FALSE)))))))) -> 22.47220505 | V2: =SQRT(((VLOOKUP($A2,Systems!$A2:$C$42,2,FALSE)-(VLOOKUP(V$1,Systems!$A$1:$C$42,2,FALSE)))*((VLOOKUP($A2,Systems!$A2:$C$42,2,FALSE)-(VLOOKUP(V$1,Systems!$A$1:$C$42,2,FALSE))))+(((VLOOKUP($A2,Systems!$A2:$C$42,3,FALSE)-(VLOOKUP(V$1,Systems!$A$1:$C$42,3,FALSE)))*((VLOOKUP($A2,Systems!$A2:$C$42,3,FALSE)-(VLOOKUP(V$1,Systems!$A$1:$C$42,3,FALSE)))))))) -> 24.69817807 | W2: =SQRT(((VLOOKUP($A2,Systems!$A2:$C$42,2,FALSE)-(VLOOKUP(W$1,Systems!$A$1:$C$42,2,FALSE)))*((VLOOKUP($A2,Systems!$A2:$C$42,2,FALSE)-(VLOOKUP(W$1,Systems!$A$1:$C$42,2,FALSE))))+(((VLOOKUP($A2,Systems!$A2:$C$42,3,FALSE)-(VLOOKUP(W$1,Systems!$A$1:$C$42,3,FALSE)))*((VLOOKUP($A2,Systems!$A2:$C$42,3,FALSE)-(VLOOKUP(W$1,Systems!$A$1:$C$42,3,FALSE)))))))) -> 29.15475947 | X2: =SQRT(((VLOOKUP($A2,Systems!$A2:$C$42,2,FALSE)-(VLOOKUP(X$1,Systems!$A$1:$C$42,2,FALSE)))*((VLOOKUP($A2,Systems!$A2:$C$42,2,FALSE)-(VLOOKUP(X$1,Systems!$A$1:$C$42,2,FALSE))))+(((VLOOKUP($A2,Systems!$A2:$C$42,3,FALSE)-(VLOOKUP(X$1,Systems!$A$1:$C$42,3,FALSE)))*((VLOOKUP($A2,Systems!$A2:$C$42,3,FALSE)-(VLOOKUP(X$1,Systems!$A$1:$C$42,3,FALSE)))))))) -> 14.56021978 | Y2: =SQRT(((VLOOKUP($A2,Systems!$A2:$C$42,2,FALSE)-(VLOOKUP(Y$1,Systems!$A$1:$C$42,2,FALSE)))*((VLOOKUP($A2,Systems!$A2:$C$42,2,FALSE)-(VLOOKUP(Y$1,Systems!$A$1:$C$42,2,FALSE))))+(((VLOOKUP($A2,Systems!$A2:$C$42,3,FALSE)-(VLOOKUP(Y$1,Systems!$A$1:$C$42,3,FALSE)))*((VLOOKUP($A2,Systems!$A2:$C$42,3,FALSE)-(VLOOKUP(Y$1,Systems!$A$1:$C$42,3,FALSE)))))))) -> 10.81665383 | Z2: =SQRT(((VLOOKUP($A2,Systems!$A2:$C$42,2,FALSE)-(VLOOKUP(Z$1,Systems!$A$1:$C$42,2,FALSE)))*((VLOOKUP($A2,Systems!$A2:$C$42,2,FALSE)-(VLOOKUP(Z$1,Systems!$A$1:$C$42,2,FALSE))))+(((VLOOKUP($A2,Systems!$A2:$C$42,3,FALSE)-(VLOOKUP(Z$1,Systems!$A$1:$C$42,3,FALSE)))*((VLOOKUP($A2,Systems!$A2:$C$42,3,FALSE)-(VLOOKUP(Z$1,Systems!$A$1:$C$42,3,FALSE)))))))) -> 20.24845673 | AA2: =SQRT(((VLOOKUP($A2,Systems!$A2:$C$42,2,FALSE)-(VLOOKUP(AA$1,Systems!$A$1:$C$42,2,FALSE)))*((VLOOKUP($A2,Systems!$A2:$C$42,2,FALSE)-(VLOOKUP(AA$1,Systems!$A$1:$C$42,2,FALSE))))+(((VLOOKUP($A2,Systems!$A2:$C$42,3,FALSE)-(VLOOKUP(AA$1,Systems!$A$1:$C$42,3,FALSE)))*((VLOOKUP($A2,Systems!$A2:$C$42,3,FALSE)-(VLOOKUP(AA$1,Systems!$A$1:$C$42,3,FALSE)))))))) -> 11.18033989 | AB2: =SQRT(((VLOOKUP($A2,Systems!$A2:$C$42,2,FALSE)-(VLOOKUP(AB$1,Systems!$A$1:$C$42,2,FALSE)))*((VLOOKUP($A2,Systems!$A2:$C$42,2,FALSE)-(VLOOKUP(AB$1,Systems!$A$1:$C$42,2,FALSE))))+(((VLOOKUP($A2,Systems!$A2:$C$42,3,FALSE)-(VLOOKUP(AB$1,Systems!$A$1:$C$42,3,FALSE)))*((VLOOKUP($A2,Systems!$A2:$C$42,3,FALSE)-(VLOOKUP(AB$1,Systems!$A$1:$C$42,3,FALSE)))))))) -> 24.75883681 | AC2: =SQRT(((VLOOKUP($A2,Systems!$A2:$C$42,2,FALSE)-(VLOOKUP(AC$1,Systems!$A$1:$C$42,2,FALSE)))*((VLOOKUP($A2,Systems!$A2:$C$42,2,FALSE)-(VLOOKUP(AC$1,Systems!$A$1:$C$42,2,FALSE))))+(((VLOOKUP($A2,Systems!$A2:$C$42,3,FALSE)-(VLOOKUP(AC$1,Systems!$A$1:$C$42,3,FALSE)))*((VLOOKUP($A2,Systems!$A2:$C$42,3,FALSE)-(VLOOKUP(AC$1,Systems!$A$1:$C$42,3,FALSE)))))))) -> 6.403124237 | AD2: =SQRT(((VLOOKUP($A2,Systems!$A2:$C$42,2,FALSE)-(VLOOKUP(AD$1,Systems!$A$1:$C$42,2,FALSE)))*((VLOOKUP($A2,Systems!$A2:$C$42,2,FALSE)-(VLOOKUP(AD$1,Systems!$A$1:$C$42,2,FALSE))))+(((VLOOKUP($A2,Systems!$A2:$C$42,3,FALSE)-(VLOOKUP(AD$1,Systems!$A$1:$C$42,3,FALSE)))*((VLOOKUP($A2,Systems!$A2:$C$42,3,FALSE)-(VLOOKUP(AD$1,Systems!$A$1:$C$42,3,FALSE)))))))) -> 4.123105626 | AE2: =SQRT(((VLOOKUP($A2,Systems!$A2:$C$42,2,FALSE)-(VLOOKUP(AE$1,Systems!$A$1:$C$42,2,FALSE)))*((VLOOKUP($A2,Systems!$A2:$C$42,2,FALSE)-(VLOOKUP(AE$1,Systems!$A$1:$C$42,2,FALSE))))+(((VLOOKUP($A2,Systems!$A2:$C$42,3,FALSE)-(VLOOKUP(AE$1,Systems!$A$1:$C$42,3,FALSE)))*((VLOOKUP($A2,Systems!$A2:$C$42,3,FALSE)-(VLOOKUP(AE$1,Systems!$A$1:$C$42,3,FALSE)))))))) -> 17.80449381 | AF2: =SQRT(((VLOOKUP($A2,Systems!$A2:$C$42,2,FALSE)-(VLOOKUP(AF$1,Systems!$A$1:$C$42,2,FALSE)))*((VLOOKUP($A2,Systems!$A2:$C$42,2,FALSE)-(VLOOKUP(AF$1,Systems!$A$1:$C$42,2,FALSE))))+(((VLOOKUP($A2,Systems!$A2:$C$42,3,FALSE)-(VLOOKUP(AF$1,Systems!$A$1:$C$42,3,FALSE)))*((VLOOKUP($A2,Systems!$A2:$C$42,3,FALSE)-(VLOOKUP(AF$1,Systems!$A$1:$C$42,3,FALSE)))))))) -> 20.1246118 | AG2: =SQRT(((VLOOKUP($A2,Systems!$A2:$C$42,2,FALSE)-(VLOOKUP(AG$1,Systems!$A$1:$C$42,2,FALSE)))*((VLOOKUP($A2,Systems!$A2:$C$42,2,FALSE)-(VLOOKUP(AG$1,Systems!$A$1:$C$42,2,FALSE))))+(((VLOOKUP($A2,Systems!$A2:$C$42,3,FALSE)-(VLOOKUP(AG$1,Systems!$A$1:$C$42,3,FALSE)))*((VLOOKUP($A2,Systems!$A2:$C$42,3,FALSE)-(VLOOKUP(AG$1,Systems!$A$1:$C$42,3,FALSE)))))))) -> 23.2594067 | AH2: =SQRT(((VLOOKUP($A2,Systems!$A2:$C$42,2,FALSE)-(VLOOKUP(AH$1,Systems!$A$1:$C$42,2,FALSE)))*((VLOOKUP($A2,Systems!$A2:$C$42,2,FALSE)-(VLOOKUP(AH$1,Systems!$A$1:$C$42,2,FALSE))))+(((VLOOKUP($A2,Systems!$A2:$C$42,3,FALSE)-(VLOOKUP(AH$1,Systems!$A$1:$C$42,3,FALSE)))*((VLOOKUP($A2,Systems!$A2:$C$42,3,FALSE)-(VLOOKUP(AH$1,Systems!$A$1:$C$42,3,FALSE)))))))) -> 21.84032967 | AI2: =SQRT(((VLOOKUP($A2,Systems!$A2:$C$42,2,FALSE)-(VLOOKUP(AI$1,Systems!$A$1:$C$42,2,FALSE)))*((VLOOKUP($A2,Systems!$A2:$C$42,2,FALSE)-(VLOOKUP(AI$1,Systems!$A$1:$C$42,2,FALSE))))+(((VLOOKUP($A2,Systems!$A2:$C$42,3,FALSE)-(VLOOKUP(AI$1,Systems!$A$1:$C$42,3,FALSE)))*((VLOOKUP($A2,Systems!$A2:$C$42,3,FALSE)-(VLOOKUP(AI$1,Systems!$A$1:$C$42,3,FALSE)))))))) -> 24.18677324 | AJ2: =SQRT(((VLOOKUP($A2,Systems!$A2:$C$42,2,FALSE)-(VLOOKUP(AJ$1,Systems!$A$1:$C$42,2,FALSE)))*((VLOOKUP($A2,Systems!$A2:$C$42,2,FALSE)-(VLOOKUP(AJ$1,Systems!$A$1:$C$42,2,FALSE))))+(((VLOOKUP($A2,Systems!$A2:$C$42,3,FALSE)-(VLOOKUP(AJ$1,Systems!$A$1:$C$42,3,FALSE)))*((VLOOKUP($A2,Systems!$A2:$C$42,3,FALSE)-(VLOOKUP(AJ$1,Systems!$A$1:$C$42,3,FALSE)))))))) -> 16.15549442 | AK2: =SQRT(((VLOOKUP($A2,Systems!$A2:$C$42,2,FALSE)-(VLOOKUP(AK$1,Systems!$A$1:$C$42,2,FALSE)))*((VLOOKUP($A2,Systems!$A2:$C$42,2,FALSE)-(VLOOKUP(AK$1,Systems!$A$1:$C$42,2,FALSE))))+(((VLOOKUP($A2,Systems!$A2:$C$42,3,FALSE)-(VLOOKUP(AK$1,Systems!$A$1:$C$42,3,FALSE)))*((VLOOKUP($A2,Systems!$A2:$C$42,3,FALSE)-(VLOOKUP(AK$1,Systems!$A$1:$C$42,3,FALSE)))))))) -> 4.242640687 | AL2: =SQRT(((VLOOKUP($A2,Systems!$A2:$C$42,2,FALSE)-(VLOOKUP(AL$1,Systems!$A$1:$C$42,2,FALSE)))*((VLOOKUP($A2,Systems!$A2:$C$42,2,FALSE)-(VLOOKUP(AL$1,Systems!$A$1:$C$42,2,FALSE))))+(((VLOOKUP($A2,Systems!$A2:$C$42,3,FALSE)-(VLOOKUP(AL$1,Systems!$A$1:$C$42,3,FALSE)))*((VLOOKUP($A2,Systems!$A2:$C$42,3,FALSE)-(VLOOKUP(AL$1,Systems!$A$1:$C$42,3,FALSE)))))))) -> 16.03121954 | AM2: =SQRT(((VLOOKUP($A2,Systems!$A2:$C$42,2,FALSE)-(VLOOKUP(AM$1,Systems!$A$1:$C$42,2,FALSE)))*((VLOOKUP($A2,Systems!$A2:$C$42,2,FALSE)-(VLOOKUP(AM$1,Systems!$A$1:$C$42,2,FALSE))))+(((VLOOKUP($A2,Systems!$A2:$C$42,3,FALSE)-(VLOOKUP(AM$1,Systems!$A$1:$C$42,3,FALSE)))*((VLOOKUP($A2,Systems!$A2:$C$42,3,FALSE)-(VLOOKUP(AM$1,Systems!$A$1:$C$42,3,FALSE)))))))) -> 13.41640786 | AN2: =SQRT(((VLOOKUP($A2,Systems!$A2:$C$42,2,FALSE)-(VLOOKUP(AN$1,Systems!$A$1:$C$42,2,FALSE)))*((VLOOKUP($A2,Systems!$A2:$C$42,2,FALSE)-(VLOOKUP(AN$1,Systems!$A$1:$C$42,2,FALSE))))+(((VLOOKUP($A2,Systems!$A2:$C$42,3,FALSE)-(VLOOKUP(AN$1,Systems!$A$1:$C$42,3,FALSE)))*((VLOOKUP($A2,Systems!$A2:$C$42,3,FALSE)-(VLOOKUP(AN$1,Systems!$A$1:$C$42,3,FALSE)))))))) -> 24.41311123 | AO2: =SQRT(((VLOOKUP($A2,Systems!$A2:$C$42,2,FALSE)-(VLOOKUP(AO$1,Systems!$A$1:$C$42,2,FALSE)))*((VLOOKUP($A2,Systems!$A2:$C$42,2,FALSE)-(VLOOKUP(AO$1,Systems!$A$1:$C$42,2,FALSE))))+(((VLOOKUP($A2,Systems!$A2:$C$42,3,FALSE)-(VLOOKUP(AO$1,Systems!$A$1:$C$42,3,FALSE)))*((VLOOKUP($A2,Systems!$A2:$C$42,3,FALSE)-(VLOOKUP(AO$1,Systems!$A$1:$C$42,3,FALSE)))))))) -> 11.40175425 | AP2: =SQRT(((VLOOKUP($A2,Systems!$A2:$C$42,2,FALSE)-(VLOOKUP(AP$1,Systems!$A$1:$C$42,2,FALSE)))*((VLOOKUP($A2,Systems!$A2:$C$42,2,FALSE)-(VLOOKUP(AP$1,Systems!$A$1:$C$42,2,FALSE))))+(((VLOOKUP($A2,Systems!$A2:$C$42,3,FALSE)-(VLOOKUP(AP$1,Systems!$A$1:$C$42,3,FALSE)))*((VLOOKUP($A2,Systems!$A2:$C$42,3,FALSE)-(VLOOKUP(AP$1,Systems!$A$1:$C$42,3,FALSE)))))))) -> 18.02775638
A3: =Systems!A3 -> Araks | B3: =SQRT(((VLOOKUP($A3,Systems!$A3:$C$42,2,FALSE)-(VLOOKUP(B$1,Systems!$A$1:$C$42,2,FALSE)))*((VLOOKUP($A3,Systems!$A3:$C$42,2,FALSE)-(VLOOKUP(B$1,Systems!$A$1:$C$42,2,FALSE))))+(((VLOOKUP($A3,Systems!$A3:$C$42,3,FALSE)-(VLOOKUP(B$1,Systems!$A$1:$C$42,3,FALSE)))*((VLOOKUP($A3,Systems!$A3:$C$42,3,FALSE)-(VLOOKUP(B$1,Systems!$A$1:$C$42,3,FALSE)))))))) -> 18.11077028 | C3: =SQRT(((VLOOKUP($A3,Systems!$A3:$C$42,2,FALSE)-(VLOOKUP(C$1,Systems!$A$1:$C$42,2,FALSE)))*((VLOOKUP($A3,Systems!$A3:$C$42,2,FALSE)-(VLOOKUP(C$1,Systems!$A$1:$C$42,2,FALSE))))+(((VLOOKUP($A3,Systems!$A3:$C$42,3,FALSE)-(VLOOKUP(C$1,Systems!$A$1:$C$42,3,FALSE)))*((VLOOKUP($A3,Systems!$A3:$C$42,3,FALSE)-(VLOOKUP(C$1,Systems!$A$1:$C$42,3,FALSE)))))))) -> 0 | D3: =SQRT(((VLOOKUP($A3,Systems!$A3:$C$42,2,FALSE)-(VLOOKUP(D$1,Systems!$A$1:$C$42,2,FALSE)))*((VLOOKUP($A3,Systems!$A3:$C$42,2,FALSE)-(VLOOKUP(D$1,Systems!$A$1:$C$42,2,FALSE))))+(((VLOOKUP($A3,Systems!$A3:$C$42,3,FALSE)-(VLOOKUP(D$1,Systems!$A$1:$C$42,3,FALSE)))*((VLOOKUP($A3,Systems!$A3:$C$42,3,FALSE)-(VLOOKUP(D$1,Systems!$A$1:$C$42,3,FALSE)))))))) -> 7.810249676 | E3: =SQRT(((VLOOKUP($A3,Systems!$A3:$C$42,2,FALSE)-(VLOOKUP(E$1,Systems!$A$1:$C$42,2,FALSE)))*((VLOOKUP($A3,Systems!$A3:$C$42,2,FALSE)-(VLOOKUP(E$1,Systems!$A$1:$C$42,2,FALSE))))+(((VLOOKUP($A3,Systems!$A3:$C$42,3,FALSE)-(VLOOKUP(E$1,Systems!$A$1:$C$42,3,FALSE)))*((VLOOKUP($A3,Systems!$A3:$C$42,3,FALSE)-(VLOOKUP(E$1,Systems!$A$1:$C$42,3,FALSE)))))))) -> 12.52996409 | F3: =SQRT(((VLOOKUP($A3,Systems!$A3:$C$42,2,FALSE)-(VLOOKUP(F$1,Systems!$A$1:$C$42,2,FALSE)))*((VLOOKUP($A3,Systems!$A3:$C$42,2,FALSE)-(VLOOKUP(F$1,Systems!$A$1:$C$42,2,FALSE))))+(((VLOOKUP($A3,Systems!$A3:$C$42,3,FALSE)-(VLOOKUP(F$1,Systems!$A$1:$C$42,3,FALSE)))*((VLOOKUP($A3,Systems!$A3:$C$42,3,FALSE)-(VLOOKUP(F$1,Systems!$A$1:$C$42,3,FALSE)))))))) -> 17.02938637 | G3: =SQRT(((VLOOKUP($A3,Systems!$A3:$C$42,2,FALSE)-(VLOOKUP(G$1,Systems!$A$1:$C$42,2,FALSE)))*((VLOOKUP($A3,Systems!$A3:$C$42,2,FALSE)-(VLOOKUP(G$1,Systems!$A$1:$C$42,2,FALSE))))+(((VLOOKUP($A3,Systems!$A3:$C$42,3,FALSE)-(VLOOKUP(G$1,Systems!$A$1:$C$42,3,FALSE)))*((VLOOKUP($A3,Systems!$A3:$C$42,3,FALSE)-(VLOOKUP(G$1,Systems!$A$1:$C$42,3,FALSE)))))))) -> 21.40093456 | H3: =SQRT(((VLOOKUP($A3,Systems!$A3:$C$42,2,FALSE)-(VLOOKUP(H$1,Systems!$A$1:$C$42,2,FALSE)))*((VLOOKUP($A3,Systems!$A3:$C$42,2,FALSE)-(VLOOKUP(H$1,Systems!$A$1:$C$42,2,FALSE))))+(((VLOOKUP($A3,Systems!$A3:$C$42,3,FALSE)-(VLOOKUP(H$1,Systems!$A$1:$C$42,3,FALSE)))*((VLOOKUP($A3,Systems!$A3:$C$42,3,FALSE)-(VLOOKUP(H$1,Systems!$A$1:$C$42,3,FALSE)))))))) -> 32.20248438 | I3: =SQRT(((VLOOKUP($A3,Systems!$A3:$C$42,2,FALSE)-(VLOOKUP(I$1,Systems!$A$1:$C$42,2,FALSE)))*((VLOOKUP($A3,Systems!$A3:$C$42,2,FALSE)-(VLOOKUP(I$1,Systems!$A$1:$C$42,2,FALSE))))+(((VLOOKUP($A3,Systems!$A3:$C$42,3,FALSE)-(VLOOKUP(I$1,Systems!$A$1:$C$42,3,FALSE)))*((VLOOKUP($A3,Systems!$A3:$C$42,3,FALSE)-(VLOOKUP(I$1,Systems!$A$1:$C$42,3,FALSE)))))))) -> 22.8035085 | J3: =SQRT(((VLOOKUP($A3,Systems!$A3:$C$42,2,FALSE)-(VLOOKUP(J$1,Systems!$A$1:$C$42,2,FALSE)))*((VLOOKUP($A3,Systems!$A3:$C$42,2,FALSE)-(VLOOKUP(J$1,Systems!$A$1:$C$42,2,FALSE))))+(((VLOOKUP($A3,Systems!$A3:$C$42,3,FALSE)-(VLOOKUP(J$1,Systems!$A$1:$C$42,3,FALSE)))*((VLOOKUP($A3,Systems!$A3:$C$42,3,FALSE)-(VLOOKUP(J$1,Systems!$A$1:$C$42,3,FALSE)))))))) -> 29.41088234 | K3: =SQRT(((VLOOKUP($A3,Systems!$A3:$C$42,2,FALSE)-(VLOOKUP(K$1,Systems!$A$1:$C$42,2,FALSE)))*((VLOOKUP($A3,Systems!$A3:$C$42,2,FALSE)-(VLOOKUP(K$1,Systems!$A$1:$C$42,2,FALSE))))+(((VLOOKUP($A3,Systems!$A3:$C$42,3,FALSE)-(VLOOKUP(K$1,Systems!$A$1:$C$42,3,FALSE)))*((VLOOKUP($A3,Systems!$A3:$C$42,3,FALSE)-(VLOOKUP(K$1,Systems!$A$1:$C$42,3,FALSE)))))))) -> 15.8113883 | L3: =SQRT(((VLOOKUP($A3,Systems!$A3:$C$42,2,FALSE)-(VLOOKUP(L$1,Systems!$A$1:$C$42,2,FALSE)))*((VLOOKUP($A3,Systems!$A3:$C$42,2,FALSE)-(VLOOKUP(L$1,Systems!$A$1:$C$42,2,FALSE))))+(((VLOOKUP($A3,Systems!$A3:$C$42,3,FALSE)-(VLOOKUP(L$1,Systems!$A$1:$C$42,3,FALSE)))*((VLOOKUP($A3,Systems!$A3:$C$42,3,FALSE)-(VLOOKUP(L$1,Systems!$A$1:$C$42,3,FALSE)))))))) -> 25 | M3: =SQRT(((VLOOKUP($A3,Systems!$A3:$C$42,2,FALSE)-(VLOOKUP(M$1,Systems!$A$1:$C$42,2,FALSE)))*((VLOOKUP($A3,Systems!$A3:$C$42,2,FALSE)-(VLOOKUP(M$1,Systems!$A$1:$C$42,2,FALSE))))+(((VLOOKUP($A3,Systems!$A3:$C$42,3,FALSE)-(VLOOKUP(M$1,Systems!$A$1:$C$42,3,FALSE)))*((VLOOKUP($A3,Systems!$A3:$C$42,3,FALSE)-(VLOOKUP(M$1,Systems!$A$1:$C$42,3,FALSE)))))))) -> 33.54101966 | N3: =SQRT(((VLOOKUP($A3,Systems!$A3:$C$42,2,FALSE)-(VLOOKUP(N$1,Systems!$A$1:$C$42,2,FALSE)))*((VLOOKUP($A3,Systems!$A3:$C$42,2,FALSE)-(VLOOKUP(N$1,Systems!$A$1:$C$42,2,FALSE))))+(((VLOOKUP($A3,Systems!$A3:$C$42,3,FALSE)-(VLOOKUP(N$1,Systems!$A$1:$C$42,3,FALSE)))*((VLOOKUP($A3,Systems!$A3:$C$42,3,FALSE)-(VLOOKUP(N$1,Systems!$A$1:$C$42,3,FALSE)))))))) -> 24.08318916 | O3: =SQRT(((VLOOKUP($A3,Systems!$A3:$C$42,2,FALSE)-(VLOOKUP(O$1,Systems!$A$1:$C$42,2,FALSE)))*((VLOOKUP($A3,Systems!$A3:$C$42,2,FALSE)-(VLOOKUP(O$1,Systems!$A$1:$C$42,2,FALSE))))+(((VLOOKUP($A3,Systems!$A3:$C$42,3,FALSE)-(VLOOKUP(O$1,Systems!$A$1:$C$42,3,FALSE)))*((VLOOKUP($A3,Systems!$A3:$C$42,3,FALSE)-(VLOOKUP(O$1,Systems!$A$1:$C$42,3,FALSE)))))))) -> 31.11269837 | P3: =SQRT(((VLOOKUP($A3,Systems!$A3:$C$42,2,FALSE)-(VLOOKUP(P$1,Systems!$A$1:$C$42,2,FALSE)))*((VLOOKUP($A3,Systems!$A3:$C$42,2,FALSE)-(VLOOKUP(P$1,Systems!$A$1:$C$42,2,FALSE))))+(((VLOOKUP($A3,Systems!$A3:$C$42,3,FALSE)-(VLOOKUP(P$1,Systems!$A$1:$C$42,3,FALSE)))*((VLOOKUP($A3,Systems!$A3:$C$42,3,FALSE)-(VLOOKUP(P$1,Systems!$A$1:$C$42,3,FALSE)))))))) -> 25.3179778 | Q3: =SQRT(((VLOOKUP($A3,Systems!$A3:$C$42,2,FALSE)-(VLOOKUP(Q$1,Systems!$A$1:$C$42,2,FALSE)))*((VLOOKUP($A3,Systems!$A3:$C$42,2,FALSE)-(VLOOKUP(Q$1,Systems!$A$1:$C$42,2,FALSE))))+(((VLOOKUP($A3,Systems!$A3:$C$42,3,FALSE)-(VLOOKUP(Q$1,Systems!$A$1:$C$42,3,FALSE)))*((VLOOKUP($A3,Systems!$A3:$C$42,3,FALSE)-(VLOOKUP(Q$1,Systems!$A$1:$C$42,3,FALSE)))))))) -> 9.433981132 | R3: =SQRT(((VLOOKUP($A3,Systems!$A3:$C$42,2,FALSE)-(VLOOKUP(R$1,Systems!$A$1:$C$42,2,FALSE)))*((VLOOKUP($A3,Systems!$A3:$C$42,2,FALSE)-(VLOOKUP(R$1,Systems!$A$1:$C$42,2,FALSE))))+(((VLOOKUP($A3,Systems!$A3:$C$42,3,FALSE)-(VLOOKUP(R$1,Systems!$A$1:$C$42,3,FALSE)))*((VLOOKUP($A3,Systems!$A3:$C$42,3,FALSE)-(VLOOKUP(R$1,Systems!$A$1:$C$42,3,FALSE)))))))) -> 37.16180835 | S3: =SQRT(((VLOOKUP($A3,Systems!$A3:$C$42,2,FALSE)-(VLOOKUP(S$1,Systems!$A$1:$C$42,2,FALSE)))*((VLOOKUP($A3,Systems!$A3:$C$42,2,FALSE)-(VLOOKUP(S$1,Systems!$A$1:$C$42,2,FALSE))))+(((VLOOKUP($A3,Systems!$A3:$C$42,3,FALSE)-(VLOOKUP(S$1,Systems!$A$1:$C$42,3,FALSE)))*((VLOOKUP($A3,Systems!$A3:$C$42,3,FALSE)-(VLOOKUP(S$1,Systems!$A$1:$C$42,3,FALSE)))))))) -> 32.89376841 | T3: =SQRT(((VLOOKUP($A3,Systems!$A3:$C$42,2,FALSE)-(VLOOKUP(T$1,Systems!$A$1:$C$42,2,FALSE)))*((VLOOKUP($A3,Systems!$A3:$C$42,2,FALSE)-(VLOOKUP(T$1,Systems!$A$1:$C$42,2,FALSE))))+(((VLOOKUP($A3,Systems!$A3:$C$42,3,FALSE)-(VLOOKUP(T$1,Systems!$A$1:$C$42,3,FALSE)))*((VLOOKUP($A3,Systems!$A3:$C$42,3,FALSE)-(VLOOKUP(T$1,Systems!$A$1:$C$42,3,FALSE)))))))) -> 26 | U3: =SQRT(((VLOOKUP($A3,Systems!$A3:$C$42,2,FALSE)-(VLOOKUP(U$1,Systems!$A$1:$C$42,2,FALSE)))*((VLOOKUP($A3,Systems!$A3:$C$42,2,FALSE)-(VLOOKUP(U$1,Systems!$A$1:$C$42,2,FALSE))))+(((VLOOKUP($A3,Systems!$A3:$C$42,3,FALSE)-(VLOOKUP(U$1,Systems!$A$1:$C$42,3,FALSE)))*((VLOOKUP($A3,Systems!$A3:$C$42,3,FALSE)-(VLOOKUP(U$1,Systems!$A$1:$C$42,3,FALSE)))))))) -> 36.61966685 | V3: =SQRT(((VLOOKUP($A3,Systems!$A3:$C$42,2,FALSE)-(VLOOKUP(V$1,Systems!$A$1:$C$42,2,FALSE)))*((VLOOKUP($A3,Systems!$A3:$C$42,2,FALSE)-(VLOOKUP(V$1,Systems!$A$1:$C$42,2,FALSE))))+(((VLOOKUP($A3,Systems!$A3:$C$42,3,FALSE)-(VLOOKUP(V$1,Systems!$A$1:$C$42,3,FALSE)))*((VLOOKUP($A3,Systems!$A3:$C$42,3,FALSE)-(VLOOKUP(V$1,Systems!$A$1:$C$42,3,FALSE)))))))) -> 36.79673899 | W3: =SQRT(((VLOOKUP($A3,Systems!$A3:$C$42,2,FALSE)-(VLOOKUP(W$1,Systems!$A$1:$C$42,2,FALSE)))*((VLOOKUP($A3,Systems!$A3:$C$42,2,FALSE)-(VLOOKUP(W$1,Systems!$A$1:$C$42,2,FALSE))))+(((VLOOKUP($A3,Systems!$A3:$C$42,3,FALSE)-(VLOOKUP(W$1,Systems!$A$1:$C$42,3,FALSE)))*((VLOOKUP($A3,Systems!$A3:$C$42,3,FALSE)-(VLOOKUP(W$1,Systems!$A$1:$C$42,3,FALSE)))))))) -> 44.92215489 | X3: =SQRT(((VLOOKUP($A3,Systems!$A3:$C$42,2,FALSE)-(VLOOKUP(X$1,Systems!$A$1:$C$42,2,FALSE)))*((VLOOKUP($A3,Systems!$A3:$C$42,2,FALSE)-(VLOOKUP(X$1,Systems!$A$1:$C$42,2,FALSE))))+(((VLOOKUP($A3,Systems!$A3:$C$42,3,FALSE)-(VLOOKUP(X$1,Systems!$A$1:$C$42,3,FALSE)))*((VLOOKUP($A3,Systems!$A3:$C$42,3,FALSE)-(VLOOKUP(X$1,Systems!$A$1:$C$42,3,FALSE)))))))) -> 25.05992817 | Y3: =SQRT(((VLOOKUP($A3,Systems!$A3:$C$42,2,FALSE)-(VLOOKUP(Y$1,Systems!$A$1:$C$42,2,FALSE)))*((VLOOKUP($A3,Systems!$A3:$C$42,2,FALSE)-(VLOOKUP(Y$1,Systems!$A$1:$C$42,2,FALSE))))+(((VLOOKUP($A3,Systems!$A3:$C$42,3,FALSE)-(VLOOKUP(Y$1,Systems!$A$1:$C$42,3,FALSE)))*((VLOOKUP($A3,Systems!$A3:$C$42,3,FALSE)-(VLOOKUP(Y$1,Systems!$A$1:$C$42,3,FALSE)))))))) -> 26.40075756 | Z3: =SQRT(((VLOOKUP($A3,Systems!$A3:$C$42,2,FALSE)-(VLOOKUP(Z$1,Systems!$A$1:$C$42,2,FALSE)))*((VLOOKUP($A3,Systems!$A3:$C$42,2,FALSE)-(VLOOKUP(Z$1,Systems!$A$1:$C$42,2,FALSE))))+(((VLOOKUP($A3,Systems!$A3:$C$42,3,FALSE)-(VLOOKUP(Z$1,Systems!$A$1:$C$42,3,FALSE)))*((VLOOKUP($A3,Systems!$A3:$C$42,3,FALSE)-(VLOOKUP(Z$1,Systems!$A$1:$C$42,3,FALSE)))))))) -> 13.03840481 | AA3: =SQRT(((VLOOKUP($A3,Systems!$A3:$C$42,2,FALSE)-(VLOOKUP(AA$1,Systems!$A$1:$C$42,2,FALSE)))*((VLOOKUP($A3,Systems!$A3:$C$42,2,FALSE)-(VLOOKUP(AA$1,Systems!$A$1:$C$42,2,FALSE))))+(((VLOOKUP($A3,Systems!$A3:$C$42,3,FALSE)-(VLOOKUP(AA$1,Systems!$A$1:$C$42,3,FALSE)))*((VLOOKUP($A3,Systems!$A3:$C$42,3,FALSE)-(VLOOKUP(AA$1,Systems!$A$1:$C$42,3,FALSE)))))))) -> 28.16025568 | AB3: =SQRT(((VLOOKUP($A3,Systems!$A3:$C$42,2,FALSE)-(VLOOKUP(AB$1,Systems!$A$1:$C$42,2,FALSE)))*((VLOOKUP($A3,Systems!$A3:$C$42,2,FALSE)-(VLOOKUP(AB$1,Systems!$A$1:$C$42,2,FALSE))))+(((VLOOKUP($A3,Systems!$A3:$C$42,3,FALSE)-(VLOOKUP(AB$1,Systems!$A$1:$C$42,3,FALSE)))*((VLOOKUP($A3,Systems!$A3:$C$42,3,FALSE)-(VLOOKUP(AB$1,Systems!$A$1:$C$42,3,FALSE)))))))) -> 20.02498439 | AC3: =SQRT(((VLOOKUP($A3,Systems!$A3:$C$42,2,FALSE)-(VLOOKUP(AC$1,Systems!$A$1:$C$42,2,FALSE)))*((VLOOKUP($A3,Systems!$A3:$C$42,2,FALSE)-(VLOOKUP(AC$1,Systems!$A$1:$C$42,2,FALSE))))+(((VLOOKUP($A3,Systems!$A3:$C$42,3,FALSE)-(VLOOKUP(AC$1,Systems!$A$1:$C$42,3,FALSE)))*((VLOOKUP($A3,Systems!$A3:$C$42,3,FALSE)-(VLOOKUP(AC$1,Systems!$A$1:$C$42,3,FALSE)))))))) -> 14.31782106 | AD3: =SQRT(((VLOOKUP($A3,Systems!$A3:$C$42,2,FALSE)-(VLOOKUP(AD$1,Systems!$A$1:$C$42,2,FALSE)))*((VLOOKUP($A3,Systems!$A3:$C$42,2,FALSE)-(VLOOKUP(AD$1,Systems!$A$1:$C$42,2,FALSE))))+(((VLOOKUP($A3,Systems!$A3:$C$42,3,FALSE)-(VLOOKUP(AD$1,Systems!$A$1:$C$42,3,FALSE)))*((VLOOKUP($A3,Systems!$A3:$C$42,3,FALSE)-(VLOOKUP(AD$1,Systems!$A$1:$C$42,3,FALSE)))))))) -> 18.02775638 | AE3: =SQRT(((VLOOKUP($A3,Systems!$A3:$C$42,2,FALSE)-(VLOOKUP(AE$1,Systems!$A$1:$C$42,2,FALSE)))*((VLOOKUP($A3,Systems!$A3:$C$42,2,FALSE)-(VLOOKUP(AE$1,Systems!$A$1:$C$42,2,FALSE))))+(((VLOOKUP($A3,Systems!$A3:$C$42,3,FALSE)-(VLOOKUP(AE$1,Systems!$A$1:$C$42,3,FALSE)))*((VLOOKUP($A3,Systems!$A3:$C$42,3,FALSE)-(VLOOKUP(AE$1,Systems!$A$1:$C$42,3,FALSE)))))))) -> 9.848857802 | AF3: =SQRT(((VLOOKUP($A3,Systems!$A3:$C$42,2,FALSE)-(VLOOKUP(AF$1,Systems!$A$1:$C$42,2,FALSE)))*((VLOOKUP($A3,Systems!$A3:$C$42,2,FALSE)-(VLOOKUP(AF$1,Systems!$A$1:$C$42,2,FALSE))))+(((VLOOKUP($A3,Systems!$A3:$C$42,3,FALSE)-(VLOOKUP(AF$1,Systems!$A$1:$C$42,3,FALSE)))*((VLOOKUP($A3,Systems!$A3:$C$42,3,FALSE)-(VLOOKUP(AF$1,Systems!$A$1:$C$42,3,FALSE)))))))) -> 11 | AG3: =SQRT(((VLOOKUP($A3,Systems!$A3:$C$42,2,FALSE)-(VLOOKUP(AG$1,Systems!$A$1:$C$42,2,FALSE)))*((VLOOKUP($A3,Systems!$A3:$C$42,2,FALSE)-(VLOOKUP(AG$1,Systems!$A$1:$C$42,2,FALSE))))+(((VLOOKUP($A3,Systems!$A3:$C$42,3,FALSE)-(VLOOKUP(AG$1,Systems!$A$1:$C$42,3,FALSE)))*((VLOOKUP($A3,Systems!$A3:$C$42,3,FALSE)-(VLOOKUP(AG$1,Systems!$A$1:$C$42,3,FALSE)))))))) -> 40.80441153 | AH3: =SQRT(((VLOOKUP($A3,Systems!$A3:$C$42,2,FALSE)-(VLOOKUP(AH$1,Systems!$A$1:$C$42,2,FALSE)))*((VLOOKUP($A3,Systems!$A3:$C$42,2,FALSE)-(VLOOKUP(AH$1,Systems!$A$1:$C$42,2,FALSE))))+(((VLOOKUP($A3,Systems!$A3:$C$42,3,FALSE)-(VLOOKUP(AH$1,Systems!$A$1:$C$42,3,FALSE)))*((VLOOKUP($A3,Systems!$A3:$C$42,3,FALSE)-(VLOOKUP(AH$1,Systems!$A$1:$C$42,3,FALSE)))))))) -> 39.20459157 | AI3: =SQRT(((VLOOKUP($A3,Systems!$A3:$C$42,2,FALSE)-(VLOOKUP(AI$1,Systems!$A$1:$C$42,2,FALSE)))*((VLOOKUP($A3,Systems!$A3:$C$42,2,FALSE)-(VLOOKUP(AI$1,Systems!$A$1:$C$42,2,FALSE))))+(((VLOOKUP($A3,Systems!$A3:$C$42,3,FALSE)-(VLOOKUP(AI$1,Systems!$A$1:$C$42,3,FALSE)))*((VLOOKUP($A3,Systems!$A3:$C$42,3,FALSE)-(VLOOKUP(AI$1,Systems!$A$1:$C$42,3,FALSE)))))))) -> 7.810249676 | AJ3: =SQRT(((VLOOKUP($A3,Systems!$A3:$C$42,2,FALSE)-(VLOOKUP(AJ$1,Systems!$A$1:$C$42,2,FALSE)))*((VLOOKUP($A3,Systems!$A3:$C$42,2,FALSE)-(VLOOKUP(AJ$1,Systems!$A$1:$C$42,2,FALSE))))+(((VLOOKUP($A3,Systems!$A3:$C$42,3,FALSE)-(VLOOKUP(AJ$1,Systems!$A$1:$C$42,3,FALSE)))*((VLOOKUP($A3,Systems!$A3:$C$42,3,FALSE)-(VLOOKUP(AJ$1,Systems!$A$1:$C$42,3,FALSE)))))))) -> 33.24154028 | AK3: =SQRT(((VLOOKUP($A3,Systems!$A3:$C$42,2,FALSE)-(VLOOKUP(AK$1,Systems!$A$1:$C$42,2,FALSE)))*((VLOOKUP($A3,Systems!$A3:$C$42,2,FALSE)-(VLOOKUP(AK$1,Systems!$A$1:$C$42,2,FALSE))))+(((VLOOKUP($A3,Systems!$A3:$C$42,3,FALSE)-(VLOOKUP(AK$1,Systems!$A$1:$C$42,3,FALSE)))*((VLOOKUP($A3,Systems!$A3:$C$42,3,FALSE)-(VLOOKUP(AK$1,Systems!$A$1:$C$42,3,FALSE)))))))) -> 21.02379604 | AL3: =SQRT(((VLOOKUP($A3,Systems!$A3:$C$42,2,FALSE)-(VLOOKUP(AL$1,Systems!$A$1:$C$42,2,FALSE)))*((VLOOKUP($A3,Systems!$A3:$C$42,2,FALSE)-(VLOOKUP(AL$1,Systems!$A$1:$C$42,2,FALSE))))+(((VLOOKUP($A3,Systems!$A3:$C$42,3,FALSE)-(VLOOKUP(AL$1,Systems!$A$1:$C$42,3,FALSE)))*((VLOOKUP($A3,Systems!$A3:$C$42,3,FALSE)-(VLOOKUP(AL$1,Systems!$A$1:$C$42,3,FALSE)))))))) -> 34.0147027 | AM3: =SQRT(((VLOOKUP($A3,Systems!$A3:$C$42,2,FALSE)-(VLOOKUP(AM$1,Systems!$A$1:$C$42,2,FALSE)))*((VLOOKUP($A3,Systems!$A3:$C$42,2,FALSE)-(VLOOKUP(AM$1,Systems!$A$1:$C$42,2,FALSE))))+(((VLOOKUP($A3,Systems!$A3:$C$42,3,FALSE)-(VLOOKUP(AM$1,Systems!$A$1:$C$42,3,FALSE)))*((VLOOKUP($A3,Systems!$A3:$C$42,3,FALSE)-(VLOOKUP(AM$1,Systems!$A$1:$C$42,3,FALSE)))))))) -> 18.43908891 | AN3: =SQRT(((VLOOKUP($A3,Systems!$A3:$C$42,2,FALSE)-(VLOOKUP(AN$1,Systems!$A$1:$C$42,2,FALSE)))*((VLOOKUP($A3,Systems!$A3:$C$42,2,FALSE)-(VLOOKUP(AN$1,Systems!$A$1:$C$42,2,FALSE))))+(((VLOOKUP($A3,Systems!$A3:$C$42,3,FALSE)-(VLOOKUP(AN$1,Systems!$A$1:$C$42,3,FALSE)))*((VLOOKUP($A3,Systems!$A3:$C$42,3,FALSE)-(VLOOKUP(AN$1,Systems!$A$1:$C$42,3,FALSE)))))))) -> 39.84971769 | AO3: =SQRT(((VLOOKUP($A3,Systems!$A3:$C$42,2,FALSE)-(VLOOKUP(AO$1,Systems!$A$1:$C$42,2,FALSE)))*((VLOOKUP($A3,Systems!$A3:$C$42,2,FALSE)-(VLOOKUP(AO$1,Systems!$A$1:$C$42,2,FALSE))))+(((VLOOKUP($A3,Systems!$A3:$C$42,3,FALSE)-(VLOOKUP(AO$1,Systems!$A$1:$C$42,3,FALSE)))*((VLOOKUP($A3,Systems!$A3:$C$42,3,FALSE)-(VLOOKUP(AO$1,Systems!$A$1:$C$42,3,FALSE)))))))) -> 29.42787794 | AP3: =SQRT(((VLOOKUP($A3,Systems!$A3:$C$42,2,FALSE)-(VLOOKUP(AP$1,Systems!$A$1:$C$42,2,FALSE)))*((VLOOKUP($A3,Systems!$A3:$C$42,2,FALSE)-(VLOOKUP(AP$1,Systems!$A$1:$C$42,2,FALSE))))+(((VLOOKUP($A3,Systems!$A3:$C$42,3,FALSE)-(VLOOKUP(AP$1,Systems!$A$1:$C$42,3,FALSE)))*((VLOOKUP($A3,Systems!$A3:$C$42,3,FALSE)-(VLOOKUP(AP$1,Systems!$A$1:$C$42,3,FALSE)))))))) -> 18.78829423
A4: =Systems!A4 -> Athor | B4: =SQRT(((VLOOKUP($A4,Systems!$A4:$C$42,2,FALSE)-(VLOOKUP(B$1,Systems!$A$1:$C$42,2,FALSE)))*((VLOOKUP($A4,Systems!$A4:$C$42,2,FALSE)-(VLOOKUP(B$1,Systems!$A$1:$C$42,2,FALSE))))+(((VLOOKUP($A4,Systems!$A4:$C$42,3,FALSE)-(VLOOKUP(B$1,Systems!$A$1:$C$42,3,FALSE)))*((VLOOKUP($A4,Systems!$A4:$C$42,3,FALSE)-(VLOOKUP(B$1,Systems!$A$1:$C$42,3,FALSE)))))))) -> 12.36931688 | C4: =SQRT(((VLOOKUP($A4,Systems!$A4:$C$42,2,FALSE)-(VLOOKUP(C$1,Systems!$A$1:$C$42,2,FALSE)))*((VLOOKUP($A4,Systems!$A4:$C$42,2,FALSE)-(VLOOKUP(C$1,Systems!$A$1:$C$42,2,FALSE))))+(((VLOOKUP($A4,Systems!$A4:$C$42,3,FALSE)-(VLOOKUP(C$1,Systems!$A$1:$C$42,3,FALSE)))*((VLOOKUP($A4,Systems!$A4:$C$42,3,FALSE)-(VLOOKUP(C$1,Systems!$A$1:$C$42,3,FALSE)))))))) -> 7.810249676 | D4: =SQRT(((VLOOKUP($A4,Systems!$A4:$C$42,2,FALSE)-(VLOOKUP(D$1,Systems!$A$1:$C$42,2,FALSE)))*((VLOOKUP($A4,Systems!$A4:$C$42,2,FALSE)-(VLOOKUP(D$1,Systems!$A$1:$C$42,2,FALSE))))+(((VLOOKUP($A4,Systems!$A4:$C$42,3,FALSE)-(VLOOKUP(D$1,Systems!$A$1:$C$42,3,FALSE)))*((VLOOKUP($A4,Systems!$A4:$C$42,3,FALSE)-(VLOOKUP(D$1,Systems!$A$1:$C$42,3,FALSE)))))))) -> 0 | E4: =SQRT(((VLOOKUP($A4,Systems!$A4:$C$42,2,FALSE)-(VLOOKUP(E$1,Systems!$A$1:$C$42,2,FALSE)))*((VLOOKUP($A4,Systems!$A4:$C$42,2,FALSE)-(VLOOKUP(E$1,Systems!$A$1:$C$42,2,FALSE))))+(((VLOOKUP($A4,Systems!$A4:$C$42,3,FALSE)-(VLOOKUP(E$1,Systems!$A$1:$C$42,3,FALSE)))*((VLOOKUP($A4,Systems!$A4:$C$42,3,FALSE)-(VLOOKUP(E$1,Systems!$A$1:$C$42,3,FALSE)))))))) -> 6 | F4: =SQRT(((VLOOKUP($A4,Systems!$A4:$C$42,2,FALSE)-(VLOOKUP(F$1,Systems!$A$1:$C$42,2,FALSE)))*((VLOOKUP($A4,Systems!$A4:$C$42,2,FALSE)-(VLOOKUP(F$1,Systems!$A$1:$C$42,2,FALSE))))+(((VLOOKUP($A4,Systems!$A4:$C$42,3,FALSE)-(VLOOKUP(F$1,Systems!$A$1:$C$42,3,FALSE)))*((VLOOKUP($A4,Systems!$A4:$C$42,3,FALSE)-(VLOOKUP(F$1,Systems!$A$1:$C$42,3,FALSE)))))))) -> 13.89244399 | G4: =SQRT(((VLOOKUP($A4,Systems!$A4:$C$42,2,FALSE)-(VLOOKUP(G$1,Systems!$A$1:$C$42,2,FALSE)))*((VLOOKUP($A4,Systems!$A4:$C$42,2,FALSE)-(VLOOKUP(G$1,Systems!$A$1:$C$42,2,FALSE))))+(((VLOOKUP($A4,Systems!$A4:$C$42,3,FALSE)-(VLOOKUP(G$1,Systems!$A$1:$C$42,3,FALSE)))*((VLOOKUP($A4,Systems!$A4:$C$42,3,FALSE)-(VLOOKUP(G$1,Systems!$A$1:$C$42,3,FALSE)))))))) -> 13.60147051 | H4: =SQRT(((VLOOKUP($A4,Systems!$A4:$C$42,2,FALSE)-(VLOOKUP(H$1,Systems!$A$1:$C$42,2,FALSE)))*((VLOOKUP($A4,Systems!$A4:$C$42,2,FALSE)-(VLOOKUP(H$1,Systems!$A$1:$C$42,2,FALSE))))+(((VLOOKUP($A4,Systems!$A4:$C$42,3,FALSE)-(VLOOKUP(H$1,Systems!$A$1:$C$42,3,FALSE)))*((VLOOKUP($A4,Systems!$A4:$C$42,3,FALSE)-(VLOOKUP(H$1,Systems!$A$1:$C$42,3,FALSE)))))))) -> 24.69817807 | I4: =SQRT(((VLOOKUP($A4,Systems!$A4:$C$42,2,FALSE)-(VLOOKUP(I$1,Systems!$A$1:$C$42,2,FALSE)))*((VLOOKUP($A4,Systems!$A4:$C$42,2,FALSE)-(VLOOKUP(I$1,Systems!$A$1:$C$42,2,FALSE))))+(((VLOOKUP($A4,Systems!$A4:$C$42,3,FALSE)-(VLOOKUP(I$1,Systems!$A$1:$C$42,3,FALSE)))*((VLOOKUP($A4,Systems!$A4:$C$42,3,FALSE)-(VLOOKUP(I$1,Systems!$A$1:$C$42,3,FALSE)))))))) -> 16.03121954 | J4: =SQRT(((VLOOKUP($A4,Systems!$A4:$C$42,2,FALSE)-(VLOOKUP(J$1,Systems!$A$1:$C$42,2,FALSE)))*((VLOOKUP($A4,Systems!$A4:$C$42,2,FALSE)-(VLOOKUP(J$1,Systems!$A$1:$C$42,2,FALSE))))+(((VLOOKUP($A4,Systems!$A4:$C$42,3,FALSE)-(VLOOKUP(J$1,Systems!$A$1:$C$42,3,FALSE)))*((VLOOKUP($A4,Systems!$A4:$C$42,3,FALSE)-(VLOOKUP(J$1,Systems!$A$1:$C$42,3,FALSE)))))))) -> 21.63330765 | K4: =SQRT(((VLOOKUP($A4,Systems!$A4:$C$42,2,FALSE)-(VLOOKUP(K$1,Systems!$A$1:$C$42,2,FALSE)))*((VLOOKUP($A4,Systems!$A4:$C$42,2,FALSE)-(VLOOKUP(K$1,Systems!$A$1:$C$42,2,FALSE))))+(((VLOOKUP($A4,Systems!$A4:$C$42,3,FALSE)-(VLOOKUP(K$1,Systems!$A$1:$C$42,3,FALSE)))*((VLOOKUP($A4,Systems!$A4:$C$42,3,FALSE)-(VLOOKUP(K$1,Systems!$A$1:$C$42,3,FALSE)))))))) -> 8.062257748 | L4: =SQRT(((VLOOKUP($A4,Systems!$A4:$C$42,2,FALSE)-(VLOOKUP(L$1,Systems!$A$1:$C$42,2,FALSE)))*((VLOOKUP($A4,Systems!$A4:$C$42,2,FALSE)-(VLOOKUP(L$1,Systems!$A$1:$C$42,2,FALSE))))+(((VLOOKUP($A4,Systems!$A4:$C$42,3,FALSE)-(VLOOKUP(L$1,Systems!$A$1:$C$42,3,FALSE)))*((VLOOKUP($A4,Systems!$A4:$C$42,3,FALSE)-(VLOOKUP(L$1,Systems!$A$1:$C$42,3,FALSE)))))))) -> 17.20465053 | M4: =SQRT(((VLOOKUP($A4,Systems!$A4:$C$42,2,FALSE)-(VLOOKUP(M$1,Systems!$A$1:$C$42,2,FALSE)))*((VLOOKUP($A4,Systems!$A4:$C$42,2,FALSE)-(VLOOKUP(M$1,Systems!$A$1:$C$42,2,FALSE))))+(((VLOOKUP($A4,Systems!$A4:$C$42,3,FALSE)-(VLOOKUP(M$1,Systems!$A$1:$C$42,3,FALSE)))*((VLOOKUP($A4,Systems!$A4:$C$42,3,FALSE)-(VLOOKUP(M$1,Systems!$A$1:$C$42,3,FALSE)))))))) -> 26 | N4: =SQRT(((VLOOKUP($A4,Systems!$A4:$C$42,2,FALSE)-(VLOOKUP(N$1,Systems!$A$1:$C$42,2,FALSE)))*((VLOOKUP($A4,Systems!$A4:$C$42,2,FALSE)-(VLOOKUP(N$1,Systems!$A$1:$C$42,2,FALSE))))+(((VLOOKUP($A4,Systems!$A4:$C$42,3,FALSE)-(VLOOKUP(N$1,Systems!$A$1:$C$42,3,FALSE)))*((VLOOKUP($A4,Systems!$A4:$C$42,3,FALSE)-(VLOOKUP(N$1,Systems!$A$1:$C$42,3,FALSE)))))))) -> 20.61552813 | O4: =SQRT(((VLOOKUP($A4,Systems!$A4:$C$42,2,FALSE)-(VLOOKUP(O$1,Systems!$A$1:$C$42,2,FALSE)))*((VLOOKUP($A4,Systems!$A4:$C$42,2,FALSE)-(VLOOKUP(O$1,Systems!$A$1:$C$42,2,FALSE))))+(((VLOOKUP($A4,Systems!$A4:$C$42,3,FALSE)-(VLOOKUP(O$1,Systems!$A$1:$C$42,3,FALSE)))*((VLOOKUP($A4,Systems!$A4:$C$42,3,FALSE)-(VLOOKUP(O$1,Systems!$A$1:$C$42,3,FALSE)))))))) -> 23.34523506 | P4: =SQRT(((VLOOKUP($A4,Systems!$A4:$C$42,2,FALSE)-(VLOOKUP(P$1,Systems!$A$1:$C$42,2,FALSE)))*((VLOOKUP($A4,Systems!$A4:$C$42,2,FALSE)-(VLOOKUP(P$1,Systems!$A$1:$C$42,2,FALSE))))+(((VLOOKUP($A4,Systems!$A4:$C$42,3,FALSE)-(VLOOKUP(P$1,Systems!$A$1:$C$42,3,FALSE)))*((VLOOKUP($A4,Systems!$A4:$C$42,3,FALSE)-(VLOOKUP(P$1,Systems!$A$1:$C$42,3,FALSE)))))))) -> 19.02629759 | Q4: =SQRT(((VLOOKUP($A4,Systems!$A4:$C$42,2,FALSE)-(VLOOKUP(Q$1,Systems!$A$1:$C$42,2,FALSE)))*((VLOOKUP($A4,Systems!$A4:$C$42,2,FALSE)-(VLOOKUP(Q$1,Systems!$A$1:$C$42,2,FALSE))))+(((VLOOKUP($A4,Systems!$A4:$C$42,3,FALSE)-(VLOOKUP(Q$1,Systems!$A$1:$C$42,3,FALSE)))*((VLOOKUP($A4,Systems!$A4:$C$42,3,FALSE)-(VLOOKUP(Q$1,Systems!$A$1:$C$42,3,FALSE)))))))) -> 10.19803903 | R4: =SQRT(((VLOOKUP($A4,Systems!$A4:$C$42,2,FALSE)-(VLOOKUP(R$1,Systems!$A$1:$C$42,2,FALSE)))*((VLOOKUP($A4,Systems!$A4:$C$42,2,FALSE)-(VLOOKUP(R$1,Systems!$A$1:$C$42,2,FALSE))))+(((VLOOKUP($A4,Systems!$A4:$C$42,3,FALSE)-(VLOOKUP(R$1,Systems!$A$1:$C$42,3,FALSE)))*((VLOOKUP($A4,Systems!$A4:$C$42,3,FALSE)-(VLOOKUP(R$1,Systems!$A$1:$C$42,3,FALSE)))))))) -> 29.73213749 | S4: =SQRT(((VLOOKUP($A4,Systems!$A4:$C$42,2,FALSE)-(VLOOKUP(S$1,Systems!$A$1:$C$42,2,FALSE)))*((VLOOKUP($A4,Systems!$A4:$C$42,2,FALSE)-(VLOOKUP(S$1,Systems!$A$1:$C$42,2,FALSE))))+(((VLOOKUP($A4,Systems!$A4:$C$42,3,FALSE)-(VLOOKUP(S$1,Systems!$A$1:$C$42,3,FALSE)))*((VLOOKUP($A4,Systems!$A4:$C$42,3,FALSE)-(VLOOKUP(S$1,Systems!$A$1:$C$42,3,FALSE)))))))) -> 25.70992026 | T4: =SQRT(((VLOOKUP($A4,Systems!$A4:$C$42,2,FALSE)-(VLOOKUP(T$1,Systems!$A$1:$C$42,2,FALSE)))*((VLOOKUP($A4,Systems!$A4:$C$42,2,FALSE)-(VLOOKUP(T$1,Systems!$A$1:$C$42,2,FALSE))))+(((VLOOKUP($A4,Systems!$A4:$C$42,3,FALSE)-(VLOOKUP(T$1,Systems!$A$1:$C$42,3,FALSE)))*((VLOOKUP($A4,Systems!$A4:$C$42,3,FALSE)-(VLOOKUP(T$1,Systems!$A$1:$C$42,3,FALSE)))))))) -> 19.41648784 | U4: =SQRT(((VLOOKUP($A4,Systems!$A4:$C$42,2,FALSE)-(VLOOKUP(U$1,Systems!$A$1:$C$42,2,FALSE)))*((VLOOKUP($A4,Systems!$A4:$C$42,2,FALSE)-(VLOOKUP(U$1,Systems!$A$1:$C$42,2,FALSE))))+(((VLOOKUP($A4,Systems!$A4:$C$42,3,FALSE)-(VLOOKUP(U$1,Systems!$A$1:$C$42,3,FALSE)))*((VLOOKUP($A4,Systems!$A4:$C$42,3,FALSE)-(VLOOKUP(U$1,Systems!$A$1:$C$42,3,FALSE)))))))) -> 28.8444102 | V4: =SQRT(((VLOOKUP($A4,Systems!$A4:$C$42,2,FALSE)-(VLOOKUP(V$1,Systems!$A$1:$C$42,2,FALSE)))*((VLOOKUP($A4,Systems!$A4:$C$42,2,FALSE)-(VLOOKUP(V$1,Systems!$A$1:$C$42,2,FALSE))))+(((VLOOKUP($A4,Systems!$A4:$C$42,3,FALSE)-(VLOOKUP(V$1,Systems!$A$1:$C$42,3,FALSE)))*((VLOOKUP($A4,Systems!$A4:$C$42,3,FALSE)-(VLOOKUP(V$1,Systems!$A$1:$C$42,3,FALSE)))))))) -> 29 | W4: =SQRT(((VLOOKUP($A4,Systems!$A4:$C$42,2,FALSE)-(VLOOKUP(W$1,Systems!$A$1:$C$42,2,FALSE)))*((VLOOKUP($A4,Systems!$A4:$C$42,2,FALSE)-(VLOOKUP(W$1,Systems!$A$1:$C$42,2,FALSE))))+(((VLOOKUP($A4,Systems!$A4:$C$42,3,FALSE)-(VLOOKUP(W$1,Systems!$A$1:$C$42,3,FALSE)))*((VLOOKUP($A4,Systems!$A4:$C$42,3,FALSE)-(VLOOKUP(W$1,Systems!$A$1:$C$42,3,FALSE)))))))) -> 41.14608122 | X4: =SQRT(((VLOOKUP($A4,Systems!$A4:$C$42,2,FALSE)-(VLOOKUP(X$1,Systems!$A$1:$C$42,2,FALSE)))*((VLOOKUP($A4,Systems!$A4:$C$42,2,FALSE)-(VLOOKUP(X$1,Systems!$A$1:$C$42,2,FALSE))))+(((VLOOKUP($A4,Systems!$A4:$C$42,3,FALSE)-(VLOOKUP(X$1,Systems!$A$1:$C$42,3,FALSE)))*((VLOOKUP($A4,Systems!$A4:$C$42,3,FALSE)-(VLOOKUP(X$1,Systems!$A$1:$C$42,3,FALSE)))))))) -> 23.34523506 | Y4: =SQRT(((VLOOKUP($A4,Systems!$A4:$C$42,2,FALSE)-(VLOOKUP(Y$1,Systems!$A$1:$C$42,2,FALSE)))*((VLOOKUP($A4,Systems!$A4:$C$42,2,FALSE)-(VLOOKUP(Y$1,Systems!$A$1:$C$42,2,FALSE))))+(((VLOOKUP($A4,Systems!$A4:$C$42,3,FALSE)-(VLOOKUP(Y$1,Systems!$A$1:$C$42,3,FALSE)))*((VLOOKUP($A4,Systems!$A4:$C$42,3,FALSE)-(VLOOKUP(Y$1,Systems!$A$1:$C$42,3,FALSE)))))))) -> 18.97366596 | Z4: =SQRT(((VLOOKUP($A4,Systems!$A4:$C$42,2,FALSE)-(VLOOKUP(Z$1,Systems!$A$1:$C$42,2,FALSE)))*((VLOOKUP($A4,Systems!$A4:$C$42,2,FALSE)-(VLOOKUP(Z$1,Systems!$A$1:$C$42,2,FALSE))))+(((VLOOKUP($A4,Systems!$A4:$C$42,3,FALSE)-(VLOOKUP(Z$1,Systems!$A$1:$C$42,3,FALSE)))*((VLOOKUP($A4,Systems!$A4:$C$42,3,FALSE)-(VLOOKUP(Z$1,Systems!$A$1:$C$42,3,FALSE)))))))) -> 9.433981132 | AA4: =SQRT(((VLOOKUP($A4,Systems!$A4:$C$42,2,FALSE)-(VLOOKUP(AA$1,Systems!$A$1:$C$42,2,FALSE)))*((VLOOKUP($A4,Systems!$A4:$C$42,2,FALSE)-(VLOOKUP(AA$1,Systems!$A$1:$C$42,2,FALSE))))+(((VLOOKUP($A4,Systems!$A4:$C$42,3,FALSE)-(VLOOKUP(AA$1,Systems!$A$1:$C$42,3,FALSE)))*((VLOOKUP($A4,Systems!$A4:$C$42,3,FALSE)-(VLOOKUP(AA$1,Systems!$A$1:$C$42,3,FALSE)))))))) -> 23.40939982 | AB4: =SQRT(((VLOOKUP($A4,Systems!$A4:$C$42,2,FALSE)-(VLOOKUP(AB$1,Systems!$A$1:$C$42,2,FALSE)))*((VLOOKUP($A4,Systems!$A4:$C$42,2,FALSE)-(VLOOKUP(AB$1,Systems!$A$1:$C$42,2,FALSE))))+(((VLOOKUP($A4,Systems!$A4:$C$42,3,FALSE)-(VLOOKUP(AB$1,Systems!$A$1:$C$42,3,FALSE)))*((VLOOKUP($A4,Systems!$A4:$C$42,3,FALSE)-(VLOOKUP(AB$1,Systems!$A$1:$C$42,3,FALSE)))))))) -> 15.8113883 | AC4: =SQRT(((VLOOKUP($A4,Systems!$A4:$C$42,2,FALSE)-(VLOOKUP(AC$1,Systems!$A$1:$C$42,2,FALSE)))*((VLOOKUP($A4,Systems!$A4:$C$42,2,FALSE)-(VLOOKUP(AC$1,Systems!$A$1:$C$42,2,FALSE))))+(((VLOOKUP($A4,Systems!$A4:$C$42,3,FALSE)-(VLOOKUP(AC$1,Systems!$A$1:$C$42,3,FALSE)))*((VLOOKUP($A4,Systems!$A4:$C$42,3,FALSE)-(VLOOKUP(AC$1,Systems!$A$1:$C$42,3,FALSE)))))))) -> 11.3137085 | AD4: =SQRT(((VLOOKUP($A4,Systems!$A4:$C$42,2,FALSE)-(VLOOKUP(AD$1,Systems!$A$1:$C$42,2,FALSE)))*((VLOOKUP($A4,Systems!$A4:$C$42,2,FALSE)-(VLOOKUP(AD$1,Systems!$A$1:$C$42,2,FALSE))))+(((VLOOKUP($A4,Systems!$A4:$C$42,3,FALSE)-(VLOOKUP(AD$1,Systems!$A$1:$C$42,3,FALSE)))*((VLOOKUP($A4,Systems!$A4:$C$42,3,FALSE)-(VLOOKUP(AD$1,Systems!$A$1:$C$42,3,FALSE)))))))) -> 11.04536102 | AE4: =SQRT(((VLOOKUP($A4,Systems!$A4:$C$42,2,FALSE)-(VLOOKUP(AE$1,Systems!$A$1:$C$42,2,FALSE)))*((VLOOKUP($A4,Systems!$A4:$C$42,2,FALSE)-(VLOOKUP(AE$1,Systems!$A$1:$C$42,2,FALSE))))+(((VLOOKUP($A4,Systems!$A4:$C$42,3,FALSE)-(VLOOKUP(AE$1,Systems!$A$1:$C$42,3,FALSE)))*((VLOOKUP($A4,Systems!$A4:$C$42,3,FALSE)-(VLOOKUP(AE$1,Systems!$A$1:$C$42,3,FALSE)))))))) -> 14.14213562 | AF4: =SQRT(((VLOOKUP($A4,Systems!$A4:$C$42,2,FALSE)-(VLOOKUP(AF$1,Systems!$A$1:$C$42,2,FALSE)))*((VLOOKUP($A4,Systems!$A4:$C$42,2,FALSE)-(VLOOKUP(AF$1,Systems!$A$1:$C$42,2,FALSE))))+(((VLOOKUP($A4,Systems!$A4:$C$42,3,FALSE)-(VLOOKUP(AF$1,Systems!$A$1:$C$42,3,FALSE)))*((VLOOKUP($A4,Systems!$A4:$C$42,3,FALSE)-(VLOOKUP(AF$1,Systems!$A$1:$C$42,3,FALSE)))))))) -> 8.485281374 | AG4: =SQRT(((VLOOKUP($A4,Systems!$A4:$C$42,2,FALSE)-(VLOOKUP(AG$1,Systems!$A$1:$C$42,2,FALSE)))*((VLOOKUP($A4,Systems!$A4:$C$42,2,FALSE)-(VLOOKUP(AG$1,Systems!$A$1:$C$42,2,FALSE))))+(((VLOOKUP($A4,Systems!$A4:$C$42,3,FALSE)-(VLOOKUP(AG$1,Systems!$A$1:$C$42,3,FALSE)))*((VLOOKUP($A4,Systems!$A4:$C$42,3,FALSE)-(VLOOKUP(AG$1,Systems!$A$1:$C$42,3,FALSE)))))))) -> 33.73425559 | AH4: =SQRT(((VLOOKUP($A4,Systems!$A4:$C$42,2,FALSE)-(VLOOKUP(AH$1,Systems!$A$1:$C$42,2,FALSE)))*((VLOOKUP($A4,Systems!$A4:$C$42,2,FALSE)-(VLOOKUP(AH$1,Systems!$A$1:$C$42,2,FALSE))))+(((VLOOKUP($A4,Systems!$A4:$C$42,3,FALSE)-(VLOOKUP(AH$1,Systems!$A$1:$C$42,3,FALSE)))*((VLOOKUP($A4,Systems!$A4:$C$42,3,FALSE)-(VLOOKUP(AH$1,Systems!$A$1:$C$42,3,FALSE)))))))) -> 34.20526275 | AI4: =SQRT(((VLOOKUP($A4,Systems!$A4:$C$42,2,FALSE)-(VLOOKUP(AI$1,Systems!$A$1:$C$42,2,FALSE)))*((VLOOKUP($A4,Systems!$A4:$C$42,2,FALSE)-(VLOOKUP(AI$1,Systems!$A$1:$C$42,2,FALSE))))+(((VLOOKUP($A4,Systems!$A4:$C$42,3,FALSE)-(VLOOKUP(AI$1,Systems!$A$1:$C$42,3,FALSE)))*((VLOOKUP($A4,Systems!$A4:$C$42,3,FALSE)-(VLOOKUP(AI$1,Systems!$A$1:$C$42,3,FALSE)))))))) -> 12 | AJ4: =SQRT(((VLOOKUP($A4,Systems!$A4:$C$42,2,FALSE)-(VLOOKUP(AJ$1,Systems!$A$1:$C$42,2,FALSE)))*((VLOOKUP($A4,Systems!$A4:$C$42,2,FALSE)-(VLOOKUP(AJ$1,Systems!$A$1:$C$42,2,FALSE))))+(((VLOOKUP($A4,Systems!$A4:$C$42,3,FALSE)-(VLOOKUP(AJ$1,Systems!$A$1:$C$42,3,FALSE)))*((VLOOKUP($A4,Systems!$A4:$C$42,3,FALSE)-(VLOOKUP(AJ$1,Systems!$A$1:$C$42,3,FALSE)))))))) -> 28.46049894 | AK4: =SQRT(((VLOOKUP($A4,Systems!$A4:$C$42,2,FALSE)-(VLOOKUP(AK$1,Systems!$A$1:$C$42,2,FALSE)))*((VLOOKUP($A4,Systems!$A4:$C$42,2,FALSE)-(VLOOKUP(AK$1,Systems!$A$1:$C$42,2,FALSE))))+(((VLOOKUP($A4,Systems!$A4:$C$42,3,FALSE)-(VLOOKUP(AK$1,Systems!$A$1:$C$42,3,FALSE)))*((VLOOKUP($A4,Systems!$A4:$C$42,3,FALSE)-(VLOOKUP(AK$1,Systems!$A$1:$C$42,3,FALSE)))))))) -> 16.15549442 | AL4: =SQRT(((VLOOKUP($A4,Systems!$A4:$C$42,2,FALSE)-(VLOOKUP(AL$1,Systems!$A$1:$C$42,2,FALSE)))*((VLOOKUP($A4,Systems!$A4:$C$42,2,FALSE)-(VLOOKUP(AL$1,Systems!$A$1:$C$42,2,FALSE))))+(((VLOOKUP($A4,Systems!$A4:$C$42,3,FALSE)-(VLOOKUP(AL$1,Systems!$A$1:$C$42,3,FALSE)))*((VLOOKUP($A4,Systems!$A4:$C$42,3,FALSE)-(VLOOKUP(AL$1,Systems!$A$1:$C$42,3,FALSE)))))))) -> 28.28427125 | AM4: =SQRT(((VLOOKUP($A4,Systems!$A4:$C$42,2,FALSE)-(VLOOKUP(AM$1,Systems!$A$1:$C$42,2,FALSE)))*((VLOOKUP($A4,Systems!$A4:$C$42,2,FALSE)-(VLOOKUP(AM$1,Systems!$A$1:$C$42,2,FALSE))))+(((VLOOKUP($A4,Systems!$A4:$C$42,3,FALSE)-(VLOOKUP(AM$1,Systems!$A$1:$C$42,3,FALSE)))*((VLOOKUP($A4,Systems!$A4:$C$42,3,FALSE)-(VLOOKUP(AM$1,Systems!$A$1:$C$42,3,FALSE)))))))) -> 10.81665383 | AN4: =SQRT(((VLOOKUP($A4,Systems!$A4:$C$42,2,FALSE)-(VLOOKUP(AN$1,Systems!$A$1:$C$42,2,FALSE)))*((VLOOKUP($A4,Systems!$A4:$C$42,2,FALSE)-(VLOOKUP(AN$1,Systems!$A$1:$C$42,2,FALSE))))+(((VLOOKUP($A4,Systems!$A4:$C$42,3,FALSE)-(VLOOKUP(AN$1,Systems!$A$1:$C$42,3,FALSE)))*((VLOOKUP($A4,Systems!$A4:$C$42,3,FALSE)-(VLOOKUP(AN$1,Systems!$A$1:$C$42,3,FALSE)))))))) -> 36.23534186 | AO4: =SQRT(((VLOOKUP($A4,Systems!$A4:$C$42,2,FALSE)-(VLOOKUP(AO$1,Systems!$A$1:$C$42,2,FALSE)))*((VLOOKUP($A4,Systems!$A4:$C$42,2,FALSE)-(VLOOKUP(AO$1,Systems!$A$1:$C$42,2,FALSE))))+(((VLOOKUP($A4,Systems!$A4:$C$42,3,FALSE)-(VLOOKUP(AO$1,Systems!$A$1:$C$42,3,FALSE)))*((VLOOKUP($A4,Systems!$A4:$C$42,3,FALSE)-(VLOOKUP(AO$1,Systems!$A$1:$C$42,3,FALSE)))))))) -> 23 | AP4: =SQRT(((VLOOKUP($A4,Systems!$A4:$C$42,2,FALSE)-(VLOOKUP(AP$1,Systems!$A$1:$C$42,2,FALSE)))*((VLOOKUP($A4,Systems!$A4:$C$42,2,FALSE)-(VLOOKUP(AP$1,Systems!$A$1:$C$42,2,FALSE))))+(((VLOOKUP($A4,Systems!$A4:$C$42,3,FALSE)-(VLOOKUP(AP$1,Systems!$A$1:$C$42,3,FALSE)))*((VLOOKUP($A4,Systems!$A4:$C$42,3,FALSE)-(VLOOKUP(AP$1,Systems!$A$1:$C$42,3,FALSE)))))))) -> 12.16552506
A5: =Systems!A5 -> Belnafaer | B5: =SQRT(((VLOOKUP($A5,Systems!$A5:$C$42,2,FALSE)-(VLOOKUP(B$1,Systems!$A$1:$C$42,2,FALSE)))*((VLOOKUP($A5,Systems!$A5:$C$42,2,FALSE)-(VLOOKUP(B$1,Systems!$A$1:$C$42,2,FALSE))))+(((VLOOKUP($A5,Systems!$A5:$C$42,3,FALSE)-(VLOOKUP(B$1,Systems!$A$1:$C$42,3,FALSE)))*((VLOOKUP($A5,Systems!$A5:$C$42,3,FALSE)-(VLOOKUP(B$1,Systems!$A$1:$C$42,3,FALSE)))))))) -> 15 | C5: =SQRT(((VLOOKUP($A5,Systems!$A5:$C$42,2,FALSE)-(VLOOKUP(C$1,Systems!$A$1:$C$42,2,FALSE)))*((VLOOKUP($A5,Systems!$A5:$C$42,2,FALSE)-(VLOOKUP(C$1,Systems!$A$1:$C$42,2,FALSE))))+(((VLOOKUP($A5,Systems!$A5:$C$42,3,FALSE)-(VLOOKUP(C$1,Systems!$A$1:$C$42,3,FALSE)))*((VLOOKUP($A5,Systems!$A5:$C$42,3,FALSE)-(VLOOKUP(C$1,Systems!$A$1:$C$42,3,FALSE)))))))) -> 12.52996409 | D5: =SQRT(((VLOOKUP($A5,Systems!$A5:$C$42,2,FALSE)-(VLOOKUP(D$1,Systems!$A$1:$C$42,2,FALSE)))*((VLOOKUP($A5,Systems!$A5:$C$42,2,FALSE)-(VLOOKUP(D$1,Systems!$A$1:$C$42,2,FALSE))))+(((VLOOKUP($A5,Systems!$A5:$C$42,3,FALSE)-(VLOOKUP(D$1,Systems!$A$1:$C$42,3,FALSE)))*((VLOOKUP($A5,Systems!$A5:$C$42,3,FALSE)-(VLOOKUP(D$1,Systems!$A$1:$C$42,3,FALSE)))))))) -> 6 | E5: =SQRT(((VLOOKUP($A5,Systems!$A5:$C$42,2,FALSE)-(VLOOKUP(E$1,Systems!$A$1:$C$42,2,FALSE)))*((VLOOKUP($A5,Systems!$A5:$C$42,2,FALSE)-(VLOOKUP(E$1,Systems!$A$1:$C$42,2,FALSE))))+(((VLOOKUP($A5,Systems!$A5:$C$42,3,FALSE)-(VLOOKUP(E$1,Systems!$A$1:$C$42,3,FALSE)))*((VLOOKUP($A5,Systems!$A5:$C$42,3,FALSE)-(VLOOKUP(E$1,Systems!$A$1:$C$42,3,FALSE)))))))) -> 0 | F5: =SQRT(((VLOOKUP($A5,Systems!$A5:$C$42,2,FALSE)-(VLOOKUP(F$1,Systems!$A$1:$C$42,2,FALSE)))*((VLOOKUP($A5,Systems!$A5:$C$42,2,FALSE)-(VLOOKUP(F$1,Systems!$A$1:$C$42,2,FALSE))))+(((VLOOKUP($A5,Systems!$A5:$C$42,3,FALSE)-(VLOOKUP(F$1,Systems!$A$1:$C$42,3,FALSE)))*((VLOOKUP($A5,Systems!$A5:$C$42,3,FALSE)-(VLOOKUP(F$1,Systems!$A$1:$C$42,3,FALSE)))))))) -> 9.219544457 | G5: =SQRT(((VLOOKUP($A5,Systems!$A5:$C$42,2,FALSE)-(VLOOKUP(G$1,Systems!$A$1:$C$42,2,FALSE)))*((VLOOKUP($A5,Systems!$A5:$C$42,2,FALSE)-(VLOOKUP(G$1,Systems!$A$1:$C$42,2,FALSE))))+(((VLOOKUP($A5,Systems!$A5:$C$42,3,FALSE)-(VLOOKUP(G$1,Systems!$A$1:$C$42,3,FALSE)))*((VLOOKUP($A5,Systems!$A5:$C$42,3,FALSE)-(VLOOKUP(G$1,Systems!$A$1:$C$42,3,FALSE)))))))) -> 11.18033989 | H5: =SQRT(((VLOOKUP($A5,Systems!$A5:$C$42,2,FALSE)-(VLOOKUP(H$1,Systems!$A$1:$C$42,2,FALSE)))*((VLOOKUP($A5,Systems!$A5:$C$42,2,FALSE)-(VLOOKUP(H$1,Systems!$A$1:$C$42,2,FALSE))))+(((VLOOKUP($A5,Systems!$A5:$C$42,3,FALSE)-(VLOOKUP(H$1,Systems!$A$1:$C$42,3,FALSE)))*((VLOOKUP($A5,Systems!$A5:$C$42,3,FALSE)-(VLOOKUP(H$1,Systems!$A$1:$C$42,3,FALSE)))))))) -> 19.84943324 | I5: =SQRT(((VLOOKUP($A5,Systems!$A5:$C$42,2,FALSE)-(VLOOKUP(I$1,Systems!$A$1:$C$42,2,FALSE)))*((VLOOKUP($A5,Systems!$A5:$C$42,2,FALSE)-(VLOOKUP(I$1,Systems!$A$1:$C$42,2,FALSE))))+(((VLOOKUP($A5,Systems!$A5:$C$42,3,FALSE)-(VLOOKUP(I$1,Systems!$A$1:$C$42,3,FALSE)))*((VLOOKUP($A5,Systems!$A5:$C$42,3,FALSE)-(VLOOKUP(I$1,Systems!$A$1:$C$42,3,FALSE)))))))) -> 16.76305461 | J5: =SQRT(((VLOOKUP($A5,Systems!$A5:$C$42,2,FALSE)-(VLOOKUP(J$1,Systems!$A$1:$C$42,2,FALSE)))*((VLOOKUP($A5,Systems!$A5:$C$42,2,FALSE)-(VLOOKUP(J$1,Systems!$A$1:$C$42,2,FALSE))))+(((VLOOKUP($A5,Systems!$A5:$C$42,3,FALSE)-(VLOOKUP(J$1,Systems!$A$1:$C$42,3,FALSE)))*((VLOOKUP($A5,Systems!$A5:$C$42,3,FALSE)-(VLOOKUP(J$1,Systems!$A$1:$C$42,3,FALSE)))))))) -> 18.97366596 | K5: =SQRT(((VLOOKUP($A5,Systems!$A5:$C$42,2,FALSE)-(VLOOKUP(K$1,Systems!$A$1:$C$42,2,FALSE)))*((VLOOKUP($A5,Systems!$A5:$C$42,2,FALSE)-(VLOOKUP(K$1,Systems!$A$1:$C$42,2,FALSE))))+(((VLOOKUP($A5,Systems!$A5:$C$42,3,FALSE)-(VLOOKUP(K$1,Systems!$A$1:$C$42,3,FALSE)))*((VLOOKUP($A5,Systems!$A5:$C$42,3,FALSE)-(VLOOKUP(K$1,Systems!$A$1:$C$42,3,FALSE)))))))) -> 7.280109889 | L5: =SQRT(((VLOOKUP($A5,Systems!$A5:$C$42,2,FALSE)-(VLOOKUP(L$1,Systems!$A$1:$C$42,2,FALSE)))*((VLOOKUP($A5,Systems!$A5:$C$42,2,FALSE)-(VLOOKUP(L$1,Systems!$A$1:$C$42,2,FALSE))))+(((VLOOKUP($A5,Systems!$A5:$C$42,3,FALSE)-(VLOOKUP(L$1,Systems!$A$1:$C$42,3,FALSE)))*((VLOOKUP($A5,Systems!$A5:$C$42,3,FALSE)-(VLOOKUP(L$1,Systems!$A$1:$C$42,3,FALSE)))))))) -> 14.56021978 | M5: =SQRT(((VLOOKUP($A5,Systems!$A5:$C$42,2,FALSE)-(VLOOKUP(M$1,Systems!$A$1:$C$42,2,FALSE)))*((VLOOKUP($A5,Systems!$A5:$C$42,2,FALSE)-(VLOOKUP(M$1,Systems!$A$1:$C$42,2,FALSE))))+(((VLOOKUP($A5,Systems!$A5:$C$42,3,FALSE)-(VLOOKUP(M$1,Systems!$A$1:$C$42,3,FALSE)))*((VLOOKUP($A5,Systems!$A5:$C$42,3,FALSE)-(VLOOKUP(M$1,Systems!$A$1:$C$42,3,FALSE)))))))) -> 24.33105012 | N5: =SQRT(((VLOOKUP($A5,Systems!$A5:$C$42,2,FALSE)-(VLOOKUP(N$1,Systems!$A$1:$C$42,2,FALSE)))*((VLOOKUP($A5,Systems!$A5:$C$42,2,FALSE)-(VLOOKUP(N$1,Systems!$A$1:$C$42,2,FALSE))))+(((VLOOKUP($A5,Systems!$A5:$C$42,3,FALSE)-(VLOOKUP(N$1,Systems!$A$1:$C$42,3,FALSE)))*((VLOOKUP($A5,Systems!$A5:$C$42,3,FALSE)-(VLOOKUP(N$1,Systems!$A$1:$C$42,3,FALSE)))))))) -> 15.26433752 | O5: =SQRT(((VLOOKUP($A5,Systems!$A5:$C$42,2,FALSE)-(VLOOKUP(O$1,Systems!$A$1:$C$42,2,FALSE)))*((VLOOKUP($A5,Systems!$A5:$C$42,2,FALSE)-(VLOOKUP(O$1,Systems!$A$1:$C$42,2,FALSE))))+(((VLOOKUP($A5,Systems!$A5:$C$42,3,FALSE)-(VLOOKUP(O$1,Systems!$A$1:$C$42,3,FALSE)))*((VLOOKUP($A5,Systems!$A5:$C$42,3,FALSE)-(VLOOKUP(O$1,Systems!$A$1:$C$42,3,FALSE)))))))) -> 19.41648784 | P5: =SQRT(((VLOOKUP($A5,Systems!$A5:$C$42,2,FALSE)-(VLOOKUP(P$1,Systems!$A$1:$C$42,2,FALSE)))*((VLOOKUP($A5,Systems!$A5:$C$42,2,FALSE)-(VLOOKUP(P$1,Systems!$A$1:$C$42,2,FALSE))))+(((VLOOKUP($A5,Systems!$A5:$C$42,3,FALSE)-(VLOOKUP(P$1,Systems!$A$1:$C$42,3,FALSE)))*((VLOOKUP($A5,Systems!$A5:$C$42,3,FALSE)-(VLOOKUP(P$1,Systems!$A$1:$C$42,3,FALSE)))))))) -> 20.24845673 | Q5: =SQRT(((VLOOKUP($A5,Systems!$A5:$C$42,2,FALSE)-(VLOOKUP(Q$1,Systems!$A$1:$C$42,2,FALSE)))*((VLOOKUP($A5,Systems!$A5:$C$42,2,FALSE)-(VLOOKUP(Q$1,Systems!$A$1:$C$42,2,FALSE))))+(((VLOOKUP($A5,Systems!$A5:$C$42,3,FALSE)-(VLOOKUP(Q$1,Systems!$A$1:$C$42,3,FALSE)))*((VLOOKUP($A5,Systems!$A5:$C$42,3,FALSE)-(VLOOKUP(Q$1,Systems!$A$1:$C$42,3,FALSE)))))))) -> 16.1245155 | R5: =SQRT(((VLOOKUP($A5,Systems!$A5:$C$42,2,FALSE)-(VLOOKUP(R$1,Systems!$A$1:$C$42,2,FALSE)))*((VLOOKUP($A5,Systems!$A5:$C$42,2,FALSE)-(VLOOKUP(R$1,Systems!$A$1:$C$42,2,FALSE))))+(((VLOOKUP($A5,Systems!$A5:$C$42,3,FALSE)-(VLOOKUP(R$1,Systems!$A$1:$C$42,3,FALSE)))*((VLOOKUP($A5,Systems!$A5:$C$42,3,FALSE)-(VLOOKUP(R$1,Systems!$A$1:$C$42,3,FALSE)))))))) -> 28.28427125 | S5: =SQRT(((VLOOKUP($A5,Systems!$A5:$C$42,2,FALSE)-(VLOOKUP(S$1,Systems!$A$1:$C$42,2,FALSE)))*((VLOOKUP($A5,Systems!$A5:$C$42,2,FALSE)-(VLOOKUP(S$1,Systems!$A$1:$C$42,2,FALSE))))+(((VLOOKUP($A5,Systems!$A5:$C$42,3,FALSE)-(VLOOKUP(S$1,Systems!$A$1:$C$42,3,FALSE)))*((VLOOKUP($A5,Systems!$A5:$C$42,3,FALSE)-(VLOOKUP(S$1,Systems!$A$1:$C$42,3,FALSE)))))))) -> 25 | T5: =SQRT(((VLOOKUP($A5,Systems!$A5:$C$42,2,FALSE)-(VLOOKUP(T$1,Systems!$A$1:$C$42,2,FALSE)))*((VLOOKUP($A5,Systems!$A5:$C$42,2,FALSE)-(VLOOKUP(T$1,Systems!$A$1:$C$42,2,FALSE))))+(((VLOOKUP($A5,Systems!$A5:$C$42,3,FALSE)-(VLOOKUP(T$1,Systems!$A$1:$C$42,3,FALSE)))*((VLOOKUP($A5,Systems!$A5:$C$42,3,FALSE)-(VLOOKUP(T$1,Systems!$A$1:$C$42,3,FALSE)))))))) -> 13.60147051 | U5: =SQRT(((VLOOKUP($A5,Systems!$A5:$C$42,2,FALSE)-(VLOOKUP(U$1,Systems!$A$1:$C$42,2,FALSE)))*((VLOOKUP($A5,Systems!$A5:$C$42,2,FALSE)-(VLOOKUP(U$1,Systems!$A$1:$C$42,2,FALSE))))+(((VLOOKUP($A5,Systems!$A5:$C$42,3,FALSE)-(VLOOKUP(U$1,Systems!$A$1:$C$42,3,FALSE)))*((VLOOKUP($A5,Systems!$A5:$C$42,3,FALSE)-(VLOOKUP(U$1,Systems!$A$1:$C$42,3,FALSE)))))))) -> 26 | V5: =SQRT(((VLOOKUP($A5,Systems!$A5:$C$42,2,FALSE)-(VLOOKUP(V$1,Systems!$A$1:$C$42,2,FALSE)))*((VLOOKUP($A5,Systems!$A5:$C$42,2,FALSE)-(VLOOKUP(V$1,Systems!$A$1:$C$42,2,FALSE))))+(((VLOOKUP($A5,Systems!$A5:$C$42,3,FALSE)-(VLOOKUP(V$1,Systems!$A$1:$C$42,3,FALSE)))*((VLOOKUP($A5,Systems!$A5:$C$42,3,FALSE)-(VLOOKUP(V$1,Systems!$A$1:$C$42,3,FALSE)))))))) -> 25.23885893 | W5: =SQRT(((VLOOKUP($A5,Systems!$A5:$C$42,2,FALSE)-(VLOOKUP(W$1,Systems!$A$1:$C$42,2,FALSE)))*((VLOOKUP($A5,Systems!$A5:$C$42,2,FALSE)-(VLOOKUP(W$1,Systems!$A$1:$C$42,2,FALSE))))+(((VLOOKUP($A5,Systems!$A5:$C$42,3,FALSE)-(VLOOKUP(W$1,Systems!$A$1:$C$42,3,FALSE)))*((VLOOKUP($A5,Systems!$A5:$C$42,3,FALSE)-(VLOOKUP(W$1,Systems!$A$1:$C$42,3,FALSE)))))))) -> 44.10215414 | X5: =SQRT(((VLOOKUP($A5,Systems!$A5:$C$42,2,FALSE)-(VLOOKUP(X$1,Systems!$A$1:$C$42,2,FALSE)))*((VLOOKUP($A5,Systems!$A5:$C$42,2,FALSE)-(VLOOKUP(X$1,Systems!$A$1:$C$42,2,FALSE))))+(((VLOOKUP($A5,Systems!$A5:$C$42,3,FALSE)-(VLOOKUP(X$1,Systems!$A$1:$C$42,3,FALSE)))*((VLOOKUP($A5,Systems!$A5:$C$42,3,FALSE)-(VLOOKUP(X$1,Systems!$A$1:$C$42,3,FALSE)))))))) -> 28.01785145 | Y5: =SQRT(((VLOOKUP($A5,Systems!$A5:$C$42,2,FALSE)-(VLOOKUP(Y$1,Systems!$A$1:$C$42,2,FALSE)))*((VLOOKUP($A5,Systems!$A5:$C$42,2,FALSE)-(VLOOKUP(Y$1,Systems!$A$1:$C$42,2,FALSE))))+(((VLOOKUP($A5,Systems!$A5:$C$42,3,FALSE)-(VLOOKUP(Y$1,Systems!$A$1:$C$42,3,FALSE)))*((VLOOKUP($A5,Systems!$A5:$C$42,3,FALSE)-(VLOOKUP(Y$1,Systems!$A$1:$C$42,3,FALSE)))))))) -> 18 | Z5: =SQRT(((VLOOKUP($A5,Systems!$A5:$C$42,2,FALSE)-(VLOOKUP(Z$1,Systems!$A$1:$C$42,2,FALSE)))*((VLOOKUP($A5,Systems!$A5:$C$42,2,FALSE)-(VLOOKUP(Z$1,Systems!$A$1:$C$42,2,FALSE))))+(((VLOOKUP($A5,Systems!$A5:$C$42,3,FALSE)-(VLOOKUP(Z$1,Systems!$A$1:$C$42,3,FALSE)))*((VLOOKUP($A5,Systems!$A5:$C$42,3,FALSE)-(VLOOKUP(Z$1,Systems!$A$1:$C$42,3,FALSE)))))))) -> 5.385164807 | AA5: =SQRT(((VLOOKUP($A5,Systems!$A5:$C$42,2,FALSE)-(VLOOKUP(AA$1,Systems!$A$1:$C$42,2,FALSE)))*((VLOOKUP($A5,Systems!$A5:$C$42,2,FALSE)-(VLOOKUP(AA$1,Systems!$A$1:$C$42,2,FALSE))))+(((VLOOKUP($A5,Systems!$A5:$C$42,3,FALSE)-(VLOOKUP(AA$1,Systems!$A$1:$C$42,3,FALSE)))*((VLOOKUP($A5,Systems!$A5:$C$42,3,FALSE)-(VLOOKUP(AA$1,Systems!$A$1:$C$42,3,FALSE)))))))) -> 26.07680962 | AB5: =SQRT(((VLOOKUP($A5,Systems!$A5:$C$42,2,FALSE)-(VLOOKUP(AB$1,Systems!$A$1:$C$42,2,FALSE)))*((VLOOKUP($A5,Systems!$A5:$C$42,2,FALSE)-(VLOOKUP(AB$1,Systems!$A$1:$C$42,2,FALSE))))+(((VLOOKUP($A5,Systems!$A5:$C$42,3,FALSE)-(VLOOKUP(AB$1,Systems!$A$1:$C$42,3,FALSE)))*((VLOOKUP($A5,Systems!$A5:$C$42,3,FALSE)-(VLOOKUP(AB$1,Systems!$A$1:$C$42,3,FALSE)))))))) -> 10.29563014 | AC5: =SQRT(((VLOOKUP($A5,Systems!$A5:$C$42,2,FALSE)-(VLOOKUP(AC$1,Systems!$A$1:$C$42,2,FALSE)))*((VLOOKUP($A5,Systems!$A5:$C$42,2,FALSE)-(VLOOKUP(AC$1,Systems!$A$1:$C$42,2,FALSE))))+(((VLOOKUP($A5,Systems!$A5:$C$42,3,FALSE)-(VLOOKUP(AC$1,Systems!$A$1:$C$42,3,FALSE)))*((VLOOKUP($A5,Systems!$A5:$C$42,3,FALSE)-(VLOOKUP(AC$1,Systems!$A$1:$C$42,3,FALSE)))))))) -> 16.1245155 | AD5: =SQRT(((VLOOKUP($A5,Systems!$A5:$C$42,2,FALSE)-(VLOOKUP(AD$1,Systems!$A$1:$C$42,2,FALSE)))*((VLOOKUP($A5,Systems!$A5:$C$42,2,FALSE)-(VLOOKUP(AD$1,Systems!$A$1:$C$42,2,FALSE))))+(((VLOOKUP($A5,Systems!$A5:$C$42,3,FALSE)-(VLOOKUP(AD$1,Systems!$A$1:$C$42,3,FALSE)))*((VLOOKUP($A5,Systems!$A5:$C$42,3,FALSE)-(VLOOKUP(AD$1,Systems!$A$1:$C$42,3,FALSE)))))))) -> 12.08304597 | AE5: =SQRT(((VLOOKUP($A5,Systems!$A5:$C$42,2,FALSE)-(VLOOKUP(AE$1,Systems!$A$1:$C$42,2,FALSE)))*((VLOOKUP($A5,Systems!$A5:$C$42,2,FALSE)-(VLOOKUP(AE$1,Systems!$A$1:$C$42,2,FALSE))))+(((VLOOKUP($A5,Systems!$A5:$C$42,3,FALSE)-(VLOOKUP(AE$1,Systems!$A$1:$C$42,3,FALSE)))*((VLOOKUP($A5,Systems!$A5:$C$42,3,FALSE)-(VLOOKUP(AE$1,Systems!$A$1:$C$42,3,FALSE)))))))) -> 20.09975124 | AF5: =SQRT(((VLOOKUP($A5,Systems!$A5:$C$42,2,FALSE)-(VLOOKUP(AF$1,Systems!$A$1:$C$42,2,FALSE)))*((VLOOKUP($A5,Systems!$A5:$C$42,2,FALSE)-(VLOOKUP(AF$1,Systems!$A$1:$C$42,2,FALSE))))+(((VLOOKUP($A5,Systems!$A5:$C$42,3,FALSE)-(VLOOKUP(AF$1,Systems!$A$1:$C$42,3,FALSE)))*((VLOOKUP($A5,Systems!$A5:$C$42,3,FALSE)-(VLOOKUP(AF$1,Systems!$A$1:$C$42,3,FALSE)))))))) -> 6 | AG5: =SQRT(((VLOOKUP($A5,Systems!$A5:$C$42,2,FALSE)-(VLOOKUP(AG$1,Systems!$A$1:$C$42,2,FALSE)))*((VLOOKUP($A5,Systems!$A5:$C$42,2,FALSE)-(VLOOKUP(AG$1,Systems!$A$1:$C$42,2,FALSE))))+(((VLOOKUP($A5,Systems!$A5:$C$42,3,FALSE)-(VLOOKUP(AG$1,Systems!$A$1:$C$42,3,FALSE)))*((VLOOKUP($A5,Systems!$A5:$C$42,3,FALSE)-(VLOOKUP(AG$1,Systems!$A$1:$C$42,3,FALSE)))))))) -> 33.01514804 | AH5: =SQRT(((VLOOKUP($A5,Systems!$A5:$C$42,2,FALSE)-(VLOOKUP(AH$1,Systems!$A$1:$C$42,2,FALSE)))*((VLOOKUP($A5,Systems!$A5:$C$42,2,FALSE)-(VLOOKUP(AH$1,Systems!$A$1:$C$42,2,FALSE))))+(((VLOOKUP($A5,Systems!$A5:$C$42,3,FALSE)-(VLOOKUP(AH$1,Systems!$A$1:$C$42,3,FALSE)))*((VLOOKUP($A5,Systems!$A5:$C$42,3,FALSE)-(VLOOKUP(AH$1,Systems!$A$1:$C$42,3,FALSE)))))))) -> 36.24913792 | AI5: =SQRT(((VLOOKUP($A5,Systems!$A5:$C$42,2,FALSE)-(VLOOKUP(AI$1,Systems!$A$1:$C$42,2,FALSE)))*((VLOOKUP($A5,Systems!$A5:$C$42,2,FALSE)-(VLOOKUP(AI$1,Systems!$A$1:$C$42,2,FALSE))))+(((VLOOKUP($A5,Systems!$A5:$C$42,3,FALSE)-(VLOOKUP(AI$1,Systems!$A$1:$C$42,3,FALSE)))*((VLOOKUP($A5,Systems!$A5:$C$42,3,FALSE)-(VLOOKUP(AI$1,Systems!$A$1:$C$42,3,FALSE)))))))) -> 13.41640786 | AJ5: =SQRT(((VLOOKUP($A5,Systems!$A5:$C$42,2,FALSE)-(VLOOKUP(AJ$1,Systems!$A$1:$C$42,2,FALSE)))*((VLOOKUP($A5,Systems!$A5:$C$42,2,FALSE)-(VLOOKUP(AJ$1,Systems!$A$1:$C$42,2,FALSE))))+(((VLOOKUP($A5,Systems!$A5:$C$42,3,FALSE)-(VLOOKUP(AJ$1,Systems!$A$1:$C$42,3,FALSE)))*((VLOOKUP($A5,Systems!$A5:$C$42,3,FALSE)-(VLOOKUP(AJ$1,Systems!$A$1:$C$42,3,FALSE)))))))) -> 30.88689042 | AK5: =SQRT(((VLOOKUP($A5,Systems!$A5:$C$42,2,FALSE)-(VLOOKUP(AK$1,Systems!$A$1:$C$42,2,FALSE)))*((VLOOKUP($A5,Systems!$A5:$C$42,2,FALSE)-(VLOOKUP(AK$1,Systems!$A$1:$C$42,2,FALSE))))+(((VLOOKUP($A5,Systems!$A5:$C$42,3,FALSE)-(VLOOKUP(AK$1,Systems!$A$1:$C$42,3,FALSE)))*((VLOOKUP($A5,Systems!$A5:$C$42,3,FALSE)-(VLOOKUP(AK$1,Systems!$A$1:$C$42,3,FALSE)))))))) -> 19.20937271 | AL5: =SQRT(((VLOOKUP($A5,Systems!$A5:$C$42,2,FALSE)-(VLOOKUP(AL$1,Systems!$A$1:$C$42,2,FALSE)))*((VLOOKUP($A5,Systems!$A5:$C$42,2,FALSE)-(VLOOKUP(AL$1,Systems!$A$1:$C$42,2,FALSE))))+(((VLOOKUP($A5,Systems!$A5:$C$42,3,FALSE)-(VLOOKUP(AL$1,Systems!$A$1:$C$42,3,FALSE)))*((VLOOKUP($A5,Systems!$A5:$C$42,3,FALSE)-(VLOOKUP(AL$1,Systems!$A$1:$C$42,3,FALSE)))))))) -> 29.73213749 | AM5: =SQRT(((VLOOKUP($A5,Systems!$A5:$C$42,2,FALSE)-(VLOOKUP(AM$1,Systems!$A$1:$C$42,2,FALSE)))*((VLOOKUP($A5,Systems!$A5:$C$42,2,FALSE)-(VLOOKUP(AM$1,Systems!$A$1:$C$42,2,FALSE))))+(((VLOOKUP($A5,Systems!$A5:$C$42,3,FALSE)-(VLOOKUP(AM$1,Systems!$A$1:$C$42,3,FALSE)))*((VLOOKUP($A5,Systems!$A5:$C$42,3,FALSE)-(VLOOKUP(AM$1,Systems!$A$1:$C$42,3,FALSE)))))))) -> 6.708203932 | AN5: =SQRT(((VLOOKUP($A5,Systems!$A5:$C$42,2,FALSE)-(VLOOKUP(AN$1,Systems!$A$1:$C$42,2,FALSE)))*((VLOOKUP($A5,Systems!$A5:$C$42,2,FALSE)-(VLOOKUP(AN$1,Systems!$A$1:$C$42,2,FALSE))))+(((VLOOKUP($A5,Systems!$A5:$C$42,3,FALSE)-(VLOOKUP(AN$1,Systems!$A$1:$C$42,3,FALSE)))*((VLOOKUP($A5,Systems!$A5:$C$42,3,FALSE)-(VLOOKUP(AN$1,Systems!$A$1:$C$42,3,FALSE)))))))) -> 39.40812099 | AO5: =SQRT(((VLOOKUP($A5,Systems!$A5:$C$42,2,FALSE)-(VLOOKUP(AO$1,Systems!$A$1:$C$42,2,FALSE)))*((VLOOKUP($A5,Systems!$A5:$C$42,2,FALSE)-(VLOOKUP(AO$1,Systems!$A$1:$C$42,2,FALSE))))+(((VLOOKUP($A5,Systems!$A5:$C$42,3,FALSE)-(VLOOKUP(AO$1,Systems!$A$1:$C$42,3,FALSE)))*((VLOOKUP($A5,Systems!$A5:$C$42,3,FALSE)-(VLOOKUP(AO$1,Systems!$A$1:$C$42,3,FALSE)))))))) -> 23.76972865 | AP5: =SQRT(((VLOOKUP($A5,Systems!$A5:$C$42,2,FALSE)-(VLOOKUP(AP$1,Systems!$A$1:$C$42,2,FALSE)))*((VLOOKUP($A5,Systems!$A5:$C$42,2,FALSE)-(VLOOKUP(AP$1,Systems!$A$1:$C$42,2,FALSE))))+(((VLOOKUP($A5,Systems!$A5:$C$42,3,FALSE)-(VLOOKUP(AP$1,Systems!$A$1:$C$42,3,FALSE)))*((VLOOKUP($A5,Systems!$A5:$C$42,3,FALSE)-(VLOOKUP(AP$1,Systems!$A$1:$C$42,3,FALSE)))))))) -> 6.32455532
A6: =Systems!A6 -> Capella | B6: =SQRT(((VLOOKUP($A6,Systems!$A6:$C$42,2,FALSE)-(VLOOKUP(B$1,Systems!$A$1:$C$42,2,FALSE)))*((VLOOKUP($A6,Systems!$A6:$C$42,2,FALSE)-(VLOOKUP(B$1,Systems!$A$1:$C$42,2,FALSE))))+(((VLOOKUP($A6,Systems!$A6:$C$42,3,FALSE)-(VLOOKUP(B$1,Systems!$A$1:$C$42,3,FALSE)))*((VLOOKUP($A6,Systems!$A6:$C$42,3,FALSE)-(VLOOKUP(B$1,Systems!$A$1:$C$42,3,FALSE)))))))) -> 24.20743687 | C6: =SQRT(((VLOOKUP($A6,Systems!$A6:$C$42,2,FALSE)-(VLOOKUP(C$1,Systems!$A$1:$C$42,2,FALSE)))*((VLOOKUP($A6,Systems!$A6:$C$42,2,FALSE)-(VLOOKUP(C$1,Systems!$A$1:$C$42,2,FALSE))))+(((VLOOKUP($A6,Systems!$A6:$C$42,3,FALSE)-(VLOOKUP(C$1,Systems!$A$1:$C$42,3,FALSE)))*((VLOOKUP($A6,Systems!$A6:$C$42,3,FALSE)-(VLOOKUP(C$1,Systems!$A$1:$C$42,3,FALSE)))))))) -> 17.02938637 | D6: =SQRT(((VLOOKUP($A6,Systems!$A6:$C$42,2,FALSE)-(VLOOKUP(D$1,Systems!$A$1:$C$42,2,FALSE)))*((VLOOKUP($A6,Systems!$A6:$C$42,2,FALSE)-(VLOOKUP(D$1,Systems!$A$1:$C$42,2,FALSE))))+(((VLOOKUP($A6,Systems!$A6:$C$42,3,FALSE)-(VLOOKUP(D$1,Systems!$A$1:$C$42,3,FALSE)))*((VLOOKUP($A6,Systems!$A6:$C$42,3,FALSE)-(VLOOKUP(D$1,Systems!$A$1:$C$42,3,FALSE)))))))) -> 13.89244399 | E6: =SQRT(((VLOOKUP($A6,Systems!$A6:$C$42,2,FALSE)-(VLOOKUP(E$1,Systems!$A$1:$C$42,2,FALSE)))*((VLOOKUP($A6,Systems!$A6:$C$42,2,FALSE)-(VLOOKUP(E$1,Systems!$A$1:$C$42,2,FALSE))))+(((VLOOKUP($A6,Systems!$A6:$C$42,3,FALSE)-(VLOOKUP(E$1,Systems!$A$1:$C$42,3,FALSE)))*((VLOOKUP($A6,Systems!$A6:$C$42,3,FALSE)-(VLOOKUP(E$1,Systems!$A$1:$C$42,3,FALSE)))))))) -> 9.219544457 | F6: =SQRT(((VLOOKUP($A6,Systems!$A6:$C$42,2,FALSE)-(VLOOKUP(F$1,Systems!$A$1:$C$42,2,FALSE)))*((VLOOKUP($A6,Systems!$A6:$C$42,2,FALSE)-(VLOOKUP(F$1,Systems!$A$1:$C$42,2,FALSE))))+(((VLOOKUP($A6,Systems!$A6:$C$42,3,FALSE)-(VLOOKUP(F$1,Systems!$A$1:$C$42,3,FALSE)))*((VLOOKUP($A6,Systems!$A6:$C$42,3,FALSE)-(VLOOKUP(F$1,Systems!$A$1:$C$42,3,FALSE)))))))) -> 0 | G6: =SQRT(((VLOOKUP($A6,Systems!$A6:$C$42,2,FALSE)-(VLOOKUP(G$1,Systems!$A$1:$C$42,2,FALSE)))*((VLOOKUP($A6,Systems!$A6:$C$42,2,FALSE)-(VLOOKUP(G$1,Systems!$A$1:$C$42,2,FALSE))))+(((VLOOKUP($A6,Systems!$A6:$C$42,3,FALSE)-(VLOOKUP(G$1,Systems!$A$1:$C$42,3,FALSE)))*((VLOOKUP($A6,Systems!$A6:$C$42,3,FALSE)-(VLOOKUP(G$1,Systems!$A$1:$C$42,3,FALSE)))))))) -> 18.43908891 | H6: =SQRT(((VLOOKUP($A6,Systems!$A6:$C$42,2,FALSE)-(VLOOKUP(H$1,Systems!$A$1:$C$42,2,FALSE)))*((VLOOKUP($A6,Systems!$A6:$C$42,2,FALSE)-(VLOOKUP(H$1,Systems!$A$1:$C$42,2,FALSE))))+(((VLOOKUP($A6,Systems!$A6:$C$42,3,FALSE)-(VLOOKUP(H$1,Systems!$A$1:$C$42,3,FALSE)))*((VLOOKUP($A6,Systems!$A6:$C$42,3,FALSE)-(VLOOKUP(H$1,Systems!$A$1:$C$42,3,FALSE)))))))) -> 21.9317122 | I6: =SQRT(((VLOOKUP($A6,Systems!$A6:$C$42,2,FALSE)-(VLOOKUP(I$1,Systems!$A$1:$C$42,2,FALSE)))*((VLOOKUP($A6,Systems!$A6:$C$42,2,FALSE)-(VLOOKUP(I$1,Systems!$A$1:$C$42,2,FALSE))))+(((VLOOKUP($A6,Systems!$A6:$C$42,3,FALSE)-(VLOOKUP(I$1,Systems!$A$1:$C$42,3,FALSE)))*((VLOOKUP($A6,Systems!$A6:$C$42,3,FALSE)-(VLOOKUP(I$1,Systems!$A$1:$C$42,3,FALSE)))))))) -> 25.49509757 | J6: =SQRT(((VLOOKUP($A6,Systems!$A6:$C$42,2,FALSE)-(VLOOKUP(J$1,Systems!$A$1:$C$42,2,FALSE)))*((VLOOKUP($A6,Systems!$A6:$C$42,2,FALSE)-(VLOOKUP(J$1,Systems!$A$1:$C$42,2,FALSE))))+(((VLOOKUP($A6,Systems!$A6:$C$42,3,FALSE)-(VLOOKUP(J$1,Systems!$A$1:$C$42,3,FALSE)))*((VLOOKUP($A6,Systems!$A6:$C$42,3,FALSE)-(VLOOKUP(J$1,Systems!$A$1:$C$42,3,FALSE)))))))) -> 25 | K6: =SQRT(((VLOOKUP($A6,Systems!$A6:$C$42,2,FALSE)-(VLOOKUP(K$1,Systems!$A$1:$C$42,2,FALSE)))*((VLOOKUP($A6,Systems!$A6:$C$42,2,FALSE)-(VLOOKUP(K$1,Systems!$A$1:$C$42,2,FALSE))))+(((VLOOKUP($A6,Systems!$A6:$C$42,3,FALSE)-(VLOOKUP(K$1,Systems!$A$1:$C$42,3,FALSE)))*((VLOOKUP($A6,Systems!$A6:$C$42,3,FALSE)-(VLOOKUP(K$1,Systems!$A$1:$C$42,3,FALSE)))))))) -> 16.1245155 | L6: =SQRT(((VLOOKUP($A6,Systems!$A6:$C$42,2,FALSE)-(VLOOKUP(L$1,Systems!$A$1:$C$42,2,FALSE)))*((VLOOKUP($A6,Systems!$A6:$C$42,2,FALSE)-(VLOOKUP(L$1,Systems!$A$1:$C$42,2,FALSE))))+(((VLOOKUP($A6,Systems!$A6:$C$42,3,FALSE)-(VLOOKUP(L$1,Systems!$A$1:$C$42,3,FALSE)))*((VLOOKUP($A6,Systems!$A6:$C$42,3,FALSE)-(VLOOKUP(L$1,Systems!$A$1:$C$42,3,FALSE)))))))) -> 21.09502311 | M6: =SQRT(((VLOOKUP($A6,Systems!$A6:$C$42,2,FALSE)-(VLOOKUP(M$1,Systems!$A$1:$C$42,2,FALSE)))*((VLOOKUP($A6,Systems!$A6:$C$42,2,FALSE)-(VLOOKUP(M$1,Systems!$A$1:$C$42,2,FALSE))))+(((VLOOKUP($A6,Systems!$A6:$C$42,3,FALSE)-(VLOOKUP(M$1,Systems!$A$1:$C$42,3,FALSE)))*((VLOOKUP($A6,Systems!$A6:$C$42,3,FALSE)-(VLOOKUP(M$1,Systems!$A$1:$C$42,3,FALSE)))))))) -> 31.06444913 | N6: =SQRT(((VLOOKUP($A6,Systems!$A6:$C$42,2,FALSE)-(VLOOKUP(N$1,Systems!$A$1:$C$42,2,FALSE)))*((VLOOKUP($A6,Systems!$A6:$C$42,2,FALSE)-(VLOOKUP(N$1,Systems!$A$1:$C$42,2,FALSE))))+(((VLOOKUP($A6,Systems!$A6:$C$42,3,FALSE)-(VLOOKUP(N$1,Systems!$A$1:$C$42,3,FALSE)))*((VLOOKUP($A6,Systems!$A6:$C$42,3,FALSE)-(VLOOKUP(N$1,Systems!$A$1:$C$42,3,FALSE)))))))) -> 7.071067812 | O6: =SQRT(((VLOOKUP($A6,Systems!$A6:$C$42,2,FALSE)-(VLOOKUP(O$1,Systems!$A$1:$C$42,2,FALSE)))*((VLOOKUP($A6,Systems!$A6:$C$42,2,FALSE)-(VLOOKUP(O$1,Systems!$A$1:$C$42,2,FALSE))))+(((VLOOKUP($A6,Systems!$A6:$C$42,3,FALSE)-(VLOOKUP(O$1,Systems!$A$1:$C$42,3,FALSE)))*((VLOOKUP($A6,Systems!$A6:$C$42,3,FALSE)-(VLOOKUP(O$1,Systems!$A$1:$C$42,3,FALSE)))))))) -> 23.53720459 | P6: =SQRT(((VLOOKUP($A6,Systems!$A6:$C$42,2,FALSE)-(VLOOKUP(P$1,Systems!$A$1:$C$42,2,FALSE)))*((VLOOKUP($A6,Systems!$A6:$C$42,2,FALSE)-(VLOOKUP(P$1,Systems!$A$1:$C$42,2,FALSE))))+(((VLOOKUP($A6,Systems!$A6:$C$42,3,FALSE)-(VLOOKUP(P$1,Systems!$A$1:$C$42,3,FALSE)))*((VLOOKUP($A6,Systems!$A6:$C$42,3,FALSE)-(VLOOKUP(P$1,Systems!$A$1:$C$42,3,FALSE)))))))) -> 29.06888371 | Q6: =SQRT(((VLOOKUP($A6,Systems!$A6:$C$42,2,FALSE)-(VLOOKUP(Q$1,Systems!$A$1:$C$42,2,FALSE)))*((VLOOKUP($A6,Systems!$A6:$C$42,2,FALSE)-(VLOOKUP(Q$1,Systems!$A$1:$C$42,2,FALSE))))+(((VLOOKUP($A6,Systems!$A6:$C$42,3,FALSE)-(VLOOKUP(Q$1,Systems!$A$1:$C$42,3,FALSE)))*((VLOOKUP($A6,Systems!$A6:$C$42,3,FALSE)-(VLOOKUP(Q$1,Systems!$A$1:$C$42,3,FALSE)))))))) -> 23.76972865 | R6: =SQRT(((VLOOKUP($A6,Systems!$A6:$C$42,2,FALSE)-(VLOOKUP(R$1,Systems!$A$1:$C$42,2,FALSE)))*((VLOOKUP($A6,Systems!$A6:$C$42,2,FALSE)-(VLOOKUP(R$1,Systems!$A$1:$C$42,2,FALSE))))+(((VLOOKUP($A6,Systems!$A6:$C$42,3,FALSE)-(VLOOKUP(R$1,Systems!$A$1:$C$42,3,FALSE)))*((VLOOKUP($A6,Systems!$A6:$C$42,3,FALSE)-(VLOOKUP(R$1,Systems!$A$1:$C$42,3,FALSE)))))))) -> 35.05709629 | S6: =SQRT(((VLOOKUP($A6,Systems!$A6:$C$42,2,FALSE)-(VLOOKUP(S$1,Systems!$A$1:$C$42,2,FALSE)))*((VLOOKUP($A6,Systems!$A6:$C$42,2,FALSE)-(VLOOKUP(S$1,Systems!$A$1:$C$42,2,FALSE))))+(((VLOOKUP($A6,Systems!$A6:$C$42,3,FALSE)-(VLOOKUP(S$1,Systems!$A$1:$C$42,3,FALSE)))*((VLOOKUP($A6,Systems!$A6:$C$42,3,FALSE)-(VLOOKUP(S$1,Systems!$A$1:$C$42,3,FALSE)))))))) -> 32.55764119 | T6: =SQRT(((VLOOKUP($A6,Systems!$A6:$C$42,2,FALSE)-(VLOOKUP(T$1,Systems!$A$1:$C$42,2,FALSE)))*((VLOOKUP($A6,Systems!$A6:$C$42,2,FALSE)-(VLOOKUP(T$1,Systems!$A$1:$C$42,2,FALSE))))+(((VLOOKUP($A6,Systems!$A6:$C$42,3,FALSE)-(VLOOKUP(T$1,Systems!$A$1:$C$42,3,FALSE)))*((VLOOKUP($A6,Systems!$A6:$C$42,3,FALSE)-(VLOOKUP(T$1,Systems!$A$1:$C$42,3,FALSE)))))))) -> 13.03840481 | U6: =SQRT(((VLOOKUP($A6,Systems!$A6:$C$42,2,FALSE)-(VLOOKUP(U$1,Systems!$A$1:$C$42,2,FALSE)))*((VLOOKUP($A6,Systems!$A6:$C$42,2,FALSE)-(VLOOKUP(U$1,Systems!$A$1:$C$42,2,FALSE))))+(((VLOOKUP($A6,Systems!$A6:$C$42,3,FALSE)-(VLOOKUP(U$1,Systems!$A$1:$C$42,3,FALSE)))*((VLOOKUP($A6,Systems!$A6:$C$42,3,FALSE)-(VLOOKUP(U$1,Systems!$A$1:$C$42,3,FALSE)))))))) -> 31.25699922 | V6: =SQRT(((VLOOKUP($A6,Systems!$A6:$C$42,2,FALSE)-(VLOOKUP(V$1,Systems!$A$1:$C$42,2,FALSE)))*((VLOOKUP($A6,Systems!$A6:$C$42,2,FALSE)-(VLOOKUP(V$1,Systems!$A$1:$C$42,2,FALSE))))+(((VLOOKUP($A6,Systems!$A6:$C$42,3,FALSE)-(VLOOKUP(V$1,Systems!$A$1:$C$42,3,FALSE)))*((VLOOKUP($A6,Systems!$A6:$C$42,3,FALSE)-(VLOOKUP(V$1,Systems!$A$1:$C$42,3,FALSE)))))))) -> 29.12043956 | W6: =SQRT(((VLOOKUP($A6,Systems!$A6:$C$42,2,FALSE)-(VLOOKUP(W$1,Systems!$A$1:$C$42,2,FALSE)))*((VLOOKUP($A6,Systems!$A6:$C$42,2,FALSE)-(VLOOKUP(W$1,Systems!$A$1:$C$42,2,FALSE))))+(((VLOOKUP($A6,Systems!$A6:$C$42,3,FALSE)-(VLOOKUP(W$1,Systems!$A$1:$C$42,3,FALSE)))*((VLOOKUP($A6,Systems!$A6:$C$42,3,FALSE)-(VLOOKUP(W$1,Systems!$A$1:$C$42,3,FALSE)))))))) -> 53.25410782 | X6: =SQRT(((VLOOKUP($A6,Systems!$A6:$C$42,2,FALSE)-(VLOOKUP(X$1,Systems!$A$1:$C$42,2,FALSE)))*((VLOOKUP($A6,Systems!$A6:$C$42,2,FALSE)-(VLOOKUP(X$1,Systems!$A$1:$C$42,2,FALSE))))+(((VLOOKUP($A6,Systems!$A6:$C$42,3,FALSE)-(VLOOKUP(X$1,Systems!$A$1:$C$42,3,FALSE)))*((VLOOKUP($A6,Systems!$A6:$C$42,3,FALSE)-(VLOOKUP(X$1,Systems!$A$1:$C$42,3,FALSE)))))))) -> 37.01351105 | Y6: =SQRT(((VLOOKUP($A6,Systems!$A6:$C$42,2,FALSE)-(VLOOKUP(Y$1,Systems!$A$1:$C$42,2,FALSE)))*((VLOOKUP($A6,Systems!$A6:$C$42,2,FALSE)-(VLOOKUP(Y$1,Systems!$A$1:$C$42,2,FALSE))))+(((VLOOKUP($A6,Systems!$A6:$C$42,3,FALSE)-(VLOOKUP(Y$1,Systems!$A$1:$C$42,3,FALSE)))*((VLOOKUP($A6,Systems!$A6:$C$42,3,FALSE)-(VLOOKUP(Y$1,Systems!$A$1:$C$42,3,FALSE)))))))) -> 25.70992026 | Z6: =SQRT(((VLOOKUP($A6,Systems!$A6:$C$42,2,FALSE)-(VLOOKUP(Z$1,Systems!$A$1:$C$42,2,FALSE)))*((VLOOKUP($A6,Systems!$A6:$C$42,2,FALSE)-(VLOOKUP(Z$1,Systems!$A$1:$C$42,2,FALSE))))+(((VLOOKUP($A6,Systems!$A6:$C$42,3,FALSE)-(VLOOKUP(Z$1,Systems!$A$1:$C$42,3,FALSE)))*((VLOOKUP($A6,Systems!$A6:$C$42,3,FALSE)-(VLOOKUP(Z$1,Systems!$A$1:$C$42,3,FALSE)))))))) -> 4.472135955 | AA6: =SQRT(((VLOOKUP($A6,Systems!$A6:$C$42,2,FALSE)-(VLOOKUP(AA$1,Systems!$A$1:$C$42,2,FALSE)))*((VLOOKUP($A6,Systems!$A6:$C$42,2,FALSE)-(VLOOKUP(AA$1,Systems!$A$1:$C$42,2,FALSE))))+(((VLOOKUP($A6,Systems!$A6:$C$42,3,FALSE)-(VLOOKUP(AA$1,Systems!$A$1:$C$42,3,FALSE)))*((VLOOKUP($A6,Systems!$A6:$C$42,3,FALSE)-(VLOOKUP(AA$1,Systems!$A$1:$C$42,3,FALSE)))))))) -> 35.22782991 | AB6: =SQRT(((VLOOKUP($A6,Systems!$A6:$C$42,2,FALSE)-(VLOOKUP(AB$1,Systems!$A$1:$C$42,2,FALSE)))*((VLOOKUP($A6,Systems!$A6:$C$42,2,FALSE)-(VLOOKUP(AB$1,Systems!$A$1:$C$42,2,FALSE))))+(((VLOOKUP($A6,Systems!$A6:$C$42,3,FALSE)-(VLOOKUP(AB$1,Systems!$A$1:$C$42,3,FALSE)))*((VLOOKUP($A6,Systems!$A6:$C$42,3,FALSE)-(VLOOKUP(AB$1,Systems!$A$1:$C$42,3,FALSE)))))))) -> 3.605551275 | AC6: =SQRT(((VLOOKUP($A6,Systems!$A6:$C$42,2,FALSE)-(VLOOKUP(AC$1,Systems!$A$1:$C$42,2,FALSE)))*((VLOOKUP($A6,Systems!$A6:$C$42,2,FALSE)-(VLOOKUP(AC$1,Systems!$A$1:$C$42,2,FALSE))))+(((VLOOKUP($A6,Systems!$A6:$C$42,3,FALSE)-(VLOOKUP(AC$1,Systems!$A$1:$C$42,3,FALSE)))*((VLOOKUP($A6,Systems!$A6:$C$42,3,FALSE)-(VLOOKUP(AC$1,Systems!$A$1:$C$42,3,FALSE)))))))) -> 25 | AD6: =SQRT(((VLOOKUP($A6,Systems!$A6:$C$42,2,FALSE)-(VLOOKUP(AD$1,Systems!$A$1:$C$42,2,FALSE)))*((VLOOKUP($A6,Systems!$A6:$C$42,2,FALSE)-(VLOOKUP(AD$1,Systems!$A$1:$C$42,2,FALSE))))+(((VLOOKUP($A6,Systems!$A6:$C$42,3,FALSE)-(VLOOKUP(AD$1,Systems!$A$1:$C$42,3,FALSE)))*((VLOOKUP($A6,Systems!$A6:$C$42,3,FALSE)-(VLOOKUP(AD$1,Systems!$A$1:$C$42,3,FALSE)))))))) -> 21.09502311 | AE6: =SQRT(((VLOOKUP($A6,Systems!$A6:$C$42,2,FALSE)-(VLOOKUP(AE$1,Systems!$A$1:$C$42,2,FALSE)))*((VLOOKUP($A6,Systems!$A6:$C$42,2,FALSE)-(VLOOKUP(AE$1,Systems!$A$1:$C$42,2,FALSE))))+(((VLOOKUP($A6,Systems!$A6:$C$42,3,FALSE)-(VLOOKUP(AE$1,Systems!$A$1:$C$42,3,FALSE)))*((VLOOKUP($A6,Systems!$A6:$C$42,3,FALSE)-(VLOOKUP(AE$1,Systems!$A$1:$C$42,3,FALSE)))))))) -> 26.47640459 | AF6: =SQRT(((VLOOKUP($A6,Systems!$A6:$C$42,2,FALSE)-(VLOOKUP(AF$1,Systems!$A$1:$C$42,2,FALSE)))*((VLOOKUP($A6,Systems!$A6:$C$42,2,FALSE)-(VLOOKUP(AF$1,Systems!$A$1:$C$42,2,FALSE))))+(((VLOOKUP($A6,Systems!$A6:$C$42,3,FALSE)-(VLOOKUP(AF$1,Systems!$A$1:$C$42,3,FALSE)))*((VLOOKUP($A6,Systems!$A6:$C$42,3,FALSE)-(VLOOKUP(AF$1,Systems!$A$1:$C$42,3,FALSE)))))))) -> 6.08276253 | AG6: =SQRT(((VLOOKUP($A6,Systems!$A6:$C$42,2,FALSE)-(VLOOKUP(AG$1,Systems!$A$1:$C$42,2,FALSE)))*((VLOOKUP($A6,Systems!$A6:$C$42,2,FALSE)-(VLOOKUP(AG$1,Systems!$A$1:$C$42,2,FALSE))))+(((VLOOKUP($A6,Systems!$A6:$C$42,3,FALSE)-(VLOOKUP(AG$1,Systems!$A$1:$C$42,3,FALSE)))*((VLOOKUP($A6,Systems!$A6:$C$42,3,FALSE)-(VLOOKUP(AG$1,Systems!$A$1:$C$42,3,FALSE)))))))) -> 40.31128874 | AH6: =SQRT(((VLOOKUP($A6,Systems!$A6:$C$42,2,FALSE)-(VLOOKUP(AH$1,Systems!$A$1:$C$42,2,FALSE)))*((VLOOKUP($A6,Systems!$A6:$C$42,2,FALSE)-(VLOOKUP(AH$1,Systems!$A$1:$C$42,2,FALSE))))+(((VLOOKUP($A6,Systems!$A6:$C$42,3,FALSE)-(VLOOKUP(AH$1,Systems!$A$1:$C$42,3,FALSE)))*((VLOOKUP($A6,Systems!$A6:$C$42,3,FALSE)-(VLOOKUP(AH$1,Systems!$A$1:$C$42,3,FALSE)))))))) -> 45.17742799 | AI6: =SQRT(((VLOOKUP($A6,Systems!$A6:$C$42,2,FALSE)-(VLOOKUP(AI$1,Systems!$A$1:$C$42,2,FALSE)))*((VLOOKUP($A6,Systems!$A6:$C$42,2,FALSE)-(VLOOKUP(AI$1,Systems!$A$1:$C$42,2,FALSE))))+(((VLOOKUP($A6,Systems!$A6:$C$42,3,FALSE)-(VLOOKUP(AI$1,Systems!$A$1:$C$42,3,FALSE)))*((VLOOKUP($A6,Systems!$A6:$C$42,3,FALSE)-(VLOOKUP(AI$1,Systems!$A$1:$C$42,3,FALSE)))))))) -> 13 | AJ6: =SQRT(((VLOOKUP($A6,Systems!$A6:$C$42,2,FALSE)-(VLOOKUP(AJ$1,Systems!$A$1:$C$42,2,FALSE)))*((VLOOKUP($A6,Systems!$A6:$C$42,2,FALSE)-(VLOOKUP(AJ$1,Systems!$A$1:$C$42,2,FALSE))))+(((VLOOKUP($A6,Systems!$A6:$C$42,3,FALSE)-(VLOOKUP(AJ$1,Systems!$A$1:$C$42,3,FALSE)))*((VLOOKUP($A6,Systems!$A6:$C$42,3,FALSE)-(VLOOKUP(AJ$1,Systems!$A$1:$C$42,3,FALSE)))))))) -> 39.96248241 | AK6: =SQRT(((VLOOKUP($A6,Systems!$A6:$C$42,2,FALSE)-(VLOOKUP(AK$1,Systems!$A$1:$C$42,2,FALSE)))*((VLOOKUP($A6,Systems!$A6:$C$42,2,FALSE)-(VLOOKUP(AK$1,Systems!$A$1:$C$42,2,FALSE))))+(((VLOOKUP($A6,Systems!$A6:$C$42,3,FALSE)-(VLOOKUP(AK$1,Systems!$A$1:$C$42,3,FALSE)))*((VLOOKUP($A6,Systems!$A6:$C$42,3,FALSE)-(VLOOKUP(AK$1,Systems!$A$1:$C$42,3,FALSE)))))))) -> 28.42534081 | AL6: =SQRT(((VLOOKUP($A6,Systems!$A6:$C$42,2,FALSE)-(VLOOKUP(AL$1,Systems!$A$1:$C$42,2,FALSE)))*((VLOOKUP($A6,Systems!$A6:$C$42,2,FALSE)-(VLOOKUP(AL$1,Systems!$A$1:$C$42,2,FALSE))))+(((VLOOKUP($A6,Systems!$A6:$C$42,3,FALSE)-(VLOOKUP(AL$1,Systems!$A$1:$C$42,3,FALSE)))*((VLOOKUP($A6,Systems!$A6:$C$42,3,FALSE)-(VLOOKUP(AL$1,Systems!$A$1:$C$42,3,FALSE)))))))) -> 38.48376281 | AM6: =SQRT(((VLOOKUP($A6,Systems!$A6:$C$42,2,FALSE)-(VLOOKUP(AM$1,Systems!$A$1:$C$42,2,FALSE)))*((VLOOKUP($A6,Systems!$A6:$C$42,2,FALSE)-(VLOOKUP(AM$1,Systems!$A$1:$C$42,2,FALSE))))+(((VLOOKUP($A6,Systems!$A6:$C$42,3,FALSE)-(VLOOKUP(AM$1,Systems!$A$1:$C$42,3,FALSE)))*((VLOOKUP($A6,Systems!$A6:$C$42,3,FALSE)-(VLOOKUP(AM$1,Systems!$A$1:$C$42,3,FALSE)))))))) -> 13.34166406 | AN6: =SQRT(((VLOOKUP($A6,Systems!$A6:$C$42,2,FALSE)-(VLOOKUP(AN$1,Systems!$A$1:$C$42,2,FALSE)))*((VLOOKUP($A6,Systems!$A6:$C$42,2,FALSE)-(VLOOKUP(AN$1,Systems!$A$1:$C$42,2,FALSE))))+(((VLOOKUP($A6,Systems!$A6:$C$42,3,FALSE)-(VLOOKUP(AN$1,Systems!$A$1:$C$42,3,FALSE)))*((VLOOKUP($A6,Systems!$A6:$C$42,3,FALSE)-(VLOOKUP(AN$1,Systems!$A$1:$C$42,3,FALSE)))))))) -> 48.60041152 | AO6: =SQRT(((VLOOKUP($A6,Systems!$A6:$C$42,2,FALSE)-(VLOOKUP(AO$1,Systems!$A$1:$C$42,2,FALSE)))*((VLOOKUP($A6,Systems!$A6:$C$42,2,FALSE)-(VLOOKUP(AO$1,Systems!$A$1:$C$42,2,FALSE))))+(((VLOOKUP($A6,Systems!$A6:$C$42,3,FALSE)-(VLOOKUP(AO$1,Systems!$A$1:$C$42,3,FALSE)))*((VLOOKUP($A6,Systems!$A6:$C$42,3,FALSE)-(VLOOKUP(AO$1,Systems!$A$1:$C$42,3,FALSE)))))))) -> 32.31098884 | AP6: =SQRT(((VLOOKUP($A6,Systems!$A6:$C$42,2,FALSE)-(VLOOKUP(AP$1,Systems!$A$1:$C$42,2,FALSE)))*((VLOOKUP($A6,Systems!$A6:$C$42,2,FALSE)-(VLOOKUP(AP$1,Systems!$A$1:$C$42,2,FALSE))))+(((VLOOKUP($A6,Systems!$A6:$C$42,3,FALSE)-(VLOOKUP(AP$1,Systems!$A$1:$C$42,3,FALSE)))*((VLOOKUP($A6,Systems!$A6:$C$42,3,FALSE)-(VLOOKUP(AP$1,Systems!$A$1:$C$42,3,FALSE)))))))) -> 9
A7: =Systems!A7 -> Cassidine | B7: =SQRT(((VLOOKUP($A7,Systems!$A7:$C$42,2,FALSE)-(VLOOKUP(B$1,Systems!$A$1:$C$42,2,FALSE)))*((VLOOKUP($A7,Systems!$A7:$C$42,2,FALSE)-(VLOOKUP(B$1,Systems!$A$1:$C$42,2,FALSE))))+(((VLOOKUP($A7,Systems!$A7:$C$42,3,FALSE)-(VLOOKUP(B$1,Systems!$A$1:$C$42,3,FALSE)))*((VLOOKUP($A7,Systems!$A7:$C$42,3,FALSE)-(VLOOKUP(B$1,Systems!$A$1:$C$42,3,FALSE)))))))) -> 11.04536102 | C7: =SQRT(((VLOOKUP($A7,Systems!$A7:$C$42,2,FALSE)-(VLOOKUP(C$1,Systems!$A$1:$C$42,2,FALSE)))*((VLOOKUP($A7,Systems!$A7:$C$42,2,FALSE)-(VLOOKUP(C$1,Systems!$A$1:$C$42,2,FALSE))))+(((VLOOKUP($A7,Systems!$A7:$C$42,3,FALSE)-(VLOOKUP(C$1,Systems!$A$1:$C$42,3,FALSE)))*((VLOOKUP($A7,Systems!$A7:$C$42,3,FALSE)-(VLOOKUP(C$1,Systems!$A$1:$C$42,3,FALSE)))))))) -> 21.40093456 | D7: =SQRT(((VLOOKUP($A7,Systems!$A7:$C$42,2,FALSE)-(VLOOKUP(D$1,Systems!$A$1:$C$42,2,FALSE)))*((VLOOKUP($A7,Systems!$A7:$C$42,2,FALSE)-(VLOOKUP(D$1,Systems!$A$1:$C$42,2,FALSE))))+(((VLOOKUP($A7,Systems!$A7:$C$42,3,FALSE)-(VLOOKUP(D$1,Systems!$A$1:$C$42,3,FALSE)))*((VLOOKUP($A7,Systems!$A7:$C$42,3,FALSE)-(VLOOKUP(D$1,Systems!$A$1:$C$42,3,FALSE)))))))) -> 13.60147051 | E7: =SQRT(((VLOOKUP($A7,Systems!$A7:$C$42,2,FALSE)-(VLOOKUP(E$1,Systems!$A$1:$C$42,2,FALSE)))*((VLOOKUP($A7,Systems!$A7:$C$42,2,FALSE)-(VLOOKUP(E$1,Systems!$A$1:$C$42,2,FALSE))))+(((VLOOKUP($A7,Systems!$A7:$C$42,3,FALSE)-(VLOOKUP(E$1,Systems!$A$1:$C$42,3,FALSE)))*((VLOOKUP($A7,Systems!$A7:$C$42,3,FALSE)-(VLOOKUP(E$1,Systems!$A$1:$C$42,3,FALSE)))))))) -> 11.18033989 | F7: =SQRT(((VLOOKUP($A7,Systems!$A7:$C$42,2,FALSE)-(VLOOKUP(F$1,Systems!$A$1:$C$42,2,FALSE)))*((VLOOKUP($A7,Systems!$A7:$C$42,2,FALSE)-(VLOOKUP(F$1,Systems!$A$1:$C$42,2,FALSE))))+(((VLOOKUP($A7,Systems!$A7:$C$42,3,FALSE)-(VLOOKUP(F$1,Systems!$A$1:$C$42,3,FALSE)))*((VLOOKUP($A7,Systems!$A7:$C$42,3,FALSE)-(VLOOKUP(F$1,Systems!$A$1:$C$42,3,FALSE)))))))) -> 18.43908891 | G7: =SQRT(((VLOOKUP($A7,Systems!$A7:$C$42,2,FALSE)-(VLOOKUP(G$1,Systems!$A$1:$C$42,2,FALSE)))*((VLOOKUP($A7,Systems!$A7:$C$42,2,FALSE)-(VLOOKUP(G$1,Systems!$A$1:$C$42,2,FALSE))))+(((VLOOKUP($A7,Systems!$A7:$C$42,3,FALSE)-(VLOOKUP(G$1,Systems!$A$1:$C$42,3,FALSE)))*((VLOOKUP($A7,Systems!$A7:$C$42,3,FALSE)-(VLOOKUP(G$1,Systems!$A$1:$C$42,3,FALSE)))))))) -> 0 | H7: =SQRT(((VLOOKUP($A7,Systems!$A7:$C$42,2,FALSE)-(VLOOKUP(H$1,Systems!$A$1:$C$42,2,FALSE)))*((VLOOKUP($A7,Systems!$A7:$C$42,2,FALSE)-(VLOOKUP(H$1,Systems!$A$1:$C$42,2,FALSE))))+(((VLOOKUP($A7,Systems!$A7:$C$42,3,FALSE)-(VLOOKUP(H$1,Systems!$A$1:$C$42,3,FALSE)))*((VLOOKUP($A7,Systems!$A7:$C$42,3,FALSE)-(VLOOKUP(H$1,Systems!$A$1:$C$42,3,FALSE)))))))) -> 13.15294644 | I7: =SQRT(((VLOOKUP($A7,Systems!$A7:$C$42,2,FALSE)-(VLOOKUP(I$1,Systems!$A$1:$C$42,2,FALSE)))*((VLOOKUP($A7,Systems!$A7:$C$42,2,FALSE)-(VLOOKUP(I$1,Systems!$A$1:$C$42,2,FALSE))))+(((VLOOKUP($A7,Systems!$A7:$C$42,3,FALSE)-(VLOOKUP(I$1,Systems!$A$1:$C$42,3,FALSE)))*((VLOOKUP($A7,Systems!$A7:$C$42,3,FALSE)-(VLOOKUP(I$1,Systems!$A$1:$C$42,3,FALSE)))))))) -> 8.602325267 | J7: =SQRT(((VLOOKUP($A7,Systems!$A7:$C$42,2,FALSE)-(VLOOKUP(J$1,Systems!$A$1:$C$42,2,FALSE)))*((VLOOKUP($A7,Systems!$A7:$C$42,2,FALSE)-(VLOOKUP(J$1,Systems!$A$1:$C$42,2,FALSE))))+(((VLOOKUP($A7,Systems!$A7:$C$42,3,FALSE)-(VLOOKUP(J$1,Systems!$A$1:$C$42,3,FALSE)))*((VLOOKUP($A7,Systems!$A7:$C$42,3,FALSE)-(VLOOKUP(J$1,Systems!$A$1:$C$42,3,FALSE)))))))) -> 8.062257748 | K7: =SQRT(((VLOOKUP($A7,Systems!$A7:$C$42,2,FALSE)-(VLOOKUP(K$1,Systems!$A$1:$C$42,2,FALSE)))*((VLOOKUP($A7,Systems!$A7:$C$42,2,FALSE)-(VLOOKUP(K$1,Systems!$A$1:$C$42,2,FALSE))))+(((VLOOKUP($A7,Systems!$A7:$C$42,3,FALSE)-(VLOOKUP(K$1,Systems!$A$1:$C$42,3,FALSE)))*((VLOOKUP($A7,Systems!$A7:$C$42,3,FALSE)-(VLOOKUP(K$1,Systems!$A$1:$C$42,3,FALSE)))))))) -> 5.656854249 | L7: =SQRT(((VLOOKUP($A7,Systems!$A7:$C$42,2,FALSE)-(VLOOKUP(L$1,Systems!$A$1:$C$42,2,FALSE)))*((VLOOKUP($A7,Systems!$A7:$C$42,2,FALSE)-(VLOOKUP(L$1,Systems!$A$1:$C$42,2,FALSE))))+(((VLOOKUP($A7,Systems!$A7:$C$42,3,FALSE)-(VLOOKUP(L$1,Systems!$A$1:$C$42,3,FALSE)))*((VLOOKUP($A7,Systems!$A7:$C$42,3,FALSE)-(VLOOKUP(L$1,Systems!$A$1:$C$42,3,FALSE)))))))) -> 3.605551275 | M7: =SQRT(((VLOOKUP($A7,Systems!$A7:$C$42,2,FALSE)-(VLOOKUP(M$1,Systems!$A$1:$C$42,2,FALSE)))*((VLOOKUP($A7,Systems!$A7:$C$42,2,FALSE)-(VLOOKUP(M$1,Systems!$A$1:$C$42,2,FALSE))))+(((VLOOKUP($A7,Systems!$A7:$C$42,3,FALSE)-(VLOOKUP(M$1,Systems!$A$1:$C$42,3,FALSE)))*((VLOOKUP($A7,Systems!$A7:$C$42,3,FALSE)-(VLOOKUP(M$1,Systems!$A$1:$C$42,3,FALSE)))))))) -> 13.15294644 | N7: =SQRT(((VLOOKUP($A7,Systems!$A7:$C$42,2,FALSE)-(VLOOKUP(N$1,Systems!$A$1:$C$42,2,FALSE)))*((VLOOKUP($A7,Systems!$A7:$C$42,2,FALSE)-(VLOOKUP(N$1,Systems!$A$1:$C$42,2,FALSE))))+(((VLOOKUP($A7,Systems!$A7:$C$42,3,FALSE)-(VLOOKUP(N$1,Systems!$A$1:$C$42,3,FALSE)))*((VLOOKUP($A7,Systems!$A7:$C$42,3,FALSE)-(VLOOKUP(N$1,Systems!$A$1:$C$42,3,FALSE)))))))) -> 21.9544984 | O7: =SQRT(((VLOOKUP($A7,Systems!$A7:$C$42,2,FALSE)-(VLOOKUP(O$1,Systems!$A$1:$C$42,2,FALSE)))*((VLOOKUP($A7,Systems!$A7:$C$42,2,FALSE)-(VLOOKUP(O$1,Systems!$A$1:$C$42,2,FALSE))))+(((VLOOKUP($A7,Systems!$A7:$C$42,3,FALSE)-(VLOOKUP(O$1,Systems!$A$1:$C$42,3,FALSE)))*((VLOOKUP($A7,Systems!$A7:$C$42,3,FALSE)-(VLOOKUP(O$1,Systems!$A$1:$C$42,3,FALSE)))))))) -> 10.29563014 | P7: =SQRT(((VLOOKUP($A7,Systems!$A7:$C$42,2,FALSE)-(VLOOKUP(P$1,Systems!$A$1:$C$42,2,FALSE)))*((VLOOKUP($A7,Systems!$A7:$C$42,2,FALSE)-(VLOOKUP(P$1,Systems!$A$1:$C$42,2,FALSE))))+(((VLOOKUP($A7,Systems!$A7:$C$42,3,FALSE)-(VLOOKUP(P$1,Systems!$A$1:$C$42,3,FALSE)))*((VLOOKUP($A7,Systems!$A7:$C$42,3,FALSE)-(VLOOKUP(P$1,Systems!$A$1:$C$42,3,FALSE)))))))) -> 12.04159458 | Q7: =SQRT(((VLOOKUP($A7,Systems!$A7:$C$42,2,FALSE)-(VLOOKUP(Q$1,Systems!$A$1:$C$42,2,FALSE)))*((VLOOKUP($A7,Systems!$A7:$C$42,2,FALSE)-(VLOOKUP(Q$1,Systems!$A$1:$C$42,2,FALSE))))+(((VLOOKUP($A7,Systems!$A7:$C$42,3,FALSE)-(VLOOKUP(Q$1,Systems!$A$1:$C$42,3,FALSE)))*((VLOOKUP($A7,Systems!$A7:$C$42,3,FALSE)-(VLOOKUP(Q$1,Systems!$A$1:$C$42,3,FALSE)))))))) -> 20.1246118 | R7: =SQRT(((VLOOKUP($A7,Systems!$A7:$C$42,2,FALSE)-(VLOOKUP(R$1,Systems!$A$1:$C$42,2,FALSE)))*((VLOOKUP($A7,Systems!$A7:$C$42,2,FALSE)-(VLOOKUP(R$1,Systems!$A$1:$C$42,2,FALSE))))+(((VLOOKUP($A7,Systems!$A7:$C$42,3,FALSE)-(VLOOKUP(R$1,Systems!$A$1:$C$42,3,FALSE)))*((VLOOKUP($A7,Systems!$A7:$C$42,3,FALSE)-(VLOOKUP(R$1,Systems!$A$1:$C$42,3,FALSE)))))))) -> 17.11724277 | S7: =SQRT(((VLOOKUP($A7,Systems!$A7:$C$42,2,FALSE)-(VLOOKUP(S$1,Systems!$A$1:$C$42,2,FALSE)))*((VLOOKUP($A7,Systems!$A7:$C$42,2,FALSE)-(VLOOKUP(S$1,Systems!$A$1:$C$42,2,FALSE))))+(((VLOOKUP($A7,Systems!$A7:$C$42,3,FALSE)-(VLOOKUP(S$1,Systems!$A$1:$C$42,3,FALSE)))*((VLOOKUP($A7,Systems!$A7:$C$42,3,FALSE)-(VLOOKUP(S$1,Systems!$A$1:$C$42,3,FALSE)))))))) -> 14.14213562 | T7: =SQRT(((VLOOKUP($A7,Systems!$A7:$C$42,2,FALSE)-(VLOOKUP(T$1,Systems!$A$1:$C$42,2,FALSE)))*((VLOOKUP($A7,Systems!$A7:$C$42,2,FALSE)-(VLOOKUP(T$1,Systems!$A$1:$C$42,2,FALSE))))+(((VLOOKUP($A7,Systems!$A7:$C$42,3,FALSE)-(VLOOKUP(T$1,Systems!$A$1:$C$42,3,FALSE)))*((VLOOKUP($A7,Systems!$A7:$C$42,3,FALSE)-(VLOOKUP(T$1,Systems!$A$1:$C$42,3,FALSE)))))))) -> 13.03840481 | U7: =SQRT(((VLOOKUP($A7,Systems!$A7:$C$42,2,FALSE)-(VLOOKUP(U$1,Systems!$A$1:$C$42,2,FALSE)))*((VLOOKUP($A7,Systems!$A7:$C$42,2,FALSE)-(VLOOKUP(U$1,Systems!$A$1:$C$42,2,FALSE))))+(((VLOOKUP($A7,Systems!$A7:$C$42,3,FALSE)-(VLOOKUP(U$1,Systems!$A$1:$C$42,3,FALSE)))*((VLOOKUP($A7,Systems!$A7:$C$42,3,FALSE)-(VLOOKUP(U$1,Systems!$A$1:$C$42,3,FALSE)))))))) -> 15.26433752 | V7: =SQRT(((VLOOKUP($A7,Systems!$A7:$C$42,2,FALSE)-(VLOOKUP(V$1,Systems!$A$1:$C$42,2,FALSE)))*((VLOOKUP($A7,Systems!$A7:$C$42,2,FALSE)-(VLOOKUP(V$1,Systems!$A$1:$C$42,2,FALSE))))+(((VLOOKUP($A7,Systems!$A7:$C$42,3,FALSE)-(VLOOKUP(V$1,Systems!$A$1:$C$42,3,FALSE)))*((VLOOKUP($A7,Systems!$A7:$C$42,3,FALSE)-(VLOOKUP(V$1,Systems!$A$1:$C$42,3,FALSE)))))))) -> 15.62049935 | W7: =SQRT(((VLOOKUP($A7,Systems!$A7:$C$42,2,FALSE)-(VLOOKUP(W$1,Systems!$A$1:$C$42,2,FALSE)))*((VLOOKUP($A7,Systems!$A7:$C$42,2,FALSE)-(VLOOKUP(W$1,Systems!$A$1:$C$42,2,FALSE))))+(((VLOOKUP($A7,Systems!$A7:$C$42,3,FALSE)-(VLOOKUP(W$1,Systems!$A$1:$C$42,3,FALSE)))*((VLOOKUP($A7,Systems!$A7:$C$42,3,FALSE)-(VLOOKUP(W$1,Systems!$A$1:$C$42,3,FALSE)))))))) -> 36.76955262 | X7: =SQRT(((VLOOKUP($A7,Systems!$A7:$C$42,2,FALSE)-(VLOOKUP(X$1,Systems!$A$1:$C$42,2,FALSE)))*((VLOOKUP($A7,Systems!$A7:$C$42,2,FALSE)-(VLOOKUP(X$1,Systems!$A$1:$C$42,2,FALSE))))+(((VLOOKUP($A7,Systems!$A7:$C$42,3,FALSE)-(VLOOKUP(X$1,Systems!$A$1:$C$42,3,FALSE)))*((VLOOKUP($A7,Systems!$A7:$C$42,3,FALSE)-(VLOOKUP(X$1,Systems!$A$1:$C$42,3,FALSE)))))))) -> 25.49509757 | Y7: =SQRT(((VLOOKUP($A7,Systems!$A7:$C$42,2,FALSE)-(VLOOKUP(Y$1,Systems!$A$1:$C$42,2,FALSE)))*((VLOOKUP($A7,Systems!$A7:$C$42,2,FALSE)-(VLOOKUP(Y$1,Systems!$A$1:$C$42,2,FALSE))))+(((VLOOKUP($A7,Systems!$A7:$C$42,3,FALSE)-(VLOOKUP(Y$1,Systems!$A$1:$C$42,3,FALSE)))*((VLOOKUP($A7,Systems!$A7:$C$42,3,FALSE)-(VLOOKUP(Y$1,Systems!$A$1:$C$42,3,FALSE)))))))) -> 7.280109889 | Z7: =SQRT(((VLOOKUP($A7,Systems!$A7:$C$42,2,FALSE)-(VLOOKUP(Z$1,Systems!$A$1:$C$42,2,FALSE)))*((VLOOKUP($A7,Systems!$A7:$C$42,2,FALSE)-(VLOOKUP(Z$1,Systems!$A$1:$C$42,2,FALSE))))+(((VLOOKUP($A7,Systems!$A7:$C$42,3,FALSE)-(VLOOKUP(Z$1,Systems!$A$1:$C$42,3,FALSE)))*((VLOOKUP($A7,Systems!$A7:$C$42,3,FALSE)-(VLOOKUP(Z$1,Systems!$A$1:$C$42,3,FALSE)))))))) -> 16 | AA7: =SQRT(((VLOOKUP($A7,Systems!$A7:$C$42,2,FALSE)-(VLOOKUP(AA$1,Systems!$A$1:$C$42,2,FALSE)))*((VLOOKUP($A7,Systems!$A7:$C$42,2,FALSE)-(VLOOKUP(AA$1,Systems!$A$1:$C$42,2,FALSE))))+(((VLOOKUP($A7,Systems!$A7:$C$42,3,FALSE)-(VLOOKUP(AA$1,Systems!$A$1:$C$42,3,FALSE)))*((VLOOKUP($A7,Systems!$A7:$C$42,3,FALSE)-(VLOOKUP(AA$1,Systems!$A$1:$C$42,3,FALSE)))))))) -> 19.41648784 | AB7: =SQRT(((VLOOKUP($A7,Systems!$A7:$C$42,2,FALSE)-(VLOOKUP(AB$1,Systems!$A$1:$C$42,2,FALSE)))*((VLOOKUP($A7,Systems!$A7:$C$42,2,FALSE)-(VLOOKUP(AB$1,Systems!$A$1:$C$42,2,FALSE))))+(((VLOOKUP($A7,Systems!$A7:$C$42,3,FALSE)-(VLOOKUP(AB$1,Systems!$A$1:$C$42,3,FALSE)))*((VLOOKUP($A7,Systems!$A7:$C$42,3,FALSE)-(VLOOKUP(AB$1,Systems!$A$1:$C$42,3,FALSE)))))))) -> 17.4642492 | AC7: =SQRT(((VLOOKUP($A7,Systems!$A7:$C$42,2,FALSE)-(VLOOKUP(AC$1,Systems!$A$1:$C$42,2,FALSE)))*((VLOOKUP($A7,Systems!$A7:$C$42,2,FALSE)-(VLOOKUP(AC$1,Systems!$A$1:$C$42,2,FALSE))))+(((VLOOKUP($A7,Systems!$A7:$C$42,3,FALSE)-(VLOOKUP(AC$1,Systems!$A$1:$C$42,3,FALSE)))*((VLOOKUP($A7,Systems!$A7:$C$42,3,FALSE)-(VLOOKUP(AC$1,Systems!$A$1:$C$42,3,FALSE)))))))) -> 16.2788206 | AD7: =SQRT(((VLOOKUP($A7,Systems!$A7:$C$42,2,FALSE)-(VLOOKUP(AD$1,Systems!$A$1:$C$42,2,FALSE)))*((VLOOKUP($A7,Systems!$A7:$C$42,2,FALSE)-(VLOOKUP(AD$1,Systems!$A$1:$C$42,2,FALSE))))+(((VLOOKUP($A7,Systems!$A7:$C$42,3,FALSE)-(VLOOKUP(AD$1,Systems!$A$1:$C$42,3,FALSE)))*((VLOOKUP($A7,Systems!$A7:$C$42,3,FALSE)-(VLOOKUP(AD$1,Systems!$A$1:$C$42,3,FALSE)))))))) -> 7 | AE7: =SQRT(((VLOOKUP($A7,Systems!$A7:$C$42,2,FALSE)-(VLOOKUP(AE$1,Systems!$A$1:$C$42,2,FALSE)))*((VLOOKUP($A7,Systems!$A7:$C$42,2,FALSE)-(VLOOKUP(AE$1,Systems!$A$1:$C$42,2,FALSE))))+(((VLOOKUP($A7,Systems!$A7:$C$42,3,FALSE)-(VLOOKUP(AE$1,Systems!$A$1:$C$42,3,FALSE)))*((VLOOKUP($A7,Systems!$A7:$C$42,3,FALSE)-(VLOOKUP(AE$1,Systems!$A$1:$C$42,3,FALSE)))))))) -> 25.55386468 | AF7: =SQRT(((VLOOKUP($A7,Systems!$A7:$C$42,2,FALSE)-(VLOOKUP(AF$1,Systems!$A$1:$C$42,2,FALSE)))*((VLOOKUP($A7,Systems!$A7:$C$42,2,FALSE)-(VLOOKUP(AF$1,Systems!$A$1:$C$42,2,FALSE))))+(((VLOOKUP($A7,Systems!$A7:$C$42,3,FALSE)-(VLOOKUP(AF$1,Systems!$A$1:$C$42,3,FALSE)))*((VLOOKUP($A7,Systems!$A7:$C$42,3,FALSE)-(VLOOKUP(AF$1,Systems!$A$1:$C$42,3,FALSE)))))))) -> 17.11724277 | AG7: =SQRT(((VLOOKUP($A7,Systems!$A7:$C$42,2,FALSE)-(VLOOKUP(AG$1,Systems!$A$1:$C$42,2,FALSE)))*((VLOOKUP($A7,Systems!$A7:$C$42,2,FALSE)-(VLOOKUP(AG$1,Systems!$A$1:$C$42,2,FALSE))))+(((VLOOKUP($A7,Systems!$A7:$C$42,3,FALSE)-(VLOOKUP(AG$1,Systems!$A$1:$C$42,3,FALSE)))*((VLOOKUP($A7,Systems!$A7:$C$42,3,FALSE)-(VLOOKUP(AG$1,Systems!$A$1:$C$42,3,FALSE)))))))) -> 22.02271555 | AH7: =SQRT(((VLOOKUP($A7,Systems!$A7:$C$42,2,FALSE)-(VLOOKUP(AH$1,Systems!$A$1:$C$42,2,FALSE)))*((VLOOKUP($A7,Systems!$A7:$C$42,2,FALSE)-(VLOOKUP(AH$1,Systems!$A$1:$C$42,2,FALSE))))+(((VLOOKUP($A7,Systems!$A7:$C$42,3,FALSE)-(VLOOKUP(AH$1,Systems!$A$1:$C$42,3,FALSE)))*((VLOOKUP($A7,Systems!$A7:$C$42,3,FALSE)-(VLOOKUP(AH$1,Systems!$A$1:$C$42,3,FALSE)))))))) -> 27.80287755 | AI7: =SQRT(((VLOOKUP($A7,Systems!$A7:$C$42,2,FALSE)-(VLOOKUP(AI$1,Systems!$A$1:$C$42,2,FALSE)))*((VLOOKUP($A7,Systems!$A7:$C$42,2,FALSE)-(VLOOKUP(AI$1,Systems!$A$1:$C$42,2,FALSE))))+(((VLOOKUP($A7,Systems!$A7:$C$42,3,FALSE)-(VLOOKUP(AI$1,Systems!$A$1:$C$42,3,FALSE)))*((VLOOKUP($A7,Systems!$A7:$C$42,3,FALSE)-(VLOOKUP(AI$1,Systems!$A$1:$C$42,3,FALSE)))))))) -> 24.35159132 | AJ7: =SQRT(((VLOOKUP($A7,Systems!$A7:$C$42,2,FALSE)-(VLOOKUP(AJ$1,Systems!$A$1:$C$42,2,FALSE)))*((VLOOKUP($A7,Systems!$A7:$C$42,2,FALSE)-(VLOOKUP(AJ$1,Systems!$A$1:$C$42,2,FALSE))))+(((VLOOKUP($A7,Systems!$A7:$C$42,3,FALSE)-(VLOOKUP(AJ$1,Systems!$A$1:$C$42,3,FALSE)))*((VLOOKUP($A7,Systems!$A7:$C$42,3,FALSE)-(VLOOKUP(AJ$1,Systems!$A$1:$C$42,3,FALSE)))))))) -> 23.34523506 | AK7: =SQRT(((VLOOKUP($A7,Systems!$A7:$C$42,2,FALSE)-(VLOOKUP(AK$1,Systems!$A$1:$C$42,2,FALSE)))*((VLOOKUP($A7,Systems!$A7:$C$42,2,FALSE)-(VLOOKUP(AK$1,Systems!$A$1:$C$42,2,FALSE))))+(((VLOOKUP($A7,Systems!$A7:$C$42,3,FALSE)-(VLOOKUP(AK$1,Systems!$A$1:$C$42,3,FALSE)))*((VLOOKUP($A7,Systems!$A7:$C$42,3,FALSE)-(VLOOKUP(AK$1,Systems!$A$1:$C$42,3,FALSE)))))))) -> 14.56021978 | AL7: =SQRT(((VLOOKUP($A7,Systems!$A7:$C$42,2,FALSE)-(VLOOKUP(AL$1,Systems!$A$1:$C$42,2,FALSE)))*((VLOOKUP($A7,Systems!$A7:$C$42,2,FALSE)-(VLOOKUP(AL$1,Systems!$A$1:$C$42,2,FALSE))))+(((VLOOKUP($A7,Systems!$A7:$C$42,3,FALSE)-(VLOOKUP(AL$1,Systems!$A$1:$C$42,3,FALSE)))*((VLOOKUP($A7,Systems!$A7:$C$42,3,FALSE)-(VLOOKUP(AL$1,Systems!$A$1:$C$42,3,FALSE)))))))) -> 20.80865205 | AM7: =SQRT(((VLOOKUP($A7,Systems!$A7:$C$42,2,FALSE)-(VLOOKUP(AM$1,Systems!$A$1:$C$42,2,FALSE)))*((VLOOKUP($A7,Systems!$A7:$C$42,2,FALSE)-(VLOOKUP(AM$1,Systems!$A$1:$C$42,2,FALSE))))+(((VLOOKUP($A7,Systems!$A7:$C$42,3,FALSE)-(VLOOKUP(AM$1,Systems!$A$1:$C$42,3,FALSE)))*((VLOOKUP($A7,Systems!$A7:$C$42,3,FALSE)-(VLOOKUP(AM$1,Systems!$A$1:$C$42,3,FALSE)))))))) -> 5.099019514 | AN7: =SQRT(((VLOOKUP($A7,Systems!$A7:$C$42,2,FALSE)-(VLOOKUP(AN$1,Systems!$A$1:$C$42,2,FALSE)))*((VLOOKUP($A7,Systems!$A7:$C$42,2,FALSE)-(VLOOKUP(AN$1,Systems!$A$1:$C$42,2,FALSE))))+(((VLOOKUP($A7,Systems!$A7:$C$42,3,FALSE)-(VLOOKUP(AN$1,Systems!$A$1:$C$42,3,FALSE)))*((VLOOKUP($A7,Systems!$A7:$C$42,3,FALSE)-(VLOOKUP(AN$1,Systems!$A$1:$C$42,3,FALSE)))))))) -> 32.64965543 | AO7: =SQRT(((VLOOKUP($A7,Systems!$A7:$C$42,2,FALSE)-(VLOOKUP(AO$1,Systems!$A$1:$C$42,2,FALSE)))*((VLOOKUP($A7,Systems!$A7:$C$42,2,FALSE)-(VLOOKUP(AO$1,Systems!$A$1:$C$42,2,FALSE))))+(((VLOOKUP($A7,Systems!$A7:$C$42,3,FALSE)-(VLOOKUP(AO$1,Systems!$A$1:$C$42,3,FALSE)))*((VLOOKUP($A7,Systems!$A7:$C$42,3,FALSE)-(VLOOKUP(AO$1,Systems!$A$1:$C$42,3,FALSE)))))))) -> 14.4222051 | AP7: =SQRT(((VLOOKUP($A7,Systems!$A7:$C$42,2,FALSE)-(VLOOKUP(AP$1,Systems!$A$1:$C$42,2,FALSE)))*((VLOOKUP($A7,Systems!$A7:$C$42,2,FALSE)-(VLOOKUP(AP$1,Systems!$A$1:$C$42,2,FALSE))))+(((VLOOKUP($A7,Systems!$A7:$C$42,3,FALSE)-(VLOOKUP(AP$1,Systems!$A$1:$C$42,3,FALSE)))*((VLOOKUP($A7,Systems!$A7:$C$42,3,FALSE)-(VLOOKUP(AP$1,Systems!$A$1:$C$42,3,FALSE)))))))) -> 9.848857802
A8: =Systems!A8 -> Cryxia | B8: =SQRT(((VLOOKUP($A8,Systems!$A8:$C$42,2,FALSE)-(VLOOKUP(B$1,Systems!$A$1:$C$42,2,FALSE)))*((VLOOKUP($A8,Systems!$A8:$C$42,2,FALSE)-(VLOOKUP(B$1,Systems!$A$1:$C$42,2,FALSE))))+(((VLOOKUP($A8,Systems!$A8:$C$42,3,FALSE)-(VLOOKUP(B$1,Systems!$A$1:$C$42,3,FALSE)))*((VLOOKUP($A8,Systems!$A8:$C$42,3,FALSE)-(VLOOKUP(B$1,Systems!$A$1:$C$42,3,FALSE)))))))) -> 24.0208243 | C8: =SQRT(((VLOOKUP($A8,Systems!$A8:$C$42,2,FALSE)-(VLOOKUP(C$1,Systems!$A$1:$C$42,2,FALSE)))*((VLOOKUP($A8,Systems!$A8:$C$42,2,FALSE)-(VLOOKUP(C$1,Systems!$A$1:$C$42,2,FALSE))))+(((VLOOKUP($A8,Systems!$A8:$C$42,3,FALSE)-(VLOOKUP(C$1,Systems!$A$1:$C$42,3,FALSE)))*((VLOOKUP($A8,Systems!$A8:$C$42,3,FALSE)-(VLOOKUP(C$1,Systems!$A$1:$C$42,3,FALSE)))))))) -> 32.20248438 | D8: =SQRT(((VLOOKUP($A8,Systems!$A8:$C$42,2,FALSE)-(VLOOKUP(D$1,Systems!$A$1:$C$42,2,FALSE)))*((VLOOKUP($A8,Systems!$A8:$C$42,2,FALSE)-(VLOOKUP(D$1,Systems!$A$1:$C$42,2,FALSE))))+(((VLOOKUP($A8,Systems!$A8:$C$42,3,FALSE)-(VLOOKUP(D$1,Systems!$A$1:$C$42,3,FALSE)))*((VLOOKUP($A8,Systems!$A8:$C$42,3,FALSE)-(VLOOKUP(D$1,Systems!$A$1:$C$42,3,FALSE)))))))) -> 24.69817807 | E8: =SQRT(((VLOOKUP($A8,Systems!$A8:$C$42,2,FALSE)-(VLOOKUP(E$1,Systems!$A$1:$C$42,2,FALSE)))*((VLOOKUP($A8,Systems!$A8:$C$42,2,FALSE)-(VLOOKUP(E$1,Systems!$A$1:$C$42,2,FALSE))))+(((VLOOKUP($A8,Systems!$A8:$C$42,3,FALSE)-(VLOOKUP(E$1,Systems!$A$1:$C$42,3,FALSE)))*((VLOOKUP($A8,Systems!$A8:$C$42,3,FALSE)-(VLOOKUP(E$1,Systems!$A$1:$C$42,3,FALSE)))))))) -> 19.84943324 | F8: =SQRT(((VLOOKUP($A8,Systems!$A8:$C$42,2,FALSE)-(VLOOKUP(F$1,Systems!$A$1:$C$42,2,FALSE)))*((VLOOKUP($A8,Systems!$A8:$C$42,2,FALSE)-(VLOOKUP(F$1,Systems!$A$1:$C$42,2,FALSE))))+(((VLOOKUP($A8,Systems!$A8:$C$42,3,FALSE)-(VLOOKUP(F$1,Systems!$A$1:$C$42,3,FALSE)))*((VLOOKUP($A8,Systems!$A8:$C$42,3,FALSE)-(VLOOKUP(F$1,Systems!$A$1:$C$42,3,FALSE)))))))) -> 21.9317122 | G8: =SQRT(((VLOOKUP($A8,Systems!$A8:$C$42,2,FALSE)-(VLOOKUP(G$1,Systems!$A$1:$C$42,2,FALSE)))*((VLOOKUP($A8,Systems!$A8:$C$42,2,FALSE)-(VLOOKUP(G$1,Systems!$A$1:$C$42,2,FALSE))))+(((VLOOKUP($A8,Systems!$A8:$C$42,3,FALSE)-(VLOOKUP(G$1,Systems!$A$1:$C$42,3,FALSE)))*((VLOOKUP($A8,Systems!$A8:$C$42,3,FALSE)-(VLOOKUP(G$1,Systems!$A$1:$C$42,3,FALSE)))))))) -> 13.15294644 | H8: =SQRT(((VLOOKUP($A8,Systems!$A8:$C$42,2,FALSE)-(VLOOKUP(H$1,Systems!$A$1:$C$42,2,FALSE)))*((VLOOKUP($A8,Systems!$A8:$C$42,2,FALSE)-(VLOOKUP(H$1,Systems!$A$1:$C$42,2,FALSE))))+(((VLOOKUP($A8,Systems!$A8:$C$42,3,FALSE)-(VLOOKUP(H$1,Systems!$A$1:$C$42,3,FALSE)))*((VLOOKUP($A8,Systems!$A8:$C$42,3,FALSE)-(VLOOKUP(H$1,Systems!$A$1:$C$42,3,FALSE)))))))) -> 0 | I8: =SQRT(((VLOOKUP($A8,Systems!$A8:$C$42,2,FALSE)-(VLOOKUP(I$1,Systems!$A$1:$C$42,2,FALSE)))*((VLOOKUP($A8,Systems!$A8:$C$42,2,FALSE)-(VLOOKUP(I$1,Systems!$A$1:$C$42,2,FALSE))))+(((VLOOKUP($A8,Systems!$A8:$C$42,3,FALSE)-(VLOOKUP(I$1,Systems!$A$1:$C$42,3,FALSE)))*((VLOOKUP($A8,Systems!$A8:$C$42,3,FALSE)-(VLOOKUP(I$1,Systems!$A$1:$C$42,3,FALSE)))))))) -> 20.22374842 | J8: =SQRT(((VLOOKUP($A8,Systems!$A8:$C$42,2,FALSE)-(VLOOKUP(J$1,Systems!$A$1:$C$42,2,FALSE)))*((VLOOKUP($A8,Systems!$A8:$C$42,2,FALSE)-(VLOOKUP(J$1,Systems!$A$1:$C$42,2,FALSE))))+(((VLOOKUP($A8,Systems!$A8:$C$42,3,FALSE)-(VLOOKUP(J$1,Systems!$A$1:$C$42,3,FALSE)))*((VLOOKUP($A8,Systems!$A8:$C$42,3,FALSE)-(VLOOKUP(J$1,Systems!$A$1:$C$42,3,FALSE)))))))) -> 10.29563014 | K8: =SQRT(((VLOOKUP($A8,Systems!$A8:$C$42,2,FALSE)-(VLOOKUP(K$1,Systems!$A$1:$C$42,2,FALSE)))*((VLOOKUP($A8,Systems!$A8:$C$42,2,FALSE)-(VLOOKUP(K$1,Systems!$A$1:$C$42,2,FALSE))))+(((VLOOKUP($A8,Systems!$A8:$C$42,3,FALSE)-(VLOOKUP(K$1,Systems!$A$1:$C$42,3,FALSE)))*((VLOOKUP($A8,Systems!$A8:$C$42,3,FALSE)-(VLOOKUP(K$1,Systems!$A$1:$C$42,3,FALSE)))))))) -> 18.02775638 | L8: =SQRT(((VLOOKUP($A8,Systems!$A8:$C$42,2,FALSE)-(VLOOKUP(L$1,Systems!$A$1:$C$42,2,FALSE)))*((VLOOKUP($A8,Systems!$A8:$C$42,2,FALSE)-(VLOOKUP(L$1,Systems!$A$1:$C$42,2,FALSE))))+(((VLOOKUP($A8,Systems!$A8:$C$42,3,FALSE)-(VLOOKUP(L$1,Systems!$A$1:$C$42,3,FALSE)))*((VLOOKUP($A8,Systems!$A8:$C$42,3,FALSE)-(VLOOKUP(L$1,Systems!$A$1:$C$42,3,FALSE)))))))) -> 11.04536102 | M8: =SQRT(((VLOOKUP($A8,Systems!$A8:$C$42,2,FALSE)-(VLOOKUP(M$1,Systems!$A$1:$C$42,2,FALSE)))*((VLOOKUP($A8,Systems!$A8:$C$42,2,FALSE)-(VLOOKUP(M$1,Systems!$A$1:$C$42,2,FALSE))))+(((VLOOKUP($A8,Systems!$A8:$C$42,3,FALSE)-(VLOOKUP(M$1,Systems!$A$1:$C$42,3,FALSE)))*((VLOOKUP($A8,Systems!$A8:$C$42,3,FALSE)-(VLOOKUP(M$1,Systems!$A$1:$C$42,3,FALSE)))))))) -> 15.55634919 | N8: =SQRT(((VLOOKUP($A8,Systems!$A8:$C$42,2,FALSE)-(VLOOKUP(N$1,Systems!$A$1:$C$42,2,FALSE)))*((VLOOKUP($A8,Systems!$A8:$C$42,2,FALSE)-(VLOOKUP(N$1,Systems!$A$1:$C$42,2,FALSE))))+(((VLOOKUP($A8,Systems!$A8:$C$42,3,FALSE)-(VLOOKUP(N$1,Systems!$A$1:$C$42,3,FALSE)))*((VLOOKUP($A8,Systems!$A8:$C$42,3,FALSE)-(VLOOKUP(N$1,Systems!$A$1:$C$42,3,FALSE)))))))) -> 21.09502311 | O8: =SQRT(((VLOOKUP($A8,Systems!$A8:$C$42,2,FALSE)-(VLOOKUP(O$1,Systems!$A$1:$C$42,2,FALSE)))*((VLOOKUP($A8,Systems!$A8:$C$42,2,FALSE)-(VLOOKUP(O$1,Systems!$A$1:$C$42,2,FALSE))))+(((VLOOKUP($A8,Systems!$A8:$C$42,3,FALSE)-(VLOOKUP(O$1,Systems!$A$1:$C$42,3,FALSE)))*((VLOOKUP($A8,Systems!$A8:$C$42,3,FALSE)-(VLOOKUP(O$1,Systems!$A$1:$C$42,3,FALSE)))))))) -> 5 | P8: =SQRT(((VLOOKUP($A8,Systems!$A8:$C$42,2,FALSE)-(VLOOKUP(P$1,Systems!$A$1:$C$42,2,FALSE)))*((VLOOKUP($A8,Systems!$A8:$C$42,2,FALSE)-(VLOOKUP(P$1,Systems!$A$1:$C$42,2,FALSE))))+(((VLOOKUP($A8,Systems!$A8:$C$42,3,FALSE)-(VLOOKUP(P$1,Systems!$A$1:$C$42,3,FALSE)))*((VLOOKUP($A8,Systems!$A8:$C$42,3,FALSE)-(VLOOKUP(P$1,Systems!$A$1:$C$42,3,FALSE)))))))) -> 22.8035085 | Q8: =SQRT(((VLOOKUP($A8,Systems!$A8:$C$42,2,FALSE)-(VLOOKUP(Q$1,Systems!$A$1:$C$42,2,FALSE)))*((VLOOKUP($A8,Systems!$A8:$C$42,2,FALSE)-(VLOOKUP(Q$1,Systems!$A$1:$C$42,2,FALSE))))+(((VLOOKUP($A8,Systems!$A8:$C$42,3,FALSE)-(VLOOKUP(Q$1,Systems!$A$1:$C$42,3,FALSE)))*((VLOOKUP($A8,Systems!$A8:$C$42,3,FALSE)-(VLOOKUP(Q$1,Systems!$A$1:$C$42,3,FALSE)))))))) -> 32.89376841 | R8: =SQRT(((VLOOKUP($A8,Systems!$A8:$C$42,2,FALSE)-(VLOOKUP(R$1,Systems!$A$1:$C$42,2,FALSE)))*((VLOOKUP($A8,Systems!$A8:$C$42,2,FALSE)-(VLOOKUP(R$1,Systems!$A$1:$C$42,2,FALSE))))+(((VLOOKUP($A8,Systems!$A8:$C$42,3,FALSE)-(VLOOKUP(R$1,Systems!$A$1:$C$42,3,FALSE)))*((VLOOKUP($A8,Systems!$A8:$C$42,3,FALSE)-(VLOOKUP(R$1,Systems!$A$1:$C$42,3,FALSE)))))))) -> 18.60107524 | S8: =SQRT(((VLOOKUP($A8,Systems!$A8:$C$42,2,FALSE)-(VLOOKUP(S$1,Systems!$A$1:$C$42,2,FALSE)))*((VLOOKUP($A8,Systems!$A8:$C$42,2,FALSE)-(VLOOKUP(S$1,Systems!$A$1:$C$42,2,FALSE))))+(((VLOOKUP($A8,Systems!$A8:$C$42,3,FALSE)-(VLOOKUP(S$1,Systems!$A$1:$C$42,3,FALSE)))*((VLOOKUP($A8,Systems!$A8:$C$42,3,FALSE)-(VLOOKUP(S$1,Systems!$A$1:$C$42,3,FALSE)))))))) -> 19.20937271 | T8: =SQRT(((VLOOKUP($A8,Systems!$A8:$C$42,2,FALSE)-(VLOOKUP(T$1,Systems!$A$1:$C$42,2,FALSE)))*((VLOOKUP($A8,Systems!$A8:$C$42,2,FALSE)-(VLOOKUP(T$1,Systems!$A$1:$C$42,2,FALSE))))+(((VLOOKUP($A8,Systems!$A8:$C$42,3,FALSE)-(VLOOKUP(T$1,Systems!$A$1:$C$42,3,FALSE)))*((VLOOKUP($A8,Systems!$A8:$C$42,3,FALSE)-(VLOOKUP(T$1,Systems!$A$1:$C$42,3,FALSE)))))))) -> 9.219544457 | U8: =SQRT(((VLOOKUP($A8,Systems!$A8:$C$42,2,FALSE)-(VLOOKUP(U$1,Systems!$A$1:$C$42,2,FALSE)))*((VLOOKUP($A8,Systems!$A8:$C$42,2,FALSE)-(VLOOKUP(U$1,Systems!$A$1:$C$42,2,FALSE))))+(((VLOOKUP($A8,Systems!$A8:$C$42,3,FALSE)-(VLOOKUP(U$1,Systems!$A$1:$C$42,3,FALSE)))*((VLOOKUP($A8,Systems!$A8:$C$42,3,FALSE)-(VLOOKUP(U$1,Systems!$A$1:$C$42,3,FALSE)))))))) -> 12.08304597 | V8: =SQRT(((VLOOKUP($A8,Systems!$A8:$C$42,2,FALSE)-(VLOOKUP(V$1,Systems!$A$1:$C$42,2,FALSE)))*((VLOOKUP($A8,Systems!$A8:$C$42,2,FALSE)-(VLOOKUP(V$1,Systems!$A$1:$C$42,2,FALSE))))+(((VLOOKUP($A8,Systems!$A8:$C$42,3,FALSE)-(VLOOKUP(V$1,Systems!$A$1:$C$42,3,FALSE)))*((VLOOKUP($A8,Systems!$A8:$C$42,3,FALSE)-(VLOOKUP(V$1,Systems!$A$1:$C$42,3,FALSE)))))))) -> 8.062257748 | W8: =SQRT(((VLOOKUP($A8,Systems!$A8:$C$42,2,FALSE)-(VLOOKUP(W$1,Systems!$A$1:$C$42,2,FALSE)))*((VLOOKUP($A8,Systems!$A8:$C$42,2,FALSE)-(VLOOKUP(W$1,Systems!$A$1:$C$42,2,FALSE))))+(((VLOOKUP($A8,Systems!$A8:$C$42,3,FALSE)-(VLOOKUP(W$1,Systems!$A$1:$C$42,3,FALSE)))*((VLOOKUP($A8,Systems!$A8:$C$42,3,FALSE)-(VLOOKUP(W$1,Systems!$A$1:$C$42,3,FALSE)))))))) -> 45.79301257 | X8: =SQRT(((VLOOKUP($A8,Systems!$A8:$C$42,2,FALSE)-(VLOOKUP(X$1,Systems!$A$1:$C$42,2,FALSE)))*((VLOOKUP($A8,Systems!$A8:$C$42,2,FALSE)-(VLOOKUP(X$1,Systems!$A$1:$C$42,2,FALSE))))+(((VLOOKUP($A8,Systems!$A8:$C$42,3,FALSE)-(VLOOKUP(X$1,Systems!$A$1:$C$42,3,FALSE)))*((VLOOKUP($A8,Systems!$A8:$C$42,3,FALSE)-(VLOOKUP(X$1,Systems!$A$1:$C$42,3,FALSE)))))))) -> 38.11823711 | Y8: =SQRT(((VLOOKUP($A8,Systems!$A8:$C$42,2,FALSE)-(VLOOKUP(Y$1,Systems!$A$1:$C$42,2,FALSE)))*((VLOOKUP($A8,Systems!$A8:$C$42,2,FALSE)-(VLOOKUP(Y$1,Systems!$A$1:$C$42,2,FALSE))))+(((VLOOKUP($A8,Systems!$A8:$C$42,3,FALSE)-(VLOOKUP(Y$1,Systems!$A$1:$C$42,3,FALSE)))*((VLOOKUP($A8,Systems!$A8:$C$42,3,FALSE)-(VLOOKUP(Y$1,Systems!$A$1:$C$42,3,FALSE)))))))) -> 15.8113883 | Z8: =SQRT(((VLOOKUP($A8,Systems!$A8:$C$42,2,FALSE)-(VLOOKUP(Z$1,Systems!$A$1:$C$42,2,FALSE)))*((VLOOKUP($A8,Systems!$A8:$C$42,2,FALSE)-(VLOOKUP(Z$1,Systems!$A$1:$C$42,2,FALSE))))+(((VLOOKUP($A8,Systems!$A8:$C$42,3,FALSE)-(VLOOKUP(Z$1,Systems!$A$1:$C$42,3,FALSE)))*((VLOOKUP($A8,Systems!$A8:$C$42,3,FALSE)-(VLOOKUP(Z$1,Systems!$A$1:$C$42,3,FALSE)))))))) -> 22.20360331 | AA8: =SQRT(((VLOOKUP($A8,Systems!$A8:$C$42,2,FALSE)-(VLOOKUP(AA$1,Systems!$A$1:$C$42,2,FALSE)))*((VLOOKUP($A8,Systems!$A8:$C$42,2,FALSE)-(VLOOKUP(AA$1,Systems!$A$1:$C$42,2,FALSE))))+(((VLOOKUP($A8,Systems!$A8:$C$42,3,FALSE)-(VLOOKUP(AA$1,Systems!$A$1:$C$42,3,FALSE)))*((VLOOKUP($A8,Systems!$A8:$C$42,3,FALSE)-(VLOOKUP(AA$1,Systems!$A$1:$C$42,3,FALSE)))))))) -> 30.3644529 | AB8: =SQRT(((VLOOKUP($A8,Systems!$A8:$C$42,2,FALSE)-(VLOOKUP(AB$1,Systems!$A$1:$C$42,2,FALSE)))*((VLOOKUP($A8,Systems!$A8:$C$42,2,FALSE)-(VLOOKUP(AB$1,Systems!$A$1:$C$42,2,FALSE))))+(((VLOOKUP($A8,Systems!$A8:$C$42,3,FALSE)-(VLOOKUP(AB$1,Systems!$A$1:$C$42,3,FALSE)))*((VLOOKUP($A8,Systems!$A8:$C$42,3,FALSE)-(VLOOKUP(AB$1,Systems!$A$1:$C$42,3,FALSE)))))))) -> 18.97366596 | AC8: =SQRT(((VLOOKUP($A8,Systems!$A8:$C$42,2,FALSE)-(VLOOKUP(AC$1,Systems!$A$1:$C$42,2,FALSE)))*((VLOOKUP($A8,Systems!$A8:$C$42,2,FALSE)-(VLOOKUP(AC$1,Systems!$A$1:$C$42,2,FALSE))))+(((VLOOKUP($A8,Systems!$A8:$C$42,3,FALSE)-(VLOOKUP(AC$1,Systems!$A$1:$C$42,3,FALSE)))*((VLOOKUP($A8,Systems!$A8:$C$42,3,FALSE)-(VLOOKUP(AC$1,Systems!$A$1:$C$42,3,FALSE)))))))) -> 29.42787794 | AD8: =SQRT(((VLOOKUP($A8,Systems!$A8:$C$42,2,FALSE)-(VLOOKUP(AD$1,Systems!$A$1:$C$42,2,FALSE)))*((VLOOKUP($A8,Systems!$A8:$C$42,2,FALSE)-(VLOOKUP(AD$1,Systems!$A$1:$C$42,2,FALSE))))+(((VLOOKUP($A8,Systems!$A8:$C$42,3,FALSE)-(VLOOKUP(AD$1,Systems!$A$1:$C$42,3,FALSE)))*((VLOOKUP($A8,Systems!$A8:$C$42,3,FALSE)-(VLOOKUP(AD$1,Systems!$A$1:$C$42,3,FALSE)))))))) -> 20.09975124 | AE8: =SQRT(((VLOOKUP($A8,Systems!$A8:$C$42,2,FALSE)-(VLOOKUP(AE$1,Systems!$A$1:$C$42,2,FALSE)))*((VLOOKUP($A8,Systems!$A8:$C$42,2,FALSE)-(VLOOKUP(AE$1,Systems!$A$1:$C$42,2,FALSE))))+(((VLOOKUP($A8,Systems!$A8:$C$42,3,FALSE)-(VLOOKUP(AE$1,Systems!$A$1:$C$42,3,FALSE)))*((VLOOKUP($A8,Systems!$A8:$C$42,3,FALSE)-(VLOOKUP(AE$1,Systems!$A$1:$C$42,3,FALSE)))))))) -> 38.07886553 | AF8: =SQRT(((VLOOKUP($A8,Systems!$A8:$C$42,2,FALSE)-(VLOOKUP(AF$1,Systems!$A$1:$C$42,2,FALSE)))*((VLOOKUP($A8,Systems!$A8:$C$42,2,FALSE)-(VLOOKUP(AF$1,Systems!$A$1:$C$42,2,FALSE))))+(((VLOOKUP($A8,Systems!$A8:$C$42,3,FALSE)-(VLOOKUP(AF$1,Systems!$A$1:$C$42,3,FALSE)))*((VLOOKUP($A8,Systems!$A8:$C$42,3,FALSE)-(VLOOKUP(AF$1,Systems!$A$1:$C$42,3,FALSE)))))))) -> 24.20743687 | AG8: =SQRT(((VLOOKUP($A8,Systems!$A8:$C$42,2,FALSE)-(VLOOKUP(AG$1,Systems!$A$1:$C$42,2,FALSE)))*((VLOOKUP($A8,Systems!$A8:$C$42,2,FALSE)-(VLOOKUP(AG$1,Systems!$A$1:$C$42,2,FALSE))))+(((VLOOKUP($A8,Systems!$A8:$C$42,3,FALSE)-(VLOOKUP(AG$1,Systems!$A$1:$C$42,3,FALSE)))*((VLOOKUP($A8,Systems!$A8:$C$42,3,FALSE)-(VLOOKUP(AG$1,Systems!$A$1:$C$42,3,FALSE)))))))) -> 24.41311123 | AH8: =SQRT(((VLOOKUP($A8,Systems!$A8:$C$42,2,FALSE)-(VLOOKUP(AH$1,Systems!$A$1:$C$42,2,FALSE)))*((VLOOKUP($A8,Systems!$A8:$C$42,2,FALSE)-(VLOOKUP(AH$1,Systems!$A$1:$C$42,2,FALSE))))+(((VLOOKUP($A8,Systems!$A8:$C$42,3,FALSE)-(VLOOKUP(AH$1,Systems!$A$1:$C$42,3,FALSE)))*((VLOOKUP($A8,Systems!$A8:$C$42,3,FALSE)-(VLOOKUP(AH$1,Systems!$A$1:$C$42,3,FALSE)))))))) -> 36.05551275 | AI8: =SQRT(((VLOOKUP($A8,Systems!$A8:$C$42,2,FALSE)-(VLOOKUP(AI$1,Systems!$A$1:$C$42,2,FALSE)))*((VLOOKUP($A8,Systems!$A8:$C$42,2,FALSE)-(VLOOKUP(AI$1,Systems!$A$1:$C$42,2,FALSE))))+(((VLOOKUP($A8,Systems!$A8:$C$42,3,FALSE)-(VLOOKUP(AI$1,Systems!$A$1:$C$42,3,FALSE)))*((VLOOKUP($A8,Systems!$A8:$C$42,3,FALSE)-(VLOOKUP(AI$1,Systems!$A$1:$C$42,3,FALSE)))))))) -> 32.64965543 | AJ8: =SQRT(((VLOOKUP($A8,Systems!$A8:$C$42,2,FALSE)-(VLOOKUP(AJ$1,Systems!$A$1:$C$42,2,FALSE)))*((VLOOKUP($A8,Systems!$A8:$C$42,2,FALSE)-(VLOOKUP(AJ$1,Systems!$A$1:$C$42,2,FALSE))))+(((VLOOKUP($A8,Systems!$A8:$C$42,3,FALSE)-(VLOOKUP(AJ$1,Systems!$A$1:$C$42,3,FALSE)))*((VLOOKUP($A8,Systems!$A8:$C$42,3,FALSE)-(VLOOKUP(AJ$1,Systems!$A$1:$C$42,3,FALSE)))))))) -> 33.10589071 | AK8: =SQRT(((VLOOKUP($A8,Systems!$A8:$C$42,2,FALSE)-(VLOOKUP(AK$1,Systems!$A$1:$C$42,2,FALSE)))*((VLOOKUP($A8,Systems!$A8:$C$42,2,FALSE)-(VLOOKUP(AK$1,Systems!$A$1:$C$42,2,FALSE))))+(((VLOOKUP($A8,Systems!$A8:$C$42,3,FALSE)-(VLOOKUP(AK$1,Systems!$A$1:$C$42,3,FALSE)))*((VLOOKUP($A8,Systems!$A8:$C$42,3,FALSE)-(VLOOKUP(AK$1,Systems!$A$1:$C$42,3,FALSE)))))))) -> 27.07397274 | AL8: =SQRT(((VLOOKUP($A8,Systems!$A8:$C$42,2,FALSE)-(VLOOKUP(AL$1,Systems!$A$1:$C$42,2,FALSE)))*((VLOOKUP($A8,Systems!$A8:$C$42,2,FALSE)-(VLOOKUP(AL$1,Systems!$A$1:$C$42,2,FALSE))))+(((VLOOKUP($A8,Systems!$A8:$C$42,3,FALSE)-(VLOOKUP(AL$1,Systems!$A$1:$C$42,3,FALSE)))*((VLOOKUP($A8,Systems!$A8:$C$42,3,FALSE)-(VLOOKUP(AL$1,Systems!$A$1:$C$42,3,FALSE)))))))) -> 29.15475947 | AM8: =SQRT(((VLOOKUP($A8,Systems!$A8:$C$42,2,FALSE)-(VLOOKUP(AM$1,Systems!$A$1:$C$42,2,FALSE)))*((VLOOKUP($A8,Systems!$A8:$C$42,2,FALSE)-(VLOOKUP(AM$1,Systems!$A$1:$C$42,2,FALSE))))+(((VLOOKUP($A8,Systems!$A8:$C$42,3,FALSE)-(VLOOKUP(AM$1,Systems!$A$1:$C$42,3,FALSE)))*((VLOOKUP($A8,Systems!$A8:$C$42,3,FALSE)-(VLOOKUP(AM$1,Systems!$A$1:$C$42,3,FALSE)))))))) -> 13.89244399 | AN8: =SQRT(((VLOOKUP($A8,Systems!$A8:$C$42,2,FALSE)-(VLOOKUP(AN$1,Systems!$A$1:$C$42,2,FALSE)))*((VLOOKUP($A8,Systems!$A8:$C$42,2,FALSE)-(VLOOKUP(AN$1,Systems!$A$1:$C$42,2,FALSE))))+(((VLOOKUP($A8,Systems!$A8:$C$42,3,FALSE)-(VLOOKUP(AN$1,Systems!$A$1:$C$42,3,FALSE)))*((VLOOKUP($A8,Systems!$A8:$C$42,3,FALSE)-(VLOOKUP(AN$1,Systems!$A$1:$C$42,3,FALSE)))))))) -> 42.48529157 | AO8: =SQRT(((VLOOKUP($A8,Systems!$A8:$C$42,2,FALSE)-(VLOOKUP(AO$1,Systems!$A$1:$C$42,2,FALSE)))*((VLOOKUP($A8,Systems!$A8:$C$42,2,FALSE)-(VLOOKUP(AO$1,Systems!$A$1:$C$42,2,FALSE))))+(((VLOOKUP($A8,Systems!$A8:$C$42,3,FALSE)-(VLOOKUP(AO$1,Systems!$A$1:$C$42,3,FALSE)))*((VLOOKUP($A8,Systems!$A8:$C$42,3,FALSE)-(VLOOKUP(AO$1,Systems!$A$1:$C$42,3,FALSE)))))))) -> 23.2594067 | AP8: =SQRT(((VLOOKUP($A8,Systems!$A8:$C$42,2,FALSE)-(VLOOKUP(AP$1,Systems!$A$1:$C$42,2,FALSE)))*((VLOOKUP($A8,Systems!$A8:$C$42,2,FALSE)-(VLOOKUP(AP$1,Systems!$A$1:$C$42,2,FALSE))))+(((VLOOKUP($A8,Systems!$A8:$C$42,3,FALSE)-(VLOOKUP(AP$1,Systems!$A$1:$C$42,3,FALSE)))*((VLOOKUP($A8,Systems!$A8:$C$42,3,FALSE)-(VLOOKUP(AP$1,Systems!$A$1:$C$42,3,FALSE)))))))) -> 14.2126704
A9: =Systems!A9 -> Delta | B9: =SQRT(((VLOOKUP($A9,Systems!$A9:$C$42,2,FALSE)-(VLOOKUP(B$1,Systems!$A$1:$C$42,2,FALSE)))*((VLOOKUP($A9,Systems!$A9:$C$42,2,FALSE)-(VLOOKUP(B$1,Systems!$A$1:$C$42,2,FALSE))))+(((VLOOKUP($A9,Systems!$A9:$C$42,3,FALSE)-(VLOOKUP(B$1,Systems!$A$1:$C$42,3,FALSE)))*((VLOOKUP($A9,Systems!$A9:$C$42,3,FALSE)-(VLOOKUP(B$1,Systems!$A$1:$C$42,3,FALSE)))))))) -> 5.656854249 | C9: =SQRT(((VLOOKUP($A9,Systems!$A9:$C$42,2,FALSE)-(VLOOKUP(C$1,Systems!$A$1:$C$42,2,FALSE)))*((VLOOKUP($A9,Systems!$A9:$C$42,2,FALSE)-(VLOOKUP(C$1,Systems!$A$1:$C$42,2,FALSE))))+(((VLOOKUP($A9,Systems!$A9:$C$42,3,FALSE)-(VLOOKUP(C$1,Systems!$A$1:$C$42,3,FALSE)))*((VLOOKUP($A9,Systems!$A9:$C$42,3,FALSE)-(VLOOKUP(C$1,Systems!$A$1:$C$42,3,FALSE)))))))) -> 22.8035085 | D9: =SQRT(((VLOOKUP($A9,Systems!$A9:$C$42,2,FALSE)-(VLOOKUP(D$1,Systems!$A$1:$C$42,2,FALSE)))*((VLOOKUP($A9,Systems!$A9:$C$42,2,FALSE)-(VLOOKUP(D$1,Systems!$A$1:$C$42,2,FALSE))))+(((VLOOKUP($A9,Systems!$A9:$C$42,3,FALSE)-(VLOOKUP(D$1,Systems!$A$1:$C$42,3,FALSE)))*((VLOOKUP($A9,Systems!$A9:$C$42,3,FALSE)-(VLOOKUP(D$1,Systems!$A$1:$C$42,3,FALSE)))))))) -> 16.03121954 | E9: =SQRT(((VLOOKUP($A9,Systems!$A9:$C$42,2,FALSE)-(VLOOKUP(E$1,Systems!$A$1:$C$42,2,FALSE)))*((VLOOKUP($A9,Systems!$A9:$C$42,2,FALSE)-(VLOOKUP(E$1,Systems!$A$1:$C$42,2,FALSE))))+(((VLOOKUP($A9,Systems!$A9:$C$42,3,FALSE)-(VLOOKUP(E$1,Systems!$A$1:$C$42,3,FALSE)))*((VLOOKUP($A9,Systems!$A9:$C$42,3,FALSE)-(VLOOKUP(E$1,Systems!$A$1:$C$42,3,FALSE)))))))) -> 16.76305461 | F9: =SQRT(((VLOOKUP($A9,Systems!$A9:$C$42,2,FALSE)-(VLOOKUP(F$1,Systems!$A$1:$C$42,2,FALSE)))*((VLOOKUP($A9,Systems!$A9:$C$42,2,FALSE)-(VLOOKUP(F$1,Systems!$A$1:$C$42,2,FALSE))))+(((VLOOKUP($A9,Systems!$A9:$C$42,3,FALSE)-(VLOOKUP(F$1,Systems!$A$1:$C$42,3,FALSE)))*((VLOOKUP($A9,Systems!$A9:$C$42,3,FALSE)-(VLOOKUP(F$1,Systems!$A$1:$C$42,3,FALSE)))))))) -> 25.49509757 | G9: =SQRT(((VLOOKUP($A9,Systems!$A9:$C$42,2,FALSE)-(VLOOKUP(G$1,Systems!$A$1:$C$42,2,FALSE)))*((VLOOKUP($A9,Systems!$A9:$C$42,2,FALSE)-(VLOOKUP(G$1,Systems!$A$1:$C$42,2,FALSE))))+(((VLOOKUP($A9,Systems!$A9:$C$42,3,FALSE)-(VLOOKUP(G$1,Systems!$A$1:$C$42,3,FALSE)))*((VLOOKUP($A9,Systems!$A9:$C$42,3,FALSE)-(VLOOKUP(G$1,Systems!$A$1:$C$42,3,FALSE)))))))) -> 8.602325267 | H9: =SQRT(((VLOOKUP($A9,Systems!$A9:$C$42,2,FALSE)-(VLOOKUP(H$1,Systems!$A$1:$C$42,2,FALSE)))*((VLOOKUP($A9,Systems!$A9:$C$42,2,FALSE)-(VLOOKUP(H$1,Systems!$A$1:$C$42,2,FALSE))))+(((VLOOKUP($A9,Systems!$A9:$C$42,3,FALSE)-(VLOOKUP(H$1,Systems!$A$1:$C$42,3,FALSE)))*((VLOOKUP($A9,Systems!$A9:$C$42,3,FALSE)-(VLOOKUP(H$1,Systems!$A$1:$C$42,3,FALSE)))))))) -> 20.22374842 | I9: =SQRT(((VLOOKUP($A9,Systems!$A9:$C$42,2,FALSE)-(VLOOKUP(I$1,Systems!$A$1:$C$42,2,FALSE)))*((VLOOKUP($A9,Systems!$A9:$C$42,2,FALSE)-(VLOOKUP(I$1,Systems!$A$1:$C$42,2,FALSE))))+(((VLOOKUP($A9,Systems!$A9:$C$42,3,FALSE)-(VLOOKUP(I$1,Systems!$A$1:$C$42,3,FALSE)))*((VLOOKUP($A9,Systems!$A9:$C$42,3,FALSE)-(VLOOKUP(I$1,Systems!$A$1:$C$42,3,FALSE)))))))) -> 0 | J9: =SQRT(((VLOOKUP($A9,Systems!$A9:$C$42,2,FALSE)-(VLOOKUP(J$1,Systems!$A$1:$C$42,2,FALSE)))*((VLOOKUP($A9,Systems!$A9:$C$42,2,FALSE)-(VLOOKUP(J$1,Systems!$A$1:$C$42,2,FALSE))))+(((VLOOKUP($A9,Systems!$A9:$C$42,3,FALSE)-(VLOOKUP(J$1,Systems!$A$1:$C$42,3,FALSE)))*((VLOOKUP($A9,Systems!$A9:$C$42,3,FALSE)-(VLOOKUP(J$1,Systems!$A$1:$C$42,3,FALSE)))))))) -> 11.18033989 | K9: =SQRT(((VLOOKUP($A9,Systems!$A9:$C$42,2,FALSE)-(VLOOKUP(K$1,Systems!$A$1:$C$42,2,FALSE)))*((VLOOKUP($A9,Systems!$A9:$C$42,2,FALSE)-(VLOOKUP(K$1,Systems!$A$1:$C$42,2,FALSE))))+(((VLOOKUP($A9,Systems!$A9:$C$42,3,FALSE)-(VLOOKUP(K$1,Systems!$A$1:$C$42,3,FALSE)))*((VLOOKUP($A9,Systems!$A9:$C$42,3,FALSE)-(VLOOKUP(K$1,Systems!$A$1:$C$42,3,FALSE)))))))) -> 9.486832981 | L9: =SQRT(((VLOOKUP($A9,Systems!$A9:$C$42,2,FALSE)-(VLOOKUP(L$1,Systems!$A$1:$C$42,2,FALSE)))*((VLOOKUP($A9,Systems!$A9:$C$42,2,FALSE)-(VLOOKUP(L$1,Systems!$A$1:$C$42,2,FALSE))))+(((VLOOKUP($A9,Systems!$A9:$C$42,3,FALSE)-(VLOOKUP(L$1,Systems!$A$1:$C$42,3,FALSE)))*((VLOOKUP($A9,Systems!$A9:$C$42,3,FALSE)-(VLOOKUP(L$1,Systems!$A$1:$C$42,3,FALSE)))))))) -> 9.219544457 | M9: =SQRT(((VLOOKUP($A9,Systems!$A9:$C$42,2,FALSE)-(VLOOKUP(M$1,Systems!$A$1:$C$42,2,FALSE)))*((VLOOKUP($A9,Systems!$A9:$C$42,2,FALSE)-(VLOOKUP(M$1,Systems!$A$1:$C$42,2,FALSE))))+(((VLOOKUP($A9,Systems!$A9:$C$42,3,FALSE)-(VLOOKUP(M$1,Systems!$A$1:$C$42,3,FALSE)))*((VLOOKUP($A9,Systems!$A9:$C$42,3,FALSE)-(VLOOKUP(M$1,Systems!$A$1:$C$42,3,FALSE)))))))) -> 12.04159458 | N9: =SQRT(((VLOOKUP($A9,Systems!$A9:$C$42,2,FALSE)-(VLOOKUP(N$1,Systems!$A$1:$C$42,2,FALSE)))*((VLOOKUP($A9,Systems!$A9:$C$42,2,FALSE)-(VLOOKUP(N$1,Systems!$A$1:$C$42,2,FALSE))))+(((VLOOKUP($A9,Systems!$A9:$C$42,3,FALSE)-(VLOOKUP(N$1,Systems!$A$1:$C$42,3,FALSE)))*((VLOOKUP($A9,Systems!$A9:$C$42,3,FALSE)-(VLOOKUP(N$1,Systems!$A$1:$C$42,3,FALSE)))))))) -> 30 | O9: =SQRT(((VLOOKUP($A9,Systems!$A9:$C$42,2,FALSE)-(VLOOKUP(O$1,Systems!$A$1:$C$42,2,FALSE)))*((VLOOKUP($A9,Systems!$A9:$C$42,2,FALSE)-(VLOOKUP(O$1,Systems!$A$1:$C$42,2,FALSE))))+(((VLOOKUP($A9,Systems!$A9:$C$42,3,FALSE)-(VLOOKUP(O$1,Systems!$A$1:$C$42,3,FALSE)))*((VLOOKUP($A9,Systems!$A9:$C$42,3,FALSE)-(VLOOKUP(O$1,Systems!$A$1:$C$42,3,FALSE)))))))) -> 16 | P9: =SQRT(((VLOOKUP($A9,Systems!$A9:$C$42,2,FALSE)-(VLOOKUP(P$1,Systems!$A$1:$C$42,2,FALSE)))*((VLOOKUP($A9,Systems!$A9:$C$42,2,FALSE)-(VLOOKUP(P$1,Systems!$A$1:$C$42,2,FALSE))))+(((VLOOKUP($A9,Systems!$A9:$C$42,3,FALSE)-(VLOOKUP(P$1,Systems!$A$1:$C$42,3,FALSE)))*((VLOOKUP($A9,Systems!$A9:$C$42,3,FALSE)-(VLOOKUP(P$1,Systems!$A$1:$C$42,3,FALSE)))))))) -> 3.605551275 | Q9: =SQRT(((VLOOKUP($A9,Systems!$A9:$C$42,2,FALSE)-(VLOOKUP(Q$1,Systems!$A$1:$C$42,2,FALSE)))*((VLOOKUP($A9,Systems!$A9:$C$42,2,FALSE)-(VLOOKUP(Q$1,Systems!$A$1:$C$42,2,FALSE))))+(((VLOOKUP($A9,Systems!$A9:$C$42,3,FALSE)-(VLOOKUP(Q$1,Systems!$A$1:$C$42,3,FALSE)))*((VLOOKUP($A9,Systems!$A9:$C$42,3,FALSE)-(VLOOKUP(Q$1,Systems!$A$1:$C$42,3,FALSE)))))))) -> 17.80449381 | R9: =SQRT(((VLOOKUP($A9,Systems!$A9:$C$42,2,FALSE)-(VLOOKUP(R$1,Systems!$A$1:$C$42,2,FALSE)))*((VLOOKUP($A9,Systems!$A9:$C$42,2,FALSE)-(VLOOKUP(R$1,Systems!$A$1:$C$42,2,FALSE))))+(((VLOOKUP($A9,Systems!$A9:$C$42,3,FALSE)-(VLOOKUP(R$1,Systems!$A$1:$C$42,3,FALSE)))*((VLOOKUP($A9,Systems!$A9:$C$42,3,FALSE)-(VLOOKUP(R$1,Systems!$A$1:$C$42,3,FALSE)))))))) -> 15 | S9: =SQRT(((VLOOKUP($A9,Systems!$A9:$C$42,2,FALSE)-(VLOOKUP(S$1,Systems!$A$1:$C$42,2,FALSE)))*((VLOOKUP($A9,Systems!$A9:$C$42,2,FALSE)-(VLOOKUP(S$1,Systems!$A$1:$C$42,2,FALSE))))+(((VLOOKUP($A9,Systems!$A9:$C$42,3,FALSE)-(VLOOKUP(S$1,Systems!$A$1:$C$42,3,FALSE)))*((VLOOKUP($A9,Systems!$A9:$C$42,3,FALSE)-(VLOOKUP(S$1,Systems!$A$1:$C$42,3,FALSE)))))))) -> 10.29563014 | T9: =SQRT(((VLOOKUP($A9,Systems!$A9:$C$42,2,FALSE)-(VLOOKUP(T$1,Systems!$A$1:$C$42,2,FALSE)))*((VLOOKUP($A9,Systems!$A9:$C$42,2,FALSE)-(VLOOKUP(T$1,Systems!$A$1:$C$42,2,FALSE))))+(((VLOOKUP($A9,Systems!$A9:$C$42,3,FALSE)-(VLOOKUP(T$1,Systems!$A$1:$C$42,3,FALSE)))*((VLOOKUP($A9,Systems!$A9:$C$42,3,FALSE)-(VLOOKUP(T$1,Systems!$A$1:$C$42,3,FALSE)))))))) -> 21.63330765 | U9: =SQRT(((VLOOKUP($A9,Systems!$A9:$C$42,2,FALSE)-(VLOOKUP(U$1,Systems!$A$1:$C$42,2,FALSE)))*((VLOOKUP($A9,Systems!$A9:$C$42,2,FALSE)-(VLOOKUP(U$1,Systems!$A$1:$C$42,2,FALSE))))+(((VLOOKUP($A9,Systems!$A9:$C$42,3,FALSE)-(VLOOKUP(U$1,Systems!$A$1:$C$42,3,FALSE)))*((VLOOKUP($A9,Systems!$A9:$C$42,3,FALSE)-(VLOOKUP(U$1,Systems!$A$1:$C$42,3,FALSE)))))))) -> 17 | V9: =SQRT(((VLOOKUP($A9,Systems!$A9:$C$42,2,FALSE)-(VLOOKUP(V$1,Systems!$A$1:$C$42,2,FALSE)))*((VLOOKUP($A9,Systems!$A9:$C$42,2,FALSE)-(VLOOKUP(V$1,Systems!$A$1:$C$42,2,FALSE))))+(((VLOOKUP($A9,Systems!$A9:$C$42,3,FALSE)-(VLOOKUP(V$1,Systems!$A$1:$C$42,3,FALSE)))*((VLOOKUP($A9,Systems!$A9:$C$42,3,FALSE)-(VLOOKUP(V$1,Systems!$A$1:$C$42,3,FALSE)))))))) -> 19.6468827 | W9: =SQRT(((VLOOKUP($A9,Systems!$A9:$C$42,2,FALSE)-(VLOOKUP(W$1,Systems!$A$1:$C$42,2,FALSE)))*((VLOOKUP($A9,Systems!$A9:$C$42,2,FALSE)-(VLOOKUP(W$1,Systems!$A$1:$C$42,2,FALSE))))+(((VLOOKUP($A9,Systems!$A9:$C$42,3,FALSE)-(VLOOKUP(W$1,Systems!$A$1:$C$42,3,FALSE)))*((VLOOKUP($A9,Systems!$A9:$C$42,3,FALSE)-(VLOOKUP(W$1,Systems!$A$1:$C$42,3,FALSE)))))))) -> 28.31960452 | X9: =SQRT(((VLOOKUP($A9,Systems!$A9:$C$42,2,FALSE)-(VLOOKUP(X$1,Systems!$A$1:$C$42,2,FALSE)))*((VLOOKUP($A9,Systems!$A9:$C$42,2,FALSE)-(VLOOKUP(X$1,Systems!$A$1:$C$42,2,FALSE))))+(((VLOOKUP($A9,Systems!$A9:$C$42,3,FALSE)-(VLOOKUP(X$1,Systems!$A$1:$C$42,3,FALSE)))*((VLOOKUP($A9,Systems!$A9:$C$42,3,FALSE)-(VLOOKUP(X$1,Systems!$A$1:$C$42,3,FALSE)))))))) -> 18 | Y9: =SQRT(((VLOOKUP($A9,Systems!$A9:$C$42,2,FALSE)-(VLOOKUP(Y$1,Systems!$A$1:$C$42,2,FALSE)))*((VLOOKUP($A9,Systems!$A9:$C$42,2,FALSE)-(VLOOKUP(Y$1,Systems!$A$1:$C$42,2,FALSE))))+(((VLOOKUP($A9,Systems!$A9:$C$42,3,FALSE)-(VLOOKUP(Y$1,Systems!$A$1:$C$42,3,FALSE)))*((VLOOKUP($A9,Systems!$A9:$C$42,3,FALSE)-(VLOOKUP(Y$1,Systems!$A$1:$C$42,3,FALSE)))))))) -> 5.385164807 | Z9: =SQRT(((VLOOKUP($A9,Systems!$A9:$C$42,2,FALSE)-(VLOOKUP(Z$1,Systems!$A$1:$C$42,2,FALSE)))*((VLOOKUP($A9,Systems!$A9:$C$42,2,FALSE)-(VLOOKUP(Z$1,Systems!$A$1:$C$42,2,FALSE))))+(((VLOOKUP($A9,Systems!$A9:$C$42,3,FALSE)-(VLOOKUP(Z$1,Systems!$A$1:$C$42,3,FALSE)))*((VLOOKUP($A9,Systems!$A9:$C$42,3,FALSE)-(VLOOKUP(Z$1,Systems!$A$1:$C$42,3,FALSE)))))))) -> 22.13594362 | AA9: =SQRT(((VLOOKUP($A9,Systems!$A9:$C$42,2,FALSE)-(VLOOKUP(AA$1,Systems!$A$1:$C$42,2,FALSE)))*((VLOOKUP($A9,Systems!$A9:$C$42,2,FALSE)-(VLOOKUP(AA$1,Systems!$A$1:$C$42,2,FALSE))))+(((VLOOKUP($A9,Systems!$A9:$C$42,3,FALSE)-(VLOOKUP(AA$1,Systems!$A$1:$C$42,3,FALSE)))*((VLOOKUP($A9,Systems!$A9:$C$42,3,FALSE)-(VLOOKUP(AA$1,Systems!$A$1:$C$42,3,FALSE)))))))) -> 10.81665383 | AB9: =SQRT(((VLOOKUP($A9,Systems!$A9:$C$42,2,FALSE)-(VLOOKUP(AB$1,Systems!$A$1:$C$42,2,FALSE)))*((VLOOKUP($A9,Systems!$A9:$C$42,2,FALSE)-(VLOOKUP(AB$1,Systems!$A$1:$C$42,2,FALSE))))+(((VLOOKUP($A9,Systems!$A9:$C$42,3,FALSE)-(VLOOKUP(AB$1,Systems!$A$1:$C$42,3,FALSE)))*((VLOOKUP($A9,Systems!$A9:$C$42,3,FALSE)-(VLOOKUP(AB$1,Systems!$A$1:$C$42,3,FALSE)))))))) -> 25.23885893 | AC9: =SQRT(((VLOOKUP($A9,Systems!$A9:$C$42,2,FALSE)-(VLOOKUP(AC$1,Systems!$A$1:$C$42,2,FALSE)))*((VLOOKUP($A9,Systems!$A9:$C$42,2,FALSE)-(VLOOKUP(AC$1,Systems!$A$1:$C$42,2,FALSE))))+(((VLOOKUP($A9,Systems!$A9:$C$42,3,FALSE)-(VLOOKUP(AC$1,Systems!$A$1:$C$42,3,FALSE)))*((VLOOKUP($A9,Systems!$A9:$C$42,3,FALSE)-(VLOOKUP(AC$1,Systems!$A$1:$C$42,3,FALSE)))))))) -> 12.04159458 | AD9: =SQRT(((VLOOKUP($A9,Systems!$A9:$C$42,2,FALSE)-(VLOOKUP(AD$1,Systems!$A$1:$C$42,2,FALSE)))*((VLOOKUP($A9,Systems!$A9:$C$42,2,FALSE)-(VLOOKUP(AD$1,Systems!$A$1:$C$42,2,FALSE))))+(((VLOOKUP($A9,Systems!$A9:$C$42,3,FALSE)-(VLOOKUP(AD$1,Systems!$A$1:$C$42,3,FALSE)))*((VLOOKUP($A9,Systems!$A9:$C$42,3,FALSE)-(VLOOKUP(AD$1,Systems!$A$1:$C$42,3,FALSE)))))))) -> 5 | AE9: =SQRT(((VLOOKUP($A9,Systems!$A9:$C$42,2,FALSE)-(VLOOKUP(AE$1,Systems!$A$1:$C$42,2,FALSE)))*((VLOOKUP($A9,Systems!$A9:$C$42,2,FALSE)-(VLOOKUP(AE$1,Systems!$A$1:$C$42,2,FALSE))))+(((VLOOKUP($A9,Systems!$A9:$C$42,3,FALSE)-(VLOOKUP(AE$1,Systems!$A$1:$C$42,3,FALSE)))*((VLOOKUP($A9,Systems!$A9:$C$42,3,FALSE)-(VLOOKUP(AE$1,Systems!$A$1:$C$42,3,FALSE)))))))) -> 23.43074903 | AF9: =SQRT(((VLOOKUP($A9,Systems!$A9:$C$42,2,FALSE)-(VLOOKUP(AF$1,Systems!$A$1:$C$42,2,FALSE)))*((VLOOKUP($A9,Systems!$A9:$C$42,2,FALSE)-(VLOOKUP(AF$1,Systems!$A$1:$C$42,2,FALSE))))+(((VLOOKUP($A9,Systems!$A9:$C$42,3,FALSE)-(VLOOKUP(AF$1,Systems!$A$1:$C$42,3,FALSE)))*((VLOOKUP($A9,Systems!$A9:$C$42,3,FALSE)-(VLOOKUP(AF$1,Systems!$A$1:$C$42,3,FALSE)))))))) -> 22.56102835 | AG9: =SQRT(((VLOOKUP($A9,Systems!$A9:$C$42,2,FALSE)-(VLOOKUP(AG$1,Systems!$A$1:$C$42,2,FALSE)))*((VLOOKUP($A9,Systems!$A9:$C$42,2,FALSE)-(VLOOKUP(AG$1,Systems!$A$1:$C$42,2,FALSE))))+(((VLOOKUP($A9,Systems!$A9:$C$42,3,FALSE)-(VLOOKUP(AG$1,Systems!$A$1:$C$42,3,FALSE)))*((VLOOKUP($A9,Systems!$A9:$C$42,3,FALSE)-(VLOOKUP(AG$1,Systems!$A$1:$C$42,3,FALSE)))))))) -> 18.02775638 | AH9: =SQRT(((VLOOKUP($A9,Systems!$A9:$C$42,2,FALSE)-(VLOOKUP(AH$1,Systems!$A$1:$C$42,2,FALSE)))*((VLOOKUP($A9,Systems!$A9:$C$42,2,FALSE)-(VLOOKUP(AH$1,Systems!$A$1:$C$42,2,FALSE))))+(((VLOOKUP($A9,Systems!$A9:$C$42,3,FALSE)-(VLOOKUP(AH$1,Systems!$A$1:$C$42,3,FALSE)))*((VLOOKUP($A9,Systems!$A9:$C$42,3,FALSE)-(VLOOKUP(AH$1,Systems!$A$1:$C$42,3,FALSE)))))))) -> 19.72308292 | AI9: =SQRT(((VLOOKUP($A9,Systems!$A9:$C$42,2,FALSE)-(VLOOKUP(AI$1,Systems!$A$1:$C$42,2,FALSE)))*((VLOOKUP($A9,Systems!$A9:$C$42,2,FALSE)-(VLOOKUP(AI$1,Systems!$A$1:$C$42,2,FALSE))))+(((VLOOKUP($A9,Systems!$A9:$C$42,3,FALSE)-(VLOOKUP(AI$1,Systems!$A$1:$C$42,3,FALSE)))*((VLOOKUP($A9,Systems!$A9:$C$42,3,FALSE)-(VLOOKUP(AI$1,Systems!$A$1:$C$42,3,FALSE)))))))) -> 28.01785145 | AJ9: =SQRT(((VLOOKUP($A9,Systems!$A9:$C$42,2,FALSE)-(VLOOKUP(AJ$1,Systems!$A$1:$C$42,2,FALSE)))*((VLOOKUP($A9,Systems!$A9:$C$42,2,FALSE)-(VLOOKUP(AJ$1,Systems!$A$1:$C$42,2,FALSE))))+(((VLOOKUP($A9,Systems!$A9:$C$42,3,FALSE)-(VLOOKUP(AJ$1,Systems!$A$1:$C$42,3,FALSE)))*((VLOOKUP($A9,Systems!$A9:$C$42,3,FALSE)-(VLOOKUP(AJ$1,Systems!$A$1:$C$42,3,FALSE)))))))) -> 14.86606875 | AK9: =SQRT(((VLOOKUP($A9,Systems!$A9:$C$42,2,FALSE)-(VLOOKUP(AK$1,Systems!$A$1:$C$42,2,FALSE)))*((VLOOKUP($A9,Systems!$A9:$C$42,2,FALSE)-(VLOOKUP(AK$1,Systems!$A$1:$C$42,2,FALSE))))+(((VLOOKUP($A9,Systems!$A9:$C$42,3,FALSE)-(VLOOKUP(AK$1,Systems!$A$1:$C$42,3,FALSE)))*((VLOOKUP($A9,Systems!$A9:$C$42,3,FALSE)-(VLOOKUP(AK$1,Systems!$A$1:$C$42,3,FALSE)))))))) -> 7.071067812 | AL9: =SQRT(((VLOOKUP($A9,Systems!$A9:$C$42,2,FALSE)-(VLOOKUP(AL$1,Systems!$A$1:$C$42,2,FALSE)))*((VLOOKUP($A9,Systems!$A9:$C$42,2,FALSE)-(VLOOKUP(AL$1,Systems!$A$1:$C$42,2,FALSE))))+(((VLOOKUP($A9,Systems!$A9:$C$42,3,FALSE)-(VLOOKUP(AL$1,Systems!$A$1:$C$42,3,FALSE)))*((VLOOKUP($A9,Systems!$A9:$C$42,3,FALSE)-(VLOOKUP(AL$1,Systems!$A$1:$C$42,3,FALSE)))))))) -> 13 | AM9: =SQRT(((VLOOKUP($A9,Systems!$A9:$C$42,2,FALSE)-(VLOOKUP(AM$1,Systems!$A$1:$C$42,2,FALSE)))*((VLOOKUP($A9,Systems!$A9:$C$42,2,FALSE)-(VLOOKUP(AM$1,Systems!$A$1:$C$42,2,FALSE))))+(((VLOOKUP($A9,Systems!$A9:$C$42,3,FALSE)-(VLOOKUP(AM$1,Systems!$A$1:$C$42,3,FALSE)))*((VLOOKUP($A9,Systems!$A9:$C$42,3,FALSE)-(VLOOKUP(AM$1,Systems!$A$1:$C$42,3,FALSE)))))))) -> 12.80624847 | AN9: =SQRT(((VLOOKUP($A9,Systems!$A9:$C$42,2,FALSE)-(VLOOKUP(AN$1,Systems!$A$1:$C$42,2,FALSE)))*((VLOOKUP($A9,Systems!$A9:$C$42,2,FALSE)-(VLOOKUP(AN$1,Systems!$A$1:$C$42,2,FALSE))))+(((VLOOKUP($A9,Systems!$A9:$C$42,3,FALSE)-(VLOOKUP(AN$1,Systems!$A$1:$C$42,3,FALSE)))*((VLOOKUP($A9,Systems!$A9:$C$42,3,FALSE)-(VLOOKUP(AN$1,Systems!$A$1:$C$42,3,FALSE)))))))) -> 24.08318916 | AO9: =SQRT(((VLOOKUP($A9,Systems!$A9:$C$42,2,FALSE)-(VLOOKUP(AO$1,Systems!$A$1:$C$42,2,FALSE)))*((VLOOKUP($A9,Systems!$A9:$C$42,2,FALSE)-(VLOOKUP(AO$1,Systems!$A$1:$C$42,2,FALSE))))+(((VLOOKUP($A9,Systems!$A9:$C$42,3,FALSE)-(VLOOKUP(AO$1,Systems!$A$1:$C$42,3,FALSE)))*((VLOOKUP($A9,Systems!$A9:$C$42,3,FALSE)-(VLOOKUP(AO$1,Systems!$A$1:$C$42,3,FALSE)))))))) -> 7.071067812 | AP9: =SQRT(((VLOOKUP($A9,Systems!$A9:$C$42,2,FALSE)-(VLOOKUP(AP$1,Systems!$A$1:$C$42,2,FALSE)))*((VLOOKUP($A9,Systems!$A9:$C$42,2,FALSE)-(VLOOKUP(AP$1,Systems!$A$1:$C$42,2,FALSE))))+(((VLOOKUP($A9,Systems!$A9:$C$42,3,FALSE)-(VLOOKUP(AP$1,Systems!$A$1:$C$42,3,FALSE)))*((VLOOKUP($A9,Systems!$A9:$C$42,3,FALSE)-(VLOOKUP(AP$1,Systems!$A$1:$C$42,3,FALSE)))))))) -> 17.80449381
A10: =Systems!A10 -> Devco | B10: =SQRT(((VLOOKUP($A10,Systems!$A10:$C$42,2,FALSE)-(VLOOKUP(B$1,Systems!$A$1:$C$42,2,FALSE)))*((VLOOKUP($A10,Systems!$A10:$C$42,2,FALSE)-(VLOOKUP(B$1,Systems!$A$1:$C$42,2,FALSE))))+(((VLOOKUP($A10,Systems!$A10:$C$42,3,FALSE)-(VLOOKUP(B$1,Systems!$A$1:$C$42,3,FALSE)))*((VLOOKUP($A10,Systems!$A10:$C$42,3,FALSE)-(VLOOKUP(B$1,Systems!$A$1:$C$42,3,FALSE)))))))) -> 16.15549442 | C10: =SQRT(((VLOOKUP($A10,Systems!$A10:$C$42,2,FALSE)-(VLOOKUP(C$1,Systems!$A$1:$C$42,2,FALSE)))*((VLOOKUP($A10,Systems!$A10:$C$42,2,FALSE)-(VLOOKUP(C$1,Systems!$A$1:$C$42,2,FALSE))))+(((VLOOKUP($A10,Systems!$A10:$C$42,3,FALSE)-(VLOOKUP(C$1,Systems!$A$1:$C$42,3,FALSE)))*((VLOOKUP($A10,Systems!$A10:$C$42,3,FALSE)-(VLOOKUP(C$1,Systems!$A$1:$C$42,3,FALSE)))))))) -> 29.41088234 | D10: =SQRT(((VLOOKUP($A10,Systems!$A10:$C$42,2,FALSE)-(VLOOKUP(D$1,Systems!$A$1:$C$42,2,FALSE)))*((VLOOKUP($A10,Systems!$A10:$C$42,2,FALSE)-(VLOOKUP(D$1,Systems!$A$1:$C$42,2,FALSE))))+(((VLOOKUP($A10,Systems!$A10:$C$42,3,FALSE)-(VLOOKUP(D$1,Systems!$A$1:$C$42,3,FALSE)))*((VLOOKUP($A10,Systems!$A10:$C$42,3,FALSE)-(VLOOKUP(D$1,Systems!$A$1:$C$42,3,FALSE)))))))) -> 21.63330765 | E10: =SQRT(((VLOOKUP($A10,Systems!$A10:$C$42,2,FALSE)-(VLOOKUP(E$1,Systems!$A$1:$C$42,2,FALSE)))*((VLOOKUP($A10,Systems!$A10:$C$42,2,FALSE)-(VLOOKUP(E$1,Systems!$A$1:$C$42,2,FALSE))))+(((VLOOKUP($A10,Systems!$A10:$C$42,3,FALSE)-(VLOOKUP(E$1,Systems!$A$1:$C$42,3,FALSE)))*((VLOOKUP($A10,Systems!$A10:$C$42,3,FALSE)-(VLOOKUP(E$1,Systems!$A$1:$C$42,3,FALSE)))))))) -> 18.97366596 | F10: =SQRT(((VLOOKUP($A10,Systems!$A10:$C$42,2,FALSE)-(VLOOKUP(F$1,Systems!$A$1:$C$42,2,FALSE)))*((VLOOKUP($A10,Systems!$A10:$C$42,2,FALSE)-(VLOOKUP(F$1,Systems!$A$1:$C$42,2,FALSE))))+(((VLOOKUP($A10,Systems!$A10:$C$42,3,FALSE)-(VLOOKUP(F$1,Systems!$A$1:$C$42,3,FALSE)))*((VLOOKUP($A10,Systems!$A10:$C$42,3,FALSE)-(VLOOKUP(F$1,Systems!$A$1:$C$42,3,FALSE)))))))) -> 25 | G10: =SQRT(((VLOOKUP($A10,Systems!$A10:$C$42,2,FALSE)-(VLOOKUP(G$1,Systems!$A$1:$C$42,2,FALSE)))*((VLOOKUP($A10,Systems!$A10:$C$42,2,FALSE)-(VLOOKUP(G$1,Systems!$A$1:$C$42,2,FALSE))))+(((VLOOKUP($A10,Systems!$A10:$C$42,3,FALSE)-(VLOOKUP(G$1,Systems!$A$1:$C$42,3,FALSE)))*((VLOOKUP($A10,Systems!$A10:$C$42,3,FALSE)-(VLOOKUP(G$1,Systems!$A$1:$C$42,3,FALSE)))))))) -> 8.062257748 | H10: =SQRT(((VLOOKUP($A10,Systems!$A10:$C$42,2,FALSE)-(VLOOKUP(H$1,Systems!$A$1:$C$42,2,FALSE)))*((VLOOKUP($A10,Systems!$A10:$C$42,2,FALSE)-(VLOOKUP(H$1,Systems!$A$1:$C$42,2,FALSE))))+(((VLOOKUP($A10,Systems!$A10:$C$42,3,FALSE)-(VLOOKUP(H$1,Systems!$A$1:$C$42,3,FALSE)))*((VLOOKUP($A10,Systems!$A10:$C$42,3,FALSE)-(VLOOKUP(H$1,Systems!$A$1:$C$42,3,FALSE)))))))) -> 10.29563014 | I10: =SQRT(((VLOOKUP($A10,Systems!$A10:$C$42,2,FALSE)-(VLOOKUP(I$1,Systems!$A$1:$C$42,2,FALSE)))*((VLOOKUP($A10,Systems!$A10:$C$42,2,FALSE)-(VLOOKUP(I$1,Systems!$A$1:$C$42,2,FALSE))))+(((VLOOKUP($A10,Systems!$A10:$C$42,3,FALSE)-(VLOOKUP(I$1,Systems!$A$1:$C$42,3,FALSE)))*((VLOOKUP($A10,Systems!$A10:$C$42,3,FALSE)-(VLOOKUP(I$1,Systems!$A$1:$C$42,3,FALSE)))))))) -> 11.18033989 | J10: =SQRT(((VLOOKUP($A10,Systems!$A10:$C$42,2,FALSE)-(VLOOKUP(J$1,Systems!$A$1:$C$42,2,FALSE)))*((VLOOKUP($A10,Systems!$A10:$C$42,2,FALSE)-(VLOOKUP(J$1,Systems!$A$1:$C$42,2,FALSE))))+(((VLOOKUP($A10,Systems!$A10:$C$42,3,FALSE)-(VLOOKUP(J$1,Systems!$A$1:$C$42,3,FALSE)))*((VLOOKUP($A10,Systems!$A10:$C$42,3,FALSE)-(VLOOKUP(J$1,Systems!$A$1:$C$42,3,FALSE)))))))) -> 0 | K10: =SQRT(((VLOOKUP($A10,Systems!$A10:$C$42,2,FALSE)-(VLOOKUP(K$1,Systems!$A$1:$C$42,2,FALSE)))*((VLOOKUP($A10,Systems!$A10:$C$42,2,FALSE)-(VLOOKUP(K$1,Systems!$A$1:$C$42,2,FALSE))))+(((VLOOKUP($A10,Systems!$A10:$C$42,3,FALSE)-(VLOOKUP(K$1,Systems!$A$1:$C$42,3,FALSE)))*((VLOOKUP($A10,Systems!$A10:$C$42,3,FALSE)-(VLOOKUP(K$1,Systems!$A$1:$C$42,3,FALSE)))))))) -> 13.60147051 | L10: =SQRT(((VLOOKUP($A10,Systems!$A10:$C$42,2,FALSE)-(VLOOKUP(L$1,Systems!$A$1:$C$42,2,FALSE)))*((VLOOKUP($A10,Systems!$A10:$C$42,2,FALSE)-(VLOOKUP(L$1,Systems!$A$1:$C$42,2,FALSE))))+(((VLOOKUP($A10,Systems!$A10:$C$42,3,FALSE)-(VLOOKUP(L$1,Systems!$A$1:$C$42,3,FALSE)))*((VLOOKUP($A10,Systems!$A10:$C$42,3,FALSE)-(VLOOKUP(L$1,Systems!$A$1:$C$42,3,FALSE)))))))) -> 4.472135955 | M10: =SQRT(((VLOOKUP($A10,Systems!$A10:$C$42,2,FALSE)-(VLOOKUP(M$1,Systems!$A$1:$C$42,2,FALSE)))*((VLOOKUP($A10,Systems!$A10:$C$42,2,FALSE)-(VLOOKUP(M$1,Systems!$A$1:$C$42,2,FALSE))))+(((VLOOKUP($A10,Systems!$A10:$C$42,3,FALSE)-(VLOOKUP(M$1,Systems!$A$1:$C$42,3,FALSE)))*((VLOOKUP($A10,Systems!$A10:$C$42,3,FALSE)-(VLOOKUP(M$1,Systems!$A$1:$C$42,3,FALSE)))))))) -> 6.32455532 | N10: =SQRT(((VLOOKUP($A10,Systems!$A10:$C$42,2,FALSE)-(VLOOKUP(N$1,Systems!$A$1:$C$42,2,FALSE)))*((VLOOKUP($A10,Systems!$A10:$C$42,2,FALSE)-(VLOOKUP(N$1,Systems!$A$1:$C$42,2,FALSE))))+(((VLOOKUP($A10,Systems!$A10:$C$42,3,FALSE)-(VLOOKUP(N$1,Systems!$A$1:$C$42,3,FALSE)))*((VLOOKUP($A10,Systems!$A10:$C$42,3,FALSE)-(VLOOKUP(N$1,Systems!$A$1:$C$42,3,FALSE)))))))) -> 26.92582404 | O10: =SQRT(((VLOOKUP($A10,Systems!$A10:$C$42,2,FALSE)-(VLOOKUP(O$1,Systems!$A$1:$C$42,2,FALSE)))*((VLOOKUP($A10,Systems!$A10:$C$42,2,FALSE)-(VLOOKUP(O$1,Systems!$A$1:$C$42,2,FALSE))))+(((VLOOKUP($A10,Systems!$A10:$C$42,3,FALSE)-(VLOOKUP(O$1,Systems!$A$1:$C$42,3,FALSE)))*((VLOOKUP($A10,Systems!$A10:$C$42,3,FALSE)-(VLOOKUP(O$1,Systems!$A$1:$C$42,3,FALSE)))))))) -> 5.385164807 | P10: =SQRT(((VLOOKUP($A10,Systems!$A10:$C$42,2,FALSE)-(VLOOKUP(P$1,Systems!$A$1:$C$42,2,FALSE)))*((VLOOKUP($A10,Systems!$A10:$C$42,2,FALSE)-(VLOOKUP(P$1,Systems!$A$1:$C$42,2,FALSE))))+(((VLOOKUP($A10,Systems!$A10:$C$42,3,FALSE)-(VLOOKUP(P$1,Systems!$A$1:$C$42,3,FALSE)))*((VLOOKUP($A10,Systems!$A10:$C$42,3,FALSE)-(VLOOKUP(P$1,Systems!$A$1:$C$42,3,FALSE)))))))) -> 13.03840481 | Q10: =SQRT(((VLOOKUP($A10,Systems!$A10:$C$42,2,FALSE)-(VLOOKUP(Q$1,Systems!$A$1:$C$42,2,FALSE)))*((VLOOKUP($A10,Systems!$A10:$C$42,2,FALSE)-(VLOOKUP(Q$1,Systems!$A$1:$C$42,2,FALSE))))+(((VLOOKUP($A10,Systems!$A10:$C$42,3,FALSE)-(VLOOKUP(Q$1,Systems!$A$1:$C$42,3,FALSE)))*((VLOOKUP($A10,Systems!$A10:$C$42,3,FALSE)-(VLOOKUP(Q$1,Systems!$A$1:$C$42,3,FALSE)))))))) -> 27.20294102 | R10: =SQRT(((VLOOKUP($A10,Systems!$A10:$C$42,2,FALSE)-(VLOOKUP(R$1,Systems!$A$1:$C$42,2,FALSE)))*((VLOOKUP($A10,Systems!$A10:$C$42,2,FALSE)-(VLOOKUP(R$1,Systems!$A$1:$C$42,2,FALSE))))+(((VLOOKUP($A10,Systems!$A10:$C$42,3,FALSE)-(VLOOKUP(R$1,Systems!$A$1:$C$42,3,FALSE)))*((VLOOKUP($A10,Systems!$A10:$C$42,3,FALSE)-(VLOOKUP(R$1,Systems!$A$1:$C$42,3,FALSE)))))))) -> 10.19803903 | S10: =SQRT(((VLOOKUP($A10,Systems!$A10:$C$42,2,FALSE)-(VLOOKUP(S$1,Systems!$A$1:$C$42,2,FALSE)))*((VLOOKUP($A10,Systems!$A10:$C$42,2,FALSE)-(VLOOKUP(S$1,Systems!$A$1:$C$42,2,FALSE))))+(((VLOOKUP($A10,Systems!$A10:$C$42,3,FALSE)-(VLOOKUP(S$1,Systems!$A$1:$C$42,3,FALSE)))*((VLOOKUP($A10,Systems!$A10:$C$42,3,FALSE)-(VLOOKUP(S$1,Systems!$A$1:$C$42,3,FALSE)))))))) -> 9.219544457 | T10: =SQRT(((VLOOKUP($A10,Systems!$A10:$C$42,2,FALSE)-(VLOOKUP(T$1,Systems!$A$1:$C$42,2,FALSE)))*((VLOOKUP($A10,Systems!$A10:$C$42,2,FALSE)-(VLOOKUP(T$1,Systems!$A$1:$C$42,2,FALSE))))+(((VLOOKUP($A10,Systems!$A10:$C$42,3,FALSE)-(VLOOKUP(T$1,Systems!$A$1:$C$42,3,FALSE)))*((VLOOKUP($A10,Systems!$A10:$C$42,3,FALSE)-(VLOOKUP(T$1,Systems!$A$1:$C$42,3,FALSE)))))))) -> 15.65247584 | U10: =SQRT(((VLOOKUP($A10,Systems!$A10:$C$42,2,FALSE)-(VLOOKUP(U$1,Systems!$A$1:$C$42,2,FALSE)))*((VLOOKUP($A10,Systems!$A10:$C$42,2,FALSE)-(VLOOKUP(U$1,Systems!$A$1:$C$42,2,FALSE))))+(((VLOOKUP($A10,Systems!$A10:$C$42,3,FALSE)-(VLOOKUP(U$1,Systems!$A$1:$C$42,3,FALSE)))*((VLOOKUP($A10,Systems!$A10:$C$42,3,FALSE)-(VLOOKUP(U$1,Systems!$A$1:$C$42,3,FALSE)))))))) -> 7.211102551 | V10: =SQRT(((VLOOKUP($A10,Systems!$A10:$C$42,2,FALSE)-(VLOOKUP(V$1,Systems!$A$1:$C$42,2,FALSE)))*((VLOOKUP($A10,Systems!$A10:$C$42,2,FALSE)-(VLOOKUP(V$1,Systems!$A$1:$C$42,2,FALSE))))+(((VLOOKUP($A10,Systems!$A10:$C$42,3,FALSE)-(VLOOKUP(V$1,Systems!$A$1:$C$42,3,FALSE)))*((VLOOKUP($A10,Systems!$A10:$C$42,3,FALSE)-(VLOOKUP(V$1,Systems!$A$1:$C$42,3,FALSE)))))))) -> 8.544003745 | W10: =SQRT(((VLOOKUP($A10,Systems!$A10:$C$42,2,FALSE)-(VLOOKUP(W$1,Systems!$A$1:$C$42,2,FALSE)))*((VLOOKUP($A10,Systems!$A10:$C$42,2,FALSE)-(VLOOKUP(W$1,Systems!$A$1:$C$42,2,FALSE))))+(((VLOOKUP($A10,Systems!$A10:$C$42,3,FALSE)-(VLOOKUP(W$1,Systems!$A$1:$C$42,3,FALSE)))*((VLOOKUP($A10,Systems!$A10:$C$42,3,FALSE)-(VLOOKUP(W$1,Systems!$A$1:$C$42,3,FALSE)))))))) -> 35.51056181 | X10: =SQRT(((VLOOKUP($A10,Systems!$A10:$C$42,2,FALSE)-(VLOOKUP(X$1,Systems!$A$1:$C$42,2,FALSE)))*((VLOOKUP($A10,Systems!$A10:$C$42,2,FALSE)-(VLOOKUP(X$1,Systems!$A$1:$C$42,2,FALSE))))+(((VLOOKUP($A10,Systems!$A10:$C$42,3,FALSE)-(VLOOKUP(X$1,Systems!$A$1:$C$42,3,FALSE)))*((VLOOKUP($A10,Systems!$A10:$C$42,3,FALSE)-(VLOOKUP(X$1,Systems!$A$1:$C$42,3,FALSE)))))))) -> 29.06888371 | Y10: =SQRT(((VLOOKUP($A10,Systems!$A10:$C$42,2,FALSE)-(VLOOKUP(Y$1,Systems!$A$1:$C$42,2,FALSE)))*((VLOOKUP($A10,Systems!$A10:$C$42,2,FALSE)-(VLOOKUP(Y$1,Systems!$A$1:$C$42,2,FALSE))))+(((VLOOKUP($A10,Systems!$A10:$C$42,3,FALSE)-(VLOOKUP(Y$1,Systems!$A$1:$C$42,3,FALSE)))*((VLOOKUP($A10,Systems!$A10:$C$42,3,FALSE)-(VLOOKUP(Y$1,Systems!$A$1:$C$42,3,FALSE)))))))) -> 6 | Z10: =SQRT(((VLOOKUP($A10,Systems!$A10:$C$42,2,FALSE)-(VLOOKUP(Z$1,Systems!$A$1:$C$42,2,FALSE)))*((VLOOKUP($A10,Systems!$A10:$C$42,2,FALSE)-(VLOOKUP(Z$1,Systems!$A$1:$C$42,2,FALSE))))+(((VLOOKUP($A10,Systems!$A10:$C$42,3,FALSE)-(VLOOKUP(Z$1,Systems!$A$1:$C$42,3,FALSE)))*((VLOOKUP($A10,Systems!$A10:$C$42,3,FALSE)-(VLOOKUP(Z$1,Systems!$A$1:$C$42,3,FALSE)))))))) -> 23.34523506 | AA10: =SQRT(((VLOOKUP($A10,Systems!$A10:$C$42,2,FALSE)-(VLOOKUP(AA$1,Systems!$A$1:$C$42,2,FALSE)))*((VLOOKUP($A10,Systems!$A10:$C$42,2,FALSE)-(VLOOKUP(AA$1,Systems!$A$1:$C$42,2,FALSE))))+(((VLOOKUP($A10,Systems!$A10:$C$42,3,FALSE)-(VLOOKUP(AA$1,Systems!$A$1:$C$42,3,FALSE)))*((VLOOKUP($A10,Systems!$A10:$C$42,3,FALSE)-(VLOOKUP(AA$1,Systems!$A$1:$C$42,3,FALSE)))))))) -> 20.39607805 | AB10: =SQRT(((VLOOKUP($A10,Systems!$A10:$C$42,2,FALSE)-(VLOOKUP(AB$1,Systems!$A$1:$C$42,2,FALSE)))*((VLOOKUP($A10,Systems!$A10:$C$42,2,FALSE)-(VLOOKUP(AB$1,Systems!$A$1:$C$42,2,FALSE))))+(((VLOOKUP($A10,Systems!$A10:$C$42,3,FALSE)-(VLOOKUP(AB$1,Systems!$A$1:$C$42,3,FALSE)))*((VLOOKUP($A10,Systems!$A10:$C$42,3,FALSE)-(VLOOKUP(AB$1,Systems!$A$1:$C$42,3,FALSE)))))))) -> 23.19482701 | AC10: =SQRT(((VLOOKUP($A10,Systems!$A10:$C$42,2,FALSE)-(VLOOKUP(AC$1,Systems!$A$1:$C$42,2,FALSE)))*((VLOOKUP($A10,Systems!$A10:$C$42,2,FALSE)-(VLOOKUP(AC$1,Systems!$A$1:$C$42,2,FALSE))))+(((VLOOKUP($A10,Systems!$A10:$C$42,3,FALSE)-(VLOOKUP(AC$1,Systems!$A$1:$C$42,3,FALSE)))*((VLOOKUP($A10,Systems!$A10:$C$42,3,FALSE)-(VLOOKUP(AC$1,Systems!$A$1:$C$42,3,FALSE)))))))) -> 22.36067977 | AD10: =SQRT(((VLOOKUP($A10,Systems!$A10:$C$42,2,FALSE)-(VLOOKUP(AD$1,Systems!$A$1:$C$42,2,FALSE)))*((VLOOKUP($A10,Systems!$A10:$C$42,2,FALSE)-(VLOOKUP(AD$1,Systems!$A$1:$C$42,2,FALSE))))+(((VLOOKUP($A10,Systems!$A10:$C$42,3,FALSE)-(VLOOKUP(AD$1,Systems!$A$1:$C$42,3,FALSE)))*((VLOOKUP($A10,Systems!$A10:$C$42,3,FALSE)-(VLOOKUP(AD$1,Systems!$A$1:$C$42,3,FALSE)))))))) -> 13.03840481 | AE10: =SQRT(((VLOOKUP($A10,Systems!$A10:$C$42,2,FALSE)-(VLOOKUP(AE$1,Systems!$A$1:$C$42,2,FALSE)))*((VLOOKUP($A10,Systems!$A10:$C$42,2,FALSE)-(VLOOKUP(AE$1,Systems!$A$1:$C$42,2,FALSE))))+(((VLOOKUP($A10,Systems!$A10:$C$42,3,FALSE)-(VLOOKUP(AE$1,Systems!$A$1:$C$42,3,FALSE)))*((VLOOKUP($A10,Systems!$A10:$C$42,3,FALSE)-(VLOOKUP(AE$1,Systems!$A$1:$C$42,3,FALSE)))))))) -> 32.80243893 | AF10: =SQRT(((VLOOKUP($A10,Systems!$A10:$C$42,2,FALSE)-(VLOOKUP(AF$1,Systems!$A$1:$C$42,2,FALSE)))*((VLOOKUP($A10,Systems!$A10:$C$42,2,FALSE)-(VLOOKUP(AF$1,Systems!$A$1:$C$42,2,FALSE))))+(((VLOOKUP($A10,Systems!$A10:$C$42,3,FALSE)-(VLOOKUP(AF$1,Systems!$A$1:$C$42,3,FALSE)))*((VLOOKUP($A10,Systems!$A10:$C$42,3,FALSE)-(VLOOKUP(AF$1,Systems!$A$1:$C$42,3,FALSE)))))))) -> 24.73863375 | AG10: =SQRT(((VLOOKUP($A10,Systems!$A10:$C$42,2,FALSE)-(VLOOKUP(AG$1,Systems!$A$1:$C$42,2,FALSE)))*((VLOOKUP($A10,Systems!$A10:$C$42,2,FALSE)-(VLOOKUP(AG$1,Systems!$A$1:$C$42,2,FALSE))))+(((VLOOKUP($A10,Systems!$A10:$C$42,3,FALSE)-(VLOOKUP(AG$1,Systems!$A$1:$C$42,3,FALSE)))*((VLOOKUP($A10,Systems!$A10:$C$42,3,FALSE)-(VLOOKUP(AG$1,Systems!$A$1:$C$42,3,FALSE)))))))) -> 15.8113883 | AH10: =SQRT(((VLOOKUP($A10,Systems!$A10:$C$42,2,FALSE)-(VLOOKUP(AH$1,Systems!$A$1:$C$42,2,FALSE)))*((VLOOKUP($A10,Systems!$A10:$C$42,2,FALSE)-(VLOOKUP(AH$1,Systems!$A$1:$C$42,2,FALSE))))+(((VLOOKUP($A10,Systems!$A10:$C$42,3,FALSE)-(VLOOKUP(AH$1,Systems!$A$1:$C$42,3,FALSE)))*((VLOOKUP($A10,Systems!$A10:$C$42,3,FALSE)-(VLOOKUP(AH$1,Systems!$A$1:$C$42,3,FALSE)))))))) -> 25.8069758 | AI10: =SQRT(((VLOOKUP($A10,Systems!$A10:$C$42,2,FALSE)-(VLOOKUP(AI$1,Systems!$A$1:$C$42,2,FALSE)))*((VLOOKUP($A10,Systems!$A10:$C$42,2,FALSE)-(VLOOKUP(AI$1,Systems!$A$1:$C$42,2,FALSE))))+(((VLOOKUP($A10,Systems!$A10:$C$42,3,FALSE)-(VLOOKUP(AI$1,Systems!$A$1:$C$42,3,FALSE)))*((VLOOKUP($A10,Systems!$A10:$C$42,3,FALSE)-(VLOOKUP(AI$1,Systems!$A$1:$C$42,3,FALSE)))))))) -> 32.31098884 | AJ10: =SQRT(((VLOOKUP($A10,Systems!$A10:$C$42,2,FALSE)-(VLOOKUP(AJ$1,Systems!$A$1:$C$42,2,FALSE)))*((VLOOKUP($A10,Systems!$A10:$C$42,2,FALSE)-(VLOOKUP(AJ$1,Systems!$A$1:$C$42,2,FALSE))))+(((VLOOKUP($A10,Systems!$A10:$C$42,3,FALSE)-(VLOOKUP(AJ$1,Systems!$A$1:$C$42,3,FALSE)))*((VLOOKUP($A10,Systems!$A10:$C$42,3,FALSE)-(VLOOKUP(AJ$1,Systems!$A$1:$C$42,3,FALSE)))))))) -> 22.84731932 | AK10: =SQRT(((VLOOKUP($A10,Systems!$A10:$C$42,2,FALSE)-(VLOOKUP(AK$1,Systems!$A$1:$C$42,2,FALSE)))*((VLOOKUP($A10,Systems!$A10:$C$42,2,FALSE)-(VLOOKUP(AK$1,Systems!$A$1:$C$42,2,FALSE))))+(((VLOOKUP($A10,Systems!$A10:$C$42,3,FALSE)-(VLOOKUP(AK$1,Systems!$A$1:$C$42,3,FALSE)))*((VLOOKUP($A10,Systems!$A10:$C$42,3,FALSE)-(VLOOKUP(AK$1,Systems!$A$1:$C$42,3,FALSE)))))))) -> 18.24828759 | AL10: =SQRT(((VLOOKUP($A10,Systems!$A10:$C$42,2,FALSE)-(VLOOKUP(AL$1,Systems!$A$1:$C$42,2,FALSE)))*((VLOOKUP($A10,Systems!$A10:$C$42,2,FALSE)-(VLOOKUP(AL$1,Systems!$A$1:$C$42,2,FALSE))))+(((VLOOKUP($A10,Systems!$A10:$C$42,3,FALSE)-(VLOOKUP(AL$1,Systems!$A$1:$C$42,3,FALSE)))*((VLOOKUP($A10,Systems!$A10:$C$42,3,FALSE)-(VLOOKUP(AL$1,Systems!$A$1:$C$42,3,FALSE)))))))) -> 18.86796226 | AM10: =SQRT(((VLOOKUP($A10,Systems!$A10:$C$42,2,FALSE)-(VLOOKUP(AM$1,Systems!$A$1:$C$42,2,FALSE)))*((VLOOKUP($A10,Systems!$A10:$C$42,2,FALSE)-(VLOOKUP(AM$1,Systems!$A$1:$C$42,2,FALSE))))+(((VLOOKUP($A10,Systems!$A10:$C$42,3,FALSE)-(VLOOKUP(AM$1,Systems!$A$1:$C$42,3,FALSE)))*((VLOOKUP($A10,Systems!$A10:$C$42,3,FALSE)-(VLOOKUP(AM$1,Systems!$A$1:$C$42,3,FALSE)))))))) -> 12.36931688 | AN10: =SQRT(((VLOOKUP($A10,Systems!$A10:$C$42,2,FALSE)-(VLOOKUP(AN$1,Systems!$A$1:$C$42,2,FALSE)))*((VLOOKUP($A10,Systems!$A10:$C$42,2,FALSE)-(VLOOKUP(AN$1,Systems!$A$1:$C$42,2,FALSE))))+(((VLOOKUP($A10,Systems!$A10:$C$42,3,FALSE)-(VLOOKUP(AN$1,Systems!$A$1:$C$42,3,FALSE)))*((VLOOKUP($A10,Systems!$A10:$C$42,3,FALSE)-(VLOOKUP(AN$1,Systems!$A$1:$C$42,3,FALSE)))))))) -> 32.20248438 | AO10: =SQRT(((VLOOKUP($A10,Systems!$A10:$C$42,2,FALSE)-(VLOOKUP(AO$1,Systems!$A$1:$C$42,2,FALSE)))*((VLOOKUP($A10,Systems!$A10:$C$42,2,FALSE)-(VLOOKUP(AO$1,Systems!$A$1:$C$42,2,FALSE))))+(((VLOOKUP($A10,Systems!$A10:$C$42,3,FALSE)-(VLOOKUP(AO$1,Systems!$A$1:$C$42,3,FALSE)))*((VLOOKUP($A10,Systems!$A10:$C$42,3,FALSE)-(VLOOKUP(AO$1,Systems!$A$1:$C$42,3,FALSE)))))))) -> 13 | AP10: =SQRT(((VLOOKUP($A10,Systems!$A10:$C$42,2,FALSE)-(VLOOKUP(AP$1,Systems!$A$1:$C$42,2,FALSE)))*((VLOOKUP($A10,Systems!$A10:$C$42,2,FALSE)-(VLOOKUP(AP$1,Systems!$A$1:$C$42,2,FALSE))))+(((VLOOKUP($A10,Systems!$A10:$C$42,3,FALSE)-(VLOOKUP(AP$1,Systems!$A$1:$C$42,3,FALSE)))*((VLOOKUP($A10,Systems!$A10:$C$42,3,FALSE)-(VLOOKUP(AP$1,Systems!$A$1:$C$42,3,FALSE)))))))) -> 16
A11: =Systems!A11 -> Dixon’s Star | B11: =SQRT(((VLOOKUP($A11,Systems!$A11:$C$42,2,FALSE)-(VLOOKUP(B$1,Systems!$A$1:$C$42,2,FALSE)))*((VLOOKUP($A11,Systems!$A11:$C$42,2,FALSE)-(VLOOKUP(B$1,Systems!$A$1:$C$42,2,FALSE))))+(((VLOOKUP($A11,Systems!$A11:$C$42,3,FALSE)-(VLOOKUP(B$1,Systems!$A$1:$C$42,3,FALSE)))*((VLOOKUP($A11,Systems!$A11:$C$42,3,FALSE)-(VLOOKUP(B$1,Systems!$A$1:$C$42,3,FALSE)))))))) -> 8.602325267 | C11: =SQRT(((VLOOKUP($A11,Systems!$A11:$C$42,2,FALSE)-(VLOOKUP(C$1,Systems!$A$1:$C$42,2,FALSE)))*((VLOOKUP($A11,Systems!$A11:$C$42,2,FALSE)-(VLOOKUP(C$1,Systems!$A$1:$C$42,2,FALSE))))+(((VLOOKUP($A11,Systems!$A11:$C$42,3,FALSE)-(VLOOKUP(C$1,Systems!$A$1:$C$42,3,FALSE)))*((VLOOKUP($A11,Systems!$A11:$C$42,3,FALSE)-(VLOOKUP(C$1,Systems!$A$1:$C$42,3,FALSE)))))))) -> 15.8113883 | D11: =SQRT(((VLOOKUP($A11,Systems!$A11:$C$42,2,FALSE)-(VLOOKUP(D$1,Systems!$A$1:$C$42,2,FALSE)))*((VLOOKUP($A11,Systems!$A11:$C$42,2,FALSE)-(VLOOKUP(D$1,Systems!$A$1:$C$42,2,FALSE))))+(((VLOOKUP($A11,Systems!$A11:$C$42,3,FALSE)-(VLOOKUP(D$1,Systems!$A$1:$C$42,3,FALSE)))*((VLOOKUP($A11,Systems!$A11:$C$42,3,FALSE)-(VLOOKUP(D$1,Systems!$A$1:$C$42,3,FALSE)))))))) -> 8.062257748 | E11: =SQRT(((VLOOKUP($A11,Systems!$A11:$C$42,2,FALSE)-(VLOOKUP(E$1,Systems!$A$1:$C$42,2,FALSE)))*((VLOOKUP($A11,Systems!$A11:$C$42,2,FALSE)-(VLOOKUP(E$1,Systems!$A$1:$C$42,2,FALSE))))+(((VLOOKUP($A11,Systems!$A11:$C$42,3,FALSE)-(VLOOKUP(E$1,Systems!$A$1:$C$42,3,FALSE)))*((VLOOKUP($A11,Systems!$A11:$C$42,3,FALSE)-(VLOOKUP(E$1,Systems!$A$1:$C$42,3,FALSE)))))))) -> 7.280109889 | F11: =SQRT(((VLOOKUP($A11,Systems!$A11:$C$42,2,FALSE)-(VLOOKUP(F$1,Systems!$A$1:$C$42,2,FALSE)))*((VLOOKUP($A11,Systems!$A11:$C$42,2,FALSE)-(VLOOKUP(F$1,Systems!$A$1:$C$42,2,FALSE))))+(((VLOOKUP($A11,Systems!$A11:$C$42,3,FALSE)-(VLOOKUP(F$1,Systems!$A$1:$C$42,3,FALSE)))*((VLOOKUP($A11,Systems!$A11:$C$42,3,FALSE)-(VLOOKUP(F$1,Systems!$A$1:$C$42,3,FALSE)))))))) -> 16.1245155 | G11: =SQRT(((VLOOKUP($A11,Systems!$A11:$C$42,2,FALSE)-(VLOOKUP(G$1,Systems!$A$1:$C$42,2,FALSE)))*((VLOOKUP($A11,Systems!$A11:$C$42,2,FALSE)-(VLOOKUP(G$1,Systems!$A$1:$C$42,2,FALSE))))+(((VLOOKUP($A11,Systems!$A11:$C$42,3,FALSE)-(VLOOKUP(G$1,Systems!$A$1:$C$42,3,FALSE)))*((VLOOKUP($A11,Systems!$A11:$C$42,3,FALSE)-(VLOOKUP(G$1,Systems!$A$1:$C$42,3,FALSE)))))))) -> 5.656854249 | H11: =SQRT(((VLOOKUP($A11,Systems!$A11:$C$42,2,FALSE)-(VLOOKUP(H$1,Systems!$A$1:$C$42,2,FALSE)))*((VLOOKUP($A11,Systems!$A11:$C$42,2,FALSE)-(VLOOKUP(H$1,Systems!$A$1:$C$42,2,FALSE))))+(((VLOOKUP($A11,Systems!$A11:$C$42,3,FALSE)-(VLOOKUP(H$1,Systems!$A$1:$C$42,3,FALSE)))*((VLOOKUP($A11,Systems!$A11:$C$42,3,FALSE)-(VLOOKUP(H$1,Systems!$A$1:$C$42,3,FALSE)))))))) -> 18.02775638 | I11: =SQRT(((VLOOKUP($A11,Systems!$A11:$C$42,2,FALSE)-(VLOOKUP(I$1,Systems!$A$1:$C$42,2,FALSE)))*((VLOOKUP($A11,Systems!$A11:$C$42,2,FALSE)-(VLOOKUP(I$1,Systems!$A$1:$C$42,2,FALSE))))+(((VLOOKUP($A11,Systems!$A11:$C$42,3,FALSE)-(VLOOKUP(I$1,Systems!$A$1:$C$42,3,FALSE)))*((VLOOKUP($A11,Systems!$A11:$C$42,3,FALSE)-(VLOOKUP(I$1,Systems!$A$1:$C$42,3,FALSE)))))))) -> 9.486832981 | J11: =SQRT(((VLOOKUP($A11,Systems!$A11:$C$42,2,FALSE)-(VLOOKUP(J$1,Systems!$A$1:$C$42,2,FALSE)))*((VLOOKUP($A11,Systems!$A11:$C$42,2,FALSE)-(VLOOKUP(J$1,Systems!$A$1:$C$42,2,FALSE))))+(((VLOOKUP($A11,Systems!$A11:$C$42,3,FALSE)-(VLOOKUP(J$1,Systems!$A$1:$C$42,3,FALSE)))*((VLOOKUP($A11,Systems!$A11:$C$42,3,FALSE)-(VLOOKUP(J$1,Systems!$A$1:$C$42,3,FALSE)))))))) -> 13.60147051 | K11: =SQRT(((VLOOKUP($A11,Systems!$A11:$C$42,2,FALSE)-(VLOOKUP(K$1,Systems!$A$1:$C$42,2,FALSE)))*((VLOOKUP($A11,Systems!$A11:$C$42,2,FALSE)-(VLOOKUP(K$1,Systems!$A$1:$C$42,2,FALSE))))+(((VLOOKUP($A11,Systems!$A11:$C$42,3,FALSE)-(VLOOKUP(K$1,Systems!$A$1:$C$42,3,FALSE)))*((VLOOKUP($A11,Systems!$A11:$C$42,3,FALSE)-(VLOOKUP(K$1,Systems!$A$1:$C$42,3,FALSE)))))))) -> 0 | L11: =SQRT(((VLOOKUP($A11,Systems!$A11:$C$42,2,FALSE)-(VLOOKUP(L$1,Systems!$A$1:$C$42,2,FALSE)))*((VLOOKUP($A11,Systems!$A11:$C$42,2,FALSE)-(VLOOKUP(L$1,Systems!$A$1:$C$42,2,FALSE))))+(((VLOOKUP($A11,Systems!$A11:$C$42,3,FALSE)-(VLOOKUP(L$1,Systems!$A$1:$C$42,3,FALSE)))*((VLOOKUP($A11,Systems!$A11:$C$42,3,FALSE)-(VLOOKUP(L$1,Systems!$A$1:$C$42,3,FALSE)))))))) -> 9.219544457 | M11: =SQRT(((VLOOKUP($A11,Systems!$A11:$C$42,2,FALSE)-(VLOOKUP(M$1,Systems!$A$1:$C$42,2,FALSE)))*((VLOOKUP($A11,Systems!$A11:$C$42,2,FALSE)-(VLOOKUP(M$1,Systems!$A$1:$C$42,2,FALSE))))+(((VLOOKUP($A11,Systems!$A11:$C$42,3,FALSE)-(VLOOKUP(M$1,Systems!$A$1:$C$42,3,FALSE)))*((VLOOKUP($A11,Systems!$A11:$C$42,3,FALSE)-(VLOOKUP(M$1,Systems!$A$1:$C$42,3,FALSE)))))))) -> 18.02775638 | N11: =SQRT(((VLOOKUP($A11,Systems!$A11:$C$42,2,FALSE)-(VLOOKUP(N$1,Systems!$A$1:$C$42,2,FALSE)))*((VLOOKUP($A11,Systems!$A11:$C$42,2,FALSE)-(VLOOKUP(N$1,Systems!$A$1:$C$42,2,FALSE))))+(((VLOOKUP($A11,Systems!$A11:$C$42,3,FALSE)-(VLOOKUP(N$1,Systems!$A$1:$C$42,3,FALSE)))*((VLOOKUP($A11,Systems!$A11:$C$42,3,FALSE)-(VLOOKUP(N$1,Systems!$A$1:$C$42,3,FALSE)))))))) -> 21.21320344 | O11: =SQRT(((VLOOKUP($A11,Systems!$A11:$C$42,2,FALSE)-(VLOOKUP(O$1,Systems!$A$1:$C$42,2,FALSE)))*((VLOOKUP($A11,Systems!$A11:$C$42,2,FALSE)-(VLOOKUP(O$1,Systems!$A$1:$C$42,2,FALSE))))+(((VLOOKUP($A11,Systems!$A11:$C$42,3,FALSE)-(VLOOKUP(O$1,Systems!$A$1:$C$42,3,FALSE)))*((VLOOKUP($A11,Systems!$A11:$C$42,3,FALSE)-(VLOOKUP(O$1,Systems!$A$1:$C$42,3,FALSE)))))))) -> 15.8113883 | P11: =SQRT(((VLOOKUP($A11,Systems!$A11:$C$42,2,FALSE)-(VLOOKUP(P$1,Systems!$A$1:$C$42,2,FALSE)))*((VLOOKUP($A11,Systems!$A11:$C$42,2,FALSE)-(VLOOKUP(P$1,Systems!$A$1:$C$42,2,FALSE))))+(((VLOOKUP($A11,Systems!$A11:$C$42,3,FALSE)-(VLOOKUP(P$1,Systems!$A$1:$C$42,3,FALSE)))*((VLOOKUP($A11,Systems!$A11:$C$42,3,FALSE)-(VLOOKUP(P$1,Systems!$A$1:$C$42,3,FALSE)))))))) -> 13 | Q11: =SQRT(((VLOOKUP($A11,Systems!$A11:$C$42,2,FALSE)-(VLOOKUP(Q$1,Systems!$A$1:$C$42,2,FALSE)))*((VLOOKUP($A11,Systems!$A11:$C$42,2,FALSE)-(VLOOKUP(Q$1,Systems!$A$1:$C$42,2,FALSE))))+(((VLOOKUP($A11,Systems!$A11:$C$42,3,FALSE)-(VLOOKUP(Q$1,Systems!$A$1:$C$42,3,FALSE)))*((VLOOKUP($A11,Systems!$A11:$C$42,3,FALSE)-(VLOOKUP(Q$1,Systems!$A$1:$C$42,3,FALSE)))))))) -> 14.86606875 | R11: =SQRT(((VLOOKUP($A11,Systems!$A11:$C$42,2,FALSE)-(VLOOKUP(R$1,Systems!$A$1:$C$42,2,FALSE)))*((VLOOKUP($A11,Systems!$A11:$C$42,2,FALSE)-(VLOOKUP(R$1,Systems!$A$1:$C$42,2,FALSE))))+(((VLOOKUP($A11,Systems!$A11:$C$42,3,FALSE)-(VLOOKUP(R$1,Systems!$A$1:$C$42,3,FALSE)))*((VLOOKUP($A11,Systems!$A11:$C$42,3,FALSE)-(VLOOKUP(R$1,Systems!$A$1:$C$42,3,FALSE)))))))) -> 21.84032967 | S11: =SQRT(((VLOOKUP($A11,Systems!$A11:$C$42,2,FALSE)-(VLOOKUP(S$1,Systems!$A$1:$C$42,2,FALSE)))*((VLOOKUP($A11,Systems!$A11:$C$42,2,FALSE)-(VLOOKUP(S$1,Systems!$A$1:$C$42,2,FALSE))))+(((VLOOKUP($A11,Systems!$A11:$C$42,3,FALSE)-(VLOOKUP(S$1,Systems!$A$1:$C$42,3,FALSE)))*((VLOOKUP($A11,Systems!$A11:$C$42,3,FALSE)-(VLOOKUP(S$1,Systems!$A$1:$C$42,3,FALSE)))))))) -> 18.11077028 | T11: =SQRT(((VLOOKUP($A11,Systems!$A11:$C$42,2,FALSE)-(VLOOKUP(T$1,Systems!$A$1:$C$42,2,FALSE)))*((VLOOKUP($A11,Systems!$A11:$C$42,2,FALSE)-(VLOOKUP(T$1,Systems!$A$1:$C$42,2,FALSE))))+(((VLOOKUP($A11,Systems!$A11:$C$42,3,FALSE)-(VLOOKUP(T$1,Systems!$A$1:$C$42,3,FALSE)))*((VLOOKUP($A11,Systems!$A11:$C$42,3,FALSE)-(VLOOKUP(T$1,Systems!$A$1:$C$42,3,FALSE)))))))) -> 15.29705854 | U11: =SQRT(((VLOOKUP($A11,Systems!$A11:$C$42,2,FALSE)-(VLOOKUP(U$1,Systems!$A$1:$C$42,2,FALSE)))*((VLOOKUP($A11,Systems!$A11:$C$42,2,FALSE)-(VLOOKUP(U$1,Systems!$A$1:$C$42,2,FALSE))))+(((VLOOKUP($A11,Systems!$A11:$C$42,3,FALSE)-(VLOOKUP(U$1,Systems!$A$1:$C$42,3,FALSE)))*((VLOOKUP($A11,Systems!$A11:$C$42,3,FALSE)-(VLOOKUP(U$1,Systems!$A$1:$C$42,3,FALSE)))))))) -> 20.80865205 | V11: =SQRT(((VLOOKUP($A11,Systems!$A11:$C$42,2,FALSE)-(VLOOKUP(V$1,Systems!$A$1:$C$42,2,FALSE)))*((VLOOKUP($A11,Systems!$A11:$C$42,2,FALSE)-(VLOOKUP(V$1,Systems!$A$1:$C$42,2,FALSE))))+(((VLOOKUP($A11,Systems!$A11:$C$42,3,FALSE)-(VLOOKUP(V$1,Systems!$A$1:$C$42,3,FALSE)))*((VLOOKUP($A11,Systems!$A11:$C$42,3,FALSE)-(VLOOKUP(V$1,Systems!$A$1:$C$42,3,FALSE)))))))) -> 21.26029163 | W11: =SQRT(((VLOOKUP($A11,Systems!$A11:$C$42,2,FALSE)-(VLOOKUP(W$1,Systems!$A$1:$C$42,2,FALSE)))*((VLOOKUP($A11,Systems!$A11:$C$42,2,FALSE)-(VLOOKUP(W$1,Systems!$A$1:$C$42,2,FALSE))))+(((VLOOKUP($A11,Systems!$A11:$C$42,3,FALSE)-(VLOOKUP(W$1,Systems!$A$1:$C$42,3,FALSE)))*((VLOOKUP($A11,Systems!$A11:$C$42,3,FALSE)-(VLOOKUP(W$1,Systems!$A$1:$C$42,3,FALSE)))))))) -> 37.20215048 | X11: =SQRT(((VLOOKUP($A11,Systems!$A11:$C$42,2,FALSE)-(VLOOKUP(X$1,Systems!$A$1:$C$42,2,FALSE)))*((VLOOKUP($A11,Systems!$A11:$C$42,2,FALSE)-(VLOOKUP(X$1,Systems!$A$1:$C$42,2,FALSE))))+(((VLOOKUP($A11,Systems!$A11:$C$42,3,FALSE)-(VLOOKUP(X$1,Systems!$A$1:$C$42,3,FALSE)))*((VLOOKUP($A11,Systems!$A11:$C$42,3,FALSE)-(VLOOKUP(X$1,Systems!$A$1:$C$42,3,FALSE)))))))) -> 22.84731932 | Y11: =SQRT(((VLOOKUP($A11,Systems!$A11:$C$42,2,FALSE)-(VLOOKUP(Y$1,Systems!$A$1:$C$42,2,FALSE)))*((VLOOKUP($A11,Systems!$A11:$C$42,2,FALSE)-(VLOOKUP(Y$1,Systems!$A$1:$C$42,2,FALSE))))+(((VLOOKUP($A11,Systems!$A11:$C$42,3,FALSE)-(VLOOKUP(Y$1,Systems!$A$1:$C$42,3,FALSE)))*((VLOOKUP($A11,Systems!$A11:$C$42,3,FALSE)-(VLOOKUP(Y$1,Systems!$A$1:$C$42,3,FALSE)))))))) -> 11.18033989 | Z11: =SQRT(((VLOOKUP($A11,Systems!$A11:$C$42,2,FALSE)-(VLOOKUP(Z$1,Systems!$A$1:$C$42,2,FALSE)))*((VLOOKUP($A11,Systems!$A11:$C$42,2,FALSE)-(VLOOKUP(Z$1,Systems!$A$1:$C$42,2,FALSE))))+(((VLOOKUP($A11,Systems!$A11:$C$42,3,FALSE)-(VLOOKUP(Z$1,Systems!$A$1:$C$42,3,FALSE)))*((VLOOKUP($A11,Systems!$A11:$C$42,3,FALSE)-(VLOOKUP(Z$1,Systems!$A$1:$C$42,3,FALSE)))))))) -> 12.64911064 | AA11: =SQRT(((VLOOKUP($A11,Systems!$A11:$C$42,2,FALSE)-(VLOOKUP(AA$1,Systems!$A$1:$C$42,2,FALSE)))*((VLOOKUP($A11,Systems!$A11:$C$42,2,FALSE)-(VLOOKUP(AA$1,Systems!$A$1:$C$42,2,FALSE))))+(((VLOOKUP($A11,Systems!$A11:$C$42,3,FALSE)-(VLOOKUP(AA$1,Systems!$A$1:$C$42,3,FALSE)))*((VLOOKUP($A11,Systems!$A11:$C$42,3,FALSE)-(VLOOKUP(AA$1,Systems!$A$1:$C$42,3,FALSE)))))))) -> 19.20937271 | AB11: =SQRT(((VLOOKUP($A11,Systems!$A11:$C$42,2,FALSE)-(VLOOKUP(AB$1,Systems!$A$1:$C$42,2,FALSE)))*((VLOOKUP($A11,Systems!$A11:$C$42,2,FALSE)-(VLOOKUP(AB$1,Systems!$A$1:$C$42,2,FALSE))))+(((VLOOKUP($A11,Systems!$A11:$C$42,3,FALSE)-(VLOOKUP(AB$1,Systems!$A$1:$C$42,3,FALSE)))*((VLOOKUP($A11,Systems!$A11:$C$42,3,FALSE)-(VLOOKUP(AB$1,Systems!$A$1:$C$42,3,FALSE)))))))) -> 16.2788206 | AC11: =SQRT(((VLOOKUP($A11,Systems!$A11:$C$42,2,FALSE)-(VLOOKUP(AC$1,Systems!$A$1:$C$42,2,FALSE)))*((VLOOKUP($A11,Systems!$A11:$C$42,2,FALSE)-(VLOOKUP(AC$1,Systems!$A$1:$C$42,2,FALSE))))+(((VLOOKUP($A11,Systems!$A11:$C$42,3,FALSE)-(VLOOKUP(AC$1,Systems!$A$1:$C$42,3,FALSE)))*((VLOOKUP($A11,Systems!$A11:$C$42,3,FALSE)-(VLOOKUP(AC$1,Systems!$A$1:$C$42,3,FALSE)))))))) -> 12.04159458 | AD11: =SQRT(((VLOOKUP($A11,Systems!$A11:$C$42,2,FALSE)-(VLOOKUP(AD$1,Systems!$A$1:$C$42,2,FALSE)))*((VLOOKUP($A11,Systems!$A11:$C$42,2,FALSE)-(VLOOKUP(AD$1,Systems!$A$1:$C$42,2,FALSE))))+(((VLOOKUP($A11,Systems!$A11:$C$42,3,FALSE)-(VLOOKUP(AD$1,Systems!$A$1:$C$42,3,FALSE)))*((VLOOKUP($A11,Systems!$A11:$C$42,3,FALSE)-(VLOOKUP(AD$1,Systems!$A$1:$C$42,3,FALSE)))))))) -> 5 | AE11: =SQRT(((VLOOKUP($A11,Systems!$A11:$C$42,2,FALSE)-(VLOOKUP(AE$1,Systems!$A$1:$C$42,2,FALSE)))*((VLOOKUP($A11,Systems!$A11:$C$42,2,FALSE)-(VLOOKUP(AE$1,Systems!$A$1:$C$42,2,FALSE))))+(((VLOOKUP($A11,Systems!$A11:$C$42,3,FALSE)-(VLOOKUP(AE$1,Systems!$A$1:$C$42,3,FALSE)))*((VLOOKUP($A11,Systems!$A11:$C$42,3,FALSE)-(VLOOKUP(AE$1,Systems!$A$1:$C$42,3,FALSE)))))))) -> 20.1246118 | AF11: =SQRT(((VLOOKUP($A11,Systems!$A11:$C$42,2,FALSE)-(VLOOKUP(AF$1,Systems!$A$1:$C$42,2,FALSE)))*((VLOOKUP($A11,Systems!$A11:$C$42,2,FALSE)-(VLOOKUP(AF$1,Systems!$A$1:$C$42,2,FALSE))))+(((VLOOKUP($A11,Systems!$A11:$C$42,3,FALSE)-(VLOOKUP(AF$1,Systems!$A$1:$C$42,3,FALSE)))*((VLOOKUP($A11,Systems!$A11:$C$42,3,FALSE)-(VLOOKUP(AF$1,Systems!$A$1:$C$42,3,FALSE)))))))) -> 13.15294644 | AG11: =SQRT(((VLOOKUP($A11,Systems!$A11:$C$42,2,FALSE)-(VLOOKUP(AG$1,Systems!$A$1:$C$42,2,FALSE)))*((VLOOKUP($A11,Systems!$A11:$C$42,2,FALSE)-(VLOOKUP(AG$1,Systems!$A$1:$C$42,2,FALSE))))+(((VLOOKUP($A11,Systems!$A11:$C$42,3,FALSE)-(VLOOKUP(AG$1,Systems!$A$1:$C$42,3,FALSE)))*((VLOOKUP($A11,Systems!$A11:$C$42,3,FALSE)-(VLOOKUP(AG$1,Systems!$A$1:$C$42,3,FALSE)))))))) -> 26.17250466 | AH11: =SQRT(((VLOOKUP($A11,Systems!$A11:$C$42,2,FALSE)-(VLOOKUP(AH$1,Systems!$A$1:$C$42,2,FALSE)))*((VLOOKUP($A11,Systems!$A11:$C$42,2,FALSE)-(VLOOKUP(AH$1,Systems!$A$1:$C$42,2,FALSE))))+(((VLOOKUP($A11,Systems!$A11:$C$42,3,FALSE)-(VLOOKUP(AH$1,Systems!$A$1:$C$42,3,FALSE)))*((VLOOKUP($A11,Systems!$A11:$C$42,3,FALSE)-(VLOOKUP(AH$1,Systems!$A$1:$C$42,3,FALSE)))))))) -> 29.06888371 | AI11: =SQRT(((VLOOKUP($A11,Systems!$A11:$C$42,2,FALSE)-(VLOOKUP(AI$1,Systems!$A$1:$C$42,2,FALSE)))*((VLOOKUP($A11,Systems!$A11:$C$42,2,FALSE)-(VLOOKUP(AI$1,Systems!$A$1:$C$42,2,FALSE))))+(((VLOOKUP($A11,Systems!$A11:$C$42,3,FALSE)-(VLOOKUP(AI$1,Systems!$A$1:$C$42,3,FALSE)))*((VLOOKUP($A11,Systems!$A11:$C$42,3,FALSE)-(VLOOKUP(AI$1,Systems!$A$1:$C$42,3,FALSE)))))))) -> 19.41648784 | AJ11: =SQRT(((VLOOKUP($A11,Systems!$A11:$C$42,2,FALSE)-(VLOOKUP(AJ$1,Systems!$A$1:$C$42,2,FALSE)))*((VLOOKUP($A11,Systems!$A11:$C$42,2,FALSE)-(VLOOKUP(AJ$1,Systems!$A$1:$C$42,2,FALSE))))+(((VLOOKUP($A11,Systems!$A11:$C$42,3,FALSE)-(VLOOKUP(AJ$1,Systems!$A$1:$C$42,3,FALSE)))*((VLOOKUP($A11,Systems!$A11:$C$42,3,FALSE)-(VLOOKUP(AJ$1,Systems!$A$1:$C$42,3,FALSE)))))))) -> 23.85372088 | AK11: =SQRT(((VLOOKUP($A11,Systems!$A11:$C$42,2,FALSE)-(VLOOKUP(AK$1,Systems!$A$1:$C$42,2,FALSE)))*((VLOOKUP($A11,Systems!$A11:$C$42,2,FALSE)-(VLOOKUP(AK$1,Systems!$A$1:$C$42,2,FALSE))))+(((VLOOKUP($A11,Systems!$A11:$C$42,3,FALSE)-(VLOOKUP(AK$1,Systems!$A$1:$C$42,3,FALSE)))*((VLOOKUP($A11,Systems!$A11:$C$42,3,FALSE)-(VLOOKUP(AK$1,Systems!$A$1:$C$42,3,FALSE)))))))) -> 12.80624847 | AL11: =SQRT(((VLOOKUP($A11,Systems!$A11:$C$42,2,FALSE)-(VLOOKUP(AL$1,Systems!$A$1:$C$42,2,FALSE)))*((VLOOKUP($A11,Systems!$A11:$C$42,2,FALSE)-(VLOOKUP(AL$1,Systems!$A$1:$C$42,2,FALSE))))+(((VLOOKUP($A11,Systems!$A11:$C$42,3,FALSE)-(VLOOKUP(AL$1,Systems!$A$1:$C$42,3,FALSE)))*((VLOOKUP($A11,Systems!$A11:$C$42,3,FALSE)-(VLOOKUP(AL$1,Systems!$A$1:$C$42,3,FALSE)))))))) -> 22.47220505 | AM11: =SQRT(((VLOOKUP($A11,Systems!$A11:$C$42,2,FALSE)-(VLOOKUP(AM$1,Systems!$A$1:$C$42,2,FALSE)))*((VLOOKUP($A11,Systems!$A11:$C$42,2,FALSE)-(VLOOKUP(AM$1,Systems!$A$1:$C$42,2,FALSE))))+(((VLOOKUP($A11,Systems!$A11:$C$42,3,FALSE)-(VLOOKUP(AM$1,Systems!$A$1:$C$42,3,FALSE)))*((VLOOKUP($A11,Systems!$A11:$C$42,3,FALSE)-(VLOOKUP(AM$1,Systems!$A$1:$C$42,3,FALSE)))))))) -> 5.099019514 | AN11: =SQRT(((VLOOKUP($A11,Systems!$A11:$C$42,2,FALSE)-(VLOOKUP(AN$1,Systems!$A$1:$C$42,2,FALSE)))*((VLOOKUP($A11,Systems!$A11:$C$42,2,FALSE)-(VLOOKUP(AN$1,Systems!$A$1:$C$42,2,FALSE))))+(((VLOOKUP($A11,Systems!$A11:$C$42,3,FALSE)-(VLOOKUP(AN$1,Systems!$A$1:$C$42,3,FALSE)))*((VLOOKUP($A11,Systems!$A11:$C$42,3,FALSE)-(VLOOKUP(AN$1,Systems!$A$1:$C$42,3,FALSE)))))))) -> 32.64965543 | AO11: =SQRT(((VLOOKUP($A11,Systems!$A11:$C$42,2,FALSE)-(VLOOKUP(AO$1,Systems!$A$1:$C$42,2,FALSE)))*((VLOOKUP($A11,Systems!$A11:$C$42,2,FALSE)-(VLOOKUP(AO$1,Systems!$A$1:$C$42,2,FALSE))))+(((VLOOKUP($A11,Systems!$A11:$C$42,3,FALSE)-(VLOOKUP(AO$1,Systems!$A$1:$C$42,3,FALSE)))*((VLOOKUP($A11,Systems!$A11:$C$42,3,FALSE)-(VLOOKUP(AO$1,Systems!$A$1:$C$42,3,FALSE)))))))) -> 16.4924225 | AP11: =SQRT(((VLOOKUP($A11,Systems!$A11:$C$42,2,FALSE)-(VLOOKUP(AP$1,Systems!$A$1:$C$42,2,FALSE)))*((VLOOKUP($A11,Systems!$A11:$C$42,2,FALSE)-(VLOOKUP(AP$1,Systems!$A$1:$C$42,2,FALSE))))+(((VLOOKUP($A11,Systems!$A11:$C$42,3,FALSE)-(VLOOKUP(AP$1,Systems!$A$1:$C$42,3,FALSE)))*((VLOOKUP($A11,Systems!$A11:$C$42,3,FALSE)-(VLOOKUP(AP$1,Systems!$A$1:$C$42,3,FALSE)))))))) -> 9.433981132
A12: =Systems!A12 -> Dramune | B12: =SQRT(((VLOOKUP($A12,Systems!$A12:$C$42,2,FALSE)-(VLOOKUP(B$1,Systems!$A$1:$C$42,2,FALSE)))*((VLOOKUP($A12,Systems!$A12:$C$42,2,FALSE)-(VLOOKUP(B$1,Systems!$A$1:$C$42,2,FALSE))))+(((VLOOKUP($A12,Systems!$A12:$C$42,3,FALSE)-(VLOOKUP(B$1,Systems!$A$1:$C$42,3,FALSE)))*((VLOOKUP($A12,Systems!$A12:$C$42,3,FALSE)-(VLOOKUP(B$1,Systems!$A$1:$C$42,3,FALSE)))))))) -> 13.15294644 | C12: =SQRT(((VLOOKUP($A12,Systems!$A12:$C$42,2,FALSE)-(VLOOKUP(C$1,Systems!$A$1:$C$42,2,FALSE)))*((VLOOKUP($A12,Systems!$A12:$C$42,2,FALSE)-(VLOOKUP(C$1,Systems!$A$1:$C$42,2,FALSE))))+(((VLOOKUP($A12,Systems!$A12:$C$42,3,FALSE)-(VLOOKUP(C$1,Systems!$A$1:$C$42,3,FALSE)))*((VLOOKUP($A12,Systems!$A12:$C$42,3,FALSE)-(VLOOKUP(C$1,Systems!$A$1:$C$42,3,FALSE)))))))) -> 25 | D12: =SQRT(((VLOOKUP($A12,Systems!$A12:$C$42,2,FALSE)-(VLOOKUP(D$1,Systems!$A$1:$C$42,2,FALSE)))*((VLOOKUP($A12,Systems!$A12:$C$42,2,FALSE)-(VLOOKUP(D$1,Systems!$A$1:$C$42,2,FALSE))))+(((VLOOKUP($A12,Systems!$A12:$C$42,3,FALSE)-(VLOOKUP(D$1,Systems!$A$1:$C$42,3,FALSE)))*((VLOOKUP($A12,Systems!$A12:$C$42,3,FALSE)-(VLOOKUP(D$1,Systems!$A$1:$C$42,3,FALSE)))))))) -> 17.20465053 | E12: =SQRT(((VLOOKUP($A12,Systems!$A12:$C$42,2,FALSE)-(VLOOKUP(E$1,Systems!$A$1:$C$42,2,FALSE)))*((VLOOKUP($A12,Systems!$A12:$C$42,2,FALSE)-(VLOOKUP(E$1,Systems!$A$1:$C$42,2,FALSE))))+(((VLOOKUP($A12,Systems!$A12:$C$42,3,FALSE)-(VLOOKUP(E$1,Systems!$A$1:$C$42,3,FALSE)))*((VLOOKUP($A12,Systems!$A12:$C$42,3,FALSE)-(VLOOKUP(E$1,Systems!$A$1:$C$42,3,FALSE)))))))) -> 14.56021978 | F12: =SQRT(((VLOOKUP($A12,Systems!$A12:$C$42,2,FALSE)-(VLOOKUP(F$1,Systems!$A$1:$C$42,2,FALSE)))*((VLOOKUP($A12,Systems!$A12:$C$42,2,FALSE)-(VLOOKUP(F$1,Systems!$A$1:$C$42,2,FALSE))))+(((VLOOKUP($A12,Systems!$A12:$C$42,3,FALSE)-(VLOOKUP(F$1,Systems!$A$1:$C$42,3,FALSE)))*((VLOOKUP($A12,Systems!$A12:$C$42,3,FALSE)-(VLOOKUP(F$1,Systems!$A$1:$C$42,3,FALSE)))))))) -> 21.09502311 | G12: =SQRT(((VLOOKUP($A12,Systems!$A12:$C$42,2,FALSE)-(VLOOKUP(G$1,Systems!$A$1:$C$42,2,FALSE)))*((VLOOKUP($A12,Systems!$A12:$C$42,2,FALSE)-(VLOOKUP(G$1,Systems!$A$1:$C$42,2,FALSE))))+(((VLOOKUP($A12,Systems!$A12:$C$42,3,FALSE)-(VLOOKUP(G$1,Systems!$A$1:$C$42,3,FALSE)))*((VLOOKUP($A12,Systems!$A12:$C$42,3,FALSE)-(VLOOKUP(G$1,Systems!$A$1:$C$42,3,FALSE)))))))) -> 3.605551275 | H12: =SQRT(((VLOOKUP($A12,Systems!$A12:$C$42,2,FALSE)-(VLOOKUP(H$1,Systems!$A$1:$C$42,2,FALSE)))*((VLOOKUP($A12,Systems!$A12:$C$42,2,FALSE)-(VLOOKUP(H$1,Systems!$A$1:$C$42,2,FALSE))))+(((VLOOKUP($A12,Systems!$A12:$C$42,3,FALSE)-(VLOOKUP(H$1,Systems!$A$1:$C$42,3,FALSE)))*((VLOOKUP($A12,Systems!$A12:$C$42,3,FALSE)-(VLOOKUP(H$1,Systems!$A$1:$C$42,3,FALSE)))))))) -> 11.04536102 | I12: =SQRT(((VLOOKUP($A12,Systems!$A12:$C$42,2,FALSE)-(VLOOKUP(I$1,Systems!$A$1:$C$42,2,FALSE)))*((VLOOKUP($A12,Systems!$A12:$C$42,2,FALSE)-(VLOOKUP(I$1,Systems!$A$1:$C$42,2,FALSE))))+(((VLOOKUP($A12,Systems!$A12:$C$42,3,FALSE)-(VLOOKUP(I$1,Systems!$A$1:$C$42,3,FALSE)))*((VLOOKUP($A12,Systems!$A12:$C$42,3,FALSE)-(VLOOKUP(I$1,Systems!$A$1:$C$42,3,FALSE)))))))) -> 9.219544457 | J12: =SQRT(((VLOOKUP($A12,Systems!$A12:$C$42,2,FALSE)-(VLOOKUP(J$1,Systems!$A$1:$C$42,2,FALSE)))*((VLOOKUP($A12,Systems!$A12:$C$42,2,FALSE)-(VLOOKUP(J$1,Systems!$A$1:$C$42,2,FALSE))))+(((VLOOKUP($A12,Systems!$A12:$C$42,3,FALSE)-(VLOOKUP(J$1,Systems!$A$1:$C$42,3,FALSE)))*((VLOOKUP($A12,Systems!$A12:$C$42,3,FALSE)-(VLOOKUP(J$1,Systems!$A$1:$C$42,3,FALSE)))))))) -> 4.472135955 | K12: =SQRT(((VLOOKUP($A12,Systems!$A12:$C$42,2,FALSE)-(VLOOKUP(K$1,Systems!$A$1:$C$42,2,FALSE)))*((VLOOKUP($A12,Systems!$A12:$C$42,2,FALSE)-(VLOOKUP(K$1,Systems!$A$1:$C$42,2,FALSE))))+(((VLOOKUP($A12,Systems!$A12:$C$42,3,FALSE)-(VLOOKUP(K$1,Systems!$A$1:$C$42,3,FALSE)))*((VLOOKUP($A12,Systems!$A12:$C$42,3,FALSE)-(VLOOKUP(K$1,Systems!$A$1:$C$42,3,FALSE)))))))) -> 9.219544457 | L12: =SQRT(((VLOOKUP($A12,Systems!$A12:$C$42,2,FALSE)-(VLOOKUP(L$1,Systems!$A$1:$C$42,2,FALSE)))*((VLOOKUP($A12,Systems!$A12:$C$42,2,FALSE)-(VLOOKUP(L$1,Systems!$A$1:$C$42,2,FALSE))))+(((VLOOKUP($A12,Systems!$A12:$C$42,3,FALSE)-(VLOOKUP(L$1,Systems!$A$1:$C$42,3,FALSE)))*((VLOOKUP($A12,Systems!$A12:$C$42,3,FALSE)-(VLOOKUP(L$1,Systems!$A$1:$C$42,3,FALSE)))))))) -> 0 | M12: =SQRT(((VLOOKUP($A12,Systems!$A12:$C$42,2,FALSE)-(VLOOKUP(M$1,Systems!$A$1:$C$42,2,FALSE)))*((VLOOKUP($A12,Systems!$A12:$C$42,2,FALSE)-(VLOOKUP(M$1,Systems!$A$1:$C$42,2,FALSE))))+(((VLOOKUP($A12,Systems!$A12:$C$42,3,FALSE)-(VLOOKUP(M$1,Systems!$A$1:$C$42,3,FALSE)))*((VLOOKUP($A12,Systems!$A12:$C$42,3,FALSE)-(VLOOKUP(M$1,Systems!$A$1:$C$42,3,FALSE)))))))) -> 10 | N12: =SQRT(((VLOOKUP($A12,Systems!$A12:$C$42,2,FALSE)-(VLOOKUP(N$1,Systems!$A$1:$C$42,2,FALSE)))*((VLOOKUP($A12,Systems!$A12:$C$42,2,FALSE)-(VLOOKUP(N$1,Systems!$A$1:$C$42,2,FALSE))))+(((VLOOKUP($A12,Systems!$A12:$C$42,3,FALSE)-(VLOOKUP(N$1,Systems!$A$1:$C$42,3,FALSE)))*((VLOOKUP($A12,Systems!$A12:$C$42,3,FALSE)-(VLOOKUP(N$1,Systems!$A$1:$C$42,3,FALSE)))))))) -> 23.76972865 | O12: =SQRT(((VLOOKUP($A12,Systems!$A12:$C$42,2,FALSE)-(VLOOKUP(O$1,Systems!$A$1:$C$42,2,FALSE)))*((VLOOKUP($A12,Systems!$A12:$C$42,2,FALSE)-(VLOOKUP(O$1,Systems!$A$1:$C$42,2,FALSE))))+(((VLOOKUP($A12,Systems!$A12:$C$42,3,FALSE)-(VLOOKUP(O$1,Systems!$A$1:$C$42,3,FALSE)))*((VLOOKUP($A12,Systems!$A12:$C$42,3,FALSE)-(VLOOKUP(O$1,Systems!$A$1:$C$42,3,FALSE)))))))) -> 7.280109889 | P12: =SQRT(((VLOOKUP($A12,Systems!$A12:$C$42,2,FALSE)-(VLOOKUP(P$1,Systems!$A$1:$C$42,2,FALSE)))*((VLOOKUP($A12,Systems!$A12:$C$42,2,FALSE)-(VLOOKUP(P$1,Systems!$A$1:$C$42,2,FALSE))))+(((VLOOKUP($A12,Systems!$A12:$C$42,3,FALSE)-(VLOOKUP(P$1,Systems!$A$1:$C$42,3,FALSE)))*((VLOOKUP($A12,Systems!$A12:$C$42,3,FALSE)-(VLOOKUP(P$1,Systems!$A$1:$C$42,3,FALSE)))))))) -> 12.08304597 | Q12: =SQRT(((VLOOKUP($A12,Systems!$A12:$C$42,2,FALSE)-(VLOOKUP(Q$1,Systems!$A$1:$C$42,2,FALSE)))*((VLOOKUP($A12,Systems!$A12:$C$42,2,FALSE)-(VLOOKUP(Q$1,Systems!$A$1:$C$42,2,FALSE))))+(((VLOOKUP($A12,Systems!$A12:$C$42,3,FALSE)-(VLOOKUP(Q$1,Systems!$A$1:$C$42,3,FALSE)))*((VLOOKUP($A12,Systems!$A12:$C$42,3,FALSE)-(VLOOKUP(Q$1,Systems!$A$1:$C$42,3,FALSE)))))))) -> 23.32380758 | R12: =SQRT(((VLOOKUP($A12,Systems!$A12:$C$42,2,FALSE)-(VLOOKUP(R$1,Systems!$A$1:$C$42,2,FALSE)))*((VLOOKUP($A12,Systems!$A12:$C$42,2,FALSE)-(VLOOKUP(R$1,Systems!$A$1:$C$42,2,FALSE))))+(((VLOOKUP($A12,Systems!$A12:$C$42,3,FALSE)-(VLOOKUP(R$1,Systems!$A$1:$C$42,3,FALSE)))*((VLOOKUP($A12,Systems!$A12:$C$42,3,FALSE)-(VLOOKUP(R$1,Systems!$A$1:$C$42,3,FALSE)))))))) -> 14 | S12: =SQRT(((VLOOKUP($A12,Systems!$A12:$C$42,2,FALSE)-(VLOOKUP(S$1,Systems!$A$1:$C$42,2,FALSE)))*((VLOOKUP($A12,Systems!$A12:$C$42,2,FALSE)-(VLOOKUP(S$1,Systems!$A$1:$C$42,2,FALSE))))+(((VLOOKUP($A12,Systems!$A12:$C$42,3,FALSE)-(VLOOKUP(S$1,Systems!$A$1:$C$42,3,FALSE)))*((VLOOKUP($A12,Systems!$A12:$C$42,3,FALSE)-(VLOOKUP(S$1,Systems!$A$1:$C$42,3,FALSE)))))))) -> 11.70469991 | T12: =SQRT(((VLOOKUP($A12,Systems!$A12:$C$42,2,FALSE)-(VLOOKUP(T$1,Systems!$A$1:$C$42,2,FALSE)))*((VLOOKUP($A12,Systems!$A12:$C$42,2,FALSE)-(VLOOKUP(T$1,Systems!$A$1:$C$42,2,FALSE))))+(((VLOOKUP($A12,Systems!$A12:$C$42,3,FALSE)-(VLOOKUP(T$1,Systems!$A$1:$C$42,3,FALSE)))*((VLOOKUP($A12,Systems!$A12:$C$42,3,FALSE)-(VLOOKUP(T$1,Systems!$A$1:$C$42,3,FALSE)))))))) -> 13.45362405 | U12: =SQRT(((VLOOKUP($A12,Systems!$A12:$C$42,2,FALSE)-(VLOOKUP(U$1,Systems!$A$1:$C$42,2,FALSE)))*((VLOOKUP($A12,Systems!$A12:$C$42,2,FALSE)-(VLOOKUP(U$1,Systems!$A$1:$C$42,2,FALSE))))+(((VLOOKUP($A12,Systems!$A12:$C$42,3,FALSE)-(VLOOKUP(U$1,Systems!$A$1:$C$42,3,FALSE)))*((VLOOKUP($A12,Systems!$A12:$C$42,3,FALSE)-(VLOOKUP(U$1,Systems!$A$1:$C$42,3,FALSE)))))))) -> 11.66190379 | V12: =SQRT(((VLOOKUP($A12,Systems!$A12:$C$42,2,FALSE)-(VLOOKUP(V$1,Systems!$A$1:$C$42,2,FALSE)))*((VLOOKUP($A12,Systems!$A12:$C$42,2,FALSE)-(VLOOKUP(V$1,Systems!$A$1:$C$42,2,FALSE))))+(((VLOOKUP($A12,Systems!$A12:$C$42,3,FALSE)-(VLOOKUP(V$1,Systems!$A$1:$C$42,3,FALSE)))*((VLOOKUP($A12,Systems!$A12:$C$42,3,FALSE)-(VLOOKUP(V$1,Systems!$A$1:$C$42,3,FALSE)))))))) -> 12.20655562 | W12: =SQRT(((VLOOKUP($A12,Systems!$A12:$C$42,2,FALSE)-(VLOOKUP(W$1,Systems!$A$1:$C$42,2,FALSE)))*((VLOOKUP($A12,Systems!$A12:$C$42,2,FALSE)-(VLOOKUP(W$1,Systems!$A$1:$C$42,2,FALSE))))+(((VLOOKUP($A12,Systems!$A12:$C$42,3,FALSE)-(VLOOKUP(W$1,Systems!$A$1:$C$42,3,FALSE)))*((VLOOKUP($A12,Systems!$A12:$C$42,3,FALSE)-(VLOOKUP(W$1,Systems!$A$1:$C$42,3,FALSE)))))))) -> 36.23534186 | X12: =SQRT(((VLOOKUP($A12,Systems!$A12:$C$42,2,FALSE)-(VLOOKUP(X$1,Systems!$A$1:$C$42,2,FALSE)))*((VLOOKUP($A12,Systems!$A12:$C$42,2,FALSE)-(VLOOKUP(X$1,Systems!$A$1:$C$42,2,FALSE))))+(((VLOOKUP($A12,Systems!$A12:$C$42,3,FALSE)-(VLOOKUP(X$1,Systems!$A$1:$C$42,3,FALSE)))*((VLOOKUP($A12,Systems!$A12:$C$42,3,FALSE)-(VLOOKUP(X$1,Systems!$A$1:$C$42,3,FALSE)))))))) -> 27.07397274 | Y12: =SQRT(((VLOOKUP($A12,Systems!$A12:$C$42,2,FALSE)-(VLOOKUP(Y$1,Systems!$A$1:$C$42,2,FALSE)))*((VLOOKUP($A12,Systems!$A12:$C$42,2,FALSE)-(VLOOKUP(Y$1,Systems!$A$1:$C$42,2,FALSE))))+(((VLOOKUP($A12,Systems!$A12:$C$42,3,FALSE)-(VLOOKUP(Y$1,Systems!$A$1:$C$42,3,FALSE)))*((VLOOKUP($A12,Systems!$A12:$C$42,3,FALSE)-(VLOOKUP(Y$1,Systems!$A$1:$C$42,3,FALSE)))))))) -> 5.656854249 | Z12: =SQRT(((VLOOKUP($A12,Systems!$A12:$C$42,2,FALSE)-(VLOOKUP(Z$1,Systems!$A$1:$C$42,2,FALSE)))*((VLOOKUP($A12,Systems!$A12:$C$42,2,FALSE)-(VLOOKUP(Z$1,Systems!$A$1:$C$42,2,FALSE))))+(((VLOOKUP($A12,Systems!$A12:$C$42,3,FALSE)-(VLOOKUP(Z$1,Systems!$A$1:$C$42,3,FALSE)))*((VLOOKUP($A12,Systems!$A12:$C$42,3,FALSE)-(VLOOKUP(Z$1,Systems!$A$1:$C$42,3,FALSE)))))))) -> 19.10497317 | AA12: =SQRT(((VLOOKUP($A12,Systems!$A12:$C$42,2,FALSE)-(VLOOKUP(AA$1,Systems!$A$1:$C$42,2,FALSE)))*((VLOOKUP($A12,Systems!$A12:$C$42,2,FALSE)-(VLOOKUP(AA$1,Systems!$A$1:$C$42,2,FALSE))))+(((VLOOKUP($A12,Systems!$A12:$C$42,3,FALSE)-(VLOOKUP(AA$1,Systems!$A$1:$C$42,3,FALSE)))*((VLOOKUP($A12,Systems!$A12:$C$42,3,FALSE)-(VLOOKUP(AA$1,Systems!$A$1:$C$42,3,FALSE)))))))) -> 19.6977156 | AB12: =SQRT(((VLOOKUP($A12,Systems!$A12:$C$42,2,FALSE)-(VLOOKUP(AB$1,Systems!$A$1:$C$42,2,FALSE)))*((VLOOKUP($A12,Systems!$A12:$C$42,2,FALSE)-(VLOOKUP(AB$1,Systems!$A$1:$C$42,2,FALSE))))+(((VLOOKUP($A12,Systems!$A12:$C$42,3,FALSE)-(VLOOKUP(AB$1,Systems!$A$1:$C$42,3,FALSE)))*((VLOOKUP($A12,Systems!$A12:$C$42,3,FALSE)-(VLOOKUP(AB$1,Systems!$A$1:$C$42,3,FALSE)))))))) -> 19.6468827 | AC12: =SQRT(((VLOOKUP($A12,Systems!$A12:$C$42,2,FALSE)-(VLOOKUP(AC$1,Systems!$A$1:$C$42,2,FALSE)))*((VLOOKUP($A12,Systems!$A12:$C$42,2,FALSE)-(VLOOKUP(AC$1,Systems!$A$1:$C$42,2,FALSE))))+(((VLOOKUP($A12,Systems!$A12:$C$42,3,FALSE)-(VLOOKUP(AC$1,Systems!$A$1:$C$42,3,FALSE)))*((VLOOKUP($A12,Systems!$A12:$C$42,3,FALSE)-(VLOOKUP(AC$1,Systems!$A$1:$C$42,3,FALSE)))))))) -> 18.97366596 | AD12: =SQRT(((VLOOKUP($A12,Systems!$A12:$C$42,2,FALSE)-(VLOOKUP(AD$1,Systems!$A$1:$C$42,2,FALSE)))*((VLOOKUP($A12,Systems!$A12:$C$42,2,FALSE)-(VLOOKUP(AD$1,Systems!$A$1:$C$42,2,FALSE))))+(((VLOOKUP($A12,Systems!$A12:$C$42,3,FALSE)-(VLOOKUP(AD$1,Systems!$A$1:$C$42,3,FALSE)))*((VLOOKUP($A12,Systems!$A12:$C$42,3,FALSE)-(VLOOKUP(AD$1,Systems!$A$1:$C$42,3,FALSE)))))))) -> 9.486832981 | AE12: =SQRT(((VLOOKUP($A12,Systems!$A12:$C$42,2,FALSE)-(VLOOKUP(AE$1,Systems!$A$1:$C$42,2,FALSE)))*((VLOOKUP($A12,Systems!$A12:$C$42,2,FALSE)-(VLOOKUP(AE$1,Systems!$A$1:$C$42,2,FALSE))))+(((VLOOKUP($A12,Systems!$A12:$C$42,3,FALSE)-(VLOOKUP(AE$1,Systems!$A$1:$C$42,3,FALSE)))*((VLOOKUP($A12,Systems!$A12:$C$42,3,FALSE)-(VLOOKUP(AE$1,Systems!$A$1:$C$42,3,FALSE)))))))) -> 28.8444102 | AF12: =SQRT(((VLOOKUP($A12,Systems!$A12:$C$42,2,FALSE)-(VLOOKUP(AF$1,Systems!$A$1:$C$42,2,FALSE)))*((VLOOKUP($A12,Systems!$A12:$C$42,2,FALSE)-(VLOOKUP(AF$1,Systems!$A$1:$C$42,2,FALSE))))+(((VLOOKUP($A12,Systems!$A12:$C$42,3,FALSE)-(VLOOKUP(AF$1,Systems!$A$1:$C$42,3,FALSE)))*((VLOOKUP($A12,Systems!$A12:$C$42,3,FALSE)-(VLOOKUP(AF$1,Systems!$A$1:$C$42,3,FALSE)))))))) -> 20.39607805 | AG12: =SQRT(((VLOOKUP($A12,Systems!$A12:$C$42,2,FALSE)-(VLOOKUP(AG$1,Systems!$A$1:$C$42,2,FALSE)))*((VLOOKUP($A12,Systems!$A12:$C$42,2,FALSE)-(VLOOKUP(AG$1,Systems!$A$1:$C$42,2,FALSE))))+(((VLOOKUP($A12,Systems!$A12:$C$42,3,FALSE)-(VLOOKUP(AG$1,Systems!$A$1:$C$42,3,FALSE)))*((VLOOKUP($A12,Systems!$A12:$C$42,3,FALSE)-(VLOOKUP(AG$1,Systems!$A$1:$C$42,3,FALSE)))))))) -> 19.23538406 | AH12: =SQRT(((VLOOKUP($A12,Systems!$A12:$C$42,2,FALSE)-(VLOOKUP(AH$1,Systems!$A$1:$C$42,2,FALSE)))*((VLOOKUP($A12,Systems!$A12:$C$42,2,FALSE)-(VLOOKUP(AH$1,Systems!$A$1:$C$42,2,FALSE))))+(((VLOOKUP($A12,Systems!$A12:$C$42,3,FALSE)-(VLOOKUP(AH$1,Systems!$A$1:$C$42,3,FALSE)))*((VLOOKUP($A12,Systems!$A12:$C$42,3,FALSE)-(VLOOKUP(AH$1,Systems!$A$1:$C$42,3,FALSE)))))))) -> 26.87005769 | AI12: =SQRT(((VLOOKUP($A12,Systems!$A12:$C$42,2,FALSE)-(VLOOKUP(AI$1,Systems!$A$1:$C$42,2,FALSE)))*((VLOOKUP($A12,Systems!$A12:$C$42,2,FALSE)-(VLOOKUP(AI$1,Systems!$A$1:$C$42,2,FALSE))))+(((VLOOKUP($A12,Systems!$A12:$C$42,3,FALSE)-(VLOOKUP(AI$1,Systems!$A$1:$C$42,3,FALSE)))*((VLOOKUP($A12,Systems!$A12:$C$42,3,FALSE)-(VLOOKUP(AI$1,Systems!$A$1:$C$42,3,FALSE)))))))) -> 27.85677655 | AJ12: =SQRT(((VLOOKUP($A12,Systems!$A12:$C$42,2,FALSE)-(VLOOKUP(AJ$1,Systems!$A$1:$C$42,2,FALSE)))*((VLOOKUP($A12,Systems!$A12:$C$42,2,FALSE)-(VLOOKUP(AJ$1,Systems!$A$1:$C$42,2,FALSE))))+(((VLOOKUP($A12,Systems!$A12:$C$42,3,FALSE)-(VLOOKUP(AJ$1,Systems!$A$1:$C$42,3,FALSE)))*((VLOOKUP($A12,Systems!$A12:$C$42,3,FALSE)-(VLOOKUP(AJ$1,Systems!$A$1:$C$42,3,FALSE)))))))) -> 23.02172887 | AK12: =SQRT(((VLOOKUP($A12,Systems!$A12:$C$42,2,FALSE)-(VLOOKUP(AK$1,Systems!$A$1:$C$42,2,FALSE)))*((VLOOKUP($A12,Systems!$A12:$C$42,2,FALSE)-(VLOOKUP(AK$1,Systems!$A$1:$C$42,2,FALSE))))+(((VLOOKUP($A12,Systems!$A12:$C$42,3,FALSE)-(VLOOKUP(AK$1,Systems!$A$1:$C$42,3,FALSE)))*((VLOOKUP($A12,Systems!$A12:$C$42,3,FALSE)-(VLOOKUP(AK$1,Systems!$A$1:$C$42,3,FALSE)))))))) -> 16.03121954 | AL12: =SQRT(((VLOOKUP($A12,Systems!$A12:$C$42,2,FALSE)-(VLOOKUP(AL$1,Systems!$A$1:$C$42,2,FALSE)))*((VLOOKUP($A12,Systems!$A12:$C$42,2,FALSE)-(VLOOKUP(AL$1,Systems!$A$1:$C$42,2,FALSE))))+(((VLOOKUP($A12,Systems!$A12:$C$42,3,FALSE)-(VLOOKUP(AL$1,Systems!$A$1:$C$42,3,FALSE)))*((VLOOKUP($A12,Systems!$A12:$C$42,3,FALSE)-(VLOOKUP(AL$1,Systems!$A$1:$C$42,3,FALSE)))))))) -> 19.79898987 | AM12: =SQRT(((VLOOKUP($A12,Systems!$A12:$C$42,2,FALSE)-(VLOOKUP(AM$1,Systems!$A$1:$C$42,2,FALSE)))*((VLOOKUP($A12,Systems!$A12:$C$42,2,FALSE)-(VLOOKUP(AM$1,Systems!$A$1:$C$42,2,FALSE))))+(((VLOOKUP($A12,Systems!$A12:$C$42,3,FALSE)-(VLOOKUP(AM$1,Systems!$A$1:$C$42,3,FALSE)))*((VLOOKUP($A12,Systems!$A12:$C$42,3,FALSE)-(VLOOKUP(AM$1,Systems!$A$1:$C$42,3,FALSE)))))))) -> 8.062257748 | AN12: =SQRT(((VLOOKUP($A12,Systems!$A12:$C$42,2,FALSE)-(VLOOKUP(AN$1,Systems!$A$1:$C$42,2,FALSE)))*((VLOOKUP($A12,Systems!$A12:$C$42,2,FALSE)-(VLOOKUP(AN$1,Systems!$A$1:$C$42,2,FALSE))))+(((VLOOKUP($A12,Systems!$A12:$C$42,3,FALSE)-(VLOOKUP(AN$1,Systems!$A$1:$C$42,3,FALSE)))*((VLOOKUP($A12,Systems!$A12:$C$42,3,FALSE)-(VLOOKUP(AN$1,Systems!$A$1:$C$42,3,FALSE)))))))) -> 32.44996148 | AO12: =SQRT(((VLOOKUP($A12,Systems!$A12:$C$42,2,FALSE)-(VLOOKUP(AO$1,Systems!$A$1:$C$42,2,FALSE)))*((VLOOKUP($A12,Systems!$A12:$C$42,2,FALSE)-(VLOOKUP(AO$1,Systems!$A$1:$C$42,2,FALSE))))+(((VLOOKUP($A12,Systems!$A12:$C$42,3,FALSE)-(VLOOKUP(AO$1,Systems!$A$1:$C$42,3,FALSE)))*((VLOOKUP($A12,Systems!$A12:$C$42,3,FALSE)-(VLOOKUP(AO$1,Systems!$A$1:$C$42,3,FALSE)))))))) -> 13.45362405 | AP12: =SQRT(((VLOOKUP($A12,Systems!$A12:$C$42,2,FALSE)-(VLOOKUP(AP$1,Systems!$A$1:$C$42,2,FALSE)))*((VLOOKUP($A12,Systems!$A12:$C$42,2,FALSE)-(VLOOKUP(AP$1,Systems!$A$1:$C$42,2,FALSE))))+(((VLOOKUP($A12,Systems!$A12:$C$42,3,FALSE)-(VLOOKUP(AP$1,Systems!$A$1:$C$42,3,FALSE)))*((VLOOKUP($A12,Systems!$A12:$C$42,3,FALSE)-(VLOOKUP(AP$1,Systems!$A$1:$C$42,3,FALSE)))))))) -> 12.16552506
A13: =Systems!A13 -> Epsilon | B13: =SQRT(((VLOOKUP($A13,Systems!$A13:$C$42,2,FALSE)-(VLOOKUP(B$1,Systems!$A$1:$C$42,2,FALSE)))*((VLOOKUP($A13,Systems!$A13:$C$42,2,FALSE)-(VLOOKUP(B$1,Systems!$A$1:$C$42,2,FALSE))))+(((VLOOKUP($A13,Systems!$A13:$C$42,3,FALSE)-(VLOOKUP(B$1,Systems!$A$1:$C$42,3,FALSE)))*((VLOOKUP($A13,Systems!$A13:$C$42,3,FALSE)-(VLOOKUP(B$1,Systems!$A$1:$C$42,3,FALSE)))))))) -> 17.69180601 | C13: =SQRT(((VLOOKUP($A13,Systems!$A13:$C$42,2,FALSE)-(VLOOKUP(C$1,Systems!$A$1:$C$42,2,FALSE)))*((VLOOKUP($A13,Systems!$A13:$C$42,2,FALSE)-(VLOOKUP(C$1,Systems!$A$1:$C$42,2,FALSE))))+(((VLOOKUP($A13,Systems!$A13:$C$42,3,FALSE)-(VLOOKUP(C$1,Systems!$A$1:$C$42,3,FALSE)))*((VLOOKUP($A13,Systems!$A13:$C$42,3,FALSE)-(VLOOKUP(C$1,Systems!$A$1:$C$42,3,FALSE)))))))) -> 33.54101966 | D13: =SQRT(((VLOOKUP($A13,Systems!$A13:$C$42,2,FALSE)-(VLOOKUP(D$1,Systems!$A$1:$C$42,2,FALSE)))*((VLOOKUP($A13,Systems!$A13:$C$42,2,FALSE)-(VLOOKUP(D$1,Systems!$A$1:$C$42,2,FALSE))))+(((VLOOKUP($A13,Systems!$A13:$C$42,3,FALSE)-(VLOOKUP(D$1,Systems!$A$1:$C$42,3,FALSE)))*((VLOOKUP($A13,Systems!$A13:$C$42,3,FALSE)-(VLOOKUP(D$1,Systems!$A$1:$C$42,3,FALSE)))))))) -> 26 | E13: =SQRT(((VLOOKUP($A13,Systems!$A13:$C$42,2,FALSE)-(VLOOKUP(E$1,Systems!$A$1:$C$42,2,FALSE)))*((VLOOKUP($A13,Systems!$A13:$C$42,2,FALSE)-(VLOOKUP(E$1,Systems!$A$1:$C$42,2,FALSE))))+(((VLOOKUP($A13,Systems!$A13:$C$42,3,FALSE)-(VLOOKUP(E$1,Systems!$A$1:$C$42,3,FALSE)))*((VLOOKUP($A13,Systems!$A13:$C$42,3,FALSE)-(VLOOKUP(E$1,Systems!$A$1:$C$42,3,FALSE)))))))) -> 24.33105012 | F13: =SQRT(((VLOOKUP($A13,Systems!$A13:$C$42,2,FALSE)-(VLOOKUP(F$1,Systems!$A$1:$C$42,2,FALSE)))*((VLOOKUP($A13,Systems!$A13:$C$42,2,FALSE)-(VLOOKUP(F$1,Systems!$A$1:$C$42,2,FALSE))))+(((VLOOKUP($A13,Systems!$A13:$C$42,3,FALSE)-(VLOOKUP(F$1,Systems!$A$1:$C$42,3,FALSE)))*((VLOOKUP($A13,Systems!$A13:$C$42,3,FALSE)-(VLOOKUP(F$1,Systems!$A$1:$C$42,3,FALSE)))))))) -> 31.06444913 | G13: =SQRT(((VLOOKUP($A13,Systems!$A13:$C$42,2,FALSE)-(VLOOKUP(G$1,Systems!$A$1:$C$42,2,FALSE)))*((VLOOKUP($A13,Systems!$A13:$C$42,2,FALSE)-(VLOOKUP(G$1,Systems!$A$1:$C$42,2,FALSE))))+(((VLOOKUP($A13,Systems!$A13:$C$42,3,FALSE)-(VLOOKUP(G$1,Systems!$A$1:$C$42,3,FALSE)))*((VLOOKUP($A13,Systems!$A13:$C$42,3,FALSE)-(VLOOKUP(G$1,Systems!$A$1:$C$42,3,FALSE)))))))) -> 13.15294644 | H13: =SQRT(((VLOOKUP($A13,Systems!$A13:$C$42,2,FALSE)-(VLOOKUP(H$1,Systems!$A$1:$C$42,2,FALSE)))*((VLOOKUP($A13,Systems!$A13:$C$42,2,FALSE)-(VLOOKUP(H$1,Systems!$A$1:$C$42,2,FALSE))))+(((VLOOKUP($A13,Systems!$A13:$C$42,3,FALSE)-(VLOOKUP(H$1,Systems!$A$1:$C$42,3,FALSE)))*((VLOOKUP($A13,Systems!$A13:$C$42,3,FALSE)-(VLOOKUP(H$1,Systems!$A$1:$C$42,3,FALSE)))))))) -> 15.55634919 | I13: =SQRT(((VLOOKUP($A13,Systems!$A13:$C$42,2,FALSE)-(VLOOKUP(I$1,Systems!$A$1:$C$42,2,FALSE)))*((VLOOKUP($A13,Systems!$A13:$C$42,2,FALSE)-(VLOOKUP(I$1,Systems!$A$1:$C$42,2,FALSE))))+(((VLOOKUP($A13,Systems!$A13:$C$42,3,FALSE)-(VLOOKUP(I$1,Systems!$A$1:$C$42,3,FALSE)))*((VLOOKUP($A13,Systems!$A13:$C$42,3,FALSE)-(VLOOKUP(I$1,Systems!$A$1:$C$42,3,FALSE)))))))) -> 12.04159458 | J13: =SQRT(((VLOOKUP($A13,Systems!$A13:$C$42,2,FALSE)-(VLOOKUP(J$1,Systems!$A$1:$C$42,2,FALSE)))*((VLOOKUP($A13,Systems!$A13:$C$42,2,FALSE)-(VLOOKUP(J$1,Systems!$A$1:$C$42,2,FALSE))))+(((VLOOKUP($A13,Systems!$A13:$C$42,3,FALSE)-(VLOOKUP(J$1,Systems!$A$1:$C$42,3,FALSE)))*((VLOOKUP($A13,Systems!$A13:$C$42,3,FALSE)-(VLOOKUP(J$1,Systems!$A$1:$C$42,3,FALSE)))))))) -> 6.32455532 | K13: =SQRT(((VLOOKUP($A13,Systems!$A13:$C$42,2,FALSE)-(VLOOKUP(K$1,Systems!$A$1:$C$42,2,FALSE)))*((VLOOKUP($A13,Systems!$A13:$C$42,2,FALSE)-(VLOOKUP(K$1,Systems!$A$1:$C$42,2,FALSE))))+(((VLOOKUP($A13,Systems!$A13:$C$42,3,FALSE)-(VLOOKUP(K$1,Systems!$A$1:$C$42,3,FALSE)))*((VLOOKUP($A13,Systems!$A13:$C$42,3,FALSE)-(VLOOKUP(K$1,Systems!$A$1:$C$42,3,FALSE)))))))) -> 18.02775638 | L13: =SQRT(((VLOOKUP($A13,Systems!$A13:$C$42,2,FALSE)-(VLOOKUP(L$1,Systems!$A$1:$C$42,2,FALSE)))*((VLOOKUP($A13,Systems!$A13:$C$42,2,FALSE)-(VLOOKUP(L$1,Systems!$A$1:$C$42,2,FALSE))))+(((VLOOKUP($A13,Systems!$A13:$C$42,3,FALSE)-(VLOOKUP(L$1,Systems!$A$1:$C$42,3,FALSE)))*((VLOOKUP($A13,Systems!$A13:$C$42,3,FALSE)-(VLOOKUP(L$1,Systems!$A$1:$C$42,3,FALSE)))))))) -> 10 | M13: =SQRT(((VLOOKUP($A13,Systems!$A13:$C$42,2,FALSE)-(VLOOKUP(M$1,Systems!$A$1:$C$42,2,FALSE)))*((VLOOKUP($A13,Systems!$A13:$C$42,2,FALSE)-(VLOOKUP(M$1,Systems!$A$1:$C$42,2,FALSE))))+(((VLOOKUP($A13,Systems!$A13:$C$42,3,FALSE)-(VLOOKUP(M$1,Systems!$A$1:$C$42,3,FALSE)))*((VLOOKUP($A13,Systems!$A13:$C$42,3,FALSE)-(VLOOKUP(M$1,Systems!$A$1:$C$42,3,FALSE)))))))) -> 0 | N13: =SQRT(((VLOOKUP($A13,Systems!$A13:$C$42,2,FALSE)-(VLOOKUP(N$1,Systems!$A$1:$C$42,2,FALSE)))*((VLOOKUP($A13,Systems!$A13:$C$42,2,FALSE)-(VLOOKUP(N$1,Systems!$A$1:$C$42,2,FALSE))))+(((VLOOKUP($A13,Systems!$A13:$C$42,3,FALSE)-(VLOOKUP(N$1,Systems!$A$1:$C$42,3,FALSE)))*((VLOOKUP($A13,Systems!$A13:$C$42,3,FALSE)-(VLOOKUP(N$1,Systems!$A$1:$C$42,3,FALSE)))))))) -> 33.24154028 | O13: =SQRT(((VLOOKUP($A13,Systems!$A13:$C$42,2,FALSE)-(VLOOKUP(O$1,Systems!$A$1:$C$42,2,FALSE)))*((VLOOKUP($A13,Systems!$A13:$C$42,2,FALSE)-(VLOOKUP(O$1,Systems!$A$1:$C$42,2,FALSE))))+(((VLOOKUP($A13,Systems!$A13:$C$42,3,FALSE)-(VLOOKUP(O$1,Systems!$A$1:$C$42,3,FALSE)))*((VLOOKUP($A13,Systems!$A13:$C$42,3,FALSE)-(VLOOKUP(O$1,Systems!$A$1:$C$42,3,FALSE)))))))) -> 10.63014581 | P13: =SQRT(((VLOOKUP($A13,Systems!$A13:$C$42,2,FALSE)-(VLOOKUP(P$1,Systems!$A$1:$C$42,2,FALSE)))*((VLOOKUP($A13,Systems!$A13:$C$42,2,FALSE)-(VLOOKUP(P$1,Systems!$A$1:$C$42,2,FALSE))))+(((VLOOKUP($A13,Systems!$A13:$C$42,3,FALSE)-(VLOOKUP(P$1,Systems!$A$1:$C$42,3,FALSE)))*((VLOOKUP($A13,Systems!$A13:$C$42,3,FALSE)-(VLOOKUP(P$1,Systems!$A$1:$C$42,3,FALSE)))))))) -> 12.08304597 | Q13: =SQRT(((VLOOKUP($A13,Systems!$A13:$C$42,2,FALSE)-(VLOOKUP(Q$1,Systems!$A$1:$C$42,2,FALSE)))*((VLOOKUP($A13,Systems!$A13:$C$42,2,FALSE)-(VLOOKUP(Q$1,Systems!$A$1:$C$42,2,FALSE))))+(((VLOOKUP($A13,Systems!$A13:$C$42,3,FALSE)-(VLOOKUP(Q$1,Systems!$A$1:$C$42,3,FALSE)))*((VLOOKUP($A13,Systems!$A13:$C$42,3,FALSE)-(VLOOKUP(Q$1,Systems!$A$1:$C$42,3,FALSE)))))))) -> 29.73213749 | R13: =SQRT(((VLOOKUP($A13,Systems!$A13:$C$42,2,FALSE)-(VLOOKUP(R$1,Systems!$A$1:$C$42,2,FALSE)))*((VLOOKUP($A13,Systems!$A13:$C$42,2,FALSE)-(VLOOKUP(R$1,Systems!$A$1:$C$42,2,FALSE))))+(((VLOOKUP($A13,Systems!$A13:$C$42,3,FALSE)-(VLOOKUP(R$1,Systems!$A$1:$C$42,3,FALSE)))*((VLOOKUP($A13,Systems!$A13:$C$42,3,FALSE)-(VLOOKUP(R$1,Systems!$A$1:$C$42,3,FALSE)))))))) -> 4 | S13: =SQRT(((VLOOKUP($A13,Systems!$A13:$C$42,2,FALSE)-(VLOOKUP(S$1,Systems!$A$1:$C$42,2,FALSE)))*((VLOOKUP($A13,Systems!$A13:$C$42,2,FALSE)-(VLOOKUP(S$1,Systems!$A$1:$C$42,2,FALSE))))+(((VLOOKUP($A13,Systems!$A13:$C$42,3,FALSE)-(VLOOKUP(S$1,Systems!$A$1:$C$42,3,FALSE)))*((VLOOKUP($A13,Systems!$A13:$C$42,3,FALSE)-(VLOOKUP(S$1,Systems!$A$1:$C$42,3,FALSE)))))))) -> 4.123105626 | T13: =SQRT(((VLOOKUP($A13,Systems!$A13:$C$42,2,FALSE)-(VLOOKUP(T$1,Systems!$A$1:$C$42,2,FALSE)))*((VLOOKUP($A13,Systems!$A13:$C$42,2,FALSE)-(VLOOKUP(T$1,Systems!$A$1:$C$42,2,FALSE))))+(((VLOOKUP($A13,Systems!$A13:$C$42,3,FALSE)-(VLOOKUP(T$1,Systems!$A$1:$C$42,3,FALSE)))*((VLOOKUP($A13,Systems!$A13:$C$42,3,FALSE)-(VLOOKUP(T$1,Systems!$A$1:$C$42,3,FALSE)))))))) -> 21.9317122 | U13: =SQRT(((VLOOKUP($A13,Systems!$A13:$C$42,2,FALSE)-(VLOOKUP(U$1,Systems!$A$1:$C$42,2,FALSE)))*((VLOOKUP($A13,Systems!$A13:$C$42,2,FALSE)-(VLOOKUP(U$1,Systems!$A$1:$C$42,2,FALSE))))+(((VLOOKUP($A13,Systems!$A13:$C$42,3,FALSE)-(VLOOKUP(U$1,Systems!$A$1:$C$42,3,FALSE)))*((VLOOKUP($A13,Systems!$A13:$C$42,3,FALSE)-(VLOOKUP(U$1,Systems!$A$1:$C$42,3,FALSE)))))))) -> 6 | V13: =SQRT(((VLOOKUP($A13,Systems!$A13:$C$42,2,FALSE)-(VLOOKUP(V$1,Systems!$A$1:$C$42,2,FALSE)))*((VLOOKUP($A13,Systems!$A13:$C$42,2,FALSE)-(VLOOKUP(V$1,Systems!$A$1:$C$42,2,FALSE))))+(((VLOOKUP($A13,Systems!$A13:$C$42,3,FALSE)-(VLOOKUP(V$1,Systems!$A$1:$C$42,3,FALSE)))*((VLOOKUP($A13,Systems!$A13:$C$42,3,FALSE)-(VLOOKUP(V$1,Systems!$A$1:$C$42,3,FALSE)))))))) -> 10.44030651 | W13: =SQRT(((VLOOKUP($A13,Systems!$A13:$C$42,2,FALSE)-(VLOOKUP(W$1,Systems!$A$1:$C$42,2,FALSE)))*((VLOOKUP($A13,Systems!$A13:$C$42,2,FALSE)-(VLOOKUP(W$1,Systems!$A$1:$C$42,2,FALSE))))+(((VLOOKUP($A13,Systems!$A13:$C$42,3,FALSE)-(VLOOKUP(W$1,Systems!$A$1:$C$42,3,FALSE)))*((VLOOKUP($A13,Systems!$A13:$C$42,3,FALSE)-(VLOOKUP(W$1,Systems!$A$1:$C$42,3,FALSE)))))))) -> 30.87069808 | X13: =SQRT(((VLOOKUP($A13,Systems!$A13:$C$42,2,FALSE)-(VLOOKUP(X$1,Systems!$A$1:$C$42,2,FALSE)))*((VLOOKUP($A13,Systems!$A13:$C$42,2,FALSE)-(VLOOKUP(X$1,Systems!$A$1:$C$42,2,FALSE))))+(((VLOOKUP($A13,Systems!$A13:$C$42,3,FALSE)-(VLOOKUP(X$1,Systems!$A$1:$C$42,3,FALSE)))*((VLOOKUP($A13,Systems!$A13:$C$42,3,FALSE)-(VLOOKUP(X$1,Systems!$A$1:$C$42,3,FALSE)))))))) -> 28.16025568 | Y13: =SQRT(((VLOOKUP($A13,Systems!$A13:$C$42,2,FALSE)-(VLOOKUP(Y$1,Systems!$A$1:$C$42,2,FALSE)))*((VLOOKUP($A13,Systems!$A13:$C$42,2,FALSE)-(VLOOKUP(Y$1,Systems!$A$1:$C$42,2,FALSE))))+(((VLOOKUP($A13,Systems!$A13:$C$42,3,FALSE)-(VLOOKUP(Y$1,Systems!$A$1:$C$42,3,FALSE)))*((VLOOKUP($A13,Systems!$A13:$C$42,3,FALSE)-(VLOOKUP(Y$1,Systems!$A$1:$C$42,3,FALSE)))))))) -> 7.211102551 | Z13: =SQRT(((VLOOKUP($A13,Systems!$A13:$C$42,2,FALSE)-(VLOOKUP(Z$1,Systems!$A$1:$C$42,2,FALSE)))*((VLOOKUP($A13,Systems!$A13:$C$42,2,FALSE)-(VLOOKUP(Z$1,Systems!$A$1:$C$42,2,FALSE))))+(((VLOOKUP($A13,Systems!$A13:$C$42,3,FALSE)-(VLOOKUP(Z$1,Systems!$A$1:$C$42,3,FALSE)))*((VLOOKUP($A13,Systems!$A13:$C$42,3,FALSE)-(VLOOKUP(Z$1,Systems!$A$1:$C$42,3,FALSE)))))))) -> 29.06888371 | AA13: =SQRT(((VLOOKUP($A13,Systems!$A13:$C$42,2,FALSE)-(VLOOKUP(AA$1,Systems!$A$1:$C$42,2,FALSE)))*((VLOOKUP($A13,Systems!$A13:$C$42,2,FALSE)-(VLOOKUP(AA$1,Systems!$A$1:$C$42,2,FALSE))))+(((VLOOKUP($A13,Systems!$A13:$C$42,3,FALSE)-(VLOOKUP(AA$1,Systems!$A$1:$C$42,3,FALSE)))*((VLOOKUP($A13,Systems!$A13:$C$42,3,FALSE)-(VLOOKUP(AA$1,Systems!$A$1:$C$42,3,FALSE)))))))) -> 18.11077028 | AB13: =SQRT(((VLOOKUP($A13,Systems!$A13:$C$42,2,FALSE)-(VLOOKUP(AB$1,Systems!$A$1:$C$42,2,FALSE)))*((VLOOKUP($A13,Systems!$A13:$C$42,2,FALSE)-(VLOOKUP(AB$1,Systems!$A$1:$C$42,2,FALSE))))+(((VLOOKUP($A13,Systems!$A13:$C$42,3,FALSE)-(VLOOKUP(AB$1,Systems!$A$1:$C$42,3,FALSE)))*((VLOOKUP($A13,Systems!$A13:$C$42,3,FALSE)-(VLOOKUP(AB$1,Systems!$A$1:$C$42,3,FALSE)))))))) -> 29.42787794 | AC13: =SQRT(((VLOOKUP($A13,Systems!$A13:$C$42,2,FALSE)-(VLOOKUP(AC$1,Systems!$A$1:$C$42,2,FALSE)))*((VLOOKUP($A13,Systems!$A13:$C$42,2,FALSE)-(VLOOKUP(AC$1,Systems!$A$1:$C$42,2,FALSE))))+(((VLOOKUP($A13,Systems!$A13:$C$42,3,FALSE)-(VLOOKUP(AC$1,Systems!$A$1:$C$42,3,FALSE)))*((VLOOKUP($A13,Systems!$A13:$C$42,3,FALSE)-(VLOOKUP(AC$1,Systems!$A$1:$C$42,3,FALSE)))))))) -> 24.08318916 | AD13: =SQRT(((VLOOKUP($A13,Systems!$A13:$C$42,2,FALSE)-(VLOOKUP(AD$1,Systems!$A$1:$C$42,2,FALSE)))*((VLOOKUP($A13,Systems!$A13:$C$42,2,FALSE)-(VLOOKUP(AD$1,Systems!$A$1:$C$42,2,FALSE))))+(((VLOOKUP($A13,Systems!$A13:$C$42,3,FALSE)-(VLOOKUP(AD$1,Systems!$A$1:$C$42,3,FALSE)))*((VLOOKUP($A13,Systems!$A13:$C$42,3,FALSE)-(VLOOKUP(AD$1,Systems!$A$1:$C$42,3,FALSE)))))))) -> 15.8113883 | AE13: =SQRT(((VLOOKUP($A13,Systems!$A13:$C$42,2,FALSE)-(VLOOKUP(AE$1,Systems!$A$1:$C$42,2,FALSE)))*((VLOOKUP($A13,Systems!$A13:$C$42,2,FALSE)-(VLOOKUP(AE$1,Systems!$A$1:$C$42,2,FALSE))))+(((VLOOKUP($A13,Systems!$A13:$C$42,3,FALSE)-(VLOOKUP(AE$1,Systems!$A$1:$C$42,3,FALSE)))*((VLOOKUP($A13,Systems!$A13:$C$42,3,FALSE)-(VLOOKUP(AE$1,Systems!$A$1:$C$42,3,FALSE)))))))) -> 35.38361203 | AF13: =SQRT(((VLOOKUP($A13,Systems!$A13:$C$42,2,FALSE)-(VLOOKUP(AF$1,Systems!$A$1:$C$42,2,FALSE)))*((VLOOKUP($A13,Systems!$A13:$C$42,2,FALSE)-(VLOOKUP(AF$1,Systems!$A$1:$C$42,2,FALSE))))+(((VLOOKUP($A13,Systems!$A13:$C$42,3,FALSE)-(VLOOKUP(AF$1,Systems!$A$1:$C$42,3,FALSE)))*((VLOOKUP($A13,Systems!$A13:$C$42,3,FALSE)-(VLOOKUP(AF$1,Systems!$A$1:$C$42,3,FALSE)))))))) -> 30.2654919 | AG13: =SQRT(((VLOOKUP($A13,Systems!$A13:$C$42,2,FALSE)-(VLOOKUP(AG$1,Systems!$A$1:$C$42,2,FALSE)))*((VLOOKUP($A13,Systems!$A13:$C$42,2,FALSE)-(VLOOKUP(AG$1,Systems!$A$1:$C$42,2,FALSE))))+(((VLOOKUP($A13,Systems!$A13:$C$42,3,FALSE)-(VLOOKUP(AG$1,Systems!$A$1:$C$42,3,FALSE)))*((VLOOKUP($A13,Systems!$A13:$C$42,3,FALSE)-(VLOOKUP(AG$1,Systems!$A$1:$C$42,3,FALSE)))))))) -> 9.486832981 | AH13: =SQRT(((VLOOKUP($A13,Systems!$A13:$C$42,2,FALSE)-(VLOOKUP(AH$1,Systems!$A$1:$C$42,2,FALSE)))*((VLOOKUP($A13,Systems!$A13:$C$42,2,FALSE)-(VLOOKUP(AH$1,Systems!$A$1:$C$42,2,FALSE))))+(((VLOOKUP($A13,Systems!$A13:$C$42,3,FALSE)-(VLOOKUP(AH$1,Systems!$A$1:$C$42,3,FALSE)))*((VLOOKUP($A13,Systems!$A13:$C$42,3,FALSE)-(VLOOKUP(AH$1,Systems!$A$1:$C$42,3,FALSE)))))))) -> 21.02379604 | AI13: =SQRT(((VLOOKUP($A13,Systems!$A13:$C$42,2,FALSE)-(VLOOKUP(AI$1,Systems!$A$1:$C$42,2,FALSE)))*((VLOOKUP($A13,Systems!$A13:$C$42,2,FALSE)-(VLOOKUP(AI$1,Systems!$A$1:$C$42,2,FALSE))))+(((VLOOKUP($A13,Systems!$A13:$C$42,3,FALSE)-(VLOOKUP(AI$1,Systems!$A$1:$C$42,3,FALSE)))*((VLOOKUP($A13,Systems!$A13:$C$42,3,FALSE)-(VLOOKUP(AI$1,Systems!$A$1:$C$42,3,FALSE)))))))) -> 37.36308338 | AJ13: =SQRT(((VLOOKUP($A13,Systems!$A13:$C$42,2,FALSE)-(VLOOKUP(AJ$1,Systems!$A$1:$C$42,2,FALSE)))*((VLOOKUP($A13,Systems!$A13:$C$42,2,FALSE)-(VLOOKUP(AJ$1,Systems!$A$1:$C$42,2,FALSE))))+(((VLOOKUP($A13,Systems!$A13:$C$42,3,FALSE)-(VLOOKUP(AJ$1,Systems!$A$1:$C$42,3,FALSE)))*((VLOOKUP($A13,Systems!$A13:$C$42,3,FALSE)-(VLOOKUP(AJ$1,Systems!$A$1:$C$42,3,FALSE)))))))) -> 19.23538406 | AK13: =SQRT(((VLOOKUP($A13,Systems!$A13:$C$42,2,FALSE)-(VLOOKUP(AK$1,Systems!$A$1:$C$42,2,FALSE)))*((VLOOKUP($A13,Systems!$A13:$C$42,2,FALSE)-(VLOOKUP(AK$1,Systems!$A$1:$C$42,2,FALSE))))+(((VLOOKUP($A13,Systems!$A13:$C$42,3,FALSE)-(VLOOKUP(AK$1,Systems!$A$1:$C$42,3,FALSE)))*((VLOOKUP($A13,Systems!$A13:$C$42,3,FALSE)-(VLOOKUP(AK$1,Systems!$A$1:$C$42,3,FALSE)))))))) -> 18.35755975 | AL13: =SQRT(((VLOOKUP($A13,Systems!$A13:$C$42,2,FALSE)-(VLOOKUP(AL$1,Systems!$A$1:$C$42,2,FALSE)))*((VLOOKUP($A13,Systems!$A13:$C$42,2,FALSE)-(VLOOKUP(AL$1,Systems!$A$1:$C$42,2,FALSE))))+(((VLOOKUP($A13,Systems!$A13:$C$42,3,FALSE)-(VLOOKUP(AL$1,Systems!$A$1:$C$42,3,FALSE)))*((VLOOKUP($A13,Systems!$A13:$C$42,3,FALSE)-(VLOOKUP(AL$1,Systems!$A$1:$C$42,3,FALSE)))))))) -> 14.56021978 | AM13: =SQRT(((VLOOKUP($A13,Systems!$A13:$C$42,2,FALSE)-(VLOOKUP(AM$1,Systems!$A$1:$C$42,2,FALSE)))*((VLOOKUP($A13,Systems!$A13:$C$42,2,FALSE)-(VLOOKUP(AM$1,Systems!$A$1:$C$42,2,FALSE))))+(((VLOOKUP($A13,Systems!$A13:$C$42,3,FALSE)-(VLOOKUP(AM$1,Systems!$A$1:$C$42,3,FALSE)))*((VLOOKUP($A13,Systems!$A13:$C$42,3,FALSE)-(VLOOKUP(AM$1,Systems!$A$1:$C$42,3,FALSE)))))))) -> 18.02775638 | AN13: =SQRT(((VLOOKUP($A13,Systems!$A13:$C$42,2,FALSE)-(VLOOKUP(AN$1,Systems!$A$1:$C$42,2,FALSE)))*((VLOOKUP($A13,Systems!$A13:$C$42,2,FALSE)-(VLOOKUP(AN$1,Systems!$A$1:$C$42,2,FALSE))))+(((VLOOKUP($A13,Systems!$A13:$C$42,3,FALSE)-(VLOOKUP(AN$1,Systems!$A$1:$C$42,3,FALSE)))*((VLOOKUP($A13,Systems!$A13:$C$42,3,FALSE)-(VLOOKUP(AN$1,Systems!$A$1:$C$42,3,FALSE)))))))) -> 28.16025568 | AO13: =SQRT(((VLOOKUP($A13,Systems!$A13:$C$42,2,FALSE)-(VLOOKUP(AO$1,Systems!$A$1:$C$42,2,FALSE)))*((VLOOKUP($A13,Systems!$A13:$C$42,2,FALSE)-(VLOOKUP(AO$1,Systems!$A$1:$C$42,2,FALSE))))+(((VLOOKUP($A13,Systems!$A13:$C$42,3,FALSE)-(VLOOKUP(AO$1,Systems!$A$1:$C$42,3,FALSE)))*((VLOOKUP($A13,Systems!$A13:$C$42,3,FALSE)-(VLOOKUP(AO$1,Systems!$A$1:$C$42,3,FALSE)))))))) -> 10.04987562 | AP13: =SQRT(((VLOOKUP($A13,Systems!$A13:$C$42,2,FALSE)-(VLOOKUP(AP$1,Systems!$A$1:$C$42,2,FALSE)))*((VLOOKUP($A13,Systems!$A13:$C$42,2,FALSE)-(VLOOKUP(AP$1,Systems!$A$1:$C$42,2,FALSE))))+(((VLOOKUP($A13,Systems!$A13:$C$42,3,FALSE)-(VLOOKUP(AP$1,Systems!$A$1:$C$42,3,FALSE)))*((VLOOKUP($A13,Systems!$A13:$C$42,3,FALSE)-(VLOOKUP(AP$1,Systems!$A$1:$C$42,3,FALSE)))))))) -> 22.09072203
A14: =Systems!A14 -> Fochrik | B14: =SQRT(((VLOOKUP($A14,Systems!$A14:$C$42,2,FALSE)-(VLOOKUP(B$1,Systems!$A$1:$C$42,2,FALSE)))*((VLOOKUP($A14,Systems!$A14:$C$42,2,FALSE)-(VLOOKUP(B$1,Systems!$A$1:$C$42,2,FALSE))))+(((VLOOKUP($A14,Systems!$A14:$C$42,3,FALSE)-(VLOOKUP(B$1,Systems!$A$1:$C$42,3,FALSE)))*((VLOOKUP($A14,Systems!$A14:$C$42,3,FALSE)-(VLOOKUP(B$1,Systems!$A$1:$C$42,3,FALSE)))))))) -> 29.73213749 | C14: =SQRT(((VLOOKUP($A14,Systems!$A14:$C$42,2,FALSE)-(VLOOKUP(C$1,Systems!$A$1:$C$42,2,FALSE)))*((VLOOKUP($A14,Systems!$A14:$C$42,2,FALSE)-(VLOOKUP(C$1,Systems!$A$1:$C$42,2,FALSE))))+(((VLOOKUP($A14,Systems!$A14:$C$42,3,FALSE)-(VLOOKUP(C$1,Systems!$A$1:$C$42,3,FALSE)))*((VLOOKUP($A14,Systems!$A14:$C$42,3,FALSE)-(VLOOKUP(C$1,Systems!$A$1:$C$42,3,FALSE)))))))) -> 24.08318916 | D14: =SQRT(((VLOOKUP($A14,Systems!$A14:$C$42,2,FALSE)-(VLOOKUP(D$1,Systems!$A$1:$C$42,2,FALSE)))*((VLOOKUP($A14,Systems!$A14:$C$42,2,FALSE)-(VLOOKUP(D$1,Systems!$A$1:$C$42,2,FALSE))))+(((VLOOKUP($A14,Systems!$A14:$C$42,3,FALSE)-(VLOOKUP(D$1,Systems!$A$1:$C$42,3,FALSE)))*((VLOOKUP($A14,Systems!$A14:$C$42,3,FALSE)-(VLOOKUP(D$1,Systems!$A$1:$C$42,3,FALSE)))))))) -> 20.61552813 | E14: =SQRT(((VLOOKUP($A14,Systems!$A14:$C$42,2,FALSE)-(VLOOKUP(E$1,Systems!$A$1:$C$42,2,FALSE)))*((VLOOKUP($A14,Systems!$A14:$C$42,2,FALSE)-(VLOOKUP(E$1,Systems!$A$1:$C$42,2,FALSE))))+(((VLOOKUP($A14,Systems!$A14:$C$42,3,FALSE)-(VLOOKUP(E$1,Systems!$A$1:$C$42,3,FALSE)))*((VLOOKUP($A14,Systems!$A14:$C$42,3,FALSE)-(VLOOKUP(E$1,Systems!$A$1:$C$42,3,FALSE)))))))) -> 15.26433752 | F14: =SQRT(((VLOOKUP($A14,Systems!$A14:$C$42,2,FALSE)-(VLOOKUP(F$1,Systems!$A$1:$C$42,2,FALSE)))*((VLOOKUP($A14,Systems!$A14:$C$42,2,FALSE)-(VLOOKUP(F$1,Systems!$A$1:$C$42,2,FALSE))))+(((VLOOKUP($A14,Systems!$A14:$C$42,3,FALSE)-(VLOOKUP(F$1,Systems!$A$1:$C$42,3,FALSE)))*((VLOOKUP($A14,Systems!$A14:$C$42,3,FALSE)-(VLOOKUP(F$1,Systems!$A$1:$C$42,3,FALSE)))))))) -> 7.071067812 | G14: =SQRT(((VLOOKUP($A14,Systems!$A14:$C$42,2,FALSE)-(VLOOKUP(G$1,Systems!$A$1:$C$42,2,FALSE)))*((VLOOKUP($A14,Systems!$A14:$C$42,2,FALSE)-(VLOOKUP(G$1,Systems!$A$1:$C$42,2,FALSE))))+(((VLOOKUP($A14,Systems!$A14:$C$42,3,FALSE)-(VLOOKUP(G$1,Systems!$A$1:$C$42,3,FALSE)))*((VLOOKUP($A14,Systems!$A14:$C$42,3,FALSE)-(VLOOKUP(G$1,Systems!$A$1:$C$42,3,FALSE)))))))) -> 21.9544984 | H14: =SQRT(((VLOOKUP($A14,Systems!$A14:$C$42,2,FALSE)-(VLOOKUP(H$1,Systems!$A$1:$C$42,2,FALSE)))*((VLOOKUP($A14,Systems!$A14:$C$42,2,FALSE)-(VLOOKUP(H$1,Systems!$A$1:$C$42,2,FALSE))))+(((VLOOKUP($A14,Systems!$A14:$C$42,3,FALSE)-(VLOOKUP(H$1,Systems!$A$1:$C$42,3,FALSE)))*((VLOOKUP($A14,Systems!$A14:$C$42,3,FALSE)-(VLOOKUP(H$1,Systems!$A$1:$C$42,3,FALSE)))))))) -> 21.09502311 | I14: =SQRT(((VLOOKUP($A14,Systems!$A14:$C$42,2,FALSE)-(VLOOKUP(I$1,Systems!$A$1:$C$42,2,FALSE)))*((VLOOKUP($A14,Systems!$A14:$C$42,2,FALSE)-(VLOOKUP(I$1,Systems!$A$1:$C$42,2,FALSE))))+(((VLOOKUP($A14,Systems!$A14:$C$42,3,FALSE)-(VLOOKUP(I$1,Systems!$A$1:$C$42,3,FALSE)))*((VLOOKUP($A14,Systems!$A14:$C$42,3,FALSE)-(VLOOKUP(I$1,Systems!$A$1:$C$42,3,FALSE)))))))) -> 30 | J14: =SQRT(((VLOOKUP($A14,Systems!$A14:$C$42,2,FALSE)-(VLOOKUP(J$1,Systems!$A$1:$C$42,2,FALSE)))*((VLOOKUP($A14,Systems!$A14:$C$42,2,FALSE)-(VLOOKUP(J$1,Systems!$A$1:$C$42,2,FALSE))))+(((VLOOKUP($A14,Systems!$A14:$C$42,3,FALSE)-(VLOOKUP(J$1,Systems!$A$1:$C$42,3,FALSE)))*((VLOOKUP($A14,Systems!$A14:$C$42,3,FALSE)-(VLOOKUP(J$1,Systems!$A$1:$C$42,3,FALSE)))))))) -> 26.92582404 | K14: =SQRT(((VLOOKUP($A14,Systems!$A14:$C$42,2,FALSE)-(VLOOKUP(K$1,Systems!$A$1:$C$42,2,FALSE)))*((VLOOKUP($A14,Systems!$A14:$C$42,2,FALSE)-(VLOOKUP(K$1,Systems!$A$1:$C$42,2,FALSE))))+(((VLOOKUP($A14,Systems!$A14:$C$42,3,FALSE)-(VLOOKUP(K$1,Systems!$A$1:$C$42,3,FALSE)))*((VLOOKUP($A14,Systems!$A14:$C$42,3,FALSE)-(VLOOKUP(K$1,Systems!$A$1:$C$42,3,FALSE)))))))) -> 21.21320344 | L14: =SQRT(((VLOOKUP($A14,Systems!$A14:$C$42,2,FALSE)-(VLOOKUP(L$1,Systems!$A$1:$C$42,2,FALSE)))*((VLOOKUP($A14,Systems!$A14:$C$42,2,FALSE)-(VLOOKUP(L$1,Systems!$A$1:$C$42,2,FALSE))))+(((VLOOKUP($A14,Systems!$A14:$C$42,3,FALSE)-(VLOOKUP(L$1,Systems!$A$1:$C$42,3,FALSE)))*((VLOOKUP($A14,Systems!$A14:$C$42,3,FALSE)-(VLOOKUP(L$1,Systems!$A$1:$C$42,3,FALSE)))))))) -> 23.76972865 | M14: =SQRT(((VLOOKUP($A14,Systems!$A14:$C$42,2,FALSE)-(VLOOKUP(M$1,Systems!$A$1:$C$42,2,FALSE)))*((VLOOKUP($A14,Systems!$A14:$C$42,2,FALSE)-(VLOOKUP(M$1,Systems!$A$1:$C$42,2,FALSE))))+(((VLOOKUP($A14,Systems!$A14:$C$42,3,FALSE)-(VLOOKUP(M$1,Systems!$A$1:$C$42,3,FALSE)))*((VLOOKUP($A14,Systems!$A14:$C$42,3,FALSE)-(VLOOKUP(M$1,Systems!$A$1:$C$42,3,FALSE)))))))) -> 33.24154028 | N14: =SQRT(((VLOOKUP($A14,Systems!$A14:$C$42,2,FALSE)-(VLOOKUP(N$1,Systems!$A$1:$C$42,2,FALSE)))*((VLOOKUP($A14,Systems!$A14:$C$42,2,FALSE)-(VLOOKUP(N$1,Systems!$A$1:$C$42,2,FALSE))))+(((VLOOKUP($A14,Systems!$A14:$C$42,3,FALSE)-(VLOOKUP(N$1,Systems!$A$1:$C$42,3,FALSE)))*((VLOOKUP($A14,Systems!$A14:$C$42,3,FALSE)-(VLOOKUP(N$1,Systems!$A$1:$C$42,3,FALSE)))))))) -> 0 | O14: =SQRT(((VLOOKUP($A14,Systems!$A14:$C$42,2,FALSE)-(VLOOKUP(O$1,Systems!$A$1:$C$42,2,FALSE)))*((VLOOKUP($A14,Systems!$A14:$C$42,2,FALSE)-(VLOOKUP(O$1,Systems!$A$1:$C$42,2,FALSE))))+(((VLOOKUP($A14,Systems!$A14:$C$42,3,FALSE)-(VLOOKUP(O$1,Systems!$A$1:$C$42,3,FALSE)))*((VLOOKUP($A14,Systems!$A14:$C$42,3,FALSE)-(VLOOKUP(O$1,Systems!$A$1:$C$42,3,FALSE)))))))) -> 24.08318916 | P14: =SQRT(((VLOOKUP($A14,Systems!$A14:$C$42,2,FALSE)-(VLOOKUP(P$1,Systems!$A$1:$C$42,2,FALSE)))*((VLOOKUP($A14,Systems!$A14:$C$42,2,FALSE)-(VLOOKUP(P$1,Systems!$A$1:$C$42,2,FALSE))))+(((VLOOKUP($A14,Systems!$A14:$C$42,3,FALSE)-(VLOOKUP(P$1,Systems!$A$1:$C$42,3,FALSE)))*((VLOOKUP($A14,Systems!$A14:$C$42,3,FALSE)-(VLOOKUP(P$1,Systems!$A$1:$C$42,3,FALSE)))))))) -> 33.60059523 | Q14: =SQRT(((VLOOKUP($A14,Systems!$A14:$C$42,2,FALSE)-(VLOOKUP(Q$1,Systems!$A$1:$C$42,2,FALSE)))*((VLOOKUP($A14,Systems!$A14:$C$42,2,FALSE)-(VLOOKUP(Q$1,Systems!$A$1:$C$42,2,FALSE))))+(((VLOOKUP($A14,Systems!$A14:$C$42,3,FALSE)-(VLOOKUP(Q$1,Systems!$A$1:$C$42,3,FALSE)))*((VLOOKUP($A14,Systems!$A14:$C$42,3,FALSE)-(VLOOKUP(Q$1,Systems!$A$1:$C$42,3,FALSE)))))))) -> 30.6757233 | R14: =SQRT(((VLOOKUP($A14,Systems!$A14:$C$42,2,FALSE)-(VLOOKUP(R$1,Systems!$A$1:$C$42,2,FALSE)))*((VLOOKUP($A14,Systems!$A14:$C$42,2,FALSE)-(VLOOKUP(R$1,Systems!$A$1:$C$42,2,FALSE))))+(((VLOOKUP($A14,Systems!$A14:$C$42,3,FALSE)-(VLOOKUP(R$1,Systems!$A$1:$C$42,3,FALSE)))*((VLOOKUP($A14,Systems!$A14:$C$42,3,FALSE)-(VLOOKUP(R$1,Systems!$A$1:$C$42,3,FALSE)))))))) -> 37.10795063 | S14: =SQRT(((VLOOKUP($A14,Systems!$A14:$C$42,2,FALSE)-(VLOOKUP(S$1,Systems!$A$1:$C$42,2,FALSE)))*((VLOOKUP($A14,Systems!$A14:$C$42,2,FALSE)-(VLOOKUP(S$1,Systems!$A$1:$C$42,2,FALSE))))+(((VLOOKUP($A14,Systems!$A14:$C$42,3,FALSE)-(VLOOKUP(S$1,Systems!$A$1:$C$42,3,FALSE)))*((VLOOKUP($A14,Systems!$A14:$C$42,3,FALSE)-(VLOOKUP(S$1,Systems!$A$1:$C$42,3,FALSE)))))))) -> 35.4682957 | T14: =SQRT(((VLOOKUP($A14,Systems!$A14:$C$42,2,FALSE)-(VLOOKUP(T$1,Systems!$A$1:$C$42,2,FALSE)))*((VLOOKUP($A14,Systems!$A14:$C$42,2,FALSE)-(VLOOKUP(T$1,Systems!$A$1:$C$42,2,FALSE))))+(((VLOOKUP($A14,Systems!$A14:$C$42,3,FALSE)-(VLOOKUP(T$1,Systems!$A$1:$C$42,3,FALSE)))*((VLOOKUP($A14,Systems!$A14:$C$42,3,FALSE)-(VLOOKUP(T$1,Systems!$A$1:$C$42,3,FALSE)))))))) -> 12 | U14: =SQRT(((VLOOKUP($A14,Systems!$A14:$C$42,2,FALSE)-(VLOOKUP(U$1,Systems!$A$1:$C$42,2,FALSE)))*((VLOOKUP($A14,Systems!$A14:$C$42,2,FALSE)-(VLOOKUP(U$1,Systems!$A$1:$C$42,2,FALSE))))+(((VLOOKUP($A14,Systems!$A14:$C$42,3,FALSE)-(VLOOKUP(U$1,Systems!$A$1:$C$42,3,FALSE)))*((VLOOKUP($A14,Systems!$A14:$C$42,3,FALSE)-(VLOOKUP(U$1,Systems!$A$1:$C$42,3,FALSE)))))))) -> 32.14031736 | V14: =SQRT(((VLOOKUP($A14,Systems!$A14:$C$42,2,FALSE)-(VLOOKUP(V$1,Systems!$A$1:$C$42,2,FALSE)))*((VLOOKUP($A14,Systems!$A14:$C$42,2,FALSE)-(VLOOKUP(V$1,Systems!$A$1:$C$42,2,FALSE))))+(((VLOOKUP($A14,Systems!$A14:$C$42,3,FALSE)-(VLOOKUP(V$1,Systems!$A$1:$C$42,3,FALSE)))*((VLOOKUP($A14,Systems!$A14:$C$42,3,FALSE)-(VLOOKUP(V$1,Systems!$A$1:$C$42,3,FALSE)))))))) -> 29.01723626 | W14: =SQRT(((VLOOKUP($A14,Systems!$A14:$C$42,2,FALSE)-(VLOOKUP(W$1,Systems!$A$1:$C$42,2,FALSE)))*((VLOOKUP($A14,Systems!$A14:$C$42,2,FALSE)-(VLOOKUP(W$1,Systems!$A$1:$C$42,2,FALSE))))+(((VLOOKUP($A14,Systems!$A14:$C$42,3,FALSE)-(VLOOKUP(W$1,Systems!$A$1:$C$42,3,FALSE)))*((VLOOKUP($A14,Systems!$A14:$C$42,3,FALSE)-(VLOOKUP(W$1,Systems!$A$1:$C$42,3,FALSE)))))))) -> 58.25804665 | X14: =SQRT(((VLOOKUP($A14,Systems!$A14:$C$42,2,FALSE)-(VLOOKUP(X$1,Systems!$A$1:$C$42,2,FALSE)))*((VLOOKUP($A14,Systems!$A14:$C$42,2,FALSE)-(VLOOKUP(X$1,Systems!$A$1:$C$42,2,FALSE))))+(((VLOOKUP($A14,Systems!$A14:$C$42,3,FALSE)-(VLOOKUP(X$1,Systems!$A$1:$C$42,3,FALSE)))*((VLOOKUP($A14,Systems!$A14:$C$42,3,FALSE)-(VLOOKUP(X$1,Systems!$A$1:$C$42,3,FALSE)))))))) -> 43.26661531 | Y14: =SQRT(((VLOOKUP($A14,Systems!$A14:$C$42,2,FALSE)-(VLOOKUP(Y$1,Systems!$A$1:$C$42,2,FALSE)))*((VLOOKUP($A14,Systems!$A14:$C$42,2,FALSE)-(VLOOKUP(Y$1,Systems!$A$1:$C$42,2,FALSE))))+(((VLOOKUP($A14,Systems!$A14:$C$42,3,FALSE)-(VLOOKUP(Y$1,Systems!$A$1:$C$42,3,FALSE)))*((VLOOKUP($A14,Systems!$A14:$C$42,3,FALSE)-(VLOOKUP(Y$1,Systems!$A$1:$C$42,3,FALSE)))))))) -> 29.06888371 | Z14: =SQRT(((VLOOKUP($A14,Systems!$A14:$C$42,2,FALSE)-(VLOOKUP(Z$1,Systems!$A$1:$C$42,2,FALSE)))*((VLOOKUP($A14,Systems!$A14:$C$42,2,FALSE)-(VLOOKUP(Z$1,Systems!$A$1:$C$42,2,FALSE))))+(((VLOOKUP($A14,Systems!$A14:$C$42,3,FALSE)-(VLOOKUP(Z$1,Systems!$A$1:$C$42,3,FALSE)))*((VLOOKUP($A14,Systems!$A14:$C$42,3,FALSE)-(VLOOKUP(Z$1,Systems!$A$1:$C$42,3,FALSE)))))))) -> 11.40175425 | AA14: =SQRT(((VLOOKUP($A14,Systems!$A14:$C$42,2,FALSE)-(VLOOKUP(AA$1,Systems!$A$1:$C$42,2,FALSE)))*((VLOOKUP($A14,Systems!$A14:$C$42,2,FALSE)-(VLOOKUP(AA$1,Systems!$A$1:$C$42,2,FALSE))))+(((VLOOKUP($A14,Systems!$A14:$C$42,3,FALSE)-(VLOOKUP(AA$1,Systems!$A$1:$C$42,3,FALSE)))*((VLOOKUP($A14,Systems!$A14:$C$42,3,FALSE)-(VLOOKUP(AA$1,Systems!$A$1:$C$42,3,FALSE)))))))) -> 40.36087214 | AB14: =SQRT(((VLOOKUP($A14,Systems!$A14:$C$42,2,FALSE)-(VLOOKUP(AB$1,Systems!$A$1:$C$42,2,FALSE)))*((VLOOKUP($A14,Systems!$A14:$C$42,2,FALSE)-(VLOOKUP(AB$1,Systems!$A$1:$C$42,2,FALSE))))+(((VLOOKUP($A14,Systems!$A14:$C$42,3,FALSE)-(VLOOKUP(AB$1,Systems!$A$1:$C$42,3,FALSE)))*((VLOOKUP($A14,Systems!$A14:$C$42,3,FALSE)-(VLOOKUP(AB$1,Systems!$A$1:$C$42,3,FALSE)))))))) -> 5 | AC14: =SQRT(((VLOOKUP($A14,Systems!$A14:$C$42,2,FALSE)-(VLOOKUP(AC$1,Systems!$A$1:$C$42,2,FALSE)))*((VLOOKUP($A14,Systems!$A14:$C$42,2,FALSE)-(VLOOKUP(AC$1,Systems!$A$1:$C$42,2,FALSE))))+(((VLOOKUP($A14,Systems!$A14:$C$42,3,FALSE)-(VLOOKUP(AC$1,Systems!$A$1:$C$42,3,FALSE)))*((VLOOKUP($A14,Systems!$A14:$C$42,3,FALSE)-(VLOOKUP(AC$1,Systems!$A$1:$C$42,3,FALSE)))))))) -> 31.38470965 | AD14: =SQRT(((VLOOKUP($A14,Systems!$A14:$C$42,2,FALSE)-(VLOOKUP(AD$1,Systems!$A$1:$C$42,2,FALSE)))*((VLOOKUP($A14,Systems!$A14:$C$42,2,FALSE)-(VLOOKUP(AD$1,Systems!$A$1:$C$42,2,FALSE))))+(((VLOOKUP($A14,Systems!$A14:$C$42,3,FALSE)-(VLOOKUP(AD$1,Systems!$A$1:$C$42,3,FALSE)))*((VLOOKUP($A14,Systems!$A14:$C$42,3,FALSE)-(VLOOKUP(AD$1,Systems!$A$1:$C$42,3,FALSE)))))))) -> 26.17250466 | AE14: =SQRT(((VLOOKUP($A14,Systems!$A14:$C$42,2,FALSE)-(VLOOKUP(AE$1,Systems!$A$1:$C$42,2,FALSE)))*((VLOOKUP($A14,Systems!$A14:$C$42,2,FALSE)-(VLOOKUP(AE$1,Systems!$A$1:$C$42,2,FALSE))))+(((VLOOKUP($A14,Systems!$A14:$C$42,3,FALSE)-(VLOOKUP(AE$1,Systems!$A$1:$C$42,3,FALSE)))*((VLOOKUP($A14,Systems!$A14:$C$42,3,FALSE)-(VLOOKUP(AE$1,Systems!$A$1:$C$42,3,FALSE)))))))) -> 33.54101966 | AF14: =SQRT(((VLOOKUP($A14,Systems!$A14:$C$42,2,FALSE)-(VLOOKUP(AF$1,Systems!$A$1:$C$42,2,FALSE)))*((VLOOKUP($A14,Systems!$A14:$C$42,2,FALSE)-(VLOOKUP(AF$1,Systems!$A$1:$C$42,2,FALSE))))+(((VLOOKUP($A14,Systems!$A14:$C$42,3,FALSE)-(VLOOKUP(AF$1,Systems!$A$1:$C$42,3,FALSE)))*((VLOOKUP($A14,Systems!$A14:$C$42,3,FALSE)-(VLOOKUP(AF$1,Systems!$A$1:$C$42,3,FALSE)))))))) -> 13.15294644 | AG14: =SQRT(((VLOOKUP($A14,Systems!$A14:$C$42,2,FALSE)-(VLOOKUP(AG$1,Systems!$A$1:$C$42,2,FALSE)))*((VLOOKUP($A14,Systems!$A14:$C$42,2,FALSE)-(VLOOKUP(AG$1,Systems!$A$1:$C$42,2,FALSE))))+(((VLOOKUP($A14,Systems!$A14:$C$42,3,FALSE)-(VLOOKUP(AG$1,Systems!$A$1:$C$42,3,FALSE)))*((VLOOKUP($A14,Systems!$A14:$C$42,3,FALSE)-(VLOOKUP(AG$1,Systems!$A$1:$C$42,3,FALSE)))))))) -> 42.72001873 | AH14: =SQRT(((VLOOKUP($A14,Systems!$A14:$C$42,2,FALSE)-(VLOOKUP(AH$1,Systems!$A$1:$C$42,2,FALSE)))*((VLOOKUP($A14,Systems!$A14:$C$42,2,FALSE)-(VLOOKUP(AH$1,Systems!$A$1:$C$42,2,FALSE))))+(((VLOOKUP($A14,Systems!$A14:$C$42,3,FALSE)-(VLOOKUP(AH$1,Systems!$A$1:$C$42,3,FALSE)))*((VLOOKUP($A14,Systems!$A14:$C$42,3,FALSE)-(VLOOKUP(AH$1,Systems!$A$1:$C$42,3,FALSE)))))))) -> 49.64876635 | AI14: =SQRT(((VLOOKUP($A14,Systems!$A14:$C$42,2,FALSE)-(VLOOKUP(AI$1,Systems!$A$1:$C$42,2,FALSE)))*((VLOOKUP($A14,Systems!$A14:$C$42,2,FALSE)-(VLOOKUP(AI$1,Systems!$A$1:$C$42,2,FALSE))))+(((VLOOKUP($A14,Systems!$A14:$C$42,3,FALSE)-(VLOOKUP(AI$1,Systems!$A$1:$C$42,3,FALSE)))*((VLOOKUP($A14,Systems!$A14:$C$42,3,FALSE)-(VLOOKUP(AI$1,Systems!$A$1:$C$42,3,FALSE)))))))) -> 19.41648784 | AJ14: =SQRT(((VLOOKUP($A14,Systems!$A14:$C$42,2,FALSE)-(VLOOKUP(AJ$1,Systems!$A$1:$C$42,2,FALSE)))*((VLOOKUP($A14,Systems!$A14:$C$42,2,FALSE)-(VLOOKUP(AJ$1,Systems!$A$1:$C$42,2,FALSE))))+(((VLOOKUP($A14,Systems!$A14:$C$42,3,FALSE)-(VLOOKUP(AJ$1,Systems!$A$1:$C$42,3,FALSE)))*((VLOOKUP($A14,Systems!$A14:$C$42,3,FALSE)-(VLOOKUP(AJ$1,Systems!$A$1:$C$42,3,FALSE)))))))) -> 44.82186966 | AK14: =SQRT(((VLOOKUP($A14,Systems!$A14:$C$42,2,FALSE)-(VLOOKUP(AK$1,Systems!$A$1:$C$42,2,FALSE)))*((VLOOKUP($A14,Systems!$A14:$C$42,2,FALSE)-(VLOOKUP(AK$1,Systems!$A$1:$C$42,2,FALSE))))+(((VLOOKUP($A14,Systems!$A14:$C$42,3,FALSE)-(VLOOKUP(AK$1,Systems!$A$1:$C$42,3,FALSE)))*((VLOOKUP($A14,Systems!$A14:$C$42,3,FALSE)-(VLOOKUP(AK$1,Systems!$A$1:$C$42,3,FALSE)))))))) -> 33.9705755 | AL14: =SQRT(((VLOOKUP($A14,Systems!$A14:$C$42,2,FALSE)-(VLOOKUP(AL$1,Systems!$A$1:$C$42,2,FALSE)))*((VLOOKUP($A14,Systems!$A14:$C$42,2,FALSE)-(VLOOKUP(AL$1,Systems!$A$1:$C$42,2,FALSE))))+(((VLOOKUP($A14,Systems!$A14:$C$42,3,FALSE)-(VLOOKUP(AL$1,Systems!$A$1:$C$42,3,FALSE)))*((VLOOKUP($A14,Systems!$A14:$C$42,3,FALSE)-(VLOOKUP(AL$1,Systems!$A$1:$C$42,3,FALSE)))))))) -> 42.72001873 | AM14: =SQRT(((VLOOKUP($A14,Systems!$A14:$C$42,2,FALSE)-(VLOOKUP(AM$1,Systems!$A$1:$C$42,2,FALSE)))*((VLOOKUP($A14,Systems!$A14:$C$42,2,FALSE)-(VLOOKUP(AM$1,Systems!$A$1:$C$42,2,FALSE))))+(((VLOOKUP($A14,Systems!$A14:$C$42,3,FALSE)-(VLOOKUP(AM$1,Systems!$A$1:$C$42,3,FALSE)))*((VLOOKUP($A14,Systems!$A14:$C$42,3,FALSE)-(VLOOKUP(AM$1,Systems!$A$1:$C$42,3,FALSE)))))))) -> 17.20465053 | AN14: =SQRT(((VLOOKUP($A14,Systems!$A14:$C$42,2,FALSE)-(VLOOKUP(AN$1,Systems!$A$1:$C$42,2,FALSE)))*((VLOOKUP($A14,Systems!$A14:$C$42,2,FALSE)-(VLOOKUP(AN$1,Systems!$A$1:$C$42,2,FALSE))))+(((VLOOKUP($A14,Systems!$A14:$C$42,3,FALSE)-(VLOOKUP(AN$1,Systems!$A$1:$C$42,3,FALSE)))*((VLOOKUP($A14,Systems!$A14:$C$42,3,FALSE)-(VLOOKUP(AN$1,Systems!$A$1:$C$42,3,FALSE)))))))) -> 53.81449619 | AO14: =SQRT(((VLOOKUP($A14,Systems!$A14:$C$42,2,FALSE)-(VLOOKUP(AO$1,Systems!$A$1:$C$42,2,FALSE)))*((VLOOKUP($A14,Systems!$A14:$C$42,2,FALSE)-(VLOOKUP(AO$1,Systems!$A$1:$C$42,2,FALSE))))+(((VLOOKUP($A14,Systems!$A14:$C$42,3,FALSE)-(VLOOKUP(AO$1,Systems!$A$1:$C$42,3,FALSE)))*((VLOOKUP($A14,Systems!$A14:$C$42,3,FALSE)-(VLOOKUP(AO$1,Systems!$A$1:$C$42,3,FALSE)))))))) -> 36.35931793 | AP14: =SQRT(((VLOOKUP($A14,Systems!$A14:$C$42,2,FALSE)-(VLOOKUP(AP$1,Systems!$A$1:$C$42,2,FALSE)))*((VLOOKUP($A14,Systems!$A14:$C$42,2,FALSE)-(VLOOKUP(AP$1,Systems!$A$1:$C$42,2,FALSE))))+(((VLOOKUP($A14,Systems!$A14:$C$42,3,FALSE)-(VLOOKUP(AP$1,Systems!$A$1:$C$42,3,FALSE)))*((VLOOKUP($A14,Systems!$A14:$C$42,3,FALSE)-(VLOOKUP(AP$1,Systems!$A$1:$C$42,3,FALSE)))))))) -> 12.20655562
A15: =Systems!A15 -> Fromeltar | B15: =SQRT(((VLOOKUP($A15,Systems!$A15:$C$42,2,FALSE)-(VLOOKUP(B$1,Systems!$A$1:$C$42,2,FALSE)))*((VLOOKUP($A15,Systems!$A15:$C$42,2,FALSE)-(VLOOKUP(B$1,Systems!$A$1:$C$42,2,FALSE))))+(((VLOOKUP($A15,Systems!$A15:$C$42,3,FALSE)-(VLOOKUP(B$1,Systems!$A$1:$C$42,3,FALSE)))*((VLOOKUP($A15,Systems!$A15:$C$42,3,FALSE)-(VLOOKUP(B$1,Systems!$A$1:$C$42,3,FALSE)))))))) -> 20.39607805 | C15: =SQRT(((VLOOKUP($A15,Systems!$A15:$C$42,2,FALSE)-(VLOOKUP(C$1,Systems!$A$1:$C$42,2,FALSE)))*((VLOOKUP($A15,Systems!$A15:$C$42,2,FALSE)-(VLOOKUP(C$1,Systems!$A$1:$C$42,2,FALSE))))+(((VLOOKUP($A15,Systems!$A15:$C$42,3,FALSE)-(VLOOKUP(C$1,Systems!$A$1:$C$42,3,FALSE)))*((VLOOKUP($A15,Systems!$A15:$C$42,3,FALSE)-(VLOOKUP(C$1,Systems!$A$1:$C$42,3,FALSE)))))))) -> 31.11269837 | D15: =SQRT(((VLOOKUP($A15,Systems!$A15:$C$42,2,FALSE)-(VLOOKUP(D$1,Systems!$A$1:$C$42,2,FALSE)))*((VLOOKUP($A15,Systems!$A15:$C$42,2,FALSE)-(VLOOKUP(D$1,Systems!$A$1:$C$42,2,FALSE))))+(((VLOOKUP($A15,Systems!$A15:$C$42,3,FALSE)-(VLOOKUP(D$1,Systems!$A$1:$C$42,3,FALSE)))*((VLOOKUP($A15,Systems!$A15:$C$42,3,FALSE)-(VLOOKUP(D$1,Systems!$A$1:$C$42,3,FALSE)))))))) -> 23.34523506 | E15: =SQRT(((VLOOKUP($A15,Systems!$A15:$C$42,2,FALSE)-(VLOOKUP(E$1,Systems!$A$1:$C$42,2,FALSE)))*((VLOOKUP($A15,Systems!$A15:$C$42,2,FALSE)-(VLOOKUP(E$1,Systems!$A$1:$C$42,2,FALSE))))+(((VLOOKUP($A15,Systems!$A15:$C$42,3,FALSE)-(VLOOKUP(E$1,Systems!$A$1:$C$42,3,FALSE)))*((VLOOKUP($A15,Systems!$A15:$C$42,3,FALSE)-(VLOOKUP(E$1,Systems!$A$1:$C$42,3,FALSE)))))))) -> 19.41648784 | F15: =SQRT(((VLOOKUP($A15,Systems!$A15:$C$42,2,FALSE)-(VLOOKUP(F$1,Systems!$A$1:$C$42,2,FALSE)))*((VLOOKUP($A15,Systems!$A15:$C$42,2,FALSE)-(VLOOKUP(F$1,Systems!$A$1:$C$42,2,FALSE))))+(((VLOOKUP($A15,Systems!$A15:$C$42,3,FALSE)-(VLOOKUP(F$1,Systems!$A$1:$C$42,3,FALSE)))*((VLOOKUP($A15,Systems!$A15:$C$42,3,FALSE)-(VLOOKUP(F$1,Systems!$A$1:$C$42,3,FALSE)))))))) -> 23.53720459 | G15: =SQRT(((VLOOKUP($A15,Systems!$A15:$C$42,2,FALSE)-(VLOOKUP(G$1,Systems!$A$1:$C$42,2,FALSE)))*((VLOOKUP($A15,Systems!$A15:$C$42,2,FALSE)-(VLOOKUP(G$1,Systems!$A$1:$C$42,2,FALSE))))+(((VLOOKUP($A15,Systems!$A15:$C$42,3,FALSE)-(VLOOKUP(G$1,Systems!$A$1:$C$42,3,FALSE)))*((VLOOKUP($A15,Systems!$A15:$C$42,3,FALSE)-(VLOOKUP(G$1,Systems!$A$1:$C$42,3,FALSE)))))))) -> 10.29563014 | H15: =SQRT(((VLOOKUP($A15,Systems!$A15:$C$42,2,FALSE)-(VLOOKUP(H$1,Systems!$A$1:$C$42,2,FALSE)))*((VLOOKUP($A15,Systems!$A15:$C$42,2,FALSE)-(VLOOKUP(H$1,Systems!$A$1:$C$42,2,FALSE))))+(((VLOOKUP($A15,Systems!$A15:$C$42,3,FALSE)-(VLOOKUP(H$1,Systems!$A$1:$C$42,3,FALSE)))*((VLOOKUP($A15,Systems!$A15:$C$42,3,FALSE)-(VLOOKUP(H$1,Systems!$A$1:$C$42,3,FALSE)))))))) -> 5 | I15: =SQRT(((VLOOKUP($A15,Systems!$A15:$C$42,2,FALSE)-(VLOOKUP(I$1,Systems!$A$1:$C$42,2,FALSE)))*((VLOOKUP($A15,Systems!$A15:$C$42,2,FALSE)-(VLOOKUP(I$1,Systems!$A$1:$C$42,2,FALSE))))+(((VLOOKUP($A15,Systems!$A15:$C$42,3,FALSE)-(VLOOKUP(I$1,Systems!$A$1:$C$42,3,FALSE)))*((VLOOKUP($A15,Systems!$A15:$C$42,3,FALSE)-(VLOOKUP(I$1,Systems!$A$1:$C$42,3,FALSE)))))))) -> 16 | J15: =SQRT(((VLOOKUP($A15,Systems!$A15:$C$42,2,FALSE)-(VLOOKUP(J$1,Systems!$A$1:$C$42,2,FALSE)))*((VLOOKUP($A15,Systems!$A15:$C$42,2,FALSE)-(VLOOKUP(J$1,Systems!$A$1:$C$42,2,FALSE))))+(((VLOOKUP($A15,Systems!$A15:$C$42,3,FALSE)-(VLOOKUP(J$1,Systems!$A$1:$C$42,3,FALSE)))*((VLOOKUP($A15,Systems!$A15:$C$42,3,FALSE)-(VLOOKUP(J$1,Systems!$A$1:$C$42,3,FALSE)))))))) -> 5.385164807 | K15: =SQRT(((VLOOKUP($A15,Systems!$A15:$C$42,2,FALSE)-(VLOOKUP(K$1,Systems!$A$1:$C$42,2,FALSE)))*((VLOOKUP($A15,Systems!$A15:$C$42,2,FALSE)-(VLOOKUP(K$1,Systems!$A$1:$C$42,2,FALSE))))+(((VLOOKUP($A15,Systems!$A15:$C$42,3,FALSE)-(VLOOKUP(K$1,Systems!$A$1:$C$42,3,FALSE)))*((VLOOKUP($A15,Systems!$A15:$C$42,3,FALSE)-(VLOOKUP(K$1,Systems!$A$1:$C$42,3,FALSE)))))))) -> 15.8113883 | L15: =SQRT(((VLOOKUP($A15,Systems!$A15:$C$42,2,FALSE)-(VLOOKUP(L$1,Systems!$A$1:$C$42,2,FALSE)))*((VLOOKUP($A15,Systems!$A15:$C$42,2,FALSE)-(VLOOKUP(L$1,Systems!$A$1:$C$42,2,FALSE))))+(((VLOOKUP($A15,Systems!$A15:$C$42,3,FALSE)-(VLOOKUP(L$1,Systems!$A$1:$C$42,3,FALSE)))*((VLOOKUP($A15,Systems!$A15:$C$42,3,FALSE)-(VLOOKUP(L$1,Systems!$A$1:$C$42,3,FALSE)))))))) -> 7.280109889 | M15: =SQRT(((VLOOKUP($A15,Systems!$A15:$C$42,2,FALSE)-(VLOOKUP(M$1,Systems!$A$1:$C$42,2,FALSE)))*((VLOOKUP($A15,Systems!$A15:$C$42,2,FALSE)-(VLOOKUP(M$1,Systems!$A$1:$C$42,2,FALSE))))+(((VLOOKUP($A15,Systems!$A15:$C$42,3,FALSE)-(VLOOKUP(M$1,Systems!$A$1:$C$42,3,FALSE)))*((VLOOKUP($A15,Systems!$A15:$C$42,3,FALSE)-(VLOOKUP(M$1,Systems!$A$1:$C$42,3,FALSE)))))))) -> 10.63014581 | N15: =SQRT(((VLOOKUP($A15,Systems!$A15:$C$42,2,FALSE)-(VLOOKUP(N$1,Systems!$A$1:$C$42,2,FALSE)))*((VLOOKUP($A15,Systems!$A15:$C$42,2,FALSE)-(VLOOKUP(N$1,Systems!$A$1:$C$42,2,FALSE))))+(((VLOOKUP($A15,Systems!$A15:$C$42,3,FALSE)-(VLOOKUP(N$1,Systems!$A$1:$C$42,3,FALSE)))*((VLOOKUP($A15,Systems!$A15:$C$42,3,FALSE)-(VLOOKUP(N$1,Systems!$A$1:$C$42,3,FALSE)))))))) -> 24.08318916 | O15: =SQRT(((VLOOKUP($A15,Systems!$A15:$C$42,2,FALSE)-(VLOOKUP(O$1,Systems!$A$1:$C$42,2,FALSE)))*((VLOOKUP($A15,Systems!$A15:$C$42,2,FALSE)-(VLOOKUP(O$1,Systems!$A$1:$C$42,2,FALSE))))+(((VLOOKUP($A15,Systems!$A15:$C$42,3,FALSE)-(VLOOKUP(O$1,Systems!$A$1:$C$42,3,FALSE)))*((VLOOKUP($A15,Systems!$A15:$C$42,3,FALSE)-(VLOOKUP(O$1,Systems!$A$1:$C$42,3,FALSE)))))))) -> 0 | P15: =SQRT(((VLOOKUP($A15,Systems!$A15:$C$42,2,FALSE)-(VLOOKUP(P$1,Systems!$A$1:$C$42,2,FALSE)))*((VLOOKUP($A15,Systems!$A15:$C$42,2,FALSE)-(VLOOKUP(P$1,Systems!$A$1:$C$42,2,FALSE))))+(((VLOOKUP($A15,Systems!$A15:$C$42,3,FALSE)-(VLOOKUP(P$1,Systems!$A$1:$C$42,3,FALSE)))*((VLOOKUP($A15,Systems!$A15:$C$42,3,FALSE)-(VLOOKUP(P$1,Systems!$A$1:$C$42,3,FALSE)))))))) -> 18.24828759 | Q15: =SQRT(((VLOOKUP($A15,Systems!$A15:$C$42,2,FALSE)-(VLOOKUP(Q$1,Systems!$A$1:$C$42,2,FALSE)))*((VLOOKUP($A15,Systems!$A15:$C$42,2,FALSE)-(VLOOKUP(Q$1,Systems!$A$1:$C$42,2,FALSE))))+(((VLOOKUP($A15,Systems!$A15:$C$42,3,FALSE)-(VLOOKUP(Q$1,Systems!$A$1:$C$42,3,FALSE)))*((VLOOKUP($A15,Systems!$A15:$C$42,3,FALSE)-(VLOOKUP(Q$1,Systems!$A$1:$C$42,3,FALSE)))))))) -> 30.41381265 | R15: =SQRT(((VLOOKUP($A15,Systems!$A15:$C$42,2,FALSE)-(VLOOKUP(R$1,Systems!$A$1:$C$42,2,FALSE)))*((VLOOKUP($A15,Systems!$A15:$C$42,2,FALSE)-(VLOOKUP(R$1,Systems!$A$1:$C$42,2,FALSE))))+(((VLOOKUP($A15,Systems!$A15:$C$42,3,FALSE)-(VLOOKUP(R$1,Systems!$A$1:$C$42,3,FALSE)))*((VLOOKUP($A15,Systems!$A15:$C$42,3,FALSE)-(VLOOKUP(R$1,Systems!$A$1:$C$42,3,FALSE)))))))) -> 13.89244399 | S15: =SQRT(((VLOOKUP($A15,Systems!$A15:$C$42,2,FALSE)-(VLOOKUP(S$1,Systems!$A$1:$C$42,2,FALSE)))*((VLOOKUP($A15,Systems!$A15:$C$42,2,FALSE)-(VLOOKUP(S$1,Systems!$A$1:$C$42,2,FALSE))))+(((VLOOKUP($A15,Systems!$A15:$C$42,3,FALSE)-(VLOOKUP(S$1,Systems!$A$1:$C$42,3,FALSE)))*((VLOOKUP($A15,Systems!$A15:$C$42,3,FALSE)-(VLOOKUP(S$1,Systems!$A$1:$C$42,3,FALSE)))))))) -> 14.2126704 | T15: =SQRT(((VLOOKUP($A15,Systems!$A15:$C$42,2,FALSE)-(VLOOKUP(T$1,Systems!$A$1:$C$42,2,FALSE)))*((VLOOKUP($A15,Systems!$A15:$C$42,2,FALSE)-(VLOOKUP(T$1,Systems!$A$1:$C$42,2,FALSE))))+(((VLOOKUP($A15,Systems!$A15:$C$42,3,FALSE)-(VLOOKUP(T$1,Systems!$A$1:$C$42,3,FALSE)))*((VLOOKUP($A15,Systems!$A15:$C$42,3,FALSE)-(VLOOKUP(T$1,Systems!$A$1:$C$42,3,FALSE)))))))) -> 12.16552506 | U15: =SQRT(((VLOOKUP($A15,Systems!$A15:$C$42,2,FALSE)-(VLOOKUP(U$1,Systems!$A$1:$C$42,2,FALSE)))*((VLOOKUP($A15,Systems!$A15:$C$42,2,FALSE)-(VLOOKUP(U$1,Systems!$A$1:$C$42,2,FALSE))))+(((VLOOKUP($A15,Systems!$A15:$C$42,3,FALSE)-(VLOOKUP(U$1,Systems!$A$1:$C$42,3,FALSE)))*((VLOOKUP($A15,Systems!$A15:$C$42,3,FALSE)-(VLOOKUP(U$1,Systems!$A$1:$C$42,3,FALSE)))))))) -> 8.062257748 | V15: =SQRT(((VLOOKUP($A15,Systems!$A15:$C$42,2,FALSE)-(VLOOKUP(V$1,Systems!$A$1:$C$42,2,FALSE)))*((VLOOKUP($A15,Systems!$A15:$C$42,2,FALSE)-(VLOOKUP(V$1,Systems!$A$1:$C$42,2,FALSE))))+(((VLOOKUP($A15,Systems!$A15:$C$42,3,FALSE)-(VLOOKUP(V$1,Systems!$A$1:$C$42,3,FALSE)))*((VLOOKUP($A15,Systems!$A15:$C$42,3,FALSE)-(VLOOKUP(V$1,Systems!$A$1:$C$42,3,FALSE)))))))) -> 5.830951895 | W15: =SQRT(((VLOOKUP($A15,Systems!$A15:$C$42,2,FALSE)-(VLOOKUP(W$1,Systems!$A$1:$C$42,2,FALSE)))*((VLOOKUP($A15,Systems!$A15:$C$42,2,FALSE)-(VLOOKUP(W$1,Systems!$A$1:$C$42,2,FALSE))))+(((VLOOKUP($A15,Systems!$A15:$C$42,3,FALSE)-(VLOOKUP(W$1,Systems!$A$1:$C$42,3,FALSE)))*((VLOOKUP($A15,Systems!$A15:$C$42,3,FALSE)-(VLOOKUP(W$1,Systems!$A$1:$C$42,3,FALSE)))))))) -> 40.81666326 | X15: =SQRT(((VLOOKUP($A15,Systems!$A15:$C$42,2,FALSE)-(VLOOKUP(X$1,Systems!$A$1:$C$42,2,FALSE)))*((VLOOKUP($A15,Systems!$A15:$C$42,2,FALSE)-(VLOOKUP(X$1,Systems!$A$1:$C$42,2,FALSE))))+(((VLOOKUP($A15,Systems!$A15:$C$42,3,FALSE)-(VLOOKUP(X$1,Systems!$A$1:$C$42,3,FALSE)))*((VLOOKUP($A15,Systems!$A15:$C$42,3,FALSE)-(VLOOKUP(X$1,Systems!$A$1:$C$42,3,FALSE)))))))) -> 34 | Y15: =SQRT(((VLOOKUP($A15,Systems!$A15:$C$42,2,FALSE)-(VLOOKUP(Y$1,Systems!$A$1:$C$42,2,FALSE)))*((VLOOKUP($A15,Systems!$A15:$C$42,2,FALSE)-(VLOOKUP(Y$1,Systems!$A$1:$C$42,2,FALSE))))+(((VLOOKUP($A15,Systems!$A15:$C$42,3,FALSE)-(VLOOKUP(Y$1,Systems!$A$1:$C$42,3,FALSE)))*((VLOOKUP($A15,Systems!$A15:$C$42,3,FALSE)-(VLOOKUP(Y$1,Systems!$A$1:$C$42,3,FALSE)))))))) -> 11.18033989 | Z15: =SQRT(((VLOOKUP($A15,Systems!$A15:$C$42,2,FALSE)-(VLOOKUP(Z$1,Systems!$A$1:$C$42,2,FALSE)))*((VLOOKUP($A15,Systems!$A15:$C$42,2,FALSE)-(VLOOKUP(Z$1,Systems!$A$1:$C$42,2,FALSE))))+(((VLOOKUP($A15,Systems!$A15:$C$42,3,FALSE)-(VLOOKUP(Z$1,Systems!$A$1:$C$42,3,FALSE)))*((VLOOKUP($A15,Systems!$A15:$C$42,3,FALSE)-(VLOOKUP(Z$1,Systems!$A$1:$C$42,3,FALSE)))))))) -> 22.84731932 | AA15: =SQRT(((VLOOKUP($A15,Systems!$A15:$C$42,2,FALSE)-(VLOOKUP(AA$1,Systems!$A$1:$C$42,2,FALSE)))*((VLOOKUP($A15,Systems!$A15:$C$42,2,FALSE)-(VLOOKUP(AA$1,Systems!$A$1:$C$42,2,FALSE))))+(((VLOOKUP($A15,Systems!$A15:$C$42,3,FALSE)-(VLOOKUP(AA$1,Systems!$A$1:$C$42,3,FALSE)))*((VLOOKUP($A15,Systems!$A15:$C$42,3,FALSE)-(VLOOKUP(AA$1,Systems!$A$1:$C$42,3,FALSE)))))))) -> 25.70992026 | AB15: =SQRT(((VLOOKUP($A15,Systems!$A15:$C$42,2,FALSE)-(VLOOKUP(AB$1,Systems!$A$1:$C$42,2,FALSE)))*((VLOOKUP($A15,Systems!$A15:$C$42,2,FALSE)-(VLOOKUP(AB$1,Systems!$A$1:$C$42,2,FALSE))))+(((VLOOKUP($A15,Systems!$A15:$C$42,3,FALSE)-(VLOOKUP(AB$1,Systems!$A$1:$C$42,3,FALSE)))*((VLOOKUP($A15,Systems!$A15:$C$42,3,FALSE)-(VLOOKUP(AB$1,Systems!$A$1:$C$42,3,FALSE)))))))) -> 21.09502311 | AC15: =SQRT(((VLOOKUP($A15,Systems!$A15:$C$42,2,FALSE)-(VLOOKUP(AC$1,Systems!$A$1:$C$42,2,FALSE)))*((VLOOKUP($A15,Systems!$A15:$C$42,2,FALSE)-(VLOOKUP(AC$1,Systems!$A$1:$C$42,2,FALSE))))+(((VLOOKUP($A15,Systems!$A15:$C$42,3,FALSE)-(VLOOKUP(AC$1,Systems!$A$1:$C$42,3,FALSE)))*((VLOOKUP($A15,Systems!$A15:$C$42,3,FALSE)-(VLOOKUP(AC$1,Systems!$A$1:$C$42,3,FALSE)))))))) -> 26.2488095 | AD15: =SQRT(((VLOOKUP($A15,Systems!$A15:$C$42,2,FALSE)-(VLOOKUP(AD$1,Systems!$A$1:$C$42,2,FALSE)))*((VLOOKUP($A15,Systems!$A15:$C$42,2,FALSE)-(VLOOKUP(AD$1,Systems!$A$1:$C$42,2,FALSE))))+(((VLOOKUP($A15,Systems!$A15:$C$42,3,FALSE)-(VLOOKUP(AD$1,Systems!$A$1:$C$42,3,FALSE)))*((VLOOKUP($A15,Systems!$A15:$C$42,3,FALSE)-(VLOOKUP(AD$1,Systems!$A$1:$C$42,3,FALSE)))))))) -> 16.76305461 | AE15: =SQRT(((VLOOKUP($A15,Systems!$A15:$C$42,2,FALSE)-(VLOOKUP(AE$1,Systems!$A$1:$C$42,2,FALSE)))*((VLOOKUP($A15,Systems!$A15:$C$42,2,FALSE)-(VLOOKUP(AE$1,Systems!$A$1:$C$42,2,FALSE))))+(((VLOOKUP($A15,Systems!$A15:$C$42,3,FALSE)-(VLOOKUP(AE$1,Systems!$A$1:$C$42,3,FALSE)))*((VLOOKUP($A15,Systems!$A15:$C$42,3,FALSE)-(VLOOKUP(AE$1,Systems!$A$1:$C$42,3,FALSE)))))))) -> 35.84689666 | AF15: =SQRT(((VLOOKUP($A15,Systems!$A15:$C$42,2,FALSE)-(VLOOKUP(AF$1,Systems!$A$1:$C$42,2,FALSE)))*((VLOOKUP($A15,Systems!$A15:$C$42,2,FALSE)-(VLOOKUP(AF$1,Systems!$A$1:$C$42,2,FALSE))))+(((VLOOKUP($A15,Systems!$A15:$C$42,3,FALSE)-(VLOOKUP(AF$1,Systems!$A$1:$C$42,3,FALSE)))*((VLOOKUP($A15,Systems!$A15:$C$42,3,FALSE)-(VLOOKUP(AF$1,Systems!$A$1:$C$42,3,FALSE)))))))) -> 24.59674775 | AG15: =SQRT(((VLOOKUP($A15,Systems!$A15:$C$42,2,FALSE)-(VLOOKUP(AG$1,Systems!$A$1:$C$42,2,FALSE)))*((VLOOKUP($A15,Systems!$A15:$C$42,2,FALSE)-(VLOOKUP(AG$1,Systems!$A$1:$C$42,2,FALSE))))+(((VLOOKUP($A15,Systems!$A15:$C$42,3,FALSE)-(VLOOKUP(AG$1,Systems!$A$1:$C$42,3,FALSE)))*((VLOOKUP($A15,Systems!$A15:$C$42,3,FALSE)-(VLOOKUP(AG$1,Systems!$A$1:$C$42,3,FALSE)))))))) -> 19.72308292 | AH15: =SQRT(((VLOOKUP($A15,Systems!$A15:$C$42,2,FALSE)-(VLOOKUP(AH$1,Systems!$A$1:$C$42,2,FALSE)))*((VLOOKUP($A15,Systems!$A15:$C$42,2,FALSE)-(VLOOKUP(AH$1,Systems!$A$1:$C$42,2,FALSE))))+(((VLOOKUP($A15,Systems!$A15:$C$42,3,FALSE)-(VLOOKUP(AH$1,Systems!$A$1:$C$42,3,FALSE)))*((VLOOKUP($A15,Systems!$A15:$C$42,3,FALSE)-(VLOOKUP(AH$1,Systems!$A$1:$C$42,3,FALSE)))))))) -> 31.06444913 | AI15: =SQRT(((VLOOKUP($A15,Systems!$A15:$C$42,2,FALSE)-(VLOOKUP(AI$1,Systems!$A$1:$C$42,2,FALSE)))*((VLOOKUP($A15,Systems!$A15:$C$42,2,FALSE)-(VLOOKUP(AI$1,Systems!$A$1:$C$42,2,FALSE))))+(((VLOOKUP($A15,Systems!$A15:$C$42,3,FALSE)-(VLOOKUP(AI$1,Systems!$A$1:$C$42,3,FALSE)))*((VLOOKUP($A15,Systems!$A15:$C$42,3,FALSE)-(VLOOKUP(AI$1,Systems!$A$1:$C$42,3,FALSE)))))))) -> 32.75667871 | AJ15: =SQRT(((VLOOKUP($A15,Systems!$A15:$C$42,2,FALSE)-(VLOOKUP(AJ$1,Systems!$A$1:$C$42,2,FALSE)))*((VLOOKUP($A15,Systems!$A15:$C$42,2,FALSE)-(VLOOKUP(AJ$1,Systems!$A$1:$C$42,2,FALSE))))+(((VLOOKUP($A15,Systems!$A15:$C$42,3,FALSE)-(VLOOKUP(AJ$1,Systems!$A$1:$C$42,3,FALSE)))*((VLOOKUP($A15,Systems!$A15:$C$42,3,FALSE)-(VLOOKUP(AJ$1,Systems!$A$1:$C$42,3,FALSE)))))))) -> 28.23118843 | AK15: =SQRT(((VLOOKUP($A15,Systems!$A15:$C$42,2,FALSE)-(VLOOKUP(AK$1,Systems!$A$1:$C$42,2,FALSE)))*((VLOOKUP($A15,Systems!$A15:$C$42,2,FALSE)-(VLOOKUP(AK$1,Systems!$A$1:$C$42,2,FALSE))))+(((VLOOKUP($A15,Systems!$A15:$C$42,3,FALSE)-(VLOOKUP(AK$1,Systems!$A$1:$C$42,3,FALSE)))*((VLOOKUP($A15,Systems!$A15:$C$42,3,FALSE)-(VLOOKUP(AK$1,Systems!$A$1:$C$42,3,FALSE)))))))) -> 23.02172887 | AL15: =SQRT(((VLOOKUP($A15,Systems!$A15:$C$42,2,FALSE)-(VLOOKUP(AL$1,Systems!$A$1:$C$42,2,FALSE)))*((VLOOKUP($A15,Systems!$A15:$C$42,2,FALSE)-(VLOOKUP(AL$1,Systems!$A$1:$C$42,2,FALSE))))+(((VLOOKUP($A15,Systems!$A15:$C$42,3,FALSE)-(VLOOKUP(AL$1,Systems!$A$1:$C$42,3,FALSE)))*((VLOOKUP($A15,Systems!$A15:$C$42,3,FALSE)-(VLOOKUP(AL$1,Systems!$A$1:$C$42,3,FALSE)))))))) -> 24.18677324 | AM15: =SQRT(((VLOOKUP($A15,Systems!$A15:$C$42,2,FALSE)-(VLOOKUP(AM$1,Systems!$A$1:$C$42,2,FALSE)))*((VLOOKUP($A15,Systems!$A15:$C$42,2,FALSE)-(VLOOKUP(AM$1,Systems!$A$1:$C$42,2,FALSE))))+(((VLOOKUP($A15,Systems!$A15:$C$42,3,FALSE)-(VLOOKUP(AM$1,Systems!$A$1:$C$42,3,FALSE)))*((VLOOKUP($A15,Systems!$A15:$C$42,3,FALSE)-(VLOOKUP(AM$1,Systems!$A$1:$C$42,3,FALSE)))))))) -> 12.80624847 | AN15: =SQRT(((VLOOKUP($A15,Systems!$A15:$C$42,2,FALSE)-(VLOOKUP(AN$1,Systems!$A$1:$C$42,2,FALSE)))*((VLOOKUP($A15,Systems!$A15:$C$42,2,FALSE)-(VLOOKUP(AN$1,Systems!$A$1:$C$42,2,FALSE))))+(((VLOOKUP($A15,Systems!$A15:$C$42,3,FALSE)-(VLOOKUP(AN$1,Systems!$A$1:$C$42,3,FALSE)))*((VLOOKUP($A15,Systems!$A15:$C$42,3,FALSE)-(VLOOKUP(AN$1,Systems!$A$1:$C$42,3,FALSE)))))))) -> 37.57658846 | AO15: =SQRT(((VLOOKUP($A15,Systems!$A15:$C$42,2,FALSE)-(VLOOKUP(AO$1,Systems!$A$1:$C$42,2,FALSE)))*((VLOOKUP($A15,Systems!$A15:$C$42,2,FALSE)-(VLOOKUP(AO$1,Systems!$A$1:$C$42,2,FALSE))))+(((VLOOKUP($A15,Systems!$A15:$C$42,3,FALSE)-(VLOOKUP(AO$1,Systems!$A$1:$C$42,3,FALSE)))*((VLOOKUP($A15,Systems!$A15:$C$42,3,FALSE)-(VLOOKUP(AO$1,Systems!$A$1:$C$42,3,FALSE)))))))) -> 18.38477631 | AP15: =SQRT(((VLOOKUP($A15,Systems!$A15:$C$42,2,FALSE)-(VLOOKUP(AP$1,Systems!$A$1:$C$42,2,FALSE)))*((VLOOKUP($A15,Systems!$A15:$C$42,2,FALSE)-(VLOOKUP(AP$1,Systems!$A$1:$C$42,2,FALSE))))+(((VLOOKUP($A15,Systems!$A15:$C$42,3,FALSE)-(VLOOKUP(AP$1,Systems!$A$1:$C$42,3,FALSE)))*((VLOOKUP($A15,Systems!$A15:$C$42,3,FALSE)-(VLOOKUP(AP$1,Systems!$A$1:$C$42,3,FALSE)))))))) -> 14.86606875
A16: =Systems!A16 -> Gamma | B16: =SQRT(((VLOOKUP($A16,Systems!$A16:$C$42,2,FALSE)-(VLOOKUP(B$1,Systems!$A$1:$C$42,2,FALSE)))*((VLOOKUP($A16,Systems!$A16:$C$42,2,FALSE)-(VLOOKUP(B$1,Systems!$A$1:$C$42,2,FALSE))))+(((VLOOKUP($A16,Systems!$A16:$C$42,3,FALSE)-(VLOOKUP(B$1,Systems!$A$1:$C$42,3,FALSE)))*((VLOOKUP($A16,Systems!$A16:$C$42,3,FALSE)-(VLOOKUP(B$1,Systems!$A$1:$C$42,3,FALSE)))))))) -> 7.280109889 | C16: =SQRT(((VLOOKUP($A16,Systems!$A16:$C$42,2,FALSE)-(VLOOKUP(C$1,Systems!$A$1:$C$42,2,FALSE)))*((VLOOKUP($A16,Systems!$A16:$C$42,2,FALSE)-(VLOOKUP(C$1,Systems!$A$1:$C$42,2,FALSE))))+(((VLOOKUP($A16,Systems!$A16:$C$42,3,FALSE)-(VLOOKUP(C$1,Systems!$A$1:$C$42,3,FALSE)))*((VLOOKUP($A16,Systems!$A16:$C$42,3,FALSE)-(VLOOKUP(C$1,Systems!$A$1:$C$42,3,FALSE)))))))) -> 25.3179778 | D16: =SQRT(((VLOOKUP($A16,Systems!$A16:$C$42,2,FALSE)-(VLOOKUP(D$1,Systems!$A$1:$C$42,2,FALSE)))*((VLOOKUP($A16,Systems!$A16:$C$42,2,FALSE)-(VLOOKUP(D$1,Systems!$A$1:$C$42,2,FALSE))))+(((VLOOKUP($A16,Systems!$A16:$C$42,3,FALSE)-(VLOOKUP(D$1,Systems!$A$1:$C$42,3,FALSE)))*((VLOOKUP($A16,Systems!$A16:$C$42,3,FALSE)-(VLOOKUP(D$1,Systems!$A$1:$C$42,3,FALSE)))))))) -> 19.02629759 | E16: =SQRT(((VLOOKUP($A16,Systems!$A16:$C$42,2,FALSE)-(VLOOKUP(E$1,Systems!$A$1:$C$42,2,FALSE)))*((VLOOKUP($A16,Systems!$A16:$C$42,2,FALSE)-(VLOOKUP(E$1,Systems!$A$1:$C$42,2,FALSE))))+(((VLOOKUP($A16,Systems!$A16:$C$42,3,FALSE)-(VLOOKUP(E$1,Systems!$A$1:$C$42,3,FALSE)))*((VLOOKUP($A16,Systems!$A16:$C$42,3,FALSE)-(VLOOKUP(E$1,Systems!$A$1:$C$42,3,FALSE)))))))) -> 20.24845673 | F16: =SQRT(((VLOOKUP($A16,Systems!$A16:$C$42,2,FALSE)-(VLOOKUP(F$1,Systems!$A$1:$C$42,2,FALSE)))*((VLOOKUP($A16,Systems!$A16:$C$42,2,FALSE)-(VLOOKUP(F$1,Systems!$A$1:$C$42,2,FALSE))))+(((VLOOKUP($A16,Systems!$A16:$C$42,3,FALSE)-(VLOOKUP(F$1,Systems!$A$1:$C$42,3,FALSE)))*((VLOOKUP($A16,Systems!$A16:$C$42,3,FALSE)-(VLOOKUP(F$1,Systems!$A$1:$C$42,3,FALSE)))))))) -> 29.06888371 | G16: =SQRT(((VLOOKUP($A16,Systems!$A16:$C$42,2,FALSE)-(VLOOKUP(G$1,Systems!$A$1:$C$42,2,FALSE)))*((VLOOKUP($A16,Systems!$A16:$C$42,2,FALSE)-(VLOOKUP(G$1,Systems!$A$1:$C$42,2,FALSE))))+(((VLOOKUP($A16,Systems!$A16:$C$42,3,FALSE)-(VLOOKUP(G$1,Systems!$A$1:$C$42,3,FALSE)))*((VLOOKUP($A16,Systems!$A16:$C$42,3,FALSE)-(VLOOKUP(G$1,Systems!$A$1:$C$42,3,FALSE)))))))) -> 12.04159458 | H16: =SQRT(((VLOOKUP($A16,Systems!$A16:$C$42,2,FALSE)-(VLOOKUP(H$1,Systems!$A$1:$C$42,2,FALSE)))*((VLOOKUP($A16,Systems!$A16:$C$42,2,FALSE)-(VLOOKUP(H$1,Systems!$A$1:$C$42,2,FALSE))))+(((VLOOKUP($A16,Systems!$A16:$C$42,3,FALSE)-(VLOOKUP(H$1,Systems!$A$1:$C$42,3,FALSE)))*((VLOOKUP($A16,Systems!$A16:$C$42,3,FALSE)-(VLOOKUP(H$1,Systems!$A$1:$C$42,3,FALSE)))))))) -> 22.8035085 | I16: =SQRT(((VLOOKUP($A16,Systems!$A16:$C$42,2,FALSE)-(VLOOKUP(I$1,Systems!$A$1:$C$42,2,FALSE)))*((VLOOKUP($A16,Systems!$A16:$C$42,2,FALSE)-(VLOOKUP(I$1,Systems!$A$1:$C$42,2,FALSE))))+(((VLOOKUP($A16,Systems!$A16:$C$42,3,FALSE)-(VLOOKUP(I$1,Systems!$A$1:$C$42,3,FALSE)))*((VLOOKUP($A16,Systems!$A16:$C$42,3,FALSE)-(VLOOKUP(I$1,Systems!$A$1:$C$42,3,FALSE)))))))) -> 3.605551275 | J16: =SQRT(((VLOOKUP($A16,Systems!$A16:$C$42,2,FALSE)-(VLOOKUP(J$1,Systems!$A$1:$C$42,2,FALSE)))*((VLOOKUP($A16,Systems!$A16:$C$42,2,FALSE)-(VLOOKUP(J$1,Systems!$A$1:$C$42,2,FALSE))))+(((VLOOKUP($A16,Systems!$A16:$C$42,3,FALSE)-(VLOOKUP(J$1,Systems!$A$1:$C$42,3,FALSE)))*((VLOOKUP($A16,Systems!$A16:$C$42,3,FALSE)-(VLOOKUP(J$1,Systems!$A$1:$C$42,3,FALSE)))))))) -> 13.03840481 | K16: =SQRT(((VLOOKUP($A16,Systems!$A16:$C$42,2,FALSE)-(VLOOKUP(K$1,Systems!$A$1:$C$42,2,FALSE)))*((VLOOKUP($A16,Systems!$A16:$C$42,2,FALSE)-(VLOOKUP(K$1,Systems!$A$1:$C$42,2,FALSE))))+(((VLOOKUP($A16,Systems!$A16:$C$42,3,FALSE)-(VLOOKUP(K$1,Systems!$A$1:$C$42,3,FALSE)))*((VLOOKUP($A16,Systems!$A16:$C$42,3,FALSE)-(VLOOKUP(K$1,Systems!$A$1:$C$42,3,FALSE)))))))) -> 13 | L16: =SQRT(((VLOOKUP($A16,Systems!$A16:$C$42,2,FALSE)-(VLOOKUP(L$1,Systems!$A$1:$C$42,2,FALSE)))*((VLOOKUP($A16,Systems!$A16:$C$42,2,FALSE)-(VLOOKUP(L$1,Systems!$A$1:$C$42,2,FALSE))))+(((VLOOKUP($A16,Systems!$A16:$C$42,3,FALSE)-(VLOOKUP(L$1,Systems!$A$1:$C$42,3,FALSE)))*((VLOOKUP($A16,Systems!$A16:$C$42,3,FALSE)-(VLOOKUP(L$1,Systems!$A$1:$C$42,3,FALSE)))))))) -> 12.08304597 | M16: =SQRT(((VLOOKUP($A16,Systems!$A16:$C$42,2,FALSE)-(VLOOKUP(M$1,Systems!$A$1:$C$42,2,FALSE)))*((VLOOKUP($A16,Systems!$A16:$C$42,2,FALSE)-(VLOOKUP(M$1,Systems!$A$1:$C$42,2,FALSE))))+(((VLOOKUP($A16,Systems!$A16:$C$42,3,FALSE)-(VLOOKUP(M$1,Systems!$A$1:$C$42,3,FALSE)))*((VLOOKUP($A16,Systems!$A16:$C$42,3,FALSE)-(VLOOKUP(M$1,Systems!$A$1:$C$42,3,FALSE)))))))) -> 12.08304597 | N16: =SQRT(((VLOOKUP($A16,Systems!$A16:$C$42,2,FALSE)-(VLOOKUP(N$1,Systems!$A$1:$C$42,2,FALSE)))*((VLOOKUP($A16,Systems!$A16:$C$42,2,FALSE)-(VLOOKUP(N$1,Systems!$A$1:$C$42,2,FALSE))))+(((VLOOKUP($A16,Systems!$A16:$C$42,3,FALSE)-(VLOOKUP(N$1,Systems!$A$1:$C$42,3,FALSE)))*((VLOOKUP($A16,Systems!$A16:$C$42,3,FALSE)-(VLOOKUP(N$1,Systems!$A$1:$C$42,3,FALSE)))))))) -> 33.60059523 | O16: =SQRT(((VLOOKUP($A16,Systems!$A16:$C$42,2,FALSE)-(VLOOKUP(O$1,Systems!$A$1:$C$42,2,FALSE)))*((VLOOKUP($A16,Systems!$A16:$C$42,2,FALSE)-(VLOOKUP(O$1,Systems!$A$1:$C$42,2,FALSE))))+(((VLOOKUP($A16,Systems!$A16:$C$42,3,FALSE)-(VLOOKUP(O$1,Systems!$A$1:$C$42,3,FALSE)))*((VLOOKUP($A16,Systems!$A16:$C$42,3,FALSE)-(VLOOKUP(O$1,Systems!$A$1:$C$42,3,FALSE)))))))) -> 18.24828759 | P16: =SQRT(((VLOOKUP($A16,Systems!$A16:$C$42,2,FALSE)-(VLOOKUP(P$1,Systems!$A$1:$C$42,2,FALSE)))*((VLOOKUP($A16,Systems!$A16:$C$42,2,FALSE)-(VLOOKUP(P$1,Systems!$A$1:$C$42,2,FALSE))))+(((VLOOKUP($A16,Systems!$A16:$C$42,3,FALSE)-(VLOOKUP(P$1,Systems!$A$1:$C$42,3,FALSE)))*((VLOOKUP($A16,Systems!$A16:$C$42,3,FALSE)-(VLOOKUP(P$1,Systems!$A$1:$C$42,3,FALSE)))))))) -> 0 | Q16: =SQRT(((VLOOKUP($A16,Systems!$A16:$C$42,2,FALSE)-(VLOOKUP(Q$1,Systems!$A$1:$C$42,2,FALSE)))*((VLOOKUP($A16,Systems!$A16:$C$42,2,FALSE)-(VLOOKUP(Q$1,Systems!$A$1:$C$42,2,FALSE))))+(((VLOOKUP($A16,Systems!$A16:$C$42,3,FALSE)-(VLOOKUP(Q$1,Systems!$A$1:$C$42,3,FALSE)))*((VLOOKUP($A16,Systems!$A16:$C$42,3,FALSE)-(VLOOKUP(Q$1,Systems!$A$1:$C$42,3,FALSE)))))))) -> 19.23538406 | R16: =SQRT(((VLOOKUP($A16,Systems!$A16:$C$42,2,FALSE)-(VLOOKUP(R$1,Systems!$A$1:$C$42,2,FALSE)))*((VLOOKUP($A16,Systems!$A16:$C$42,2,FALSE)-(VLOOKUP(R$1,Systems!$A$1:$C$42,2,FALSE))))+(((VLOOKUP($A16,Systems!$A16:$C$42,3,FALSE)-(VLOOKUP(R$1,Systems!$A$1:$C$42,3,FALSE)))*((VLOOKUP($A16,Systems!$A16:$C$42,3,FALSE)-(VLOOKUP(R$1,Systems!$A$1:$C$42,3,FALSE)))))))) -> 14.2126704 | S16: =SQRT(((VLOOKUP($A16,Systems!$A16:$C$42,2,FALSE)-(VLOOKUP(S$1,Systems!$A$1:$C$42,2,FALSE)))*((VLOOKUP($A16,Systems!$A16:$C$42,2,FALSE)-(VLOOKUP(S$1,Systems!$A$1:$C$42,2,FALSE))))+(((VLOOKUP($A16,Systems!$A16:$C$42,3,FALSE)-(VLOOKUP(S$1,Systems!$A$1:$C$42,3,FALSE)))*((VLOOKUP($A16,Systems!$A16:$C$42,3,FALSE)-(VLOOKUP(S$1,Systems!$A$1:$C$42,3,FALSE)))))))) -> 9.219544457 | T16: =SQRT(((VLOOKUP($A16,Systems!$A16:$C$42,2,FALSE)-(VLOOKUP(T$1,Systems!$A$1:$C$42,2,FALSE)))*((VLOOKUP($A16,Systems!$A16:$C$42,2,FALSE)-(VLOOKUP(T$1,Systems!$A$1:$C$42,2,FALSE))))+(((VLOOKUP($A16,Systems!$A16:$C$42,3,FALSE)-(VLOOKUP(T$1,Systems!$A$1:$C$42,3,FALSE)))*((VLOOKUP($A16,Systems!$A16:$C$42,3,FALSE)-(VLOOKUP(T$1,Systems!$A$1:$C$42,3,FALSE)))))))) -> 25 | U16: =SQRT(((VLOOKUP($A16,Systems!$A16:$C$42,2,FALSE)-(VLOOKUP(U$1,Systems!$A$1:$C$42,2,FALSE)))*((VLOOKUP($A16,Systems!$A16:$C$42,2,FALSE)-(VLOOKUP(U$1,Systems!$A$1:$C$42,2,FALSE))))+(((VLOOKUP($A16,Systems!$A16:$C$42,3,FALSE)-(VLOOKUP(U$1,Systems!$A$1:$C$42,3,FALSE)))*((VLOOKUP($A16,Systems!$A16:$C$42,3,FALSE)-(VLOOKUP(U$1,Systems!$A$1:$C$42,3,FALSE)))))))) -> 17.72004515 | V16: =SQRT(((VLOOKUP($A16,Systems!$A16:$C$42,2,FALSE)-(VLOOKUP(V$1,Systems!$A$1:$C$42,2,FALSE)))*((VLOOKUP($A16,Systems!$A16:$C$42,2,FALSE)-(VLOOKUP(V$1,Systems!$A$1:$C$42,2,FALSE))))+(((VLOOKUP($A16,Systems!$A16:$C$42,3,FALSE)-(VLOOKUP(V$1,Systems!$A$1:$C$42,3,FALSE)))*((VLOOKUP($A16,Systems!$A16:$C$42,3,FALSE)-(VLOOKUP(V$1,Systems!$A$1:$C$42,3,FALSE)))))))) -> 21.09502311 | W16: =SQRT(((VLOOKUP($A16,Systems!$A16:$C$42,2,FALSE)-(VLOOKUP(W$1,Systems!$A$1:$C$42,2,FALSE)))*((VLOOKUP($A16,Systems!$A16:$C$42,2,FALSE)-(VLOOKUP(W$1,Systems!$A$1:$C$42,2,FALSE))))+(((VLOOKUP($A16,Systems!$A16:$C$42,3,FALSE)-(VLOOKUP(W$1,Systems!$A$1:$C$42,3,FALSE)))*((VLOOKUP($A16,Systems!$A16:$C$42,3,FALSE)-(VLOOKUP(W$1,Systems!$A$1:$C$42,3,FALSE)))))))) -> 24.75883681 | X16: =SQRT(((VLOOKUP($A16,Systems!$A16:$C$42,2,FALSE)-(VLOOKUP(X$1,Systems!$A$1:$C$42,2,FALSE)))*((VLOOKUP($A16,Systems!$A16:$C$42,2,FALSE)-(VLOOKUP(X$1,Systems!$A$1:$C$42,2,FALSE))))+(((VLOOKUP($A16,Systems!$A16:$C$42,3,FALSE)-(VLOOKUP(X$1,Systems!$A$1:$C$42,3,FALSE)))*((VLOOKUP($A16,Systems!$A16:$C$42,3,FALSE)-(VLOOKUP(X$1,Systems!$A$1:$C$42,3,FALSE)))))))) -> 16.2788206 | Y16: =SQRT(((VLOOKUP($A16,Systems!$A16:$C$42,2,FALSE)-(VLOOKUP(Y$1,Systems!$A$1:$C$42,2,FALSE)))*((VLOOKUP($A16,Systems!$A16:$C$42,2,FALSE)-(VLOOKUP(Y$1,Systems!$A$1:$C$42,2,FALSE))))+(((VLOOKUP($A16,Systems!$A16:$C$42,3,FALSE)-(VLOOKUP(Y$1,Systems!$A$1:$C$42,3,FALSE)))*((VLOOKUP($A16,Systems!$A16:$C$42,3,FALSE)-(VLOOKUP(Y$1,Systems!$A$1:$C$42,3,FALSE)))))))) -> 7.071067812 | Z16: =SQRT(((VLOOKUP($A16,Systems!$A16:$C$42,2,FALSE)-(VLOOKUP(Z$1,Systems!$A$1:$C$42,2,FALSE)))*((VLOOKUP($A16,Systems!$A16:$C$42,2,FALSE)-(VLOOKUP(Z$1,Systems!$A$1:$C$42,2,FALSE))))+(((VLOOKUP($A16,Systems!$A16:$C$42,3,FALSE)-(VLOOKUP(Z$1,Systems!$A$1:$C$42,3,FALSE)))*((VLOOKUP($A16,Systems!$A16:$C$42,3,FALSE)-(VLOOKUP(Z$1,Systems!$A$1:$C$42,3,FALSE)))))))) -> 25.63201124 | AA16: =SQRT(((VLOOKUP($A16,Systems!$A16:$C$42,2,FALSE)-(VLOOKUP(AA$1,Systems!$A$1:$C$42,2,FALSE)))*((VLOOKUP($A16,Systems!$A16:$C$42,2,FALSE)-(VLOOKUP(AA$1,Systems!$A$1:$C$42,2,FALSE))))+(((VLOOKUP($A16,Systems!$A16:$C$42,3,FALSE)-(VLOOKUP(AA$1,Systems!$A$1:$C$42,3,FALSE)))*((VLOOKUP($A16,Systems!$A16:$C$42,3,FALSE)-(VLOOKUP(AA$1,Systems!$A$1:$C$42,3,FALSE)))))))) -> 7.615773106 | AB16: =SQRT(((VLOOKUP($A16,Systems!$A16:$C$42,2,FALSE)-(VLOOKUP(AB$1,Systems!$A$1:$C$42,2,FALSE)))*((VLOOKUP($A16,Systems!$A16:$C$42,2,FALSE)-(VLOOKUP(AB$1,Systems!$A$1:$C$42,2,FALSE))))+(((VLOOKUP($A16,Systems!$A16:$C$42,3,FALSE)-(VLOOKUP(AB$1,Systems!$A$1:$C$42,3,FALSE)))*((VLOOKUP($A16,Systems!$A16:$C$42,3,FALSE)-(VLOOKUP(AB$1,Systems!$A$1:$C$42,3,FALSE)))))))) -> 28.8444102 | AC16: =SQRT(((VLOOKUP($A16,Systems!$A16:$C$42,2,FALSE)-(VLOOKUP(AC$1,Systems!$A$1:$C$42,2,FALSE)))*((VLOOKUP($A16,Systems!$A16:$C$42,2,FALSE)-(VLOOKUP(AC$1,Systems!$A$1:$C$42,2,FALSE))))+(((VLOOKUP($A16,Systems!$A16:$C$42,3,FALSE)-(VLOOKUP(AC$1,Systems!$A$1:$C$42,3,FALSE)))*((VLOOKUP($A16,Systems!$A16:$C$42,3,FALSE)-(VLOOKUP(AC$1,Systems!$A$1:$C$42,3,FALSE)))))))) -> 13.03840481 | AD16: =SQRT(((VLOOKUP($A16,Systems!$A16:$C$42,2,FALSE)-(VLOOKUP(AD$1,Systems!$A$1:$C$42,2,FALSE)))*((VLOOKUP($A16,Systems!$A16:$C$42,2,FALSE)-(VLOOKUP(AD$1,Systems!$A$1:$C$42,2,FALSE))))+(((VLOOKUP($A16,Systems!$A16:$C$42,3,FALSE)-(VLOOKUP(AD$1,Systems!$A$1:$C$42,3,FALSE)))*((VLOOKUP($A16,Systems!$A16:$C$42,3,FALSE)-(VLOOKUP(AD$1,Systems!$A$1:$C$42,3,FALSE)))))))) -> 8.246211251 | AE16: =SQRT(((VLOOKUP($A16,Systems!$A16:$C$42,2,FALSE)-(VLOOKUP(AE$1,Systems!$A$1:$C$42,2,FALSE)))*((VLOOKUP($A16,Systems!$A16:$C$42,2,FALSE)-(VLOOKUP(AE$1,Systems!$A$1:$C$42,2,FALSE))))+(((VLOOKUP($A16,Systems!$A16:$C$42,3,FALSE)-(VLOOKUP(AE$1,Systems!$A$1:$C$42,3,FALSE)))*((VLOOKUP($A16,Systems!$A16:$C$42,3,FALSE)-(VLOOKUP(AE$1,Systems!$A$1:$C$42,3,FALSE)))))))) -> 24.69817807 | AF16: =SQRT(((VLOOKUP($A16,Systems!$A16:$C$42,2,FALSE)-(VLOOKUP(AF$1,Systems!$A$1:$C$42,2,FALSE)))*((VLOOKUP($A16,Systems!$A16:$C$42,2,FALSE)-(VLOOKUP(AF$1,Systems!$A$1:$C$42,2,FALSE))))+(((VLOOKUP($A16,Systems!$A16:$C$42,3,FALSE)-(VLOOKUP(AF$1,Systems!$A$1:$C$42,3,FALSE)))*((VLOOKUP($A16,Systems!$A16:$C$42,3,FALSE)-(VLOOKUP(AF$1,Systems!$A$1:$C$42,3,FALSE)))))))) -> 25.96150997 | AG16: =SQRT(((VLOOKUP($A16,Systems!$A16:$C$42,2,FALSE)-(VLOOKUP(AG$1,Systems!$A$1:$C$42,2,FALSE)))*((VLOOKUP($A16,Systems!$A16:$C$42,2,FALSE)-(VLOOKUP(AG$1,Systems!$A$1:$C$42,2,FALSE))))+(((VLOOKUP($A16,Systems!$A16:$C$42,3,FALSE)-(VLOOKUP(AG$1,Systems!$A$1:$C$42,3,FALSE)))*((VLOOKUP($A16,Systems!$A16:$C$42,3,FALSE)-(VLOOKUP(AG$1,Systems!$A$1:$C$42,3,FALSE)))))))) -> 16.1245155 | AH16: =SQRT(((VLOOKUP($A16,Systems!$A16:$C$42,2,FALSE)-(VLOOKUP(AH$1,Systems!$A$1:$C$42,2,FALSE)))*((VLOOKUP($A16,Systems!$A16:$C$42,2,FALSE)-(VLOOKUP(AH$1,Systems!$A$1:$C$42,2,FALSE))))+(((VLOOKUP($A16,Systems!$A16:$C$42,3,FALSE)-(VLOOKUP(AH$1,Systems!$A$1:$C$42,3,FALSE)))*((VLOOKUP($A16,Systems!$A16:$C$42,3,FALSE)-(VLOOKUP(AH$1,Systems!$A$1:$C$42,3,FALSE)))))))) -> 16.1245155 | AI16: =SQRT(((VLOOKUP($A16,Systems!$A16:$C$42,2,FALSE)-(VLOOKUP(AI$1,Systems!$A$1:$C$42,2,FALSE)))*((VLOOKUP($A16,Systems!$A16:$C$42,2,FALSE)-(VLOOKUP(AI$1,Systems!$A$1:$C$42,2,FALSE))))+(((VLOOKUP($A16,Systems!$A16:$C$42,3,FALSE)-(VLOOKUP(AI$1,Systems!$A$1:$C$42,3,FALSE)))*((VLOOKUP($A16,Systems!$A16:$C$42,3,FALSE)-(VLOOKUP(AI$1,Systems!$A$1:$C$42,3,FALSE)))))))) -> 31.01612484 | AJ16: =SQRT(((VLOOKUP($A16,Systems!$A16:$C$42,2,FALSE)-(VLOOKUP(AJ$1,Systems!$A$1:$C$42,2,FALSE)))*((VLOOKUP($A16,Systems!$A16:$C$42,2,FALSE)-(VLOOKUP(AJ$1,Systems!$A$1:$C$42,2,FALSE))))+(((VLOOKUP($A16,Systems!$A16:$C$42,3,FALSE)-(VLOOKUP(AJ$1,Systems!$A$1:$C$42,3,FALSE)))*((VLOOKUP($A16,Systems!$A16:$C$42,3,FALSE)-(VLOOKUP(AJ$1,Systems!$A$1:$C$42,3,FALSE)))))))) -> 11.3137085 | AK16: =SQRT(((VLOOKUP($A16,Systems!$A16:$C$42,2,FALSE)-(VLOOKUP(AK$1,Systems!$A$1:$C$42,2,FALSE)))*((VLOOKUP($A16,Systems!$A16:$C$42,2,FALSE)-(VLOOKUP(AK$1,Systems!$A$1:$C$42,2,FALSE))))+(((VLOOKUP($A16,Systems!$A16:$C$42,3,FALSE)-(VLOOKUP(AK$1,Systems!$A$1:$C$42,3,FALSE)))*((VLOOKUP($A16,Systems!$A16:$C$42,3,FALSE)-(VLOOKUP(AK$1,Systems!$A$1:$C$42,3,FALSE)))))))) -> 6.403124237 | AL16: =SQRT(((VLOOKUP($A16,Systems!$A16:$C$42,2,FALSE)-(VLOOKUP(AL$1,Systems!$A$1:$C$42,2,FALSE)))*((VLOOKUP($A16,Systems!$A16:$C$42,2,FALSE)-(VLOOKUP(AL$1,Systems!$A$1:$C$42,2,FALSE))))+(((VLOOKUP($A16,Systems!$A16:$C$42,3,FALSE)-(VLOOKUP(AL$1,Systems!$A$1:$C$42,3,FALSE)))*((VLOOKUP($A16,Systems!$A16:$C$42,3,FALSE)-(VLOOKUP(AL$1,Systems!$A$1:$C$42,3,FALSE)))))))) -> 9.486832981 | AM16: =SQRT(((VLOOKUP($A16,Systems!$A16:$C$42,2,FALSE)-(VLOOKUP(AM$1,Systems!$A$1:$C$42,2,FALSE)))*((VLOOKUP($A16,Systems!$A16:$C$42,2,FALSE)-(VLOOKUP(AM$1,Systems!$A$1:$C$42,2,FALSE))))+(((VLOOKUP($A16,Systems!$A16:$C$42,3,FALSE)-(VLOOKUP(AM$1,Systems!$A$1:$C$42,3,FALSE)))*((VLOOKUP($A16,Systems!$A16:$C$42,3,FALSE)-(VLOOKUP(AM$1,Systems!$A$1:$C$42,3,FALSE)))))))) -> 16.40121947 | AN16: =SQRT(((VLOOKUP($A16,Systems!$A16:$C$42,2,FALSE)-(VLOOKUP(AN$1,Systems!$A$1:$C$42,2,FALSE)))*((VLOOKUP($A16,Systems!$A16:$C$42,2,FALSE)-(VLOOKUP(AN$1,Systems!$A$1:$C$42,2,FALSE))))+(((VLOOKUP($A16,Systems!$A16:$C$42,3,FALSE)-(VLOOKUP(AN$1,Systems!$A$1:$C$42,3,FALSE)))*((VLOOKUP($A16,Systems!$A16:$C$42,3,FALSE)-(VLOOKUP(AN$1,Systems!$A$1:$C$42,3,FALSE)))))))) -> 20.61552813 | AO16: =SQRT(((VLOOKUP($A16,Systems!$A16:$C$42,2,FALSE)-(VLOOKUP(AO$1,Systems!$A$1:$C$42,2,FALSE)))*((VLOOKUP($A16,Systems!$A16:$C$42,2,FALSE)-(VLOOKUP(AO$1,Systems!$A$1:$C$42,2,FALSE))))+(((VLOOKUP($A16,Systems!$A16:$C$42,3,FALSE)-(VLOOKUP(AO$1,Systems!$A$1:$C$42,3,FALSE)))*((VLOOKUP($A16,Systems!$A16:$C$42,3,FALSE)-(VLOOKUP(AO$1,Systems!$A$1:$C$42,3,FALSE)))))))) -> 4.123105626 | AP16: =SQRT(((VLOOKUP($A16,Systems!$A16:$C$42,2,FALSE)-(VLOOKUP(AP$1,Systems!$A$1:$C$42,2,FALSE)))*((VLOOKUP($A16,Systems!$A16:$C$42,2,FALSE)-(VLOOKUP(AP$1,Systems!$A$1:$C$42,2,FALSE))))+(((VLOOKUP($A16,Systems!$A16:$C$42,3,FALSE)-(VLOOKUP(AP$1,Systems!$A$1:$C$42,3,FALSE)))*((VLOOKUP($A16,Systems!$A16:$C$42,3,FALSE)-(VLOOKUP(AP$1,Systems!$A$1:$C$42,3,FALSE)))))))) -> 21.40093456
A17: =Systems!A17 -> Gruna Garu | B17: =SQRT(((VLOOKUP($A17,Systems!$A17:$C$42,2,FALSE)-(VLOOKUP(B$1,Systems!$A$1:$C$42,2,FALSE)))*((VLOOKUP($A17,Systems!$A17:$C$42,2,FALSE)-(VLOOKUP(B$1,Systems!$A$1:$C$42,2,FALSE))))+(((VLOOKUP($A17,Systems!$A17:$C$42,3,FALSE)-(VLOOKUP(B$1,Systems!$A$1:$C$42,3,FALSE)))*((VLOOKUP($A17,Systems!$A17:$C$42,3,FALSE)-(VLOOKUP(B$1,Systems!$A$1:$C$42,3,FALSE)))))))) -> 12.20655562 | C17: =SQRT(((VLOOKUP($A17,Systems!$A17:$C$42,2,FALSE)-(VLOOKUP(C$1,Systems!$A$1:$C$42,2,FALSE)))*((VLOOKUP($A17,Systems!$A17:$C$42,2,FALSE)-(VLOOKUP(C$1,Systems!$A$1:$C$42,2,FALSE))))+(((VLOOKUP($A17,Systems!$A17:$C$42,3,FALSE)-(VLOOKUP(C$1,Systems!$A$1:$C$42,3,FALSE)))*((VLOOKUP($A17,Systems!$A17:$C$42,3,FALSE)-(VLOOKUP(C$1,Systems!$A$1:$C$42,3,FALSE)))))))) -> 9.433981132 | D17: =SQRT(((VLOOKUP($A17,Systems!$A17:$C$42,2,FALSE)-(VLOOKUP(D$1,Systems!$A$1:$C$42,2,FALSE)))*((VLOOKUP($A17,Systems!$A17:$C$42,2,FALSE)-(VLOOKUP(D$1,Systems!$A$1:$C$42,2,FALSE))))+(((VLOOKUP($A17,Systems!$A17:$C$42,3,FALSE)-(VLOOKUP(D$1,Systems!$A$1:$C$42,3,FALSE)))*((VLOOKUP($A17,Systems!$A17:$C$42,3,FALSE)-(VLOOKUP(D$1,Systems!$A$1:$C$42,3,FALSE)))))))) -> 10.19803903 | E17: =SQRT(((VLOOKUP($A17,Systems!$A17:$C$42,2,FALSE)-(VLOOKUP(E$1,Systems!$A$1:$C$42,2,FALSE)))*((VLOOKUP($A17,Systems!$A17:$C$42,2,FALSE)-(VLOOKUP(E$1,Systems!$A$1:$C$42,2,FALSE))))+(((VLOOKUP($A17,Systems!$A17:$C$42,3,FALSE)-(VLOOKUP(E$1,Systems!$A$1:$C$42,3,FALSE)))*((VLOOKUP($A17,Systems!$A17:$C$42,3,FALSE)-(VLOOKUP(E$1,Systems!$A$1:$C$42,3,FALSE)))))))) -> 16.1245155 | F17: =SQRT(((VLOOKUP($A17,Systems!$A17:$C$42,2,FALSE)-(VLOOKUP(F$1,Systems!$A$1:$C$42,2,FALSE)))*((VLOOKUP($A17,Systems!$A17:$C$42,2,FALSE)-(VLOOKUP(F$1,Systems!$A$1:$C$42,2,FALSE))))+(((VLOOKUP($A17,Systems!$A17:$C$42,3,FALSE)-(VLOOKUP(F$1,Systems!$A$1:$C$42,3,FALSE)))*((VLOOKUP($A17,Systems!$A17:$C$42,3,FALSE)-(VLOOKUP(F$1,Systems!$A$1:$C$42,3,FALSE)))))))) -> 23.76972865 | G17: =SQRT(((VLOOKUP($A17,Systems!$A17:$C$42,2,FALSE)-(VLOOKUP(G$1,Systems!$A$1:$C$42,2,FALSE)))*((VLOOKUP($A17,Systems!$A17:$C$42,2,FALSE)-(VLOOKUP(G$1,Systems!$A$1:$C$42,2,FALSE))))+(((VLOOKUP($A17,Systems!$A17:$C$42,3,FALSE)-(VLOOKUP(G$1,Systems!$A$1:$C$42,3,FALSE)))*((VLOOKUP($A17,Systems!$A17:$C$42,3,FALSE)-(VLOOKUP(G$1,Systems!$A$1:$C$42,3,FALSE)))))))) -> 20.1246118 | H17: =SQRT(((VLOOKUP($A17,Systems!$A17:$C$42,2,FALSE)-(VLOOKUP(H$1,Systems!$A$1:$C$42,2,FALSE)))*((VLOOKUP($A17,Systems!$A17:$C$42,2,FALSE)-(VLOOKUP(H$1,Systems!$A$1:$C$42,2,FALSE))))+(((VLOOKUP($A17,Systems!$A17:$C$42,3,FALSE)-(VLOOKUP(H$1,Systems!$A$1:$C$42,3,FALSE)))*((VLOOKUP($A17,Systems!$A17:$C$42,3,FALSE)-(VLOOKUP(H$1,Systems!$A$1:$C$42,3,FALSE)))))))) -> 32.89376841 | I17: =SQRT(((VLOOKUP($A17,Systems!$A17:$C$42,2,FALSE)-(VLOOKUP(I$1,Systems!$A$1:$C$42,2,FALSE)))*((VLOOKUP($A17,Systems!$A17:$C$42,2,FALSE)-(VLOOKUP(I$1,Systems!$A$1:$C$42,2,FALSE))))+(((VLOOKUP($A17,Systems!$A17:$C$42,3,FALSE)-(VLOOKUP(I$1,Systems!$A$1:$C$42,3,FALSE)))*((VLOOKUP($A17,Systems!$A17:$C$42,3,FALSE)-(VLOOKUP(I$1,Systems!$A$1:$C$42,3,FALSE)))))))) -> 17.80449381 | J17: =SQRT(((VLOOKUP($A17,Systems!$A17:$C$42,2,FALSE)-(VLOOKUP(J$1,Systems!$A$1:$C$42,2,FALSE)))*((VLOOKUP($A17,Systems!$A17:$C$42,2,FALSE)-(VLOOKUP(J$1,Systems!$A$1:$C$42,2,FALSE))))+(((VLOOKUP($A17,Systems!$A17:$C$42,3,FALSE)-(VLOOKUP(J$1,Systems!$A$1:$C$42,3,FALSE)))*((VLOOKUP($A17,Systems!$A17:$C$42,3,FALSE)-(VLOOKUP(J$1,Systems!$A$1:$C$42,3,FALSE)))))))) -> 27.20294102 | K17: =SQRT(((VLOOKUP($A17,Systems!$A17:$C$42,2,FALSE)-(VLOOKUP(K$1,Systems!$A$1:$C$42,2,FALSE)))*((VLOOKUP($A17,Systems!$A17:$C$42,2,FALSE)-(VLOOKUP(K$1,Systems!$A$1:$C$42,2,FALSE))))+(((VLOOKUP($A17,Systems!$A17:$C$42,3,FALSE)-(VLOOKUP(K$1,Systems!$A$1:$C$42,3,FALSE)))*((VLOOKUP($A17,Systems!$A17:$C$42,3,FALSE)-(VLOOKUP(K$1,Systems!$A$1:$C$42,3,FALSE)))))))) -> 14.86606875 | L17: =SQRT(((VLOOKUP($A17,Systems!$A17:$C$42,2,FALSE)-(VLOOKUP(L$1,Systems!$A$1:$C$42,2,FALSE)))*((VLOOKUP($A17,Systems!$A17:$C$42,2,FALSE)-(VLOOKUP(L$1,Systems!$A$1:$C$42,2,FALSE))))+(((VLOOKUP($A17,Systems!$A17:$C$42,3,FALSE)-(VLOOKUP(L$1,Systems!$A$1:$C$42,3,FALSE)))*((VLOOKUP($A17,Systems!$A17:$C$42,3,FALSE)-(VLOOKUP(L$1,Systems!$A$1:$C$42,3,FALSE)))))))) -> 23.32380758 | M17: =SQRT(((VLOOKUP($A17,Systems!$A17:$C$42,2,FALSE)-(VLOOKUP(M$1,Systems!$A$1:$C$42,2,FALSE)))*((VLOOKUP($A17,Systems!$A17:$C$42,2,FALSE)-(VLOOKUP(M$1,Systems!$A$1:$C$42,2,FALSE))))+(((VLOOKUP($A17,Systems!$A17:$C$42,3,FALSE)-(VLOOKUP(M$1,Systems!$A$1:$C$42,3,FALSE)))*((VLOOKUP($A17,Systems!$A17:$C$42,3,FALSE)-(VLOOKUP(M$1,Systems!$A$1:$C$42,3,FALSE)))))))) -> 29.73213749 | N17: =SQRT(((VLOOKUP($A17,Systems!$A17:$C$42,2,FALSE)-(VLOOKUP(N$1,Systems!$A$1:$C$42,2,FALSE)))*((VLOOKUP($A17,Systems!$A17:$C$42,2,FALSE)-(VLOOKUP(N$1,Systems!$A$1:$C$42,2,FALSE))))+(((VLOOKUP($A17,Systems!$A17:$C$42,3,FALSE)-(VLOOKUP(N$1,Systems!$A$1:$C$42,3,FALSE)))*((VLOOKUP($A17,Systems!$A17:$C$42,3,FALSE)-(VLOOKUP(N$1,Systems!$A$1:$C$42,3,FALSE)))))))) -> 30.6757233 | O17: =SQRT(((VLOOKUP($A17,Systems!$A17:$C$42,2,FALSE)-(VLOOKUP(O$1,Systems!$A$1:$C$42,2,FALSE)))*((VLOOKUP($A17,Systems!$A17:$C$42,2,FALSE)-(VLOOKUP(O$1,Systems!$A$1:$C$42,2,FALSE))))+(((VLOOKUP($A17,Systems!$A17:$C$42,3,FALSE)-(VLOOKUP(O$1,Systems!$A$1:$C$42,3,FALSE)))*((VLOOKUP($A17,Systems!$A17:$C$42,3,FALSE)-(VLOOKUP(O$1,Systems!$A$1:$C$42,3,FALSE)))))))) -> 30.41381265 | P17: =SQRT(((VLOOKUP($A17,Systems!$A17:$C$42,2,FALSE)-(VLOOKUP(P$1,Systems!$A$1:$C$42,2,FALSE)))*((VLOOKUP($A17,Systems!$A17:$C$42,2,FALSE)-(VLOOKUP(P$1,Systems!$A$1:$C$42,2,FALSE))))+(((VLOOKUP($A17,Systems!$A17:$C$42,3,FALSE)-(VLOOKUP(P$1,Systems!$A$1:$C$42,3,FALSE)))*((VLOOKUP($A17,Systems!$A17:$C$42,3,FALSE)-(VLOOKUP(P$1,Systems!$A$1:$C$42,3,FALSE)))))))) -> 19.23538406 | Q17: =SQRT(((VLOOKUP($A17,Systems!$A17:$C$42,2,FALSE)-(VLOOKUP(Q$1,Systems!$A$1:$C$42,2,FALSE)))*((VLOOKUP($A17,Systems!$A17:$C$42,2,FALSE)-(VLOOKUP(Q$1,Systems!$A$1:$C$42,2,FALSE))))+(((VLOOKUP($A17,Systems!$A17:$C$42,3,FALSE)-(VLOOKUP(Q$1,Systems!$A$1:$C$42,3,FALSE)))*((VLOOKUP($A17,Systems!$A17:$C$42,3,FALSE)-(VLOOKUP(Q$1,Systems!$A$1:$C$42,3,FALSE)))))))) -> 0 | R17: =SQRT(((VLOOKUP($A17,Systems!$A17:$C$42,2,FALSE)-(VLOOKUP(R$1,Systems!$A$1:$C$42,2,FALSE)))*((VLOOKUP($A17,Systems!$A17:$C$42,2,FALSE)-(VLOOKUP(R$1,Systems!$A$1:$C$42,2,FALSE))))+(((VLOOKUP($A17,Systems!$A17:$C$42,3,FALSE)-(VLOOKUP(R$1,Systems!$A$1:$C$42,3,FALSE)))*((VLOOKUP($A17,Systems!$A17:$C$42,3,FALSE)-(VLOOKUP(R$1,Systems!$A$1:$C$42,3,FALSE)))))))) -> 32.80243893 | S17: =SQRT(((VLOOKUP($A17,Systems!$A17:$C$42,2,FALSE)-(VLOOKUP(S$1,Systems!$A$1:$C$42,2,FALSE)))*((VLOOKUP($A17,Systems!$A17:$C$42,2,FALSE)-(VLOOKUP(S$1,Systems!$A$1:$C$42,2,FALSE))))+(((VLOOKUP($A17,Systems!$A17:$C$42,3,FALSE)-(VLOOKUP(S$1,Systems!$A$1:$C$42,3,FALSE)))*((VLOOKUP($A17,Systems!$A17:$C$42,3,FALSE)-(VLOOKUP(S$1,Systems!$A$1:$C$42,3,FALSE)))))))) -> 28.01785145 | T17: =SQRT(((VLOOKUP($A17,Systems!$A17:$C$42,2,FALSE)-(VLOOKUP(T$1,Systems!$A$1:$C$42,2,FALSE)))*((VLOOKUP($A17,Systems!$A17:$C$42,2,FALSE)-(VLOOKUP(T$1,Systems!$A$1:$C$42,2,FALSE))))+(((VLOOKUP($A17,Systems!$A17:$C$42,3,FALSE)-(VLOOKUP(T$1,Systems!$A$1:$C$42,3,FALSE)))*((VLOOKUP($A17,Systems!$A17:$C$42,3,FALSE)-(VLOOKUP(T$1,Systems!$A$1:$C$42,3,FALSE)))))))) -> 29.06888371 | U17: =SQRT(((VLOOKUP($A17,Systems!$A17:$C$42,2,FALSE)-(VLOOKUP(U$1,Systems!$A$1:$C$42,2,FALSE)))*((VLOOKUP($A17,Systems!$A17:$C$42,2,FALSE)-(VLOOKUP(U$1,Systems!$A$1:$C$42,2,FALSE))))+(((VLOOKUP($A17,Systems!$A17:$C$42,3,FALSE)-(VLOOKUP(U$1,Systems!$A$1:$C$42,3,FALSE)))*((VLOOKUP($A17,Systems!$A17:$C$42,3,FALSE)-(VLOOKUP(U$1,Systems!$A$1:$C$42,3,FALSE)))))))) -> 34.05877273 | V17: =SQRT(((VLOOKUP($A17,Systems!$A17:$C$42,2,FALSE)-(VLOOKUP(V$1,Systems!$A$1:$C$42,2,FALSE)))*((VLOOKUP($A17,Systems!$A17:$C$42,2,FALSE)-(VLOOKUP(V$1,Systems!$A$1:$C$42,2,FALSE))))+(((VLOOKUP($A17,Systems!$A17:$C$42,3,FALSE)-(VLOOKUP(V$1,Systems!$A$1:$C$42,3,FALSE)))*((VLOOKUP($A17,Systems!$A17:$C$42,3,FALSE)-(VLOOKUP(V$1,Systems!$A$1:$C$42,3,FALSE)))))))) -> 35.51056181 | W17: =SQRT(((VLOOKUP($A17,Systems!$A17:$C$42,2,FALSE)-(VLOOKUP(W$1,Systems!$A$1:$C$42,2,FALSE)))*((VLOOKUP($A17,Systems!$A17:$C$42,2,FALSE)-(VLOOKUP(W$1,Systems!$A$1:$C$42,2,FALSE))))+(((VLOOKUP($A17,Systems!$A17:$C$42,3,FALSE)-(VLOOKUP(W$1,Systems!$A$1:$C$42,3,FALSE)))*((VLOOKUP($A17,Systems!$A17:$C$42,3,FALSE)-(VLOOKUP(W$1,Systems!$A$1:$C$42,3,FALSE)))))))) -> 35.90264614 | X17: =SQRT(((VLOOKUP($A17,Systems!$A17:$C$42,2,FALSE)-(VLOOKUP(X$1,Systems!$A$1:$C$42,2,FALSE)))*((VLOOKUP($A17,Systems!$A17:$C$42,2,FALSE)-(VLOOKUP(X$1,Systems!$A$1:$C$42,2,FALSE))))+(((VLOOKUP($A17,Systems!$A17:$C$42,3,FALSE)-(VLOOKUP(X$1,Systems!$A$1:$C$42,3,FALSE)))*((VLOOKUP($A17,Systems!$A17:$C$42,3,FALSE)-(VLOOKUP(X$1,Systems!$A$1:$C$42,3,FALSE)))))))) -> 15.65247584 | Y17: =SQRT(((VLOOKUP($A17,Systems!$A17:$C$42,2,FALSE)-(VLOOKUP(Y$1,Systems!$A$1:$C$42,2,FALSE)))*((VLOOKUP($A17,Systems!$A17:$C$42,2,FALSE)-(VLOOKUP(Y$1,Systems!$A$1:$C$42,2,FALSE))))+(((VLOOKUP($A17,Systems!$A17:$C$42,3,FALSE)-(VLOOKUP(Y$1,Systems!$A$1:$C$42,3,FALSE)))*((VLOOKUP($A17,Systems!$A17:$C$42,3,FALSE)-(VLOOKUP(Y$1,Systems!$A$1:$C$42,3,FALSE)))))))) -> 22.627417 | Z17: =SQRT(((VLOOKUP($A17,Systems!$A17:$C$42,2,FALSE)-(VLOOKUP(Z$1,Systems!$A$1:$C$42,2,FALSE)))*((VLOOKUP($A17,Systems!$A17:$C$42,2,FALSE)-(VLOOKUP(Z$1,Systems!$A$1:$C$42,2,FALSE))))+(((VLOOKUP($A17,Systems!$A17:$C$42,3,FALSE)-(VLOOKUP(Z$1,Systems!$A$1:$C$42,3,FALSE)))*((VLOOKUP($A17,Systems!$A17:$C$42,3,FALSE)-(VLOOKUP(Z$1,Systems!$A$1:$C$42,3,FALSE)))))))) -> 19.31320792 | AA17: =SQRT(((VLOOKUP($A17,Systems!$A17:$C$42,2,FALSE)-(VLOOKUP(AA$1,Systems!$A$1:$C$42,2,FALSE)))*((VLOOKUP($A17,Systems!$A17:$C$42,2,FALSE)-(VLOOKUP(AA$1,Systems!$A$1:$C$42,2,FALSE))))+(((VLOOKUP($A17,Systems!$A17:$C$42,3,FALSE)-(VLOOKUP(AA$1,Systems!$A$1:$C$42,3,FALSE)))*((VLOOKUP($A17,Systems!$A17:$C$42,3,FALSE)-(VLOOKUP(AA$1,Systems!$A$1:$C$42,3,FALSE)))))))) -> 20.09975124 | AB17: =SQRT(((VLOOKUP($A17,Systems!$A17:$C$42,2,FALSE)-(VLOOKUP(AB$1,Systems!$A$1:$C$42,2,FALSE)))*((VLOOKUP($A17,Systems!$A17:$C$42,2,FALSE)-(VLOOKUP(AB$1,Systems!$A$1:$C$42,2,FALSE))))+(((VLOOKUP($A17,Systems!$A17:$C$42,3,FALSE)-(VLOOKUP(AB$1,Systems!$A$1:$C$42,3,FALSE)))*((VLOOKUP($A17,Systems!$A17:$C$42,3,FALSE)-(VLOOKUP(AB$1,Systems!$A$1:$C$42,3,FALSE)))))))) -> 25.96150997 | AC17: =SQRT(((VLOOKUP($A17,Systems!$A17:$C$42,2,FALSE)-(VLOOKUP(AC$1,Systems!$A$1:$C$42,2,FALSE)))*((VLOOKUP($A17,Systems!$A17:$C$42,2,FALSE)-(VLOOKUP(AC$1,Systems!$A$1:$C$42,2,FALSE))))+(((VLOOKUP($A17,Systems!$A17:$C$42,3,FALSE)-(VLOOKUP(AC$1,Systems!$A$1:$C$42,3,FALSE)))*((VLOOKUP($A17,Systems!$A17:$C$42,3,FALSE)-(VLOOKUP(AC$1,Systems!$A$1:$C$42,3,FALSE)))))))) -> 6.32455532 | AD17: =SQRT(((VLOOKUP($A17,Systems!$A17:$C$42,2,FALSE)-(VLOOKUP(AD$1,Systems!$A$1:$C$42,2,FALSE)))*((VLOOKUP($A17,Systems!$A17:$C$42,2,FALSE)-(VLOOKUP(AD$1,Systems!$A$1:$C$42,2,FALSE))))+(((VLOOKUP($A17,Systems!$A17:$C$42,3,FALSE)-(VLOOKUP(AD$1,Systems!$A$1:$C$42,3,FALSE)))*((VLOOKUP($A17,Systems!$A17:$C$42,3,FALSE)-(VLOOKUP(AD$1,Systems!$A$1:$C$42,3,FALSE)))))))) -> 14.2126704 | AE17: =SQRT(((VLOOKUP($A17,Systems!$A17:$C$42,2,FALSE)-(VLOOKUP(AE$1,Systems!$A$1:$C$42,2,FALSE)))*((VLOOKUP($A17,Systems!$A17:$C$42,2,FALSE)-(VLOOKUP(AE$1,Systems!$A$1:$C$42,2,FALSE))))+(((VLOOKUP($A17,Systems!$A17:$C$42,3,FALSE)-(VLOOKUP(AE$1,Systems!$A$1:$C$42,3,FALSE)))*((VLOOKUP($A17,Systems!$A17:$C$42,3,FALSE)-(VLOOKUP(AE$1,Systems!$A$1:$C$42,3,FALSE)))))))) -> 5.656854249 | AF17: =SQRT(((VLOOKUP($A17,Systems!$A17:$C$42,2,FALSE)-(VLOOKUP(AF$1,Systems!$A$1:$C$42,2,FALSE)))*((VLOOKUP($A17,Systems!$A17:$C$42,2,FALSE)-(VLOOKUP(AF$1,Systems!$A$1:$C$42,2,FALSE))))+(((VLOOKUP($A17,Systems!$A17:$C$42,3,FALSE)-(VLOOKUP(AF$1,Systems!$A$1:$C$42,3,FALSE)))*((VLOOKUP($A17,Systems!$A17:$C$42,3,FALSE)-(VLOOKUP(AF$1,Systems!$A$1:$C$42,3,FALSE)))))))) -> 17.88854382 | AG17: =SQRT(((VLOOKUP($A17,Systems!$A17:$C$42,2,FALSE)-(VLOOKUP(AG$1,Systems!$A$1:$C$42,2,FALSE)))*((VLOOKUP($A17,Systems!$A17:$C$42,2,FALSE)-(VLOOKUP(AG$1,Systems!$A$1:$C$42,2,FALSE))))+(((VLOOKUP($A17,Systems!$A17:$C$42,3,FALSE)-(VLOOKUP(AG$1,Systems!$A$1:$C$42,3,FALSE)))*((VLOOKUP($A17,Systems!$A17:$C$42,3,FALSE)-(VLOOKUP(AG$1,Systems!$A$1:$C$42,3,FALSE)))))))) -> 35.35533906 | AH17: =SQRT(((VLOOKUP($A17,Systems!$A17:$C$42,2,FALSE)-(VLOOKUP(AH$1,Systems!$A$1:$C$42,2,FALSE)))*((VLOOKUP($A17,Systems!$A17:$C$42,2,FALSE)-(VLOOKUP(AH$1,Systems!$A$1:$C$42,2,FALSE))))+(((VLOOKUP($A17,Systems!$A17:$C$42,3,FALSE)-(VLOOKUP(AH$1,Systems!$A$1:$C$42,3,FALSE)))*((VLOOKUP($A17,Systems!$A17:$C$42,3,FALSE)-(VLOOKUP(AH$1,Systems!$A$1:$C$42,3,FALSE)))))))) -> 31.01612484 | AI17: =SQRT(((VLOOKUP($A17,Systems!$A17:$C$42,2,FALSE)-(VLOOKUP(AI$1,Systems!$A$1:$C$42,2,FALSE)))*((VLOOKUP($A17,Systems!$A17:$C$42,2,FALSE)-(VLOOKUP(AI$1,Systems!$A$1:$C$42,2,FALSE))))+(((VLOOKUP($A17,Systems!$A17:$C$42,3,FALSE)-(VLOOKUP(AI$1,Systems!$A$1:$C$42,3,FALSE)))*((VLOOKUP($A17,Systems!$A17:$C$42,3,FALSE)-(VLOOKUP(AI$1,Systems!$A$1:$C$42,3,FALSE)))))))) -> 17.20465053 | AJ17: =SQRT(((VLOOKUP($A17,Systems!$A17:$C$42,2,FALSE)-(VLOOKUP(AJ$1,Systems!$A$1:$C$42,2,FALSE)))*((VLOOKUP($A17,Systems!$A17:$C$42,2,FALSE)-(VLOOKUP(AJ$1,Systems!$A$1:$C$42,2,FALSE))))+(((VLOOKUP($A17,Systems!$A17:$C$42,3,FALSE)-(VLOOKUP(AJ$1,Systems!$A$1:$C$42,3,FALSE)))*((VLOOKUP($A17,Systems!$A17:$C$42,3,FALSE)-(VLOOKUP(AJ$1,Systems!$A$1:$C$42,3,FALSE)))))))) -> 25.01999201 | AK17: =SQRT(((VLOOKUP($A17,Systems!$A17:$C$42,2,FALSE)-(VLOOKUP(AK$1,Systems!$A$1:$C$42,2,FALSE)))*((VLOOKUP($A17,Systems!$A17:$C$42,2,FALSE)-(VLOOKUP(AK$1,Systems!$A$1:$C$42,2,FALSE))))+(((VLOOKUP($A17,Systems!$A17:$C$42,3,FALSE)-(VLOOKUP(AK$1,Systems!$A$1:$C$42,3,FALSE)))*((VLOOKUP($A17,Systems!$A17:$C$42,3,FALSE)-(VLOOKUP(AK$1,Systems!$A$1:$C$42,3,FALSE)))))))) -> 13.60147051 | AL17: =SQRT(((VLOOKUP($A17,Systems!$A17:$C$42,2,FALSE)-(VLOOKUP(AL$1,Systems!$A$1:$C$42,2,FALSE)))*((VLOOKUP($A17,Systems!$A17:$C$42,2,FALSE)-(VLOOKUP(AL$1,Systems!$A$1:$C$42,2,FALSE))))+(((VLOOKUP($A17,Systems!$A17:$C$42,3,FALSE)-(VLOOKUP(AL$1,Systems!$A$1:$C$42,3,FALSE)))*((VLOOKUP($A17,Systems!$A17:$C$42,3,FALSE)-(VLOOKUP(AL$1,Systems!$A$1:$C$42,3,FALSE)))))))) -> 26.68332813 | AM17: =SQRT(((VLOOKUP($A17,Systems!$A17:$C$42,2,FALSE)-(VLOOKUP(AM$1,Systems!$A$1:$C$42,2,FALSE)))*((VLOOKUP($A17,Systems!$A17:$C$42,2,FALSE)-(VLOOKUP(AM$1,Systems!$A$1:$C$42,2,FALSE))))+(((VLOOKUP($A17,Systems!$A17:$C$42,3,FALSE)-(VLOOKUP(AM$1,Systems!$A$1:$C$42,3,FALSE)))*((VLOOKUP($A17,Systems!$A17:$C$42,3,FALSE)-(VLOOKUP(AM$1,Systems!$A$1:$C$42,3,FALSE)))))))) -> 19.41648784 | AN17: =SQRT(((VLOOKUP($A17,Systems!$A17:$C$42,2,FALSE)-(VLOOKUP(AN$1,Systems!$A$1:$C$42,2,FALSE)))*((VLOOKUP($A17,Systems!$A17:$C$42,2,FALSE)-(VLOOKUP(AN$1,Systems!$A$1:$C$42,2,FALSE))))+(((VLOOKUP($A17,Systems!$A17:$C$42,3,FALSE)-(VLOOKUP(AN$1,Systems!$A$1:$C$42,3,FALSE)))*((VLOOKUP($A17,Systems!$A17:$C$42,3,FALSE)-(VLOOKUP(AN$1,Systems!$A$1:$C$42,3,FALSE)))))))) -> 30.8058436 | AO17: =SQRT(((VLOOKUP($A17,Systems!$A17:$C$42,2,FALSE)-(VLOOKUP(AO$1,Systems!$A$1:$C$42,2,FALSE)))*((VLOOKUP($A17,Systems!$A17:$C$42,2,FALSE)-(VLOOKUP(AO$1,Systems!$A$1:$C$42,2,FALSE))))+(((VLOOKUP($A17,Systems!$A17:$C$42,3,FALSE)-(VLOOKUP(AO$1,Systems!$A$1:$C$42,3,FALSE)))*((VLOOKUP($A17,Systems!$A17:$C$42,3,FALSE)-(VLOOKUP(AO$1,Systems!$A$1:$C$42,3,FALSE)))))))) -> 23.2594067 | AP17: =SQRT(((VLOOKUP($A17,Systems!$A17:$C$42,2,FALSE)-(VLOOKUP(AP$1,Systems!$A$1:$C$42,2,FALSE)))*((VLOOKUP($A17,Systems!$A17:$C$42,2,FALSE)-(VLOOKUP(AP$1,Systems!$A$1:$C$42,2,FALSE))))+(((VLOOKUP($A17,Systems!$A17:$C$42,3,FALSE)-(VLOOKUP(AP$1,Systems!$A$1:$C$42,3,FALSE)))*((VLOOKUP($A17,Systems!$A17:$C$42,3,FALSE)-(VLOOKUP(AP$1,Systems!$A$1:$C$42,3,FALSE)))))))) -> 22
A18: =Systems!A18 -> K’aken-Kar | B18: =SQRT(((VLOOKUP($A18,Systems!$A18:$C$42,2,FALSE)-(VLOOKUP(B$1,Systems!$A$1:$C$42,2,FALSE)))*((VLOOKUP($A18,Systems!$A18:$C$42,2,FALSE)-(VLOOKUP(B$1,Systems!$A$1:$C$42,2,FALSE))))+(((VLOOKUP($A18,Systems!$A18:$C$42,3,FALSE)-(VLOOKUP(B$1,Systems!$A$1:$C$42,3,FALSE)))*((VLOOKUP($A18,Systems!$A18:$C$42,3,FALSE)-(VLOOKUP(B$1,Systems!$A$1:$C$42,3,FALSE)))))))) -> 20.61552813 | C18: =SQRT(((VLOOKUP($A18,Systems!$A18:$C$42,2,FALSE)-(VLOOKUP(C$1,Systems!$A$1:$C$42,2,FALSE)))*((VLOOKUP($A18,Systems!$A18:$C$42,2,FALSE)-(VLOOKUP(C$1,Systems!$A$1:$C$42,2,FALSE))))+(((VLOOKUP($A18,Systems!$A18:$C$42,3,FALSE)-(VLOOKUP(C$1,Systems!$A$1:$C$42,3,FALSE)))*((VLOOKUP($A18,Systems!$A18:$C$42,3,FALSE)-(VLOOKUP(C$1,Systems!$A$1:$C$42,3,FALSE)))))))) -> 37.16180835 | D18: =SQRT(((VLOOKUP($A18,Systems!$A18:$C$42,2,FALSE)-(VLOOKUP(D$1,Systems!$A$1:$C$42,2,FALSE)))*((VLOOKUP($A18,Systems!$A18:$C$42,2,FALSE)-(VLOOKUP(D$1,Systems!$A$1:$C$42,2,FALSE))))+(((VLOOKUP($A18,Systems!$A18:$C$42,3,FALSE)-(VLOOKUP(D$1,Systems!$A$1:$C$42,3,FALSE)))*((VLOOKUP($A18,Systems!$A18:$C$42,3,FALSE)-(VLOOKUP(D$1,Systems!$A$1:$C$42,3,FALSE)))))))) -> 29.73213749 | E18: =SQRT(((VLOOKUP($A18,Systems!$A18:$C$42,2,FALSE)-(VLOOKUP(E$1,Systems!$A$1:$C$42,2,FALSE)))*((VLOOKUP($A18,Systems!$A18:$C$42,2,FALSE)-(VLOOKUP(E$1,Systems!$A$1:$C$42,2,FALSE))))+(((VLOOKUP($A18,Systems!$A18:$C$42,3,FALSE)-(VLOOKUP(E$1,Systems!$A$1:$C$42,3,FALSE)))*((VLOOKUP($A18,Systems!$A18:$C$42,3,FALSE)-(VLOOKUP(E$1,Systems!$A$1:$C$42,3,FALSE)))))))) -> 28.28427125 | F18: =SQRT(((VLOOKUP($A18,Systems!$A18:$C$42,2,FALSE)-(VLOOKUP(F$1,Systems!$A$1:$C$42,2,FALSE)))*((VLOOKUP($A18,Systems!$A18:$C$42,2,FALSE)-(VLOOKUP(F$1,Systems!$A$1:$C$42,2,FALSE))))+(((VLOOKUP($A18,Systems!$A18:$C$42,3,FALSE)-(VLOOKUP(F$1,Systems!$A$1:$C$42,3,FALSE)))*((VLOOKUP($A18,Systems!$A18:$C$42,3,FALSE)-(VLOOKUP(F$1,Systems!$A$1:$C$42,3,FALSE)))))))) -> 35.05709629 | G18: =SQRT(((VLOOKUP($A18,Systems!$A18:$C$42,2,FALSE)-(VLOOKUP(G$1,Systems!$A$1:$C$42,2,FALSE)))*((VLOOKUP($A18,Systems!$A18:$C$42,2,FALSE)-(VLOOKUP(G$1,Systems!$A$1:$C$42,2,FALSE))))+(((VLOOKUP($A18,Systems!$A18:$C$42,3,FALSE)-(VLOOKUP(G$1,Systems!$A$1:$C$42,3,FALSE)))*((VLOOKUP($A18,Systems!$A18:$C$42,3,FALSE)-(VLOOKUP(G$1,Systems!$A$1:$C$42,3,FALSE)))))))) -> 17.11724277 | H18: =SQRT(((VLOOKUP($A18,Systems!$A18:$C$42,2,FALSE)-(VLOOKUP(H$1,Systems!$A$1:$C$42,2,FALSE)))*((VLOOKUP($A18,Systems!$A18:$C$42,2,FALSE)-(VLOOKUP(H$1,Systems!$A$1:$C$42,2,FALSE))))+(((VLOOKUP($A18,Systems!$A18:$C$42,3,FALSE)-(VLOOKUP(H$1,Systems!$A$1:$C$42,3,FALSE)))*((VLOOKUP($A18,Systems!$A18:$C$42,3,FALSE)-(VLOOKUP(H$1,Systems!$A$1:$C$42,3,FALSE)))))))) -> 18.60107524 | I18: =SQRT(((VLOOKUP($A18,Systems!$A18:$C$42,2,FALSE)-(VLOOKUP(I$1,Systems!$A$1:$C$42,2,FALSE)))*((VLOOKUP($A18,Systems!$A18:$C$42,2,FALSE)-(VLOOKUP(I$1,Systems!$A$1:$C$42,2,FALSE))))+(((VLOOKUP($A18,Systems!$A18:$C$42,3,FALSE)-(VLOOKUP(I$1,Systems!$A$1:$C$42,3,FALSE)))*((VLOOKUP($A18,Systems!$A18:$C$42,3,FALSE)-(VLOOKUP(I$1,Systems!$A$1:$C$42,3,FALSE)))))))) -> 15 | J18: =SQRT(((VLOOKUP($A18,Systems!$A18:$C$42,2,FALSE)-(VLOOKUP(J$1,Systems!$A$1:$C$42,2,FALSE)))*((VLOOKUP($A18,Systems!$A18:$C$42,2,FALSE)-(VLOOKUP(J$1,Systems!$A$1:$C$42,2,FALSE))))+(((VLOOKUP($A18,Systems!$A18:$C$42,3,FALSE)-(VLOOKUP(J$1,Systems!$A$1:$C$42,3,FALSE)))*((VLOOKUP($A18,Systems!$A18:$C$42,3,FALSE)-(VLOOKUP(J$1,Systems!$A$1:$C$42,3,FALSE)))))))) -> 10.19803903 | K18: =SQRT(((VLOOKUP($A18,Systems!$A18:$C$42,2,FALSE)-(VLOOKUP(K$1,Systems!$A$1:$C$42,2,FALSE)))*((VLOOKUP($A18,Systems!$A18:$C$42,2,FALSE)-(VLOOKUP(K$1,Systems!$A$1:$C$42,2,FALSE))))+(((VLOOKUP($A18,Systems!$A18:$C$42,3,FALSE)-(VLOOKUP(K$1,Systems!$A$1:$C$42,3,FALSE)))*((VLOOKUP($A18,Systems!$A18:$C$42,3,FALSE)-(VLOOKUP(K$1,Systems!$A$1:$C$42,3,FALSE)))))))) -> 21.84032967 | L18: =SQRT(((VLOOKUP($A18,Systems!$A18:$C$42,2,FALSE)-(VLOOKUP(L$1,Systems!$A$1:$C$42,2,FALSE)))*((VLOOKUP($A18,Systems!$A18:$C$42,2,FALSE)-(VLOOKUP(L$1,Systems!$A$1:$C$42,2,FALSE))))+(((VLOOKUP($A18,Systems!$A18:$C$42,3,FALSE)-(VLOOKUP(L$1,Systems!$A$1:$C$42,3,FALSE)))*((VLOOKUP($A18,Systems!$A18:$C$42,3,FALSE)-(VLOOKUP(L$1,Systems!$A$1:$C$42,3,FALSE)))))))) -> 14 | M18: =SQRT(((VLOOKUP($A18,Systems!$A18:$C$42,2,FALSE)-(VLOOKUP(M$1,Systems!$A$1:$C$42,2,FALSE)))*((VLOOKUP($A18,Systems!$A18:$C$42,2,FALSE)-(VLOOKUP(M$1,Systems!$A$1:$C$42,2,FALSE))))+(((VLOOKUP($A18,Systems!$A18:$C$42,3,FALSE)-(VLOOKUP(M$1,Systems!$A$1:$C$42,3,FALSE)))*((VLOOKUP($A18,Systems!$A18:$C$42,3,FALSE)-(VLOOKUP(M$1,Systems!$A$1:$C$42,3,FALSE)))))))) -> 4 | N18: =SQRT(((VLOOKUP($A18,Systems!$A18:$C$42,2,FALSE)-(VLOOKUP(N$1,Systems!$A$1:$C$42,2,FALSE)))*((VLOOKUP($A18,Systems!$A18:$C$42,2,FALSE)-(VLOOKUP(N$1,Systems!$A$1:$C$42,2,FALSE))))+(((VLOOKUP($A18,Systems!$A18:$C$42,3,FALSE)-(VLOOKUP(N$1,Systems!$A$1:$C$42,3,FALSE)))*((VLOOKUP($A18,Systems!$A18:$C$42,3,FALSE)-(VLOOKUP(N$1,Systems!$A$1:$C$42,3,FALSE)))))))) -> 37.10795063 | O18: =SQRT(((VLOOKUP($A18,Systems!$A18:$C$42,2,FALSE)-(VLOOKUP(O$1,Systems!$A$1:$C$42,2,FALSE)))*((VLOOKUP($A18,Systems!$A18:$C$42,2,FALSE)-(VLOOKUP(O$1,Systems!$A$1:$C$42,2,FALSE))))+(((VLOOKUP($A18,Systems!$A18:$C$42,3,FALSE)-(VLOOKUP(O$1,Systems!$A$1:$C$42,3,FALSE)))*((VLOOKUP($A18,Systems!$A18:$C$42,3,FALSE)-(VLOOKUP(O$1,Systems!$A$1:$C$42,3,FALSE)))))))) -> 13.89244399 | P18: =SQRT(((VLOOKUP($A18,Systems!$A18:$C$42,2,FALSE)-(VLOOKUP(P$1,Systems!$A$1:$C$42,2,FALSE)))*((VLOOKUP($A18,Systems!$A18:$C$42,2,FALSE)-(VLOOKUP(P$1,Systems!$A$1:$C$42,2,FALSE))))+(((VLOOKUP($A18,Systems!$A18:$C$42,3,FALSE)-(VLOOKUP(P$1,Systems!$A$1:$C$42,3,FALSE)))*((VLOOKUP($A18,Systems!$A18:$C$42,3,FALSE)-(VLOOKUP(P$1,Systems!$A$1:$C$42,3,FALSE)))))))) -> 14.2126704 | Q18: =SQRT(((VLOOKUP($A18,Systems!$A18:$C$42,2,FALSE)-(VLOOKUP(Q$1,Systems!$A$1:$C$42,2,FALSE)))*((VLOOKUP($A18,Systems!$A18:$C$42,2,FALSE)-(VLOOKUP(Q$1,Systems!$A$1:$C$42,2,FALSE))))+(((VLOOKUP($A18,Systems!$A18:$C$42,3,FALSE)-(VLOOKUP(Q$1,Systems!$A$1:$C$42,3,FALSE)))*((VLOOKUP($A18,Systems!$A18:$C$42,3,FALSE)-(VLOOKUP(Q$1,Systems!$A$1:$C$42,3,FALSE)))))))) -> 32.80243893 | R18: =SQRT(((VLOOKUP($A18,Systems!$A18:$C$42,2,FALSE)-(VLOOKUP(R$1,Systems!$A$1:$C$42,2,FALSE)))*((VLOOKUP($A18,Systems!$A18:$C$42,2,FALSE)-(VLOOKUP(R$1,Systems!$A$1:$C$42,2,FALSE))))+(((VLOOKUP($A18,Systems!$A18:$C$42,3,FALSE)-(VLOOKUP(R$1,Systems!$A$1:$C$42,3,FALSE)))*((VLOOKUP($A18,Systems!$A18:$C$42,3,FALSE)-(VLOOKUP(R$1,Systems!$A$1:$C$42,3,FALSE)))))))) -> 0 | S18: =SQRT(((VLOOKUP($A18,Systems!$A18:$C$42,2,FALSE)-(VLOOKUP(S$1,Systems!$A$1:$C$42,2,FALSE)))*((VLOOKUP($A18,Systems!$A18:$C$42,2,FALSE)-(VLOOKUP(S$1,Systems!$A$1:$C$42,2,FALSE))))+(((VLOOKUP($A18,Systems!$A18:$C$42,3,FALSE)-(VLOOKUP(S$1,Systems!$A$1:$C$42,3,FALSE)))*((VLOOKUP($A18,Systems!$A18:$C$42,3,FALSE)-(VLOOKUP(S$1,Systems!$A$1:$C$42,3,FALSE)))))))) -> 5 | T18: =SQRT(((VLOOKUP($A18,Systems!$A18:$C$42,2,FALSE)-(VLOOKUP(T$1,Systems!$A$1:$C$42,2,FALSE)))*((VLOOKUP($A18,Systems!$A18:$C$42,2,FALSE)-(VLOOKUP(T$1,Systems!$A$1:$C$42,2,FALSE))))+(((VLOOKUP($A18,Systems!$A18:$C$42,3,FALSE)-(VLOOKUP(T$1,Systems!$A$1:$C$42,3,FALSE)))*((VLOOKUP($A18,Systems!$A18:$C$42,3,FALSE)-(VLOOKUP(T$1,Systems!$A$1:$C$42,3,FALSE)))))))) -> 25.63201124 | U18: =SQRT(((VLOOKUP($A18,Systems!$A18:$C$42,2,FALSE)-(VLOOKUP(U$1,Systems!$A$1:$C$42,2,FALSE)))*((VLOOKUP($A18,Systems!$A18:$C$42,2,FALSE)-(VLOOKUP(U$1,Systems!$A$1:$C$42,2,FALSE))))+(((VLOOKUP($A18,Systems!$A18:$C$42,3,FALSE)-(VLOOKUP(U$1,Systems!$A$1:$C$42,3,FALSE)))*((VLOOKUP($A18,Systems!$A18:$C$42,3,FALSE)-(VLOOKUP(U$1,Systems!$A$1:$C$42,3,FALSE)))))))) -> 7.211102551 | V18: =SQRT(((VLOOKUP($A18,Systems!$A18:$C$42,2,FALSE)-(VLOOKUP(V$1,Systems!$A$1:$C$42,2,FALSE)))*((VLOOKUP($A18,Systems!$A18:$C$42,2,FALSE)-(VLOOKUP(V$1,Systems!$A$1:$C$42,2,FALSE))))+(((VLOOKUP($A18,Systems!$A18:$C$42,3,FALSE)-(VLOOKUP(V$1,Systems!$A$1:$C$42,3,FALSE)))*((VLOOKUP($A18,Systems!$A18:$C$42,3,FALSE)-(VLOOKUP(V$1,Systems!$A$1:$C$42,3,FALSE)))))))) -> 12.20655562 | W18: =SQRT(((VLOOKUP($A18,Systems!$A18:$C$42,2,FALSE)-(VLOOKUP(W$1,Systems!$A$1:$C$42,2,FALSE)))*((VLOOKUP($A18,Systems!$A18:$C$42,2,FALSE)-(VLOOKUP(W$1,Systems!$A$1:$C$42,2,FALSE))))+(((VLOOKUP($A18,Systems!$A18:$C$42,3,FALSE)-(VLOOKUP(W$1,Systems!$A$1:$C$42,3,FALSE)))*((VLOOKUP($A18,Systems!$A18:$C$42,3,FALSE)-(VLOOKUP(W$1,Systems!$A$1:$C$42,3,FALSE)))))))) -> 29.41088234 | X18: =SQRT(((VLOOKUP($A18,Systems!$A18:$C$42,2,FALSE)-(VLOOKUP(X$1,Systems!$A$1:$C$42,2,FALSE)))*((VLOOKUP($A18,Systems!$A18:$C$42,2,FALSE)-(VLOOKUP(X$1,Systems!$A$1:$C$42,2,FALSE))))+(((VLOOKUP($A18,Systems!$A18:$C$42,3,FALSE)-(VLOOKUP(X$1,Systems!$A$1:$C$42,3,FALSE)))*((VLOOKUP($A18,Systems!$A18:$C$42,3,FALSE)-(VLOOKUP(X$1,Systems!$A$1:$C$42,3,FALSE)))))))) -> 29.54657341 | Y18: =SQRT(((VLOOKUP($A18,Systems!$A18:$C$42,2,FALSE)-(VLOOKUP(Y$1,Systems!$A$1:$C$42,2,FALSE)))*((VLOOKUP($A18,Systems!$A18:$C$42,2,FALSE)-(VLOOKUP(Y$1,Systems!$A$1:$C$42,2,FALSE))))+(((VLOOKUP($A18,Systems!$A18:$C$42,3,FALSE)-(VLOOKUP(Y$1,Systems!$A$1:$C$42,3,FALSE)))*((VLOOKUP($A18,Systems!$A18:$C$42,3,FALSE)-(VLOOKUP(Y$1,Systems!$A$1:$C$42,3,FALSE)))))))) -> 10.77032961 | Z18: =SQRT(((VLOOKUP($A18,Systems!$A18:$C$42,2,FALSE)-(VLOOKUP(Z$1,Systems!$A$1:$C$42,2,FALSE)))*((VLOOKUP($A18,Systems!$A18:$C$42,2,FALSE)-(VLOOKUP(Z$1,Systems!$A$1:$C$42,2,FALSE))))+(((VLOOKUP($A18,Systems!$A18:$C$42,3,FALSE)-(VLOOKUP(Z$1,Systems!$A$1:$C$42,3,FALSE)))*((VLOOKUP($A18,Systems!$A18:$C$42,3,FALSE)-(VLOOKUP(Z$1,Systems!$A$1:$C$42,3,FALSE)))))))) -> 33.06055051 | AA18: =SQRT(((VLOOKUP($A18,Systems!$A18:$C$42,2,FALSE)-(VLOOKUP(AA$1,Systems!$A$1:$C$42,2,FALSE)))*((VLOOKUP($A18,Systems!$A18:$C$42,2,FALSE)-(VLOOKUP(AA$1,Systems!$A$1:$C$42,2,FALSE))))+(((VLOOKUP($A18,Systems!$A18:$C$42,3,FALSE)-(VLOOKUP(AA$1,Systems!$A$1:$C$42,3,FALSE)))*((VLOOKUP($A18,Systems!$A18:$C$42,3,FALSE)-(VLOOKUP(AA$1,Systems!$A$1:$C$42,3,FALSE)))))))) -> 18.97366596 | AB18: =SQRT(((VLOOKUP($A18,Systems!$A18:$C$42,2,FALSE)-(VLOOKUP(AB$1,Systems!$A$1:$C$42,2,FALSE)))*((VLOOKUP($A18,Systems!$A18:$C$42,2,FALSE)-(VLOOKUP(AB$1,Systems!$A$1:$C$42,2,FALSE))))+(((VLOOKUP($A18,Systems!$A18:$C$42,3,FALSE)-(VLOOKUP(AB$1,Systems!$A$1:$C$42,3,FALSE)))*((VLOOKUP($A18,Systems!$A18:$C$42,3,FALSE)-(VLOOKUP(AB$1,Systems!$A$1:$C$42,3,FALSE)))))))) -> 33.37663854 | AC18: =SQRT(((VLOOKUP($A18,Systems!$A18:$C$42,2,FALSE)-(VLOOKUP(AC$1,Systems!$A$1:$C$42,2,FALSE)))*((VLOOKUP($A18,Systems!$A18:$C$42,2,FALSE)-(VLOOKUP(AC$1,Systems!$A$1:$C$42,2,FALSE))))+(((VLOOKUP($A18,Systems!$A18:$C$42,3,FALSE)-(VLOOKUP(AC$1,Systems!$A$1:$C$42,3,FALSE)))*((VLOOKUP($A18,Systems!$A18:$C$42,3,FALSE)-(VLOOKUP(AC$1,Systems!$A$1:$C$42,3,FALSE)))))))) -> 26.90724809 | AD18: =SQRT(((VLOOKUP($A18,Systems!$A18:$C$42,2,FALSE)-(VLOOKUP(AD$1,Systems!$A$1:$C$42,2,FALSE)))*((VLOOKUP($A18,Systems!$A18:$C$42,2,FALSE)-(VLOOKUP(AD$1,Systems!$A$1:$C$42,2,FALSE))))+(((VLOOKUP($A18,Systems!$A18:$C$42,3,FALSE)-(VLOOKUP(AD$1,Systems!$A$1:$C$42,3,FALSE)))*((VLOOKUP($A18,Systems!$A18:$C$42,3,FALSE)-(VLOOKUP(AD$1,Systems!$A$1:$C$42,3,FALSE)))))))) -> 19.23538406 | AE18: =SQRT(((VLOOKUP($A18,Systems!$A18:$C$42,2,FALSE)-(VLOOKUP(AE$1,Systems!$A$1:$C$42,2,FALSE)))*((VLOOKUP($A18,Systems!$A18:$C$42,2,FALSE)-(VLOOKUP(AE$1,Systems!$A$1:$C$42,2,FALSE))))+(((VLOOKUP($A18,Systems!$A18:$C$42,3,FALSE)-(VLOOKUP(AE$1,Systems!$A$1:$C$42,3,FALSE)))*((VLOOKUP($A18,Systems!$A18:$C$42,3,FALSE)-(VLOOKUP(AE$1,Systems!$A$1:$C$42,3,FALSE)))))))) -> 38.41874542 | AF18: =SQRT(((VLOOKUP($A18,Systems!$A18:$C$42,2,FALSE)-(VLOOKUP(AF$1,Systems!$A$1:$C$42,2,FALSE)))*((VLOOKUP($A18,Systems!$A18:$C$42,2,FALSE)-(VLOOKUP(AF$1,Systems!$A$1:$C$42,2,FALSE))))+(((VLOOKUP($A18,Systems!$A18:$C$42,3,FALSE)-(VLOOKUP(AF$1,Systems!$A$1:$C$42,3,FALSE)))*((VLOOKUP($A18,Systems!$A18:$C$42,3,FALSE)-(VLOOKUP(AF$1,Systems!$A$1:$C$42,3,FALSE)))))))) -> 34.23448554 | AG18: =SQRT(((VLOOKUP($A18,Systems!$A18:$C$42,2,FALSE)-(VLOOKUP(AG$1,Systems!$A$1:$C$42,2,FALSE)))*((VLOOKUP($A18,Systems!$A18:$C$42,2,FALSE)-(VLOOKUP(AG$1,Systems!$A$1:$C$42,2,FALSE))))+(((VLOOKUP($A18,Systems!$A18:$C$42,3,FALSE)-(VLOOKUP(AG$1,Systems!$A$1:$C$42,3,FALSE)))*((VLOOKUP($A18,Systems!$A18:$C$42,3,FALSE)-(VLOOKUP(AG$1,Systems!$A$1:$C$42,3,FALSE)))))))) -> 5.830951895 | AH18: =SQRT(((VLOOKUP($A18,Systems!$A18:$C$42,2,FALSE)-(VLOOKUP(AH$1,Systems!$A$1:$C$42,2,FALSE)))*((VLOOKUP($A18,Systems!$A18:$C$42,2,FALSE)-(VLOOKUP(AH$1,Systems!$A$1:$C$42,2,FALSE))))+(((VLOOKUP($A18,Systems!$A18:$C$42,3,FALSE)-(VLOOKUP(AH$1,Systems!$A$1:$C$42,3,FALSE)))*((VLOOKUP($A18,Systems!$A18:$C$42,3,FALSE)-(VLOOKUP(AH$1,Systems!$A$1:$C$42,3,FALSE)))))))) -> 19.6468827 | AI18: =SQRT(((VLOOKUP($A18,Systems!$A18:$C$42,2,FALSE)-(VLOOKUP(AI$1,Systems!$A$1:$C$42,2,FALSE)))*((VLOOKUP($A18,Systems!$A18:$C$42,2,FALSE)-(VLOOKUP(AI$1,Systems!$A$1:$C$42,2,FALSE))))+(((VLOOKUP($A18,Systems!$A18:$C$42,3,FALSE)-(VLOOKUP(AI$1,Systems!$A$1:$C$42,3,FALSE)))*((VLOOKUP($A18,Systems!$A18:$C$42,3,FALSE)-(VLOOKUP(AI$1,Systems!$A$1:$C$42,3,FALSE)))))))) -> 41.23105626 | AJ18: =SQRT(((VLOOKUP($A18,Systems!$A18:$C$42,2,FALSE)-(VLOOKUP(AJ$1,Systems!$A$1:$C$42,2,FALSE)))*((VLOOKUP($A18,Systems!$A18:$C$42,2,FALSE)-(VLOOKUP(AJ$1,Systems!$A$1:$C$42,2,FALSE))))+(((VLOOKUP($A18,Systems!$A18:$C$42,3,FALSE)-(VLOOKUP(AJ$1,Systems!$A$1:$C$42,3,FALSE)))*((VLOOKUP($A18,Systems!$A18:$C$42,3,FALSE)-(VLOOKUP(AJ$1,Systems!$A$1:$C$42,3,FALSE)))))))) -> 19.02629759 | AK18: =SQRT(((VLOOKUP($A18,Systems!$A18:$C$42,2,FALSE)-(VLOOKUP(AK$1,Systems!$A$1:$C$42,2,FALSE)))*((VLOOKUP($A18,Systems!$A18:$C$42,2,FALSE)-(VLOOKUP(AK$1,Systems!$A$1:$C$42,2,FALSE))))+(((VLOOKUP($A18,Systems!$A18:$C$42,3,FALSE)-(VLOOKUP(AK$1,Systems!$A$1:$C$42,3,FALSE)))*((VLOOKUP($A18,Systems!$A18:$C$42,3,FALSE)-(VLOOKUP(AK$1,Systems!$A$1:$C$42,3,FALSE)))))))) -> 20.61552813 | AL18: =SQRT(((VLOOKUP($A18,Systems!$A18:$C$42,2,FALSE)-(VLOOKUP(AL$1,Systems!$A$1:$C$42,2,FALSE)))*((VLOOKUP($A18,Systems!$A18:$C$42,2,FALSE)-(VLOOKUP(AL$1,Systems!$A$1:$C$42,2,FALSE))))+(((VLOOKUP($A18,Systems!$A18:$C$42,3,FALSE)-(VLOOKUP(AL$1,Systems!$A$1:$C$42,3,FALSE)))*((VLOOKUP($A18,Systems!$A18:$C$42,3,FALSE)-(VLOOKUP(AL$1,Systems!$A$1:$C$42,3,FALSE)))))))) -> 14 | AM18: =SQRT(((VLOOKUP($A18,Systems!$A18:$C$42,2,FALSE)-(VLOOKUP(AM$1,Systems!$A$1:$C$42,2,FALSE)))*((VLOOKUP($A18,Systems!$A18:$C$42,2,FALSE)-(VLOOKUP(AM$1,Systems!$A$1:$C$42,2,FALSE))))+(((VLOOKUP($A18,Systems!$A18:$C$42,3,FALSE)-(VLOOKUP(AM$1,Systems!$A$1:$C$42,3,FALSE)))*((VLOOKUP($A18,Systems!$A18:$C$42,3,FALSE)-(VLOOKUP(AM$1,Systems!$A$1:$C$42,3,FALSE)))))))) -> 22.02271555 | AN18: =SQRT(((VLOOKUP($A18,Systems!$A18:$C$42,2,FALSE)-(VLOOKUP(AN$1,Systems!$A$1:$C$42,2,FALSE)))*((VLOOKUP($A18,Systems!$A18:$C$42,2,FALSE)-(VLOOKUP(AN$1,Systems!$A$1:$C$42,2,FALSE))))+(((VLOOKUP($A18,Systems!$A18:$C$42,3,FALSE)-(VLOOKUP(AN$1,Systems!$A$1:$C$42,3,FALSE)))*((VLOOKUP($A18,Systems!$A18:$C$42,3,FALSE)-(VLOOKUP(AN$1,Systems!$A$1:$C$42,3,FALSE)))))))) -> 27.29468813 | AO18: =SQRT(((VLOOKUP($A18,Systems!$A18:$C$42,2,FALSE)-(VLOOKUP(AO$1,Systems!$A$1:$C$42,2,FALSE)))*((VLOOKUP($A18,Systems!$A18:$C$42,2,FALSE)-(VLOOKUP(AO$1,Systems!$A$1:$C$42,2,FALSE))))+(((VLOOKUP($A18,Systems!$A18:$C$42,3,FALSE)-(VLOOKUP(AO$1,Systems!$A$1:$C$42,3,FALSE)))*((VLOOKUP($A18,Systems!$A18:$C$42,3,FALSE)-(VLOOKUP(AO$1,Systems!$A$1:$C$42,3,FALSE)))))))) -> 11.18033989 | AP18: =SQRT(((VLOOKUP($A18,Systems!$A18:$C$42,2,FALSE)-(VLOOKUP(AP$1,Systems!$A$1:$C$42,2,FALSE)))*((VLOOKUP($A18,Systems!$A18:$C$42,2,FALSE)-(VLOOKUP(AP$1,Systems!$A$1:$C$42,2,FALSE))))+(((VLOOKUP($A18,Systems!$A18:$C$42,3,FALSE)-(VLOOKUP(AP$1,Systems!$A$1:$C$42,3,FALSE)))*((VLOOKUP($A18,Systems!$A18:$C$42,3,FALSE)-(VLOOKUP(AP$1,Systems!$A$1:$C$42,3,FALSE)))))))) -> 26.07680962
A19: =Systems!A19 -> K’tsa-Kar | B19: =SQRT(((VLOOKUP($A19,Systems!$A19:$C$42,2,FALSE)-(VLOOKUP(B$1,Systems!$A$1:$C$42,2,FALSE)))*((VLOOKUP($A19,Systems!$A19:$C$42,2,FALSE)-(VLOOKUP(B$1,Systems!$A$1:$C$42,2,FALSE))))+(((VLOOKUP($A19,Systems!$A19:$C$42,3,FALSE)-(VLOOKUP(B$1,Systems!$A$1:$C$42,3,FALSE)))*((VLOOKUP($A19,Systems!$A19:$C$42,3,FALSE)-(VLOOKUP(B$1,Systems!$A$1:$C$42,3,FALSE)))))))) -> 15.8113883 | C19: =SQRT(((VLOOKUP($A19,Systems!$A19:$C$42,2,FALSE)-(VLOOKUP(C$1,Systems!$A$1:$C$42,2,FALSE)))*((VLOOKUP($A19,Systems!$A19:$C$42,2,FALSE)-(VLOOKUP(C$1,Systems!$A$1:$C$42,2,FALSE))))+(((VLOOKUP($A19,Systems!$A19:$C$42,3,FALSE)-(VLOOKUP(C$1,Systems!$A$1:$C$42,3,FALSE)))*((VLOOKUP($A19,Systems!$A19:$C$42,3,FALSE)-(VLOOKUP(C$1,Systems!$A$1:$C$42,3,FALSE)))))))) -> 32.89376841 | D19: =SQRT(((VLOOKUP($A19,Systems!$A19:$C$42,2,FALSE)-(VLOOKUP(D$1,Systems!$A$1:$C$42,2,FALSE)))*((VLOOKUP($A19,Systems!$A19:$C$42,2,FALSE)-(VLOOKUP(D$1,Systems!$A$1:$C$42,2,FALSE))))+(((VLOOKUP($A19,Systems!$A19:$C$42,3,FALSE)-(VLOOKUP(D$1,Systems!$A$1:$C$42,3,FALSE)))*((VLOOKUP($A19,Systems!$A19:$C$42,3,FALSE)-(VLOOKUP(D$1,Systems!$A$1:$C$42,3,FALSE)))))))) -> 25.70992026 | E19: =SQRT(((VLOOKUP($A19,Systems!$A19:$C$42,2,FALSE)-(VLOOKUP(E$1,Systems!$A$1:$C$42,2,FALSE)))*((VLOOKUP($A19,Systems!$A19:$C$42,2,FALSE)-(VLOOKUP(E$1,Systems!$A$1:$C$42,2,FALSE))))+(((VLOOKUP($A19,Systems!$A19:$C$42,3,FALSE)-(VLOOKUP(E$1,Systems!$A$1:$C$42,3,FALSE)))*((VLOOKUP($A19,Systems!$A19:$C$42,3,FALSE)-(VLOOKUP(E$1,Systems!$A$1:$C$42,3,FALSE)))))))) -> 25 | F19: =SQRT(((VLOOKUP($A19,Systems!$A19:$C$42,2,FALSE)-(VLOOKUP(F$1,Systems!$A$1:$C$42,2,FALSE)))*((VLOOKUP($A19,Systems!$A19:$C$42,2,FALSE)-(VLOOKUP(F$1,Systems!$A$1:$C$42,2,FALSE))))+(((VLOOKUP($A19,Systems!$A19:$C$42,3,FALSE)-(VLOOKUP(F$1,Systems!$A$1:$C$42,3,FALSE)))*((VLOOKUP($A19,Systems!$A19:$C$42,3,FALSE)-(VLOOKUP(F$1,Systems!$A$1:$C$42,3,FALSE)))))))) -> 32.55764119 | G19: =SQRT(((VLOOKUP($A19,Systems!$A19:$C$42,2,FALSE)-(VLOOKUP(G$1,Systems!$A$1:$C$42,2,FALSE)))*((VLOOKUP($A19,Systems!$A19:$C$42,2,FALSE)-(VLOOKUP(G$1,Systems!$A$1:$C$42,2,FALSE))))+(((VLOOKUP($A19,Systems!$A19:$C$42,3,FALSE)-(VLOOKUP(G$1,Systems!$A$1:$C$42,3,FALSE)))*((VLOOKUP($A19,Systems!$A19:$C$42,3,FALSE)-(VLOOKUP(G$1,Systems!$A$1:$C$42,3,FALSE)))))))) -> 14.14213562 | H19: =SQRT(((VLOOKUP($A19,Systems!$A19:$C$42,2,FALSE)-(VLOOKUP(H$1,Systems!$A$1:$C$42,2,FALSE)))*((VLOOKUP($A19,Systems!$A19:$C$42,2,FALSE)-(VLOOKUP(H$1,Systems!$A$1:$C$42,2,FALSE))))+(((VLOOKUP($A19,Systems!$A19:$C$42,3,FALSE)-(VLOOKUP(H$1,Systems!$A$1:$C$42,3,FALSE)))*((VLOOKUP($A19,Systems!$A19:$C$42,3,FALSE)-(VLOOKUP(H$1,Systems!$A$1:$C$42,3,FALSE)))))))) -> 19.20937271 | I19: =SQRT(((VLOOKUP($A19,Systems!$A19:$C$42,2,FALSE)-(VLOOKUP(I$1,Systems!$A$1:$C$42,2,FALSE)))*((VLOOKUP($A19,Systems!$A19:$C$42,2,FALSE)-(VLOOKUP(I$1,Systems!$A$1:$C$42,2,FALSE))))+(((VLOOKUP($A19,Systems!$A19:$C$42,3,FALSE)-(VLOOKUP(I$1,Systems!$A$1:$C$42,3,FALSE)))*((VLOOKUP($A19,Systems!$A19:$C$42,3,FALSE)-(VLOOKUP(I$1,Systems!$A$1:$C$42,3,FALSE)))))))) -> 10.29563014 | J19: =SQRT(((VLOOKUP($A19,Systems!$A19:$C$42,2,FALSE)-(VLOOKUP(J$1,Systems!$A$1:$C$42,2,FALSE)))*((VLOOKUP($A19,Systems!$A19:$C$42,2,FALSE)-(VLOOKUP(J$1,Systems!$A$1:$C$42,2,FALSE))))+(((VLOOKUP($A19,Systems!$A19:$C$42,3,FALSE)-(VLOOKUP(J$1,Systems!$A$1:$C$42,3,FALSE)))*((VLOOKUP($A19,Systems!$A19:$C$42,3,FALSE)-(VLOOKUP(J$1,Systems!$A$1:$C$42,3,FALSE)))))))) -> 9.219544457 | K19: =SQRT(((VLOOKUP($A19,Systems!$A19:$C$42,2,FALSE)-(VLOOKUP(K$1,Systems!$A$1:$C$42,2,FALSE)))*((VLOOKUP($A19,Systems!$A19:$C$42,2,FALSE)-(VLOOKUP(K$1,Systems!$A$1:$C$42,2,FALSE))))+(((VLOOKUP($A19,Systems!$A19:$C$42,3,FALSE)-(VLOOKUP(K$1,Systems!$A$1:$C$42,3,FALSE)))*((VLOOKUP($A19,Systems!$A19:$C$42,3,FALSE)-(VLOOKUP(K$1,Systems!$A$1:$C$42,3,FALSE)))))))) -> 18.11077028 | L19: =SQRT(((VLOOKUP($A19,Systems!$A19:$C$42,2,FALSE)-(VLOOKUP(L$1,Systems!$A$1:$C$42,2,FALSE)))*((VLOOKUP($A19,Systems!$A19:$C$42,2,FALSE)-(VLOOKUP(L$1,Systems!$A$1:$C$42,2,FALSE))))+(((VLOOKUP($A19,Systems!$A19:$C$42,3,FALSE)-(VLOOKUP(L$1,Systems!$A$1:$C$42,3,FALSE)))*((VLOOKUP($A19,Systems!$A19:$C$42,3,FALSE)-(VLOOKUP(L$1,Systems!$A$1:$C$42,3,FALSE)))))))) -> 11.70469991 | M19: =SQRT(((VLOOKUP($A19,Systems!$A19:$C$42,2,FALSE)-(VLOOKUP(M$1,Systems!$A$1:$C$42,2,FALSE)))*((VLOOKUP($A19,Systems!$A19:$C$42,2,FALSE)-(VLOOKUP(M$1,Systems!$A$1:$C$42,2,FALSE))))+(((VLOOKUP($A19,Systems!$A19:$C$42,3,FALSE)-(VLOOKUP(M$1,Systems!$A$1:$C$42,3,FALSE)))*((VLOOKUP($A19,Systems!$A19:$C$42,3,FALSE)-(VLOOKUP(M$1,Systems!$A$1:$C$42,3,FALSE)))))))) -> 4.123105626 | N19: =SQRT(((VLOOKUP($A19,Systems!$A19:$C$42,2,FALSE)-(VLOOKUP(N$1,Systems!$A$1:$C$42,2,FALSE)))*((VLOOKUP($A19,Systems!$A19:$C$42,2,FALSE)-(VLOOKUP(N$1,Systems!$A$1:$C$42,2,FALSE))))+(((VLOOKUP($A19,Systems!$A19:$C$42,3,FALSE)-(VLOOKUP(N$1,Systems!$A$1:$C$42,3,FALSE)))*((VLOOKUP($A19,Systems!$A19:$C$42,3,FALSE)-(VLOOKUP(N$1,Systems!$A$1:$C$42,3,FALSE)))))))) -> 35.4682957 | O19: =SQRT(((VLOOKUP($A19,Systems!$A19:$C$42,2,FALSE)-(VLOOKUP(O$1,Systems!$A$1:$C$42,2,FALSE)))*((VLOOKUP($A19,Systems!$A19:$C$42,2,FALSE)-(VLOOKUP(O$1,Systems!$A$1:$C$42,2,FALSE))))+(((VLOOKUP($A19,Systems!$A19:$C$42,3,FALSE)-(VLOOKUP(O$1,Systems!$A$1:$C$42,3,FALSE)))*((VLOOKUP($A19,Systems!$A19:$C$42,3,FALSE)-(VLOOKUP(O$1,Systems!$A$1:$C$42,3,FALSE)))))))) -> 14.2126704 | P19: =SQRT(((VLOOKUP($A19,Systems!$A19:$C$42,2,FALSE)-(VLOOKUP(P$1,Systems!$A$1:$C$42,2,FALSE)))*((VLOOKUP($A19,Systems!$A19:$C$42,2,FALSE)-(VLOOKUP(P$1,Systems!$A$1:$C$42,2,FALSE))))+(((VLOOKUP($A19,Systems!$A19:$C$42,3,FALSE)-(VLOOKUP(P$1,Systems!$A$1:$C$42,3,FALSE)))*((VLOOKUP($A19,Systems!$A19:$C$42,3,FALSE)-(VLOOKUP(P$1,Systems!$A$1:$C$42,3,FALSE)))))))) -> 9.219544457 | Q19: =SQRT(((VLOOKUP($A19,Systems!$A19:$C$42,2,FALSE)-(VLOOKUP(Q$1,Systems!$A$1:$C$42,2,FALSE)))*((VLOOKUP($A19,Systems!$A19:$C$42,2,FALSE)-(VLOOKUP(Q$1,Systems!$A$1:$C$42,2,FALSE))))+(((VLOOKUP($A19,Systems!$A19:$C$42,3,FALSE)-(VLOOKUP(Q$1,Systems!$A$1:$C$42,3,FALSE)))*((VLOOKUP($A19,Systems!$A19:$C$42,3,FALSE)-(VLOOKUP(Q$1,Systems!$A$1:$C$42,3,FALSE)))))))) -> 28.01785145 | R19: =SQRT(((VLOOKUP($A19,Systems!$A19:$C$42,2,FALSE)-(VLOOKUP(R$1,Systems!$A$1:$C$42,2,FALSE)))*((VLOOKUP($A19,Systems!$A19:$C$42,2,FALSE)-(VLOOKUP(R$1,Systems!$A$1:$C$42,2,FALSE))))+(((VLOOKUP($A19,Systems!$A19:$C$42,3,FALSE)-(VLOOKUP(R$1,Systems!$A$1:$C$42,3,FALSE)))*((VLOOKUP($A19,Systems!$A19:$C$42,3,FALSE)-(VLOOKUP(R$1,Systems!$A$1:$C$42,3,FALSE)))))))) -> 5 | S19: =SQRT(((VLOOKUP($A19,Systems!$A19:$C$42,2,FALSE)-(VLOOKUP(S$1,Systems!$A$1:$C$42,2,FALSE)))*((VLOOKUP($A19,Systems!$A19:$C$42,2,FALSE)-(VLOOKUP(S$1,Systems!$A$1:$C$42,2,FALSE))))+(((VLOOKUP($A19,Systems!$A19:$C$42,3,FALSE)-(VLOOKUP(S$1,Systems!$A$1:$C$42,3,FALSE)))*((VLOOKUP($A19,Systems!$A19:$C$42,3,FALSE)-(VLOOKUP(S$1,Systems!$A$1:$C$42,3,FALSE)))))))) -> 0 | T19: =SQRT(((VLOOKUP($A19,Systems!$A19:$C$42,2,FALSE)-(VLOOKUP(T$1,Systems!$A$1:$C$42,2,FALSE)))*((VLOOKUP($A19,Systems!$A19:$C$42,2,FALSE)-(VLOOKUP(T$1,Systems!$A$1:$C$42,2,FALSE))))+(((VLOOKUP($A19,Systems!$A19:$C$42,3,FALSE)-(VLOOKUP(T$1,Systems!$A$1:$C$42,3,FALSE)))*((VLOOKUP($A19,Systems!$A19:$C$42,3,FALSE)-(VLOOKUP(T$1,Systems!$A$1:$C$42,3,FALSE)))))))) -> 24.69817807 | U19: =SQRT(((VLOOKUP($A19,Systems!$A19:$C$42,2,FALSE)-(VLOOKUP(U$1,Systems!$A$1:$C$42,2,FALSE)))*((VLOOKUP($A19,Systems!$A19:$C$42,2,FALSE)-(VLOOKUP(U$1,Systems!$A$1:$C$42,2,FALSE))))+(((VLOOKUP($A19,Systems!$A19:$C$42,3,FALSE)-(VLOOKUP(U$1,Systems!$A$1:$C$42,3,FALSE)))*((VLOOKUP($A19,Systems!$A19:$C$42,3,FALSE)-(VLOOKUP(U$1,Systems!$A$1:$C$42,3,FALSE)))))))) -> 10.04987562 | V19: =SQRT(((VLOOKUP($A19,Systems!$A19:$C$42,2,FALSE)-(VLOOKUP(V$1,Systems!$A$1:$C$42,2,FALSE)))*((VLOOKUP($A19,Systems!$A19:$C$42,2,FALSE)-(VLOOKUP(V$1,Systems!$A$1:$C$42,2,FALSE))))+(((VLOOKUP($A19,Systems!$A19:$C$42,3,FALSE)-(VLOOKUP(V$1,Systems!$A$1:$C$42,3,FALSE)))*((VLOOKUP($A19,Systems!$A19:$C$42,3,FALSE)-(VLOOKUP(V$1,Systems!$A$1:$C$42,3,FALSE)))))))) -> 14.56021978 | W19: =SQRT(((VLOOKUP($A19,Systems!$A19:$C$42,2,FALSE)-(VLOOKUP(W$1,Systems!$A$1:$C$42,2,FALSE)))*((VLOOKUP($A19,Systems!$A19:$C$42,2,FALSE)-(VLOOKUP(W$1,Systems!$A$1:$C$42,2,FALSE))))+(((VLOOKUP($A19,Systems!$A19:$C$42,3,FALSE)-(VLOOKUP(W$1,Systems!$A$1:$C$42,3,FALSE)))*((VLOOKUP($A19,Systems!$A19:$C$42,3,FALSE)-(VLOOKUP(W$1,Systems!$A$1:$C$42,3,FALSE)))))))) -> 26.83281573 | X19: =SQRT(((VLOOKUP($A19,Systems!$A19:$C$42,2,FALSE)-(VLOOKUP(X$1,Systems!$A$1:$C$42,2,FALSE)))*((VLOOKUP($A19,Systems!$A19:$C$42,2,FALSE)-(VLOOKUP(X$1,Systems!$A$1:$C$42,2,FALSE))))+(((VLOOKUP($A19,Systems!$A19:$C$42,3,FALSE)-(VLOOKUP(X$1,Systems!$A$1:$C$42,3,FALSE)))*((VLOOKUP($A19,Systems!$A19:$C$42,3,FALSE)-(VLOOKUP(X$1,Systems!$A$1:$C$42,3,FALSE)))))))) -> 24.69817807 | Y19: =SQRT(((VLOOKUP($A19,Systems!$A19:$C$42,2,FALSE)-(VLOOKUP(Y$1,Systems!$A$1:$C$42,2,FALSE)))*((VLOOKUP($A19,Systems!$A19:$C$42,2,FALSE)-(VLOOKUP(Y$1,Systems!$A$1:$C$42,2,FALSE))))+(((VLOOKUP($A19,Systems!$A19:$C$42,3,FALSE)-(VLOOKUP(Y$1,Systems!$A$1:$C$42,3,FALSE)))*((VLOOKUP($A19,Systems!$A19:$C$42,3,FALSE)-(VLOOKUP(Y$1,Systems!$A$1:$C$42,3,FALSE)))))))) -> 7 | Z19: =SQRT(((VLOOKUP($A19,Systems!$A19:$C$42,2,FALSE)-(VLOOKUP(Z$1,Systems!$A$1:$C$42,2,FALSE)))*((VLOOKUP($A19,Systems!$A19:$C$42,2,FALSE)-(VLOOKUP(Z$1,Systems!$A$1:$C$42,2,FALSE))))+(((VLOOKUP($A19,Systems!$A19:$C$42,3,FALSE)-(VLOOKUP(Z$1,Systems!$A$1:$C$42,3,FALSE)))*((VLOOKUP($A19,Systems!$A19:$C$42,3,FALSE)-(VLOOKUP(Z$1,Systems!$A$1:$C$42,3,FALSE)))))))) -> 30.06659276 | AA19: =SQRT(((VLOOKUP($A19,Systems!$A19:$C$42,2,FALSE)-(VLOOKUP(AA$1,Systems!$A$1:$C$42,2,FALSE)))*((VLOOKUP($A19,Systems!$A19:$C$42,2,FALSE)-(VLOOKUP(AA$1,Systems!$A$1:$C$42,2,FALSE))))+(((VLOOKUP($A19,Systems!$A19:$C$42,3,FALSE)-(VLOOKUP(AA$1,Systems!$A$1:$C$42,3,FALSE)))*((VLOOKUP($A19,Systems!$A19:$C$42,3,FALSE)-(VLOOKUP(AA$1,Systems!$A$1:$C$42,3,FALSE)))))))) -> 14.31782106 | AB19: =SQRT(((VLOOKUP($A19,Systems!$A19:$C$42,2,FALSE)-(VLOOKUP(AB$1,Systems!$A$1:$C$42,2,FALSE)))*((VLOOKUP($A19,Systems!$A19:$C$42,2,FALSE)-(VLOOKUP(AB$1,Systems!$A$1:$C$42,2,FALSE))))+(((VLOOKUP($A19,Systems!$A19:$C$42,3,FALSE)-(VLOOKUP(AB$1,Systems!$A$1:$C$42,3,FALSE)))*((VLOOKUP($A19,Systems!$A19:$C$42,3,FALSE)-(VLOOKUP(AB$1,Systems!$A$1:$C$42,3,FALSE)))))))) -> 31.32091953 | AC19: =SQRT(((VLOOKUP($A19,Systems!$A19:$C$42,2,FALSE)-(VLOOKUP(AC$1,Systems!$A$1:$C$42,2,FALSE)))*((VLOOKUP($A19,Systems!$A19:$C$42,2,FALSE)-(VLOOKUP(AC$1,Systems!$A$1:$C$42,2,FALSE))))+(((VLOOKUP($A19,Systems!$A19:$C$42,3,FALSE)-(VLOOKUP(AC$1,Systems!$A$1:$C$42,3,FALSE)))*((VLOOKUP($A19,Systems!$A19:$C$42,3,FALSE)-(VLOOKUP(AC$1,Systems!$A$1:$C$42,3,FALSE)))))))) -> 22.02271555 | AD19: =SQRT(((VLOOKUP($A19,Systems!$A19:$C$42,2,FALSE)-(VLOOKUP(AD$1,Systems!$A$1:$C$42,2,FALSE)))*((VLOOKUP($A19,Systems!$A19:$C$42,2,FALSE)-(VLOOKUP(AD$1,Systems!$A$1:$C$42,2,FALSE))))+(((VLOOKUP($A19,Systems!$A19:$C$42,3,FALSE)-(VLOOKUP(AD$1,Systems!$A$1:$C$42,3,FALSE)))*((VLOOKUP($A19,Systems!$A19:$C$42,3,FALSE)-(VLOOKUP(AD$1,Systems!$A$1:$C$42,3,FALSE)))))))) -> 14.86606875 | AE19: =SQRT(((VLOOKUP($A19,Systems!$A19:$C$42,2,FALSE)-(VLOOKUP(AE$1,Systems!$A$1:$C$42,2,FALSE)))*((VLOOKUP($A19,Systems!$A19:$C$42,2,FALSE)-(VLOOKUP(AE$1,Systems!$A$1:$C$42,2,FALSE))))+(((VLOOKUP($A19,Systems!$A19:$C$42,3,FALSE)-(VLOOKUP(AE$1,Systems!$A$1:$C$42,3,FALSE)))*((VLOOKUP($A19,Systems!$A19:$C$42,3,FALSE)-(VLOOKUP(AE$1,Systems!$A$1:$C$42,3,FALSE)))))))) -> 33.60059523 | AF19: =SQRT(((VLOOKUP($A19,Systems!$A19:$C$42,2,FALSE)-(VLOOKUP(AF$1,Systems!$A$1:$C$42,2,FALSE)))*((VLOOKUP($A19,Systems!$A19:$C$42,2,FALSE)-(VLOOKUP(AF$1,Systems!$A$1:$C$42,2,FALSE))))+(((VLOOKUP($A19,Systems!$A19:$C$42,3,FALSE)-(VLOOKUP(AF$1,Systems!$A$1:$C$42,3,FALSE)))*((VLOOKUP($A19,Systems!$A19:$C$42,3,FALSE)-(VLOOKUP(AF$1,Systems!$A$1:$C$42,3,FALSE)))))))) -> 31 | AG19: =SQRT(((VLOOKUP($A19,Systems!$A19:$C$42,2,FALSE)-(VLOOKUP(AG$1,Systems!$A$1:$C$42,2,FALSE)))*((VLOOKUP($A19,Systems!$A19:$C$42,2,FALSE)-(VLOOKUP(AG$1,Systems!$A$1:$C$42,2,FALSE))))+(((VLOOKUP($A19,Systems!$A19:$C$42,3,FALSE)-(VLOOKUP(AG$1,Systems!$A$1:$C$42,3,FALSE)))*((VLOOKUP($A19,Systems!$A19:$C$42,3,FALSE)-(VLOOKUP(AG$1,Systems!$A$1:$C$42,3,FALSE)))))))) -> 8.062257748 | AH19: =SQRT(((VLOOKUP($A19,Systems!$A19:$C$42,2,FALSE)-(VLOOKUP(AH$1,Systems!$A$1:$C$42,2,FALSE)))*((VLOOKUP($A19,Systems!$A19:$C$42,2,FALSE)-(VLOOKUP(AH$1,Systems!$A$1:$C$42,2,FALSE))))+(((VLOOKUP($A19,Systems!$A19:$C$42,3,FALSE)-(VLOOKUP(AH$1,Systems!$A$1:$C$42,3,FALSE)))*((VLOOKUP($A19,Systems!$A19:$C$42,3,FALSE)-(VLOOKUP(AH$1,Systems!$A$1:$C$42,3,FALSE)))))))) -> 17 | AI19: =SQRT(((VLOOKUP($A19,Systems!$A19:$C$42,2,FALSE)-(VLOOKUP(AI$1,Systems!$A$1:$C$42,2,FALSE)))*((VLOOKUP($A19,Systems!$A19:$C$42,2,FALSE)-(VLOOKUP(AI$1,Systems!$A$1:$C$42,2,FALSE))))+(((VLOOKUP($A19,Systems!$A19:$C$42,3,FALSE)-(VLOOKUP(AI$1,Systems!$A$1:$C$42,3,FALSE)))*((VLOOKUP($A19,Systems!$A19:$C$42,3,FALSE)-(VLOOKUP(AI$1,Systems!$A$1:$C$42,3,FALSE)))))))) -> 37.48332963 | AJ19: =SQRT(((VLOOKUP($A19,Systems!$A19:$C$42,2,FALSE)-(VLOOKUP(AJ$1,Systems!$A$1:$C$42,2,FALSE)))*((VLOOKUP($A19,Systems!$A19:$C$42,2,FALSE)-(VLOOKUP(AJ$1,Systems!$A$1:$C$42,2,FALSE))))+(((VLOOKUP($A19,Systems!$A19:$C$42,3,FALSE)-(VLOOKUP(AJ$1,Systems!$A$1:$C$42,3,FALSE)))*((VLOOKUP($A19,Systems!$A19:$C$42,3,FALSE)-(VLOOKUP(AJ$1,Systems!$A$1:$C$42,3,FALSE)))))))) -> 15.13274595 | AK19: =SQRT(((VLOOKUP($A19,Systems!$A19:$C$42,2,FALSE)-(VLOOKUP(AK$1,Systems!$A$1:$C$42,2,FALSE)))*((VLOOKUP($A19,Systems!$A19:$C$42,2,FALSE)-(VLOOKUP(AK$1,Systems!$A$1:$C$42,2,FALSE))))+(((VLOOKUP($A19,Systems!$A19:$C$42,3,FALSE)-(VLOOKUP(AK$1,Systems!$A$1:$C$42,3,FALSE)))*((VLOOKUP($A19,Systems!$A19:$C$42,3,FALSE)-(VLOOKUP(AK$1,Systems!$A$1:$C$42,3,FALSE)))))))) -> 15.62049935 | AL19: =SQRT(((VLOOKUP($A19,Systems!$A19:$C$42,2,FALSE)-(VLOOKUP(AL$1,Systems!$A$1:$C$42,2,FALSE)))*((VLOOKUP($A19,Systems!$A19:$C$42,2,FALSE)-(VLOOKUP(AL$1,Systems!$A$1:$C$42,2,FALSE))))+(((VLOOKUP($A19,Systems!$A19:$C$42,3,FALSE)-(VLOOKUP(AL$1,Systems!$A$1:$C$42,3,FALSE)))*((VLOOKUP($A19,Systems!$A19:$C$42,3,FALSE)-(VLOOKUP(AL$1,Systems!$A$1:$C$42,3,FALSE)))))))) -> 10.44030651 | AM19: =SQRT(((VLOOKUP($A19,Systems!$A19:$C$42,2,FALSE)-(VLOOKUP(AM$1,Systems!$A$1:$C$42,2,FALSE)))*((VLOOKUP($A19,Systems!$A19:$C$42,2,FALSE)-(VLOOKUP(AM$1,Systems!$A$1:$C$42,2,FALSE))))+(((VLOOKUP($A19,Systems!$A19:$C$42,3,FALSE)-(VLOOKUP(AM$1,Systems!$A$1:$C$42,3,FALSE)))*((VLOOKUP($A19,Systems!$A19:$C$42,3,FALSE)-(VLOOKUP(AM$1,Systems!$A$1:$C$42,3,FALSE)))))))) -> 19.23538406 | AN19: =SQRT(((VLOOKUP($A19,Systems!$A19:$C$42,2,FALSE)-(VLOOKUP(AN$1,Systems!$A$1:$C$42,2,FALSE)))*((VLOOKUP($A19,Systems!$A19:$C$42,2,FALSE)-(VLOOKUP(AN$1,Systems!$A$1:$C$42,2,FALSE))))+(((VLOOKUP($A19,Systems!$A19:$C$42,3,FALSE)-(VLOOKUP(AN$1,Systems!$A$1:$C$42,3,FALSE)))*((VLOOKUP($A19,Systems!$A19:$C$42,3,FALSE)-(VLOOKUP(AN$1,Systems!$A$1:$C$42,3,FALSE)))))))) -> 24.04163056 | AO19: =SQRT(((VLOOKUP($A19,Systems!$A19:$C$42,2,FALSE)-(VLOOKUP(AO$1,Systems!$A$1:$C$42,2,FALSE)))*((VLOOKUP($A19,Systems!$A19:$C$42,2,FALSE)-(VLOOKUP(AO$1,Systems!$A$1:$C$42,2,FALSE))))+(((VLOOKUP($A19,Systems!$A19:$C$42,3,FALSE)-(VLOOKUP(AO$1,Systems!$A$1:$C$42,3,FALSE)))*((VLOOKUP($A19,Systems!$A19:$C$42,3,FALSE)-(VLOOKUP(AO$1,Systems!$A$1:$C$42,3,FALSE)))))))) -> 6.32455532 | AP19: =SQRT(((VLOOKUP($A19,Systems!$A19:$C$42,2,FALSE)-(VLOOKUP(AP$1,Systems!$A$1:$C$42,2,FALSE)))*((VLOOKUP($A19,Systems!$A19:$C$42,2,FALSE)-(VLOOKUP(AP$1,Systems!$A$1:$C$42,2,FALSE))))+(((VLOOKUP($A19,Systems!$A19:$C$42,3,FALSE)-(VLOOKUP(AP$1,Systems!$A$1:$C$42,3,FALSE)))*((VLOOKUP($A19,Systems!$A19:$C$42,3,FALSE)-(VLOOKUP(AP$1,Systems!$A$1:$C$42,3,FALSE)))))))) -> 23.76972865
